Workbook

Sheet Summary
A1: 분 전
A2: minutes
A3: 일전
A4: days
A5: 시간 전
A6: hours
A7: 방금
A8: 1 minutes
A10: 브론즈
A11: Bronze
A12: 실버
A13: Silver
A14: 골드
A15: Gold
A16: 플래티넘
A17: Platinum
A18: 다이아몬드
A19: Diamond
A20: 마스터
A21: Master
A22: 그랜드마스터
A23: Grandmaster
A25: =A2&"-"&C2&"|"&F2&"-"&H2&"|"&K2&"-"&M2&"|"&P2&"-"&R2

Sheet Charting
B1: Percentages | J1: Raw
A2: Week Start | C2: Zerg | K2: Zerg
B3: Weeks Remaining | C3: Bronze | D3: Silver | E3: Gold | F3: Platinum | G3: Diamond | H3: Master | J3: Weeks Remaining | K3: Bronze | L3: Silver | M3: Gold | N3: Platinum | O3: Diamond | P3: Master
A4: 2014-11-10 | B4: 1 | C4: ='Analysis - 1v1'!B99 -> 0.176056338 | D4: ='Analysis - 1v1'!F99 -> 0.2051282051 | E4: ='Analysis - 1v1'!J99 -> 0.237752809 | F4: ='Analysis - 1v1'!N99 -> 0.2944099379 | G4: ='Analysis - 1v1'!R99 -> 0.3042096902 | H4: ='Analysis - 1v1'!V99 -> 0.3333333333 | J4: 1 | K4: ='Analysis - 1v1'!B73 -> 50 | L4: ='Analysis - 1v1'!F73 -> 112 | M4: ='Analysis - 1v1'!J73 -> 529 | N4: ='Analysis - 1v1'!N73 -> 474 | O4: ='Analysis - 1v1'!R73 -> 383 | P4: ='Analysis - 1v1'!V73 -> 36
A5: 2014-11-17 | B5: 2 | C5: ='Analysis - 1v1'!B100 -> 0.1923076923 | D5: ='Analysis - 1v1'!F100 -> 0.2213740458 | E5: ='Analysis - 1v1'!J100 -> 0.2476875642 | F5: ='Analysis - 1v1'!N100 -> 0.2995867769 | G5: ='Analysis - 1v1'!R100 -> 0.2949438202 | H5: ='Analysis - 1v1'!V100 -> 0.1694915254 | J5: 2 | K5: ='Analysis - 1v1'!B74 -> 20 | L5: ='Analysis - 1v1'!F74 -> 58 | M5: ='Analysis - 1v1'!J74 -> 241 | N5: ='Analysis - 1v1'!N74 -> 145 | O5: ='Analysis - 1v1'!R74 -> 105 | P5: ='Analysis - 1v1'!V74 -> 10
A6: 2014-11-24 | B6: 3 | C6: ='Analysis - 1v1'!B101 -> 0.1869918699 | D6: ='Analysis - 1v1'!F101 -> 0.2090909091 | E6: ='Analysis - 1v1'!J101 -> 0.266214908 | F6: ='Analysis - 1v1'!N101 -> 0.2876712329 | G6: ='Analysis - 1v1'!R101 -> 0.2735042735 | H6: ='Analysis - 1v1'!V101 -> 0.2295081967 | J6: 3 | K6: ='Analysis - 1v1'!B75 -> 23 | L6: ='Analysis - 1v1'!F75 -> 69 | M6: ='Analysis - 1v1'!J75 -> 275 | N6: ='Analysis - 1v1'!N75 -> 147 | O6: ='Analysis - 1v1'!R75 -> 96 | P6: ='Analysis - 1v1'!V75 -> 14
A7: 2014-12-01 | B7: 4 | C7: ='Analysis - 1v1'!B102 -> 0.1694915254 | D7: ='Analysis - 1v1'!F102 -> 0.2088724584 | E7: ='Analysis - 1v1'!J102 -> 0.2668918919 | F7: ='Analysis - 1v1'!N102 -> 0.2919847328 | G7: ='Analysis - 1v1'!R102 -> 0.304109589 | H7: ='Analysis - 1v1'!V102 -> 0.32 | J7: 4 | K7: ='Analysis - 1v1'!B76 -> 30 | L7: ='Analysis - 1v1'!F76 -> 113 | M7: ='Analysis - 1v1'!J76 -> 395 | N7: ='Analysis - 1v1'!N76 -> 153 | O7: ='Analysis - 1v1'!R76 -> 111 | P7: ='Analysis - 1v1'!V76 -> 24
A8: 2014-12-08 | B8: 5 | C8: ='Analysis - 1v1'!B103 -> 0.2401433692 | D8: ='Analysis - 1v1'!F103 -> 0.2379310345 | E8: ='Analysis - 1v1'!J103 -> 0.2579143389 | F8: ='Analysis - 1v1'!N103 -> 0.2925045704 | G8: ='Analysis - 1v1'!R103 -> 0.2705167173 | H8: ='Analysis - 1v1'!V103 -> 0.2307692308 | J8: 5 | K8: ='Analysis - 1v1'!B77 -> 67 | L8: ='Analysis - 1v1'!F77 -> 276 | M8: ='Analysis - 1v1'!J77 -> 554 | N8: ='Analysis - 1v1'!N77 -> 160 | O8: ='Analysis - 1v1'!R77 -> 89 | P8: ='Analysis - 1v1'!V77 -> 15
A9: 2014-12-15 | B9: 6 | C9: ='Analysis - 1v1'!B104 -> 0.2401524778 | D9: ='Analysis - 1v1'!F104 -> 0.2533238367 | E9: ='Analysis - 1v1'!J104 -> 0.2811327192 | F9: ='Analysis - 1v1'!N104 -> 0.2931677019 | G9: ='Analysis - 1v1'!R104 -> 0.3452380952 | H9: ='Analysis - 1v1'!V104 -> 0.2934782609 | J9: 6 | K9: ='Analysis - 1v1'!B78 -> 189 | L9: ='Analysis - 1v1'!F78 -> 1067 | M9: ='Analysis - 1v1'!J78 -> 824 | N9: ='Analysis - 1v1'!N78 -> 236 | O9: ='Analysis - 1v1'!R78 -> 145 | P9: ='Analysis - 1v1'!V78 -> 27
A10: 2014-12-22 | B10: 7 | C10: ='Analysis - 1v1'!B105 -> 0.2292358804 | D10: ='Analysis - 1v1'!F105 -> 0.2484612893 | E10: ='Analysis - 1v1'!J105 -> 0.2901268616 | F10: ='Analysis - 1v1'!N105 -> 0.3397913562 | G10: ='Analysis - 1v1'!R105 -> 0.2344827586 | H10: ='Analysis - 1v1'!V105 -> 0.2444444444 | J10: 7 | K10: ='Analysis - 1v1'!B79 -> 414 | L10: ='Analysis - 1v1'!F79 -> 1534 | M10: ='Analysis - 1v1'!J79 -> 526 | N10: ='Analysis - 1v1'!N79 -> 228 | O10: ='Analysis - 1v1'!R79 -> 68 | P10: ='Analysis - 1v1'!V79 -> 22
A11: 2014-12-29 | B11: 8 | C11: ='Analysis - 1v1'!B106 -> 0 | D11: ='Analysis - 1v1'!F106 -> 0 | E11: ='Analysis - 1v1'!J106 -> 0 | F11: ='Analysis - 1v1'!N106 -> 0 | G11: ='Analysis - 1v1'!R106 -> 0 | H11: ='Analysis - 1v1'!V106 -> 0 | J11: 8 | K11: ='Analysis - 1v1'!B80 -> 0 | L11: ='Analysis - 1v1'!F80 -> 0 | M11: ='Analysis - 1v1'!J80 -> 0 | N11: ='Analysis - 1v1'!N80 -> 0 | O11: ='Analysis - 1v1'!R80 -> 0 | P11: ='Analysis - 1v1'!V80 -> 0
A12: 1/5/2015 (season lock) | B12: 9 | C12: ='Analysis - 1v1'!B107 -> 0 | D12: ='Analysis - 1v1'!F107 -> 0 | E12: ='Analysis - 1v1'!J107 -> 0 | F12: ='Analysis - 1v1'!N107 -> 0 | G12: ='Analysis - 1v1'!R107 -> 0 | H12: ='Analysis - 1v1'!V107 -> 0 | J12: 9 | K12: ='Analysis - 1v1'!B81 -> 0 | L12: ='Analysis - 1v1'!F81 -> 0 | M12: ='Analysis - 1v1'!J81 -> 0 | N12: ='Analysis - 1v1'!N81 -> 0 | O12: ='Analysis - 1v1'!R81 -> 0 | P12: ='Analysis - 1v1'!V81 -> 0
A13: 2015-01-12 | B13: 10 | C13: ='Analysis - 1v1'!B108 -> 0 | D13: ='Analysis - 1v1'!F108 -> 0 | E13: ='Analysis - 1v1'!J108 -> 0 | F13: ='Analysis - 1v1'!N108 -> 0 | G13: ='Analysis - 1v1'!R108 -> 0 | H13: ='Analysis - 1v1'!V108 -> 0 | J13: 10 | K13: ='Analysis - 1v1'!B82 -> 0 | L13: ='Analysis - 1v1'!F82 -> 0 | M13: ='Analysis - 1v1'!J82 -> 0 | N13: ='Analysis - 1v1'!N82 -> 0 | O13: ='Analysis - 1v1'!R82 -> 0 | P13: ='Analysis - 1v1'!V82 -> 0
B14: 11 | C14: ='Analysis - 1v1'!B109 -> 0 | D14: ='Analysis - 1v1'!F109 -> 0 | E14: ='Analysis - 1v1'!J109 -> 0 | F14: ='Analysis - 1v1'!N109 -> 0 | G14: ='Analysis - 1v1'!R109 -> 0 | H14: ='Analysis - 1v1'!V109 -> 0 | J14: 11 | K14: ='Analysis - 1v1'!B83 -> 0 | L14: ='Analysis - 1v1'!F83 -> 0 | M14: ='Analysis - 1v1'!J83 -> 0 | N14: ='Analysis - 1v1'!N83 -> 0 | O14: ='Analysis - 1v1'!R83 -> 0 | P14: ='Analysis - 1v1'!V83 -> 0
B15: =B14+1 -> 12 | C15: ='Analysis - 1v1'!B110 -> 0 | D15: ='Analysis - 1v1'!F110 -> 0 | E15: ='Analysis - 1v1'!J110 -> 0 | F15: ='Analysis - 1v1'!N110 -> 0 | G15: ='Analysis - 1v1'!R110 -> 0 | H15: ='Analysis - 1v1'!V110 -> 0 | J15: =J14+1 -> 12 | K15: ='Analysis - 1v1'!B84 -> 0 | L15: ='Analysis - 1v1'!F84 -> 0 | M15: ='Analysis - 1v1'!J84 -> 0 | N15: ='Analysis - 1v1'!N84 -> 0 | O15: ='Analysis - 1v1'!R84 -> 0 | P15: ='Analysis - 1v1'!V84 -> 0
B16: =B15+1 -> 13 | C16: ='Analysis - 1v1'!B111 -> 0 | D16: ='Analysis - 1v1'!F111 -> 0 | E16: ='Analysis - 1v1'!J111 -> 0 | F16: ='Analysis - 1v1'!N111 -> 0 | G16: ='Analysis - 1v1'!R111 -> 0 | H16: ='Analysis - 1v1'!V111 -> 0 | J16: =J15+1 -> 13 | K16: ='Analysis - 1v1'!B85 -> 0 | L16: ='Analysis - 1v1'!F85 -> 0 | M16: ='Analysis - 1v1'!J85 -> 0 | N16: ='Analysis - 1v1'!N85 -> 0 | O16: ='Analysis - 1v1'!R85 -> 0 | P16: ='Analysis - 1v1'!V85 -> 0
B17: 14 | C17: ='Analysis - 1v1'!B112 -> 0 | D17: ='Analysis - 1v1'!F112 -> 0 | E17: ='Analysis - 1v1'!J112 -> 0 | F17: ='Analysis - 1v1'!N112 -> 0 | G17: ='Analysis - 1v1'!R112 -> 0 | H17: ='Analysis - 1v1'!V112 -> 0 | J17: 14 | K17: ='Analysis - 1v1'!B86 -> 0 | L17: ='Analysis - 1v1'!F86 -> 0 | M17: ='Analysis - 1v1'!J86 -> 0 | N17: ='Analysis - 1v1'!N86 -> 0 | O17: ='Analysis - 1v1'!R86 -> 0 | P17: ='Analysis - 1v1'!V86 -> 0
B18: 15 | C18: ='Analysis - 1v1'!B113 -> 0 | D18: ='Analysis - 1v1'!F113 -> 0 | E18: ='Analysis - 1v1'!J113 -> 0 | F18: ='Analysis - 1v1'!N113 -> 0 | G18: ='Analysis - 1v1'!R113 -> 0 | H18: ='Analysis - 1v1'!V113 -> 0 | J18: 15 | K18: ='Analysis - 1v1'!B87 -> 0 | L18: ='Analysis - 1v1'!F87 -> 0 | M18: ='Analysis - 1v1'!J87 -> 0 | N18: ='Analysis - 1v1'!N87 -> 0 | O18: ='Analysis - 1v1'!R87 -> 0 | P18: ='Analysis - 1v1'!V87 -> 0
B19: 16 | C19: ='Analysis - 1v1'!B114 -> 0 | D19: ='Analysis - 1v1'!F114 -> 0 | E19: ='Analysis - 1v1'!J114 -> 0 | F19: ='Analysis - 1v1'!N114 -> 0 | G19: ='Analysis - 1v1'!R114 -> 0 | H19: ='Analysis - 1v1'!V114 -> 0 | J19: 16 | K19: ='Analysis - 1v1'!B88 -> 0 | L19: ='Analysis - 1v1'!F88 -> 0 | M19: ='Analysis - 1v1'!J88 -> 0 | N19: ='Analysis - 1v1'!N88 -> 0 | O19: ='Analysis - 1v1'!R88 -> 0 | P19: ='Analysis - 1v1'!V88 -> 0
B20: 17 | C20: ='Analysis - 1v1'!B115 -> 0 | D20: ='Analysis - 1v1'!F115 -> 0 | E20: ='Analysis - 1v1'!J115 -> 0 | F20: ='Analysis - 1v1'!N115 -> 0 | G20: ='Analysis - 1v1'!R115 -> 0 | H20: ='Analysis - 1v1'!V115 -> 0 | J20: 17 | K20: ='Analysis - 1v1'!B89 -> 0 | L20: ='Analysis - 1v1'!F89 -> 0 | M20: ='Analysis - 1v1'!J89 -> 0 | N20: ='Analysis - 1v1'!N89 -> 0 | O20: ='Analysis - 1v1'!R89 -> 0 | P20: ='Analysis - 1v1'!V89 -> 0
B21: 18 | C21: ='Analysis - 1v1'!B116 -> 0 | D21: ='Analysis - 1v1'!F116 -> 0 | E21: ='Analysis - 1v1'!J116 -> 0 | F21: ='Analysis - 1v1'!N116 -> 0 | G21: ='Analysis - 1v1'!R116 -> 0 | H21: ='Analysis - 1v1'!V116 -> 0 | J21: 18 | K21: ='Analysis - 1v1'!B90 -> 0 | L21: ='Analysis - 1v1'!F90 -> 0 | M21: ='Analysis - 1v1'!J90 -> 0 | N21: ='Analysis - 1v1'!N90 -> 0 | O21: ='Analysis - 1v1'!R90 -> 0 | P21: ='Analysis - 1v1'!V90 -> 0
C24: Terran | K24: Terran
B25: Weeks Remaining | C25: Bronze | D25: Silver | E25: Gold | F25: Platinum | G25: Diamond | H25: Master | J25: Weeks Remaining | K25: Bronze | L25: Silver | M25: Gold | N25: Platinum | O25: Diamond | P25: Master
A26: 2014-11-10 | B26: 1 | C26: ='Analysis - 1v1'!C99 -> 0.4295774648 | D26: ='Analysis - 1v1'!G99 -> 0.3461538462 | E26: ='Analysis - 1v1'!K99 -> 0.3168539326 | F26: ='Analysis - 1v1'!O99 -> 0.3422360248 | G26: ='Analysis - 1v1'!S99 -> 0.3606036537 | H26: ='Analysis - 1v1'!W99 -> 0.3518518519 | J26: 1 | K26: ='Analysis - 1v1'!C73 -> 122 | L26: ='Analysis - 1v1'!G73 -> 189 | M26: ='Analysis - 1v1'!K73 -> 705 | N26: ='Analysis - 1v1'!O73 -> 551 | O26: ='Analysis - 1v1'!S73 -> 454 | P26: ='Analysis - 1v1'!W73 -> 38
A27: 2014-11-17 | B27: 2 | C27: ='Analysis - 1v1'!C100 -> 0.3076923077 | D27: ='Analysis - 1v1'!G100 -> 0.3282442748 | E27: ='Analysis - 1v1'!K100 -> 0.2908530319 | F27: ='Analysis - 1v1'!O100 -> 0.3305785124 | G27: ='Analysis - 1v1'!S100 -> 0.3707865169 | H27: ='Analysis - 1v1'!W100 -> 0.4406779661 | J27: 2 | K27: ='Analysis - 1v1'!C74 -> 32 | L27: ='Analysis - 1v1'!G74 -> 86 | M27: ='Analysis - 1v1'!K74 -> 283 | N27: ='Analysis - 1v1'!O74 -> 160 | O27: ='Analysis - 1v1'!S74 -> 132 | P27: ='Analysis - 1v1'!W74 -> 26
A28: 2014-11-24 | B28: 3 | C28: ='Analysis - 1v1'!C101 -> 0.4227642276 | D28: ='Analysis - 1v1'!G101 -> 0.3393939394 | E28: ='Analysis - 1v1'!K101 -> 0.2991287512 | F28: ='Analysis - 1v1'!O101 -> 0.3268101761 | G28: ='Analysis - 1v1'!S101 -> 0.3618233618 | H28: ='Analysis - 1v1'!W101 -> 0.3606557377 | J28: 3 | K28: ='Analysis - 1v1'!C75 -> 52 | L28: ='Analysis - 1v1'!G75 -> 112 | M28: ='Analysis - 1v1'!K75 -> 309 | N28: ='Analysis - 1v1'!O75 -> 167 | O28: ='Analysis - 1v1'!S75 -> 127 | P28: ='Analysis - 1v1'!W75 -> 22
A29: 2014-12-01 | B29: 4 | C29: ='Analysis - 1v1'!C102 -> 0.3615819209 | D29: ='Analysis - 1v1'!G102 -> 0.3364140481 | E29: ='Analysis - 1v1'!K102 -> 0.297972973 | F29: ='Analysis - 1v1'!O102 -> 0.3358778626 | G29: ='Analysis - 1v1'!S102 -> 0.3452054795 | H29: ='Analysis - 1v1'!W102 -> 0.3466666667 | J29: 4 | K29: ='Analysis - 1v1'!C76 -> 64 | L29: ='Analysis - 1v1'!G76 -> 182 | M29: ='Analysis - 1v1'!K76 -> 441 | N29: ='Analysis - 1v1'!O76 -> 176 | O29: ='Analysis - 1v1'!S76 -> 126 | P29: ='Analysis - 1v1'!W76 -> 26
A30: 2014-12-08 | B30: 5 | C30: ='Analysis - 1v1'!C103 -> 0.2831541219 | D30: ='Analysis - 1v1'!G103 -> 0.3189655172 | E30: ='Analysis - 1v1'!K103 -> 0.3142458101 | F30: ='Analysis - 1v1'!O103 -> 0.3510054845 | G30: ='Analysis - 1v1'!S103 -> 0.3465045593 | H30: ='Analysis - 1v1'!W103 -> 0.3692307692 | J30: 5 | K30: ='Analysis - 1v1'!C77 -> 79 | L30: ='Analysis - 1v1'!G77 -> 370 | M30: ='Analysis - 1v1'!K77 -> 675 | N30: ='Analysis - 1v1'!O77 -> 192 | O30: ='Analysis - 1v1'!S77 -> 114 | P30: ='Analysis - 1v1'!W77 -> 24
A31: 2014-12-15 | B31: 6 | C31: ='Analysis - 1v1'!C104 -> 0.3557814485 | D31: ='Analysis - 1v1'!G104 -> 0.3219373219 | E31: ='Analysis - 1v1'!K104 -> 0.3039918117 | F31: ='Analysis - 1v1'!O104 -> 0.3155279503 | G31: ='Analysis - 1v1'!S104 -> 0.3380952381 | H31: ='Analysis - 1v1'!W104 -> 0.2934782609 | J31: 6 | K31: ='Analysis - 1v1'!C78 -> 280 | L31: ='Analysis - 1v1'!G78 -> 1356 | M31: ='Analysis - 1v1'!K78 -> 891 | N31: ='Analysis - 1v1'!O78 -> 254 | O31: ='Analysis - 1v1'!S78 -> 142 | P31: ='Analysis - 1v1'!W78 -> 27
A32: 2014-12-22 | B32: 7 | C32: ='Analysis - 1v1'!C105 -> 0.3720930233 | D32: ='Analysis - 1v1'!G105 -> 0.3281503077 | E32: ='Analysis - 1v1'!K105 -> 0.2934362934 | F32: ='Analysis - 1v1'!O105 -> 0.2935916542 | G32: ='Analysis - 1v1'!S105 -> 0.3655172414 | H32: ='Analysis - 1v1'!W105 -> 0.4222222222 | J32: 7 | K32: ='Analysis - 1v1'!C79 -> 672 | L32: ='Analysis - 1v1'!G79 -> 2026 | M32: ='Analysis - 1v1'!K79 -> 532 | N32: ='Analysis - 1v1'!O79 -> 197 | O32: ='Analysis - 1v1'!S79 -> 106 | P32: ='Analysis - 1v1'!W79 -> 38
A33: 2014-12-29 | B33: 8 | C33: ='Analysis - 1v1'!C106 -> 0 | D33: ='Analysis - 1v1'!G106 -> 0 | E33: ='Analysis - 1v1'!K106 -> 0 | F33: ='Analysis - 1v1'!O106 -> 0 | G33: ='Analysis - 1v1'!S106 -> 0 | H33: ='Analysis - 1v1'!W106 -> 0 | J33: 8 | K33: ='Analysis - 1v1'!C80 -> 0 | L33: ='Analysis - 1v1'!G80 -> 0 | M33: ='Analysis - 1v1'!K80 -> 0 | N33: ='Analysis - 1v1'!O80 -> 0 | O33: ='Analysis - 1v1'!S80 -> 0 | P33: ='Analysis - 1v1'!W80 -> 0
A34: 1/5/2015 (season lock) | B34: 9 | C34: ='Analysis - 1v1'!C107 -> 0 | D34: ='Analysis - 1v1'!G107 -> 0 | E34: ='Analysis - 1v1'!K107 -> 0 | F34: ='Analysis - 1v1'!O107 -> 0 | G34: ='Analysis - 1v1'!S107 -> 0 | H34: ='Analysis - 1v1'!W107 -> 0 | J34: 9 | K34: ='Analysis - 1v1'!C81 -> 0 | L34: ='Analysis - 1v1'!G81 -> 0 | M34: ='Analysis - 1v1'!K81 -> 0 | N34: ='Analysis - 1v1'!O81 -> 0 | O34: ='Analysis - 1v1'!S81 -> 0 | P34: ='Analysis - 1v1'!W81 -> 0
A35: 2015-01-12 | B35: 10 | C35: ='Analysis - 1v1'!C108 -> 0 | D35: ='Analysis - 1v1'!G108 -> 0 | E35: ='Analysis - 1v1'!K108 -> 0 | F35: ='Analysis - 1v1'!O108 -> 0 | G35: ='Analysis - 1v1'!S108 -> 0 | H35: ='Analysis - 1v1'!W108 -> 0 | J35: 10 | K35: ='Analysis - 1v1'!C82 -> 0 | L35: ='Analysis - 1v1'!G82 -> 0 | M35: ='Analysis - 1v1'!K82 -> 0 | N35: ='Analysis - 1v1'!O82 -> 0 | O35: ='Analysis - 1v1'!S82 -> 0 | P35: ='Analysis - 1v1'!W82 -> 0
B36: 11 | C36: ='Analysis - 1v1'!C109 -> 0 | D36: ='Analysis - 1v1'!G109 -> 0 | E36: ='Analysis - 1v1'!K109 -> 0 | F36: ='Analysis - 1v1'!O109 -> 0 | G36: ='Analysis - 1v1'!S109 -> 0 | H36: ='Analysis - 1v1'!W109 -> 0 | J36: 11 | K36: ='Analysis - 1v1'!C83 -> 0 | L36: ='Analysis - 1v1'!G83 -> 0 | M36: ='Analysis - 1v1'!K83 -> 0 | N36: ='Analysis - 1v1'!O83 -> 0 | O36: ='Analysis - 1v1'!S83 -> 0 | P36: ='Analysis - 1v1'!W83 -> 0
B37: =B36+1 -> 12 | C37: ='Analysis - 1v1'!C110 -> 0 | D37: ='Analysis - 1v1'!G110 -> 0 | E37: ='Analysis - 1v1'!K110 -> 0 | F37: ='Analysis - 1v1'!O110 -> 0 | G37: ='Analysis - 1v1'!S110 -> 0 | H37: ='Analysis - 1v1'!W110 -> 0 | J37: =J36+1 -> 12 | K37: ='Analysis - 1v1'!C84 -> 0 | L37: ='Analysis - 1v1'!G84 -> 0 | M37: ='Analysis - 1v1'!K84 -> 0 | N37: ='Analysis - 1v1'!O84 -> 0 | O37: ='Analysis - 1v1'!S84 -> 0 | P37: ='Analysis - 1v1'!W84 -> 0
B38: =B37+1 -> 13 | C38: ='Analysis - 1v1'!C111 -> 0 | D38: ='Analysis - 1v1'!G111 -> 0 | E38: ='Analysis - 1v1'!K111 -> 0 | F38: ='Analysis - 1v1'!O111 -> 0 | G38: ='Analysis - 1v1'!S111 -> 0 | H38: ='Analysis - 1v1'!W111 -> 0 | J38: =J37+1 -> 13 | K38: ='Analysis - 1v1'!C85 -> 0 | L38: ='Analysis - 1v1'!G85 -> 0 | M38: ='Analysis - 1v1'!K85 -> 0 | N38: ='Analysis - 1v1'!O85 -> 0 | O38: ='Analysis - 1v1'!S85 -> 0 | P38: ='Analysis - 1v1'!W85 -> 0
B39: 14 | C39: ='Analysis - 1v1'!C112 -> 0 | D39: ='Analysis - 1v1'!G112 -> 0 | E39: ='Analysis - 1v1'!K112 -> 0 | F39: ='Analysis - 1v1'!O112 -> 0 | G39: ='Analysis - 1v1'!S112 -> 0 | H39: ='Analysis - 1v1'!W112 -> 0 | J39: 14 | K39: ='Analysis - 1v1'!C86 -> 0 | L39: ='Analysis - 1v1'!G86 -> 0 | M39: ='Analysis - 1v1'!K86 -> 0 | N39: ='Analysis - 1v1'!O86 -> 0 | O39: ='Analysis - 1v1'!S86 -> 0 | P39: ='Analysis - 1v1'!W86 -> 0
B40: 15 | C40: ='Analysis - 1v1'!C113 -> 0 | D40: ='Analysis - 1v1'!G113 -> 0 | E40: ='Analysis - 1v1'!K113 -> 0 | F40: ='Analysis - 1v1'!O113 -> 0 | G40: ='Analysis - 1v1'!S113 -> 0 | H40: ='Analysis - 1v1'!W113 -> 0 | J40: 15 | K40: ='Analysis - 1v1'!C87 -> 0 | L40: ='Analysis - 1v1'!G87 -> 0 | M40: ='Analysis - 1v1'!K87 -> 0 | N40: ='Analysis - 1v1'!O87 -> 0 | O40: ='Analysis - 1v1'!S87 -> 0 | P40: ='Analysis - 1v1'!W87 -> 0
B41: 16 | C41: ='Analysis - 1v1'!C114 -> 0 | D41: ='Analysis - 1v1'!G114 -> 0 | E41: ='Analysis - 1v1'!K114 -> 0 | F41: ='Analysis - 1v1'!O114 -> 0 | G41: ='Analysis - 1v1'!S114 -> 0 | H41: ='Analysis - 1v1'!W114 -> 0 | J41: 16 | K41: ='Analysis - 1v1'!C88 -> 0 | L41: ='Analysis - 1v1'!G88 -> 0 | M41: ='Analysis - 1v1'!K88 -> 0 | N41: ='Analysis - 1v1'!O88 -> 0 | O41: ='Analysis - 1v1'!S88 -> 0 | P41: ='Analysis - 1v1'!W88 -> 0
B42: 17 | C42: ='Analysis - 1v1'!C115 -> 0 | D42: ='Analysis - 1v1'!G115 -> 0 | E42: ='Analysis - 1v1'!K115 -> 0 | F42: ='Analysis - 1v1'!O115 -> 0 | G42: ='Analysis - 1v1'!S115 -> 0 | H42: ='Analysis - 1v1'!W115 -> 0 | J42: 17 | K42: ='Analysis - 1v1'!C89 -> 0 | L42: ='Analysis - 1v1'!G89 -> 0 | M42: ='Analysis - 1v1'!K89 -> 0 | N42: ='Analysis - 1v1'!O89 -> 0 | O42: ='Analysis - 1v1'!S89 -> 0 | P42: ='Analysis - 1v1'!W89 -> 0
B43: 18 | C43: ='Analysis - 1v1'!C116 -> 0 | D43: ='Analysis - 1v1'!G116 -> 0 | E43: ='Analysis - 1v1'!K116 -> 0 | F43: ='Analysis - 1v1'!O116 -> 0 | G43: ='Analysis - 1v1'!S116 -> 0 | H43: ='Analysis - 1v1'!W116 -> 0 | J43: 18 | K43: ='Analysis - 1v1'!C90 -> 0 | L43: ='Analysis - 1v1'!G90 -> 0 | M43: ='Analysis - 1v1'!K90 -> 0 | N43: ='Analysis - 1v1'!O90 -> 0 | O43: ='Analysis - 1v1'!S90 -> 0 | P43: ='Analysis - 1v1'!W90 -> 0
C46: Protoss | K46: Protoss
B47: Weeks Remaining | C47: Bronze | D47: Silver | E47: Gold | F47: Platinum | G47: Diamond | H47: Master | J47: Weeks Remaining | K47: Bronze | L47: Silver | M47: Gold | N47: Platinum | O47: Diamond | P47: Master
A48: 2014-11-10 | B48: 1 | C48: ='Analysis - 1v1'!D99 -> 0.2922535211 | D48: ='Analysis - 1v1'!H99 -> 0.336996337 | E48: ='Analysis - 1v1'!L99 -> 0.324494382 | F48: ='Analysis - 1v1'!P99 -> 0.2732919255 | G48: ='Analysis - 1v1'!T99 -> 0.2787926926 | H48: ='Analysis - 1v1'!X99 -> 0.287037037 | J48: 1 | K48: ='Analysis - 1v1'!D73 -> 83 | L48: ='Analysis - 1v1'!H73 -> 184 | M48: ='Analysis - 1v1'!L73 -> 722 | N48: ='Analysis - 1v1'!P73 -> 440 | O48: ='Analysis - 1v1'!T73 -> 351 | P48: ='Analysis - 1v1'!X73 -> 31
A49: 2014-11-17 | B49: 2 | C49: ='Analysis - 1v1'!D100 -> 0.3557692308 | D49: ='Analysis - 1v1'!H100 -> 0.3625954198 | E49: ='Analysis - 1v1'!L100 -> 0.3401849949 | F49: ='Analysis - 1v1'!P100 -> 0.2727272727 | G49: ='Analysis - 1v1'!T100 -> 0.2724719101 | H49: ='Analysis - 1v1'!X100 -> 0.3220338983 | J49: 2 | K49: ='Analysis - 1v1'!D74 -> 37 | L49: ='Analysis - 1v1'!H74 -> 95 | M49: ='Analysis - 1v1'!L74 -> 331 | N49: ='Analysis - 1v1'!P74 -> 132 | O49: ='Analysis - 1v1'!T74 -> 97 | P49: ='Analysis - 1v1'!X74 -> 19
A50: 2014-11-24 | B50: 3 | C50: ='Analysis - 1v1'!D101 -> 0.325203252 | D50: ='Analysis - 1v1'!H101 -> 0.3575757576 | E50: ='Analysis - 1v1'!L101 -> 0.3233301065 | F50: ='Analysis - 1v1'!P101 -> 0.2857142857 | G50: ='Analysis - 1v1'!T101 -> 0.3105413105 | H50: ='Analysis - 1v1'!X101 -> 0.393442623 | J50: 3 | K50: ='Analysis - 1v1'!D75 -> 40 | L50: ='Analysis - 1v1'!H75 -> 118 | M50: ='Analysis - 1v1'!L75 -> 334 | N50: ='Analysis - 1v1'!P75 -> 146 | O50: ='Analysis - 1v1'!T75 -> 109 | P50: ='Analysis - 1v1'!X75 -> 24
A51: 2014-12-01 | B51: 4 | C51: ='Analysis - 1v1'!D102 -> 0.3446327684 | D51: ='Analysis - 1v1'!H102 -> 0.3401109057 | E51: ='Analysis - 1v1'!L102 -> 0.3175675676 | F51: ='Analysis - 1v1'!P102 -> 0.3053435115 | G51: ='Analysis - 1v1'!T102 -> 0.2876712329 | H51: ='Analysis - 1v1'!X102 -> 0.2666666667 | J51: 4 | K51: ='Analysis - 1v1'!D76 -> 61 | L51: ='Analysis - 1v1'!H76 -> 184 | M51: ='Analysis - 1v1'!L76 -> 470 | N51: ='Analysis - 1v1'!P76 -> 160 | O51: ='Analysis - 1v1'!T76 -> 105 | P51: ='Analysis - 1v1'!X76 -> 20
A52: 2014-12-08 | B52: 5 | C52: ='Analysis - 1v1'!D103 -> 0.394265233 | D52: ='Analysis - 1v1'!H103 -> 0.325862069 | E52: ='Analysis - 1v1'!L103 -> 0.3175046555 | F52: ='Analysis - 1v1'!P103 -> 0.2559414991 | G52: ='Analysis - 1v1'!T103 -> 0.3009118541 | H52: ='Analysis - 1v1'!X103 -> 0.4 | J52: 5 | K52: ='Analysis - 1v1'!D77 -> 110 | L52: ='Analysis - 1v1'!H77 -> 378 | M52: ='Analysis - 1v1'!L77 -> 682 | N52: ='Analysis - 1v1'!P77 -> 140 | O52: ='Analysis - 1v1'!T77 -> 99 | P52: ='Analysis - 1v1'!X77 -> 26
A53: 2014-12-15 | B53: 6 | C53: ='Analysis - 1v1'!D104 -> 0.3456162643 | D53: ='Analysis - 1v1'!H104 -> 0.3179012346 | E53: ='Analysis - 1v1'!L104 -> 0.3101330604 | F53: ='Analysis - 1v1'!P104 -> 0.2894409938 | G53: ='Analysis - 1v1'!T104 -> 0.2571428571 | H53: ='Analysis - 1v1'!X104 -> 0.3695652174 | J53: 6 | K53: ='Analysis - 1v1'!D78 -> 272 | L53: ='Analysis - 1v1'!H78 -> 1339 | M53: ='Analysis - 1v1'!L78 -> 909 | N53: ='Analysis - 1v1'!P78 -> 233 | O53: ='Analysis - 1v1'!T78 -> 108 | P53: ='Analysis - 1v1'!X78 -> 34
A54: 2014-12-22 | B54: 7 | C54: ='Analysis - 1v1'!D105 -> 0.3106312292 | D54: ='Analysis - 1v1'!H105 -> 0.3172983479 | E54: ='Analysis - 1v1'!L105 -> 0.3298400441 | F54: ='Analysis - 1v1'!P105 -> 0.2921013413 | G54: ='Analysis - 1v1'!T105 -> 0.3068965517 | H54: ='Analysis - 1v1'!X105 -> 0.2555555556 | J54: 7 | K54: ='Analysis - 1v1'!D79 -> 561 | L54: ='Analysis - 1v1'!H79 -> 1959 | M54: ='Analysis - 1v1'!L79 -> 598 | N54: ='Analysis - 1v1'!P79 -> 196 | O54: ='Analysis - 1v1'!T79 -> 89 | P54: ='Analysis - 1v1'!X79 -> 23
A55: 2014-12-29 | B55: 8 | C55: ='Analysis - 1v1'!D106 -> 0 | D55: ='Analysis - 1v1'!H106 -> 0 | E55: ='Analysis - 1v1'!L106 -> 0 | F55: ='Analysis - 1v1'!P106 -> 0 | G55: ='Analysis - 1v1'!T106 -> 0 | H55: ='Analysis - 1v1'!X106 -> 0 | J55: 8 | K55: ='Analysis - 1v1'!D80 -> 0 | L55: ='Analysis - 1v1'!H80 -> 0 | M55: ='Analysis - 1v1'!L80 -> 0 | N55: ='Analysis - 1v1'!P80 -> 0 | O55: ='Analysis - 1v1'!T80 -> 0 | P55: ='Analysis - 1v1'!X80 -> 0
A56: 1/5/2015 (season lock) | B56: 9 | C56: ='Analysis - 1v1'!D107 -> 0 | D56: ='Analysis - 1v1'!H107 -> 0 | E56: ='Analysis - 1v1'!L107 -> 0 | F56: ='Analysis - 1v1'!P107 -> 0 | G56: ='Analysis - 1v1'!T107 -> 0 | H56: ='Analysis - 1v1'!X107 -> 0 | J56: 9 | K56: ='Analysis - 1v1'!D81 -> 0 | L56: ='Analysis - 1v1'!H81 -> 0 | M56: ='Analysis - 1v1'!L81 -> 0 | N56: ='Analysis - 1v1'!P81 -> 0 | O56: ='Analysis - 1v1'!T81 -> 0 | P56: ='Analysis - 1v1'!X81 -> 0
A57: 2015-01-12 | B57: 10 | C57: ='Analysis - 1v1'!D108 -> 0 | D57: ='Analysis - 1v1'!H108 -> 0 | E57: ='Analysis - 1v1'!L108 -> 0 | F57: ='Analysis - 1v1'!P108 -> 0 | G57: ='Analysis - 1v1'!T108 -> 0 | H57: ='Analysis - 1v1'!X108 -> 0 | J57: 10 | K57: ='Analysis - 1v1'!D82 -> 0 | L57: ='Analysis - 1v1'!H82 -> 0 | M57: ='Analysis - 1v1'!L82 -> 0 | N57: ='Analysis - 1v1'!P82 -> 0 | O57: ='Analysis - 1v1'!T82 -> 0 | P57: ='Analysis - 1v1'!X82 -> 0
B58: 11 | C58: ='Analysis - 1v1'!D109 -> 0 | D58: ='Analysis - 1v1'!H109 -> 0 | E58: ='Analysis - 1v1'!L109 -> 0 | F58: ='Analysis - 1v1'!P109 -> 0 | G58: ='Analysis - 1v1'!T109 -> 0 | H58: ='Analysis - 1v1'!X109 -> 0 | J58: 11 | K58: ='Analysis - 1v1'!D83 -> 0 | L58: ='Analysis - 1v1'!H83 -> 0 | M58: ='Analysis - 1v1'!L83 -> 0 | N58: ='Analysis - 1v1'!P83 -> 0 | O58: ='Analysis - 1v1'!T83 -> 0 | P58: ='Analysis - 1v1'!X83 -> 0
B59: =B58+1 -> 12 | C59: ='Analysis - 1v1'!D110 -> 0 | D59: ='Analysis - 1v1'!H110 -> 0 | E59: ='Analysis - 1v1'!L110 -> 0 | F59: ='Analysis - 1v1'!P110 -> 0 | G59: ='Analysis - 1v1'!T110 -> 0 | H59: ='Analysis - 1v1'!X110 -> 0 | J59: =J58+1 -> 12 | K59: ='Analysis - 1v1'!D84 -> 0 | L59: ='Analysis - 1v1'!H84 -> 0 | M59: ='Analysis - 1v1'!L84 -> 0 | N59: ='Analysis - 1v1'!P84 -> 0 | O59: ='Analysis - 1v1'!T84 -> 0 | P59: ='Analysis - 1v1'!X84 -> 0
B60: =B59+1 -> 13 | C60: ='Analysis - 1v1'!D111 -> 0 | D60: ='Analysis - 1v1'!H111 -> 0 | E60: ='Analysis - 1v1'!L111 -> 0 | F60: ='Analysis - 1v1'!P111 -> 0 | G60: ='Analysis - 1v1'!T111 -> 0 | H60: ='Analysis - 1v1'!X111 -> 0 | J60: =J59+1 -> 13 | K60: ='Analysis - 1v1'!D85 -> 0 | L60: ='Analysis - 1v1'!H85 -> 0 | M60: ='Analysis - 1v1'!L85 -> 0 | N60: ='Analysis - 1v1'!P85 -> 0 | O60: ='Analysis - 1v1'!T85 -> 0 | P60: ='Analysis - 1v1'!X85 -> 0
B61: 14 | C61: ='Analysis - 1v1'!D112 -> 0 | D61: ='Analysis - 1v1'!H112 -> 0 | E61: ='Analysis - 1v1'!L112 -> 0 | F61: ='Analysis - 1v1'!P112 -> 0 | G61: ='Analysis - 1v1'!T112 -> 0 | H61: ='Analysis - 1v1'!X112 -> 0 | J61: 14 | K61: ='Analysis - 1v1'!D86 -> 0 | L61: ='Analysis - 1v1'!H86 -> 0 | M61: ='Analysis - 1v1'!L86 -> 0 | N61: ='Analysis - 1v1'!P86 -> 0 | O61: ='Analysis - 1v1'!T86 -> 0 | P61: ='Analysis - 1v1'!X86 -> 0
B62: 15 | C62: ='Analysis - 1v1'!D113 -> 0 | D62: ='Analysis - 1v1'!H113 -> 0 | E62: ='Analysis - 1v1'!L113 -> 0 | F62: ='Analysis - 1v1'!P113 -> 0 | G62: ='Analysis - 1v1'!T113 -> 0 | H62: ='Analysis - 1v1'!X113 -> 0 | J62: 15 | K62: ='Analysis - 1v1'!D87 -> 0 | L62: ='Analysis - 1v1'!H87 -> 0 | M62: ='Analysis - 1v1'!L87 -> 0 | N62: ='Analysis - 1v1'!P87 -> 0 | O62: ='Analysis - 1v1'!T87 -> 0 | P62: ='Analysis - 1v1'!X87 -> 0
B63: 16 | C63: ='Analysis - 1v1'!D114 -> 0 | D63: ='Analysis - 1v1'!H114 -> 0 | E63: ='Analysis - 1v1'!L114 -> 0 | F63: ='Analysis - 1v1'!P114 -> 0 | G63: ='Analysis - 1v1'!T114 -> 0 | H63: ='Analysis - 1v1'!X114 -> 0 | J63: 16 | K63: ='Analysis - 1v1'!D88 -> 0 | L63: ='Analysis - 1v1'!H88 -> 0 | M63: ='Analysis - 1v1'!L88 -> 0 | N63: ='Analysis - 1v1'!P88 -> 0 | O63: ='Analysis - 1v1'!T88 -> 0 | P63: ='Analysis - 1v1'!X88 -> 0
B64: 17 | C64: ='Analysis - 1v1'!D115 -> 0 | D64: ='Analysis - 1v1'!H115 -> 0 | E64: ='Analysis - 1v1'!L115 -> 0 | F64: ='Analysis - 1v1'!P115 -> 0 | G64: ='Analysis - 1v1'!T115 -> 0 | H64: ='Analysis - 1v1'!X115 -> 0 | J64: 17 | K64: ='Analysis - 1v1'!D89 -> 0 | L64: ='Analysis - 1v1'!H89 -> 0 | M64: ='Analysis - 1v1'!L89 -> 0 | N64: ='Analysis - 1v1'!P89 -> 0 | O64: ='Analysis - 1v1'!T89 -> 0 | P64: ='Analysis - 1v1'!X89 -> 0
B65: 18 | C65: ='Analysis - 1v1'!D116 -> 0 | D65: ='Analysis - 1v1'!H116 -> 0 | E65: ='Analysis - 1v1'!L116 -> 0 | F65: ='Analysis - 1v1'!P116 -> 0 | G65: ='Analysis - 1v1'!T116 -> 0 | H65: ='Analysis - 1v1'!X116 -> 0 | J65: 18 | K65: ='Analysis - 1v1'!D90 -> 0 | L65: ='Analysis - 1v1'!H90 -> 0 | M65: ='Analysis - 1v1'!L90 -> 0 | N65: ='Analysis - 1v1'!P90 -> 0 | O65: ='Analysis - 1v1'!T90 -> 0 | P65: ='Analysis - 1v1'!X90 -> 0
C68: Random | K68: Random
B69: Weeks Remaining | C69: Bronze | D69: Silver | E69: Gold | F69: Platinum | G69: Diamond | H69: Master | J69: Weeks Remaining | K69: Bronze | L69: Silver | M69: Gold | N69: Platinum | O69: Diamond | P69: Master
A70: 2014-11-10 | B70: 1 | C70: ='Analysis - 1v1'!E99 -> 0.1021126761 | D70: ='Analysis - 1v1'!I99 -> 0.1117216117 | E70: ='Analysis - 1v1'!M99 -> 0.1208988764 | F70: ='Analysis - 1v1'!Q99 -> 0.0900621118 | G70: ='Analysis - 1v1'!U99 -> 0.05639396346 | H70: ='Analysis - 1v1'!Y99 -> 0.02777777778 | J70: 1 | K70: ='Analysis - 1v1'!E73 -> 29 | L70: ='Analysis - 1v1'!I73 -> 61 | M70: ='Analysis - 1v1'!M73 -> 269 | N70: ='Analysis - 1v1'!Q73 -> 145 | O70: ='Analysis - 1v1'!U73 -> 71 | P70: ='Analysis - 1v1'!Y73 -> 3
A71: 2014-11-17 | B71: 2 | C71: ='Analysis - 1v1'!E100 -> 0.1442307692 | D71: ='Analysis - 1v1'!I100 -> 0.08778625954 | E71: ='Analysis - 1v1'!M100 -> 0.121274409 | F71: ='Analysis - 1v1'!Q100 -> 0.09710743802 | G71: ='Analysis - 1v1'!U100 -> 0.06179775281 | H71: ='Analysis - 1v1'!Y100 -> 0.06779661017 | J71: 2 | K71: ='Analysis - 1v1'!E74 -> 15 | L71: ='Analysis - 1v1'!I74 -> 23 | M71: ='Analysis - 1v1'!M74 -> 118 | N71: ='Analysis - 1v1'!Q74 -> 47 | O71: ='Analysis - 1v1'!U74 -> 22 | P71: ='Analysis - 1v1'!Y74 -> 4
A72: 2014-11-24 | B72: 3 | C72: ='Analysis - 1v1'!E101 -> 0.06504065041 | D72: ='Analysis - 1v1'!I101 -> 0.09393939394 | E72: ='Analysis - 1v1'!M101 -> 0.1113262343 | F72: ='Analysis - 1v1'!Q101 -> 0.09980430528 | G72: ='Analysis - 1v1'!U101 -> 0.05413105413 | H72: ='Analysis - 1v1'!Y101 -> 0.01639344262 | J72: 3 | K72: ='Analysis - 1v1'!E75 -> 8 | L72: ='Analysis - 1v1'!I75 -> 31 | M72: ='Analysis - 1v1'!M75 -> 115 | N72: ='Analysis - 1v1'!Q75 -> 51 | O72: ='Analysis - 1v1'!U75 -> 19 | P72: ='Analysis - 1v1'!Y75 -> 1
A73: 2014-12-01 | B73: 4 | C73: ='Analysis - 1v1'!E102 -> 0.1242937853 | D73: ='Analysis - 1v1'!I102 -> 0.1146025878 | E73: ='Analysis - 1v1'!M102 -> 0.1175675676 | F73: ='Analysis - 1v1'!Q102 -> 0.06679389313 | G73: ='Analysis - 1v1'!U102 -> 0.06301369863 | H73: ='Analysis - 1v1'!Y102 -> 0.06666666667 | J73: 4 | K73: ='Analysis - 1v1'!E76 -> 22 | L73: ='Analysis - 1v1'!I76 -> 62 | M73: ='Analysis - 1v1'!M76 -> 174 | N73: ='Analysis - 1v1'!Q76 -> 35 | O73: ='Analysis - 1v1'!U76 -> 23 | P73: ='Analysis - 1v1'!Y76 -> 5
A74: 2014-12-08 | B74: 5 | C74: ='Analysis - 1v1'!E103 -> 0.08243727599 | D74: ='Analysis - 1v1'!I103 -> 0.1172413793 | E74: ='Analysis - 1v1'!M103 -> 0.1103351955 | F74: ='Analysis - 1v1'!Q103 -> 0.1005484461 | G74: ='Analysis - 1v1'!U103 -> 0.0820668693 | H74: ='Analysis - 1v1'!Y103 -> 0 | J74: 5 | K74: ='Analysis - 1v1'!E77 -> 23 | L74: ='Analysis - 1v1'!I77 -> 136 | M74: ='Analysis - 1v1'!M77 -> 237 | N74: ='Analysis - 1v1'!Q77 -> 55 | O74: ='Analysis - 1v1'!U77 -> 27 | P74: ='Analysis - 1v1'!Y77 -> 0
A75: 2014-12-15 | B75: 6 | C75: ='Analysis - 1v1'!E104 -> 0.0584498094 | D75: ='Analysis - 1v1'!I104 -> 0.1068376068 | E75: ='Analysis - 1v1'!M104 -> 0.1047424087 | F75: ='Analysis - 1v1'!Q104 -> 0.101863354 | G75: ='Analysis - 1v1'!U104 -> 0.05952380952 | H75: ='Analysis - 1v1'!Y104 -> 0.04347826087 | J75: 6 | K75: ='Analysis - 1v1'!E78 -> 46 | L75: ='Analysis - 1v1'!I78 -> 450 | M75: ='Analysis - 1v1'!M78 -> 307 | N75: ='Analysis - 1v1'!Q78 -> 82 | O75: ='Analysis - 1v1'!U78 -> 25 | P75: ='Analysis - 1v1'!Y78 -> 4
A76: 2014-12-22 | B76: 7 | C76: ='Analysis - 1v1'!E105 -> 0.08803986711 | D76: ='Analysis - 1v1'!I105 -> 0.1060900551 | E76: ='Analysis - 1v1'!M105 -> 0.08659680088 | F76: ='Analysis - 1v1'!Q105 -> 0.07451564829 | G76: ='Analysis - 1v1'!U105 -> 0.09310344828 | H76: ='Analysis - 1v1'!Y105 -> 0.07777777778 | J76: 7 | K76: ='Analysis - 1v1'!E79 -> 159 | L76: ='Analysis - 1v1'!I79 -> 655 | M76: ='Analysis - 1v1'!M79 -> 157 | N76: ='Analysis - 1v1'!Q79 -> 50 | O76: ='Analysis - 1v1'!U79 -> 27 | P76: ='Analysis - 1v1'!Y79 -> 7
A77: 2014-12-29 | B77: 8 | C77: ='Analysis - 1v1'!E106 -> 0 | D77: ='Analysis - 1v1'!I106 -> 0 | E77: ='Analysis - 1v1'!M106 -> 0 | F77: ='Analysis - 1v1'!Q106 -> 0 | G77: ='Analysis - 1v1'!U106 -> 0 | H77: ='Analysis - 1v1'!Y106 -> 0 | J77: 8 | K77: ='Analysis - 1v1'!E80 -> 0 | L77: ='Analysis - 1v1'!I80 -> 0 | M77: ='Analysis - 1v1'!M80 -> 0 | N77: ='Analysis - 1v1'!Q80 -> 0 | O77: ='Analysis - 1v1'!U80 -> 0 | P77: ='Analysis - 1v1'!Y80 -> 0
A78: 1/5/2015 (season lock) | B78: 9 | C78: ='Analysis - 1v1'!E107 -> 0 | D78: ='Analysis - 1v1'!I107 -> 0 | E78: ='Analysis - 1v1'!M107 -> 0 | F78: ='Analysis - 1v1'!Q107 -> 0 | G78: ='Analysis - 1v1'!U107 -> 0 | H78: ='Analysis - 1v1'!Y107 -> 0 | J78: 9 | K78: ='Analysis - 1v1'!E81 -> 0 | L78: ='Analysis - 1v1'!I81 -> 0 | M78: ='Analysis - 1v1'!M81 -> 0 | N78: ='Analysis - 1v1'!Q81 -> 0 | O78: ='Analysis - 1v1'!U81 -> 0 | P78: ='Analysis - 1v1'!Y81 -> 0
A79: 2015-01-12 | B79: 10 | C79: ='Analysis - 1v1'!E108 -> 0 | D79: ='Analysis - 1v1'!I108 -> 0 | E79: ='Analysis - 1v1'!M108 -> 0 | F79: ='Analysis - 1v1'!Q108 -> 0 | G79: ='Analysis - 1v1'!U108 -> 0 | H79: ='Analysis - 1v1'!Y108 -> 0 | J79: 10 | K79: ='Analysis - 1v1'!E82 -> 0 | L79: ='Analysis - 1v1'!I82 -> 0 | M79: ='Analysis - 1v1'!M82 -> 0 | N79: ='Analysis - 1v1'!Q82 -> 0 | O79: ='Analysis - 1v1'!U82 -> 0 | P79: ='Analysis - 1v1'!Y82 -> 0
B80: 11 | C80: ='Analysis - 1v1'!E109 -> 0 | D80: ='Analysis - 1v1'!I109 -> 0 | E80: ='Analysis - 1v1'!M109 -> 0 | F80: ='Analysis - 1v1'!Q109 -> 0 | G80: ='Analysis - 1v1'!U109 -> 0 | H80: ='Analysis - 1v1'!Y109 -> 0 | J80: 11 | K80: ='Analysis - 1v1'!E83 -> 0 | L80: ='Analysis - 1v1'!I83 -> 0 | M80: ='Analysis - 1v1'!M83 -> 0 | N80: ='Analysis - 1v1'!Q83 -> 0 | O80: ='Analysis - 1v1'!U83 -> 0 | P80: ='Analysis - 1v1'!Y83 -> 0
B81: =B80+1 -> 12 | C81: ='Analysis - 1v1'!E110 -> 0 | D81: ='Analysis - 1v1'!I110 -> 0 | E81: ='Analysis - 1v1'!M110 -> 0 | F81: ='Analysis - 1v1'!Q110 -> 0 | G81: ='Analysis - 1v1'!U110 -> 0 | H81: ='Analysis - 1v1'!Y110 -> 0 | J81: =J80+1 -> 12 | K81: ='Analysis - 1v1'!E84 -> 0 | L81: ='Analysis - 1v1'!I84 -> 0 | M81: ='Analysis - 1v1'!M84 -> 0 | N81: ='Analysis - 1v1'!Q84 -> 0 | O81: ='Analysis - 1v1'!U84 -> 0 | P81: ='Analysis - 1v1'!Y84 -> 0
B82: =B81+1 -> 13 | C82: ='Analysis - 1v1'!E111 -> 0 | D82: ='Analysis - 1v1'!I111 -> 0 | E82: ='Analysis - 1v1'!M111 -> 0 | F82: ='Analysis - 1v1'!Q111 -> 0 | G82: ='Analysis - 1v1'!U111 -> 0 | H82: ='Analysis - 1v1'!Y111 -> 0 | J82: =J81+1 -> 13 | K82: ='Analysis - 1v1'!E85 -> 0 | L82: ='Analysis - 1v1'!I85 -> 0 | M82: ='Analysis - 1v1'!M85 -> 0 | N82: ='Analysis - 1v1'!Q85 -> 0 | O82: ='Analysis - 1v1'!U85 -> 0 | P82: ='Analysis - 1v1'!Y85 -> 0
B83: 14 | C83: ='Analysis - 1v1'!E112 -> 0 | D83: ='Analysis - 1v1'!I112 -> 0 | E83: ='Analysis - 1v1'!M112 -> 0 | F83: ='Analysis - 1v1'!Q112 -> 0 | G83: ='Analysis - 1v1'!U112 -> 0 | H83: ='Analysis - 1v1'!Y112 -> 0 | J83: 14 | K83: ='Analysis - 1v1'!E86 -> 0 | L83: ='Analysis - 1v1'!I86 -> 0 | M83: ='Analysis - 1v1'!M86 -> 0 | N83: ='Analysis - 1v1'!Q86 -> 0 | O83: ='Analysis - 1v1'!U86 -> 0 | P83: ='Analysis - 1v1'!Y86 -> 0
B84: 15 | C84: ='Analysis - 1v1'!E113 -> 0 | D84: ='Analysis - 1v1'!I113 -> 0 | E84: ='Analysis - 1v1'!M113 -> 0 | F84: ='Analysis - 1v1'!Q113 -> 0 | G84: ='Analysis - 1v1'!U113 -> 0 | H84: ='Analysis - 1v1'!Y113 -> 0 | J84: 15 | K84: ='Analysis - 1v1'!E87 -> 0 | L84: ='Analysis - 1v1'!I87 -> 0 | M84: ='Analysis - 1v1'!M87 -> 0 | N84: ='Analysis - 1v1'!Q87 -> 0 | O84: ='Analysis - 1v1'!U87 -> 0 | P84: ='Analysis - 1v1'!Y87 -> 0
B85: 16 | C85: ='Analysis - 1v1'!E114 -> 0 | D85: ='Analysis - 1v1'!I114 -> 0 | E85: ='Analysis - 1v1'!M114 -> 0 | F85: ='Analysis - 1v1'!Q114 -> 0 | G85: ='Analysis - 1v1'!U114 -> 0 | H85: ='Analysis - 1v1'!Y114 -> 0 | J85: 16 | K85: ='Analysis - 1v1'!E88 -> 0 | L85: ='Analysis - 1v1'!I88 -> 0 | M85: ='Analysis - 1v1'!M88 -> 0 | N85: ='Analysis - 1v1'!Q88 -> 0 | O85: ='Analysis - 1v1'!U88 -> 0 | P85: ='Analysis - 1v1'!Y88 -> 0
B86: 17 | C86: ='Analysis - 1v1'!E115 -> 0 | D86: ='Analysis - 1v1'!I115 -> 0 | E86: ='Analysis - 1v1'!M115 -> 0 | F86: ='Analysis - 1v1'!Q115 -> 0 | G86: ='Analysis - 1v1'!U115 -> 0 | H86: ='Analysis - 1v1'!Y115 -> 0 | J86: 17 | K86: ='Analysis - 1v1'!E89 -> 0 | L86: ='Analysis - 1v1'!I89 -> 0 | M86: ='Analysis - 1v1'!M89 -> 0 | N86: ='Analysis - 1v1'!Q89 -> 0 | O86: ='Analysis - 1v1'!U89 -> 0 | P86: ='Analysis - 1v1'!Y89 -> 0
B87: 18 | C87: ='Analysis - 1v1'!E116 -> 0 | D87: ='Analysis - 1v1'!I116 -> 0 | E87: ='Analysis - 1v1'!M116 -> 0 | F87: ='Analysis - 1v1'!Q116 -> 0 | G87: ='Analysis - 1v1'!U116 -> 0 | H87: ='Analysis - 1v1'!Y116 -> 0 | J87: 18 | K87: ='Analysis - 1v1'!E90 -> 0 | L87: ='Analysis - 1v1'!I90 -> 0 | M87: ='Analysis - 1v1'!M90 -> 0 | N87: ='Analysis - 1v1'!Q90 -> 0 | O87: ='Analysis - 1v1'!U90 -> 0 | P87: ='Analysis - 1v1'!Y90 -> 0

Sheet Analysis - 1v1
A1: Week Start | B1: Bonus Pool Per Week (Sub-Masters) | C1: Bonus Pool Per Week (Masters+GM) | D1: Cum. Bonus Pool (Sub-Masters) | E1: Cum. Bonus Pool (Masters+GM) | F1: Week # | H1: Program Run Notes | R1: x
A2: 2014-11-10 | B2: 104.4 | C2: 180 | D2: =B2 -> 104.4 | E2: =C2 -> 180 | F2: 1 | H2: 7/29/2014 runtime:
A3: 2014-11-17 | B3: 104.4 | C3: 180 | D3: =D2+B3 -> 208.8 | E3: =E2+C3 -> 360 | F3: =F2+1 -> 2 | H3: start | I3: 2014-07-21T16:36:39
A4: 2014-11-24 | B4: 104.4 | C4: 180 | D4: =D3+B4 -> 313.2 | E4: =E3+C4 -> 540 | F4: =F3+1 -> 3 | H4: end | I4: 2014-07-22T00:17:21
A5: 2014-12-01 | B5: 104.4 | C5: 180 | D5: 417.6 | E5: 720 | F5: 4
A6: 2014-12-08 | B6: 104.4 | C6: 180 | D6: =D5+B6 -> 522 | E6: =E5+C6 -> 900 | F6: 5 | H6: 2014-08-27
A7: 2014-12-15 | B7: 104.4 | C7: 180 | D7: =D6+B7 -> 626.4 | E7: =E6+C7 -> 1080 | F7: 6 | G7: <- | H7: start | I7: 2014-08-26T21:31:02
A8: 2014-12-22 | B8: 104.4 | C8: 180 | D8: 730.8 | E8: 1260 | F8: 7 | H8: end | I8: 2014-08-27T01:47:55
A9: 2014-12-29 | B9: 104.4 | C9: 180 | D9: 835.2 | E9: 1440 | F9: 8 | H9: 2014-11-13
A10: 1/5/2015 (season lock) | B10: 104.4 | C10: 180 | D10: =D9+B10 -> 939.6 | E10: =E9+C10 -> 1620 | F10: 9 | H10: start | I10: 2014-11-07
A11: 2015-01-12 | B11: 104.4 | C11: 180 | D11: 1044 | E11: 1800 | F11: 10 | H11: end | I11: 2014-11-08
H12: 2014-12-20
A23: Raw Counts | K23: % Distributions | R23: Weeks Behind Averager: | S23: 5
A24: Weeks Remaining | B24: Bronze | C24: Silver | D24: Gold | E24: Platinum | F24: Diamond | G24: Master | H24: Grandmaster | I24: Totals | J24: Percentages of Total | K24: Bronze | L24: Silver | M24: Gold | N24: Platinum | O24: Diamond | P24: Master | R24: Bronze | S24: Silver | T24: Gold | U24: Platinum | V24: Diamond | W24: Master
A25: 1 | B25: 284 | C25: 546 | D25: 2225 | E25: 1610 | F25: 1259 | G25: 108 | I25: =SUM(B25:H25) -> 6032 | J25: =I25/$I$44 -> 0.1568382735 | K25: =B25/$I25 -> 0.04708222812 | L25: =C25/$I25 -> 0.09051724138 | M25: =D25/$I25 -> 0.3688660477 | N25: =E25/$I25 -> 0.2669098143 | O25: =F25/$I25 -> 0.2087201592 | P25: =G25/$I25 -> 0.01790450928 | R25: =AVERAGEIFS(K25:K43,$A$25:$A$43,"<=5") -> 0.05244093171 | S25: 0.1543700688 | T25: 0.434975536 | U25: 0.1963634671 | V25: 0.14031733 | W25: 0.02153266645
A26: 2 | B26: 104 | C26: 262 | D26: 973 | E26: 484 | F26: 356 | G26: 59 | I26: =SUM(B26:H26) -> 2238 | J26: =I26/$I$44 -> 0.05819032761 | K26: =B26/$I26 -> 0.04647006256 | L26: =C26/$I26 -> 0.1170688114 | M26: =D26/$I26 -> 0.4347631814 | N26: =E26/$I26 -> 0.2162645219 | O26: =F26/$I26 -> 0.1590705987 | P26: =G26/$I26 -> 0.02636282395
A27: 3 | B27: 123 | C27: 330 | D27: 1033 | E27: 511 | F27: 351 | G27: 61 | I27: 2409 | J27: 0.06263650546 | K27: 0.05105853051 | L27: 0.1369863014 | M27: 0.4288086343 | N27: 0.2121212121 | O27: 0.1457036115 | P27: 0.02532171025
A28: 4 | B28: 177 | C28: 541 | D28: 1480 | E28: 524 | F28: 365 | G28: 75 | I28: 3162 | J28: 0.08221528861 | K28: 0.0559772296 | L28: 0.1710942441 | M28: 0.468058191 | N28: 0.1657179001 | O28: 0.1154332701 | P28: 0.02371916509
A29: 5 | B29: 279 | C29: 1160 | D29: 2148 | E29: 547 | F29: 329 | G29: 65 | I29: 4528 | J29: 0.1177327093 | K29: 0.06161660777 | L29: 0.2561837456 | M29: 0.4743816254 | N29: 0.1208038869 | O29: 0.0726590106 | P29: 0.01435512367
A30: 6 | B30: 787 | C30: 4212 | D30: 2931 | E30: 805 | F30: 420 | G30: 92 | I30: 9247 | J30: 0.2404316173 | K30: 0.0851086839 | L30: 0.4554990808 | M30: 0.3169676652 | N30: 0.08705526117 | O30: 0.04542013626 | P30: 0.009949172705
A31: 7 | B31: 1806 | C31: 6174 | D31: 1813 | E31: 671 | F31: 290 | G31: 90 | I31: 10844 | J31: 0.2819552782 | K31: 0.1665437108 | L31: 0.5693471044 | M31: 0.1671892291 | N31: 0.06187753596 | O31: 0.0267428993 | P31: 0.008299520472
A32: 8 | B32: 0 | C32: 0 | D32: 0 | E32: 0 | F32: 0 | G32: 0 | I32: =SUM(B32:H32) -> 0 | J32: =I32/$I$44 -> 0 | K32: =B32/$I32 ->  | L32: =C32/$I32 ->  | M32: =D32/$I32 ->  | N32: =E32/$I32 ->  | O32: =F32/$I32 ->  | P32: =G32/$I32 -> 
A33: 9 | B33: 0 | C33: 0 | D33: 0 | E33: 0 | F33: 0 | G33: 0 | I33: =SUM(B33:H33) -> 0 | J33: 0 | K33: =B33/$I33 ->  | L33: =C33/$I33 ->  | M33: =D33/$I33 ->  | N33: =E33/$I33 ->  | O33: =F33/$I33 ->  | P33: =G33/$I33 -> 
A34: 10 | B34: 0 | C34: 0 | D34: 0 | E34: 0 | F34: 0 | G34: 0 | I34: 0 | J34: 0
A35: 11 | B35: 0 | C35: 0 | D35: 0 | E35: 0 | F35: 0 | G35: 0 | I35: 0 | J35: 0
A36: =A35+1 -> 12 | B36: 0 | C36: 0 | D36: 0 | E36: 0 | F36: 0 | G36: 0 | I36: 0 | J36: 0
A37: =A36+1 -> 13 | B37: 0 | C37: 0 | D37: 0 | E37: 0 | F37: 0 | G37: 0 | I37: =SUM(B37:H37) -> 0 | J37: =I37/$I$44 -> 0 | K37: =B37/$I37 ->  | L37: =C37/$I37 ->  | M37: =D37/$I37 ->  | N37: =E37/$I37 ->  | O37: =F37/$I37 ->  | P37: =G37/$I37 -> 
A38: 14 | B38: 0 | C38: 0 | D38: 0 | E38: 0 | F38: 0 | G38: 0 | I38: 0 | J38: 0
A39: 15 | B39: 0 | C39: 0 | D39: 0 | E39: 0 | F39: 0 | G39: 0 | I39: 0 | J39: 0
A40: 16 | B40: 0 | C40: 0 | D40: 0 | E40: 0 | F40: 0 | G40: 0 | I40: 0 | J40: 0
A41: 17 | B41: 0 | C41: 0 | D41: 0 | E41: 0 | F41: 0 | G41: 0 | I41: 0 | J41: 0
A42: 18 | B42: 0 | C42: 0 | D42: 0 | E42: 0 | F42: 0 | G42: 0 | I42: 0 | J42: 0
A43: 19 | B43: 0 | C43: 0 | D43: 0 | E43: 0 | F43: 0 | G43: 0 | I43: 0 | J43: 0
A44: Totals | B44: =SUM(B25:B43) -> 3560 | C44: =SUM(C25:C43) -> 13225 | D44: 12603 | E44: 5152 | F44: 3370 | G44: 550 | H44: 0 | I44: 38460 | K44: =B44/$I44 -> 0.09256370255 | L44: =C44/$I44 -> 0.3438637546 | M44: =D44/$I44 -> 0.3276911076 | N44: =E44/$I44 -> 0.1339573583 | O44: =F44/$I44 -> 0.08762350494 | P44: =G44/$I44 -> 0.01430057202
J45: Targets: | K45: 0.08 | L45: 0.2 | M45: 0.32 | N45: 0.2 | O45: 0.18 | P45: 0.02
A47: For Reddit tables
A48: =A25&"* | "&B25&" | "&C25&" | "&D25&" | "&E25&" | "&F25&" | "&G25 -> 1* | 284 | 546 | 2225 | 1610 | 1259 | 108 | K48: =A25&"* | "&ROUNDDOWN(K25,4)*100&"% | "&ROUNDDOWN(L25,4)*100&"% | "&ROUNDDOWN(M25,4)*100&"% | "&ROUNDDOWN(N25,4)*100&"% | "&ROUNDDOWN(O25,4)*100&"% | "&ROUNDDOWN(P25,4)*100&"%" -> 1* | 4.7% | 9.05% | 36.88% | 26.69% | 20.87% | 1.79%
A49: =A26&" | "&B26&" | "&C26&" | "&D26&" | "&E26&" | "&F26&" | "&G26 -> 2 | 104 | 262 | 973 | 484 | 356 | 59 | K49: =A26&" | "&ROUNDDOWN(K26,4)*100&"% | "&ROUNDDOWN(L26,4)*100&"% | "&ROUNDDOWN(M26,4)*100&"% | "&ROUNDDOWN(N26,4)*100&"% | "&ROUNDDOWN(O26,4)*100&"% | "&ROUNDDOWN(P26,4)*100&"%" -> 2 | 4.64% | 11.7% | 43.47% | 21.62% | 15.9% | 2.63%
A50: 3 | 123 | 330 | 1033 | 511 | 351 | 61 | K50: 3 | 5.1% | 13.69% | 42.88% | 21.21% | 14.57% | 2.53%
A51: 4 | 177 | 541 | 1480 | 524 | 365 | 75 | K51: 4 | 5.59% | 17.1% | 46.8% | 16.57% | 11.54% | 2.37%
A52: 5 | 279 | 1160 | 2148 | 547 | 329 | 65 | K52: 5 | 6.16% | 25.61% | 47.43% | 12.08% | 7.26% | 1.43%
A53: 6 | 787 | 4212 | 2931 | 805 | 420 | 92 | K53: 6 | 8.51% | 45.54% | 31.69% | 8.7% | 4.54% | 0.99%
A54: 7 | 1806 | 6174 | 1813 | 671 | 290 | 90 | K54: 7 | 16.65% | 56.93% | 16.71% | 6.18% | 2.67% | 0.82%
A55: 8 | 0 | 0 | 0 | 0 | 0 | 0
A56: 9 | 0 | 0 | 0 | 0 | 0 | 0
A57: 10 | 0 | 0 | 0 | 0 | 0 | 0
A58: =A35&" | "&B35&" | "&C35&" | "&D35&" | "&E35&" | "&F35&" | "&G35 -> 11 | 0 | 0 | 0 | 0 | 0 | 0 | K58: =A35&" | "&ROUNDDOWN(K35,4)*100&"% | "&ROUNDDOWN(L35,4)*100&"% | "&ROUNDDOWN(M35,4)*100&"% | "&ROUNDDOWN(N35,4)*100&"% | "&ROUNDDOWN(O35,4)*100&"% | "&ROUNDDOWN(P35,4)*100&"%" -> 
A59: =A36&" | "&B36&" | "&C36&" | "&D36&" | "&E36&" | "&F36&" | "&G36 -> 12 | 0 | 0 | 0 | 0 | 0 | 0 | K59: =A36&" | "&ROUNDDOWN(K36,4)*100&"% | "&ROUNDDOWN(L36,4)*100&"% | "&ROUNDDOWN(M36,4)*100&"% | "&ROUNDDOWN(N36,4)*100&"% | "&ROUNDDOWN(O36,4)*100&"% | "&ROUNDDOWN(P36,4)*100&"%" -> 
A60: 13 | 0 | 0 | 0 | 0 | 0 | 0
A61: 14 | 0 | 0 | 0 | 0 | 0 | 0
A62: 15 | 0 | 0 | 0 | 0 | 0 | 0
A63: 16 | 0 | 0 | 0 | 0 | 0 | 0
A64: 17 | 0 | 0 | 0 | 0 | 0 | 0
A65: 18 | 0 | 0 | 0 | 0 | 0 | 0
A66: 19 | 0 | 0 | 0 | 0 | 0 | 0
A70: Race Stats
B71: Bronze | F71: Silver | J71: Gold | N71: Platinum | R71: Diamond | V71: Master | Z71: Grandmaster | AD71: Totals | AH71: Totals Overall
A72: Weeks Remaining | B72: Z | C72: T | D72: P | E72: R | F72: Z | G72: T | H72: P | I72: R | J72: Z | K72: T | L72: P | M72: R | N72: Z | O72: T | P72: P | Q72: R | R72: Z | S72: T | T72: P | U72: R | V72: Z | W72: T | X72: P | Y72: R | Z72: Z | AA72: T | AB72: P | AC72: R | AD72: Z | AE72: T | AF72: P | AG72: R
A73: 1 | B73: 50 | C73: 122 | D73: 83 | E73: 29 | F73: 112 | G73: 189 | H73: 184 | I73: 61 | J73: 529 | K73: 705 | L73: 722 | M73: 269 | N73: 474 | O73: 551 | P73: 440 | Q73: 145 | R73: 383 | S73: 454 | T73: 351 | U73: 71 | V73: 36 | W73: 38 | X73: 31 | Y73: 3 | AD73: =B73+F73+J73+N73+R73+V73+Z73 -> 1584 | AE73: =C73+G73+K73+O73+S73+W73+AA73 -> 2059 | AF73: 1811 | AG73: 578 | AH73: =SUM(AD73:AG73) -> 6032
A74: 2 | B74: 20 | C74: 32 | D74: 37 | E74: 15 | F74: 58 | G74: 86 | H74: 95 | I74: 23 | J74: 241 | K74: 283 | L74: 331 | M74: 118 | N74: 145 | O74: 160 | P74: 132 | Q74: 47 | R74: 105 | S74: 132 | T74: 97 | U74: 22 | V74: 10 | W74: 26 | X74: 19 | Y74: 4 | AD74: =B74+F74+J74+N74+R74+V74+Z74 -> 579 | AE74: 719 | AF74: 711 | AG74: 229 | AH74: =SUM(AD74:AG74) -> 2238
A75: 3 | B75: 23 | C75: 52 | D75: 40 | E75: 8 | F75: 69 | G75: 112 | H75: 118 | I75: 31 | J75: 275 | K75: 309 | L75: 334 | M75: 115 | N75: 147 | O75: 167 | P75: 146 | Q75: 51 | R75: 96 | S75: 127 | T75: 109 | U75: 19 | V75: 14 | W75: 22 | X75: 24 | Y75: 1 | AD75: 624 | AE75: 789 | AF75: 771 | AG75: 225 | AH75: 2409
A76: 4 | B76: 30 | C76: 64 | D76: 61 | E76: 22 | F76: 113 | G76: 182 | H76: 184 | I76: 62 | J76: 395 | K76: 441 | L76: 470 | M76: 174 | N76: 153 | O76: 176 | P76: 160 | Q76: 35 | R76: 111 | S76: 126 | T76: 105 | U76: 23 | V76: 24 | W76: 26 | X76: 20 | Y76: 5 | AD76: 826 | AE76: 1015 | AF76: 1000 | AG76: 321 | AH76: 3162
A77: 5 | B77: 67 | C77: 79 | D77: 110 | E77: 23 | F77: 276 | G77: 370 | H77: 378 | I77: 136 | J77: 554 | K77: 675 | L77: 682 | M77: 237 | N77: 160 | O77: 192 | P77: 140 | Q77: 55 | R77: 89 | S77: 114 | T77: 99 | U77: 27 | V77: 15 | W77: 24 | X77: 26 | AD77: 1161 | AE77: 1454 | AF77: 1435 | AG77: 478 | AH77: 4528
A78: 6 | B78: 189 | C78: 280 | D78: 272 | E78: 46 | F78: 1067 | G78: 1356 | H78: 1339 | I78: 450 | J78: 824 | K78: 891 | L78: 909 | M78: 307 | N78: 236 | O78: 254 | P78: 233 | Q78: 82 | R78: 145 | S78: 142 | T78: 108 | U78: 25 | V78: 27 | W78: 27 | X78: 34 | Y78: 4 | AD78: 2488 | AE78: 2950 | AF78: 2895 | AG78: 914 | AH78: 9247
A79: 7 | B79: 414 | C79: 672 | D79: 561 | E79: 159 | F79: 1534 | G79: 2026 | H79: 1959 | I79: 655 | J79: 526 | K79: 532 | L79: 598 | M79: 157 | N79: 228 | O79: 197 | P79: 196 | Q79: 50 | R79: 68 | S79: 106 | T79: 89 | U79: 27 | V79: 22 | W79: 38 | X79: 23 | Y79: 7 | AD79: 2792 | AE79: 3571 | AF79: 3426 | AG79: 1055 | AH79: 10844
A80: 8
A81: 9
A82: 10
A83: 11
A84: =A83+1 -> 12
A85: =A84+1 -> 13
A86: 14
A87: 15
A88: 16
A89: 17
A90: 18
A91: 19
A92: Totals | B92: =SUM(B73:B91) -> 793 | C92: =SUM(C73:C91) -> 1301 | D92: 1164 | E92: 302 | F92: 3229 | G92: 4321 | H92: 4257 | I92: 1418 | J92: 3344 | K92: 3836 | L92: 4046 | M92: 1377 | N92: 1543 | O92: 1697 | P92: 1447 | Q92: 465 | R92: 997 | S92: 1201 | T92: 958 | U92: 214 | V92: 148 | W92: 201 | X92: 177 | Y92: 24 | Z92: 0 | AA92: 0 | AB92: 0 | AC92: 0 | AD92: 10054 | AE92: 12557 | AF92: 12049 | AG92: 3800
A96: Percentages Race Stats
B97: Bronze | F97: Silver | J97: Gold | N97: Platinum | R97: Diamond | V97: Master | Z97: Grandmaster | AD97: Totals
A98: Weeks Remaining | B98: Z | C98: T | D98: P | E98: R | F98: Z | G98: T | H98: P | I98: R | J98: Z | K98: T | L98: P | M98: R | N98: Z | O98: T | P98: P | Q98: R | R98: Z | S98: T | T98: P | U98: R | V98: Z | W98: T | X98: P | Y98: R | Z98: Z | AA98: T | AB98: P | AC98: R | AD98: Z | AE98: T | AF98: P | AG98: R
A99: 1 | B99: =B73/$B25 -> 0.176056338 | C99: 0.4295774648 | D99: 0.2922535211 | E99: 0.1021126761 | F99: =F73/$C25 -> 0.2051282051 | G99: 0.3461538462 | H99: 0.336996337 | I99: 0.1117216117 | J99: =J73/$D25 -> 0.237752809 | K99: 0.3168539326 | L99: 0.324494382 | M99: 0.1208988764 | N99: =N73/$E25 -> 0.2944099379 | O99: 0.3422360248 | P99: 0.2732919255 | Q99: 0.0900621118 | R99: =R73/$F25 -> 0.3042096902 | S99: 0.3606036537 | T99: 0.2787926926 | U99: 0.05639396346 | V99: =V73/$G25 -> 0.3333333333 | W99: 0.3518518519 | X99: 0.287037037 | Y99: 0.02777777778 | Z99: =Z73/$H25 ->  | AB99: =AB73/$H25 ->  | AC99: =AC73/$H25 ->  | AD99: =AD73/$I25 -> 0.2625994695 | AE99: 0.3413461538 | AF99: 0.3002320955 | AG99: 0.09582228117
A100: 2 | B100: 0.1923076923 | C100: 0.3076923077 | D100: 0.3557692308 | E100: 0.1442307692 | F100: 0.2213740458 | G100: 0.3282442748 | H100: 0.3625954198 | I100: 0.08778625954 | J100: 0.2476875642 | K100: 0.2908530319 | L100: 0.3401849949 | M100: 0.121274409 | N100: 0.2995867769 | O100: 0.3305785124 | P100: 0.2727272727 | Q100: 0.09710743802 | R100: 0.2949438202 | S100: 0.3707865169 | T100: 0.2724719101 | U100: 0.06179775281 | V100: 0.1694915254 | W100: 0.4406779661 | X100: 0.3220338983 | Y100: 0.06779661017 | AB100: =AH74/$H26 ->  | AD100: 0.2587131367 | AE100: 0.3212689902 | AF100: 0.31769437 | AG100: 0.1023235031
A101: 3 | B101: 0.1869918699 | C101: 0.4227642276 | D101: 0.325203252 | E101: 0.06504065041 | F101: 0.2090909091 | G101: 0.3393939394 | H101: 0.3575757576 | I101: 0.09393939394 | J101: 0.266214908 | K101: 0.2991287512 | L101: 0.3233301065 | M101: 0.1113262343 | N101: 0.2876712329 | O101: 0.3268101761 | P101: 0.2857142857 | Q101: 0.09980430528 | R101: 0.2735042735 | S101: 0.3618233618 | T101: 0.3105413105 | U101: 0.05413105413 | V101: 0.2295081967 | W101: 0.3606557377 | X101: 0.393442623 | Y101: 0.01639344262 | AD101: 0.2590286426 | AE101: 0.3275217933 | AF101: 0.3200498132 | AG101: 0.09339975093
A102: 4 | B102: 0.1694915254 | C102: 0.3615819209 | D102: 0.3446327684 | E102: 0.1242937853 | F102: 0.2088724584 | G102: 0.3364140481 | H102: 0.3401109057 | I102: 0.1146025878 | J102: 0.2668918919 | K102: 0.297972973 | L102: 0.3175675676 | M102: 0.1175675676 | N102: 0.2919847328 | O102: 0.3358778626 | P102: 0.3053435115 | Q102: 0.06679389313 | R102: 0.304109589 | S102: 0.3452054795 | T102: 0.2876712329 | U102: 0.06301369863 | V102: 0.32 | W102: 0.3466666667 | X102: 0.2666666667 | Y102: 0.06666666667 | AD102: 0.2612270715 | AE102: 0.3209993675 | AF102: 0.3162555345 | AG102: 0.1015180266
A103: 5 | B103: 0.2401433692 | C103: 0.2831541219 | D103: 0.394265233 | E103: 0.08243727599 | F103: 0.2379310345 | G103: 0.3189655172 | H103: 0.325862069 | I103: 0.1172413793 | J103: 0.2579143389 | K103: 0.3142458101 | L103: 0.3175046555 | M103: 0.1103351955 | N103: 0.2925045704 | O103: 0.3510054845 | P103: 0.2559414991 | Q103: 0.1005484461 | R103: 0.2705167173 | S103: 0.3465045593 | T103: 0.3009118541 | U103: 0.0820668693 | V103: 0.2307692308 | W103: 0.3692307692 | X103: 0.4 | Y103: 0 | AD103: 0.2564045936 | AE103: 0.3211130742 | AF103: 0.3169169611 | AG103: 0.105565371
A104: 6 | B104: 0.2401524778 | C104: 0.3557814485 | D104: 0.3456162643 | E104: 0.0584498094 | F104: 0.2533238367 | G104: 0.3219373219 | H104: 0.3179012346 | I104: 0.1068376068 | J104: 0.2811327192 | K104: 0.3039918117 | L104: 0.3101330604 | M104: 0.1047424087 | N104: 0.2931677019 | O104: 0.3155279503 | P104: 0.2894409938 | Q104: 0.101863354 | R104: 0.3452380952 | S104: 0.3380952381 | T104: 0.2571428571 | U104: 0.05952380952 | V104: 0.2934782609 | W104: 0.2934782609 | X104: 0.3695652174 | Y104: 0.04347826087 | AD104: 0.2690602358 | AE104: 0.3190223856 | AF104: 0.3130745107 | AG104: 0.09884286796
A105: 7 | B105: 0.2292358804 | C105: 0.3720930233 | D105: 0.3106312292 | E105: 0.08803986711 | F105: 0.2484612893 | G105: 0.3281503077 | H105: 0.3172983479 | I105: 0.1060900551 | J105: 0.2901268616 | K105: 0.2934362934 | L105: 0.3298400441 | M105: 0.08659680088 | N105: 0.3397913562 | O105: 0.2935916542 | P105: 0.2921013413 | Q105: 0.07451564829 | R105: 0.2344827586 | S105: 0.3655172414 | T105: 0.3068965517 | U105: 0.09310344828 | V105: 0.2444444444 | W105: 0.4222222222 | X105: 0.2555555556 | Y105: 0.07777777778 | AD105: 0.2574695684 | AE105: 0.329306529 | AF105: 0.3159350793 | AG105: 0.09728882331
A106: 8
A107: 9
A108: 10
A109: 11
A110: =A109+1 -> 12
A111: =A110+1 -> 13
A112: 14
A113: 15
A114: 16
A115: 17
A116: 18
A117: 19
A122: Most Recent Games
B123: Bronze | D123: Silver | F123: Gold | H123: Platinum | J123: Diamond | L123: Master | N123: Grandmaster | P123: Totals
A124: Weeks Remaining | B124: Last Week | C124: Last Month | D124: Last Week | E124: Last Month | F124: Last Week | G124: Last Month | H124: Last Week | I124: Last Month | J124: Last Week | K124: Last Month | L124: Last Week | M124: Last Month | N124: Last Week | O124: Last Month | P124: Last Week | Q124: Last Month
A125: 1 | B125: 284 | D125: 546 | F125: 2225 | H125: 1610 | J125: 1259 | L125: 108 | P125: =B125+D125+F125+H125+J125+L125+N125 -> 6032 | Q125: =C125+E125+G125+I125+K125+M125+O125 -> 0
A126: 2 | B126: 87 | C126: 17 | D126: 204 | E126: 58 | F126: 759 | G126: 214 | H126: 359 | I126: 125 | J126: 239 | K126: 117 | L126: 47 | M126: 12 | P126: =B126+D126+F126+H126+J126+L126+N126 -> 1695 | Q126: 543
A127: 3 | B127: 92 | C127: 31 | D127: 229 | E127: 101 | F127: 654 | G127: 379 | H127: 285 | I127: 226 | J127: 194 | K127: 157 | L127: 47 | M127: 14 | P127: 1501 | Q127: 908
A128: 4 | B128: 107 | C128: 70 | D128: 331 | E128: 210 | F128: 840 | G128: 640 | H128: 251 | I128: 273 | J128: 178 | K128: 187 | L128: 42 | M128: 33 | P128: 1749 | Q128: 1413
A129: 5 | B129: 132 | C129: 142 | D129: 585 | E129: 537 | F129: 998 | G129: 1046 | H129: 209 | I129: 298 | J129: 129 | K129: 168 | L129: 30 | M129: 30 | P129: 2083 | Q129: 2221
A130: 6 | B130: 281 | C130: 362 | D130: 1523 | E130: 2028 | F130: 924 | G130: 1342 | H130: 226 | I130: 332 | J130: 133 | K130: 149 | L130: 32 | M130: 38 | P130: 3119 | Q130: 4251
A131: 7 | B131: 441 | C131: 866 | D131: 1405 | E131: 3107 | F131: 410 | G131: 889 | H131: 152 | I131: 294 | J131: 55 | K131: 109 | L131: 30 | M131: 27 | P131: 2493 | Q131: 5292
A132: 8 | P132: 0 | Q132: 0
A133: 9 | P133: 0 | Q133: 0
A134: 10 | P134: 0 | Q134: 0
A135: 11
A136: 12
A137: 13
A138: 14
A139: 15
A140: 16
A141: 17
A142: 18
A143: 19
A144: Totals | B144: =SUM(B125:B143) -> 1424 | C144: =SUM(C125:C143) -> 1488 | D144: 4823 | E144: 6041 | F144: 6810 | G144: 4510 | H144: 3092 | I144: 1548 | J144: 2187 | K144: 887 | L144: 336 | M144: 154 | N144: 0 | O144: 0 | P144: 18672 | Q144: 14628
A145: At least 1 game in the last month | B145: =SUM(B144:C144) -> 2912 | D145: =SUM(D144:E144) -> 10864 | F145: =SUM(F144:G144) -> 11320 | H145: =SUM(H144:I144) -> 4640 | J145: =SUM(J144:K144) -> 3074 | L145: =SUM(L144:M144) -> 490 | N145: =SUM(N144:O144) -> 0 | P145: =SUM(P144:Q144) -> 33300
A149: Percentages - Most Recent Games
B150: Bronze | D150: Silver | F150: Gold | H150: Platinum | J150: Diamond | L150: Master | N150: Grandmaster | P150: Totals
A151: Weeks Remaining | B151: Last Week | C151: Last Month | D151: Last Week | E151: Last Month | F151: Last Week | G151: Last Month | H151: Last Week | I151: Last Month | J151: Last Week | K151: Last Month | L151: Last Week | M151: Last Month | N151: Last Week | O151: Last Month | P151: Last Week | Q151: Last Month
A152: 1 | B152: =B125/$I25 -> 0.04708222812 | C152: 0 | D152: 0.09051724138 | E152: 0 | F152: 0.3688660477 | G152: 0 | H152: 0.2669098143 | I152: 0 | J152: 0.2087201592 | K152: 0 | L152: 0.01790450928 | M152: 0 | N152: 0 | O152: 0 | P152: 1 | Q152: 0
A153: 2 | B153: =B126/$I26 -> 0.03887399464 | C153: 0.007596067918 | D153: 0.09115281501 | E153: 0.02591599643 | F153: 0.3391420912 | G153: 0.09562109026 | H153: 0.1604110813 | I153: 0.05585344057 | J153: 0.1067917784 | K153: 0.05227882038 | L153: 0.02100089366 | M153: 0.005361930295 | N153: 0 | O153: 0 | P153: 0.7573726542 | Q153: 0.2426273458
A154: 3 | B154: =B127/$I27 -> 0.03819012038 | C154: 0.01286841013 | D154: 0.09506019095 | E154: 0.04192611042 | F154: 0.2714819427 | G154: 0.1573266916 | H154: 0.1183063512 | I154: 0.09381486094 | J154: 0.08053134081 | K154: 0.06517227065 | L154: 0.0195101702 | M154: 0.005811540058 | N154: 0 | O154: 0 | P154: 0.6230801162 | Q154: 0.3769198838
A155: 4 | B155: =B128/$I28 -> 0.03383934219 | C155: 0.02213788741 | D155: 0.1046805819 | E155: 0.06641366224 | F155: 0.265654649 | G155: 0.2024035421 | H155: 0.07938013915 | I155: 0.08633776091 | J155: 0.05629348514 | K155: 0.05913978495 | L155: 0.01328273245 | M155: 0.01043643264 | N155: 0 | O155: 0 | P155: 0.5531309298 | Q155: 0.4468690702
A156: 5 | B156: =B129/$I29 -> 0.02915194346 | C156: 0.03136042403 | D156: 0.1291961131 | E156: 0.1185954064 | F156: 0.2204063604 | G156: 0.2310070671 | H156: 0.04615724382 | I156: 0.06581272085 | J156: 0.02848939929 | K156: 0.0371024735 | L156: 0.006625441696 | M156: 0.006625441696 | N156: 0 | O156: 0 | P156: 0.4600265018 | Q156: 0.4905035336
A157: 6 | B157: =B130/$I30 -> 0.03038823402 | C157: 0.03914783173 | D157: 0.1647020655 | E157: 0.2193143722 | F157: 0.09992429977 | G157: 0.1451281497 | H157: 0.02444035904 | I157: 0.03590353628 | J157: 0.01438304315 | K157: 0.01611333405 | L157: 0.00346058181 | M157: 0.0041094409 | N157: 0 | O157: 0 | P157: 0.3372985833 | Q157: 0.4597166649
A158: 7 | B158: =B131/$I31 -> 0.04066765031 | C158: 0.07985983032 | D158: 0.1295647363 | E158: 0.2865178901 | F158: 0.0378089266 | G158: 0.08198081889 | H158: 0.01401696791 | I158: 0.02711176688 | J158: 0.005071929177 | K158: 0.01005164146 | L158: 0.002766506824 | M158: 0.002489856142 | N158: 0 | O158: 0 | P158: 0.2298967171 | Q158: 0.4880118038
A159: 8
A160: 9
A161: 10
A162: 11
A163: 12
A164: 13
A165: 14
A166: 15
A167: 16
A168: 17
A169: 18
A170: 19
A171: Totals | B171: =B144/$I44 -> 0.03702548102 | C171: 0.03868954758 | D171: 0.1254030161 | E171: 0.1570722829 | F171: 0.1770670827 | G171: 0.1172646906 | H171: 0.08039521581 | I171: 0.04024960998 | J171: 0.05686427457 | K171: 0.02306292252 | L171: 0.008736349454 | M171: 0.004004160166 | N171: 0 | O171: 0 | P171: 0.4854914197 | Q171: 0.3803432137
A172: Percentage in the Last Month | B172: =SUM(B171:C171) -> 0.0757150286 | D172: =SUM(D171:E171) -> 0.282475299 | F172: =SUM(F171:G171) -> 0.2943317733 | H172: =SUM(H171:I171) -> 0.1206448258 | J172: =SUM(J171:K171) -> 0.07992719709 | L172: =SUM(L171:M171) -> 0.01274050962 | N172: =SUM(N171:O171) -> 0 | P172: =SUM(P171:Q171) -> 0.8658346334
A173: Percentage out of the specific league, in the last week | B173: =B144/B44 -> 0.4 | D173: =D144/C44 -> 0.3646880907 | F173: =F144/D44 -> 0.5403475363 | H173: =H144/E44 -> 0.6001552795 | J173: =I144/F44 -> 0.459347181 | L173: =L144/G44 -> 0.6109090909 | N173: =N144/H44 -> 
A174: Percentage out of the specific league, in the last month | B174: =B145/B44 -> 0.8179775281 | D174: =D145/C44 -> 0.8214744802 | F174: =F145/D44 -> 0.8981988415 | H174: =H145/E44 -> 0.900621118 | J174: =J145/F44 -> 0.9121661721 | L174: =L145/G44 -> 0.8909090909 | N174: =N145/H44 -> 
A176: Inactive Player Analysis (Max bonus pool weeks remaining that have not played a game in the last month) | B176: Bronze | C176: Silver | D176: Gold | E176: Platinum | F176: Diamond | G176: Master | H176: Totals
A177: Total Players | B177: =AVERAGEIFS('1v1'!$S$2:$S$62426,'1v1'!$F$2:$F$62426,'Analysis - 1v1'!B176,'1v1'!$Q$2:$Q$62426,MAX('1v1'!$Q$2:$Q$62426)) -> 2.570874862 | C177: =AVERAGEIFS('1v1'!$S$2:$S$62426,'1v1'!$F$2:$F$62426,'Analysis - 1v1'!C176,'1v1'!$Q$2:$Q$62426,MAX('1v1'!$Q$2:$Q$62426)) -> 2.685293165 | D177: =AVERAGEIFS('1v1'!$S$2:$S$62426,'1v1'!$F$2:$F$62426,'Analysis - 1v1'!D176,'1v1'!$Q$2:$Q$62426,MAX('1v1'!$Q$2:$Q$62426)) -> 3.744622173 | E177: =AVERAGEIFS('1v1'!$S$2:$S$62426,'1v1'!$F$2:$F$62426,'Analysis - 1v1'!E176,'1v1'!$Q$2:$Q$62426,MAX('1v1'!$Q$2:$Q$62426)) -> 3.782414307 | F177: =AVERAGEIFS('1v1'!$S$2:$S$62426,'1v1'!$F$2:$F$62426,'Analysis - 1v1'!F176,'1v1'!$Q$2:$Q$62426,MAX('1v1'!$Q$2:$Q$62426)) -> 1.920689655 | G177: =AVERAGEIFS('1v1'!$S$2:$S$62426,'1v1'!$F$2:$F$62426,'Analysis - 1v1'!G176,'1v1'!$Q$2:$Q$62426,MAX('1v1'!$Q$2:$Q$62426)) -> 3.844444444 | H177: =AVERAGEIFS('1v1'!S2:S62426,'1v1'!Q2:Q62426,MAX('1v1'!Q2:Q62426)) -> 2.900405754

Sheet 1v1
A1: PlayerID, ServerID, SubServerID, PlayerName, Race, League, DivisionName, Wins, Losses, Score, BonusPool, JoinDate, LastGame, LastUpdate, TrueID (A+C), Duplicate Check (sort by TrueID - if O curr row = O prev row then mark as 1 and then sort by Duplicate Check and delete all 1's), Bonus Pool Weeks Remaining, Ordered ID (used to preserve ordering from nios.kr) | B1: ServerID | C1: SubServerID | D1: PlayerName | E1: Race | F1: League | G1: DivisionName | H1: Wins | I1: Losses | J1: Score | K1: BonusPool | L1: JoinDate | M1: LastGame | N1: LastUpdate | O1: TrueID (A+C) | P1: Duplicate Check (sort by TrueID - if O curr row = O prev row then mark as 1 and then sort by Duplicate Check and delete all 1's) | Q1: Bonus Pool Weeks Remaining | R1: Ordered ID (used to preserve ordering from nios.kr) | S1: Total Games Played | T1: In Team? | U1: 1v1 League | W1: 2v2 Team | X1: 2v2 Team | Y1: 2v2 Team | Z1: 2v2 Team | AA1: 3v3 Team | AB1: 3v3 Team | AC1: 3v3 Team | AD1: 3v3 Team | AE1: 3v3 Team | AF1: 3v3 Team | AG1: 4v4 Team | AH1: 4v4 Team | AI1: 4v4 Team | AJ1: 4v4 Team | AK1: 4v4 Team | AL1: 4v4 Team | AM1: 4v4 Team | AN1: 4v4 Team | AO1: 2v2r | AP1: 3v3r | AQ1: 4v4r | AR1: 2v2r | AS1: 3v3r | AT1: 4v4r | AU1: Highest team league | AW1: Highest League in Team Types / 1v1 League | AX1: Bronze | AY1: Silver | AZ1: Gold | BA1: Platinum | BB1: Diamond | BC1: Master | BE1: <- 1v1
A2: 1817989 | B2: kr | C2: 1 | D2: murex | E2: t | F2: Bronze | G2: ì¼ˆëŸ¬ì‹œì•ˆ ë”•ì‹œ ì¡° | H2: 61 | I2: 65 | J2: 841 | K2: 11 | L2: 2014-11-10 | M2: 8 hours | N2: 2014-12-21T23:04:17 | O2: 1817989-1 | P2: 0 | Q2: 1 | R2: 2 | S2: 126 | AW2: Bronze | AX2: 327 | AY2: 995 | AZ2: 716 | BA2: 161 | BB2: 66 | BC2: 5
A3: 635644 | B3: kr | C3: 2 | D3: socneo | E3: t | F3: Bronze | G3: ë§ˆì¸í˜¸í”„ ì—íƒ€ ì¡° | H3: 76 | I3: 68 | J3: 838 | K3: 1 | L3: 2014-12-06 | M3: 3 hours | N3: 2014-12-21T23:04:18 | O3: 635644-2 | P3: 0 | Q3: 1 | R3: 3 | S3: 144 | AW3: Silver | AX3: 227 | AY3: 1030 | AZ3: 1241 | BA3: 409 | BB3: 190 | BC3: 13
A4: 3894994 | B4: kr | C4: 1 | D4: repalcabler | E4: p | F4: Bronze | G4: ë³´ë¡œìŠ¤ ë¸Œë¼ë³´ ì¡° | H4: 46 | I4: 38 | J4: 819 | K4: 11 | L4: 2014-12-11 | M4: 9 hours | N4: 2014-12-21T23:04:18 | O4: 3894994-1 | P4: 0 | Q4: 1 | R4: 4 | S4: 84 | AW4: Gold | AX4: 57 | AY4: 405 | AZ4: 1079 | BA4: 512 | BB4: 323 | BC4: 27
A5: 4289913 | B5: kr | C5: 1 | D5: sterran | E5: t | F5: Bronze | G5: ê³µì„± ì „ì°¨ ìš”íƒ€ ì¡° | H5: 30 | I5: 24 | J5: 815 | K5: 16 | L5: 2014-11-10 | M5: 15 hours | N5: 2014-12-21T23:04:19 | O5: 4289913-1 | P5: 0 | Q5: 1 | R5: 5 | S5: 54 | AW5: Platinum | AX5: 9 | AY5: 79 | AZ5: 346 | BA5: 336 | BB5: 336 | BC5: 33
A6: 875429 | B6: kr | C6: 2 | D6: å‡¤ç‰™é›·ç¥ž | E6: z | F6: Bronze | G6: ë“€ëž€ í”„ì‚¬ì´ ì¡° | H6: 137 | I6: 128 | J6: 812 | K6: 48 | L6: 2014-11-09 | M6: 2 days | N6: 2014-12-21T23:04:19 | O6: 875429-2 | P6: 0 | Q6: 1 | R6: 6 | S6: 265 | AW6: Diamond | AX6: 1 | AY6: 6 | AZ6: 34 | BA6: 60 | BB6: 143 | BC6: 26
A7: 2408617 | B7: kr | C7: 1 | D7: ì „ì„¤ì˜ê·¸ë¼íƒ• | E7: p | F7: Bronze | G7: ë ˆë‚˜ì‚¬ ìž…ì‹¤ë¡ ì¡° | H7: 34 | I7: 31 | J7: 806 | K7: 26 | L7: 2014-11-22 | M7: 1 days | N7: 2014-12-21T23:04:21 | O7: 2408617-1 | P7: 0 | Q7: 1 | R7: 7 | S7: 65 | T7: 2408617-1 | U7: Bronze | W7: 1569 | X7: 0 | Y7: Bronze | Z7: 0 | AA7: 0 | AB7: 1187 | AC7: 0 | AD7: 0 | AE7: Silver | AF7: 0 | AG7: 0 | AH7: 0 | AI7: 0 | AJ7: 0 | AK7: 0 | AL7: 0 | AM7: 0 | AN7: 0 | AO7: 2263 | AP7: 6287 | AQ7: 0 | AR7: Silver | AT7: 0 | AU7: Silver | AW7: Master | AX7: 0 | AY7: 3 | AZ7: 2 | BA7: 13 | BB7: 52 | BC7: 28
A8: 128250 | B8: kr | C8: 1 | D8: Raseu | E8: p | F8: Bronze | G8: ê³µì„± ì „ì°¨ ìš”íƒ€ ì¡° | H8: 65 | I8: 63 | J8: 804 | K8: 9 | L8: 2014-11-10 | M8: 5 hours | N8: 2014-12-21T23:04:22 | O8: 128250-1 | P8: 0 | Q8: 1 | R8: 8 | S8: 128 | T8: 128250-1 | U8: Bronze | W8: 0 | X8: 2673 | Y8: 0 | Z8: Bronze | AA8: 0 | AB8: 0 | AC8: 804 | AD8: 0 | AE8: 0 | AF8: Bronze | AG8: 0 | AH8: 0 | AI8: 0 | AJ8: 0 | AK8: 0 | AL8: 0 | AM8: 0 | AN8: 0 | AO8: 0 | AP8: 0 | AQ8: 0 | AR8: 0 | AS8: 0 | AT8: 0 | AU8: Bronze
A9: 1029327 | B9: kr | C9: 1 | D9: ë“±ë¼ˆì°œ | E9: z | F9: Bronze | G9: ížˆë“œë¼ë¦¬ìŠ¤í¬ ë…¸ë²°ë²„ ì¡° | H9: 126 | I9: 135 | J9: 803 | K9: 6 | L9: 2014-11-11 | M9: 29 minutes | N9: 2014-12-21T23:04:22 | O9: 1029327-1 | P9: 0 | Q9: 1 | R9: 9 | S9: 261
A10: 192755 | B10: kr | C10: 2 | D10: qqq | E10: p | F10: Bronze | G10: ì‹¬íŒê´€ ì¹´ì´ ì¡° | H10: 84 | I10: 85 | J10: 802 | K10: 9 | L10: 2014-11-13 | M10: 6 hours | N10: 2014-12-21T23:04:23 | O10: 192755-2 | P10: 0 | Q10: 1 | R10: 10 | S10: 169
A11: 2742712 | B11: kr | C11: 1 | D11: fedxwj | E11: p | F11: Bronze | G11: íƒ€ë½ê·€ í‚¬ë¡œ ì¡° | H11: 39 | I11: 26 | J11: 800 | K11: 14 | L11: 2014-12-07 | M11: 14 hours | N11: 2014-12-21T23:04:23 | O11: 2742712-1 | P11: 0 | Q11: 1 | R11: 11 | S11: 65
A12: 3538546 | B12: kr | C12: 1 | D12: Calm | E12: r | F12: Bronze | G12: ížˆë“œë¼ë¦¬ìŠ¤í¬ ë…¸ë²°ë²„ ì¡° | H12: 95 | I12: 108 | J12: 798 | K12: 24 | L12: 2014-12-07 | M12: 1 days | N12: 2014-12-21T23:04:24 | O12: 3538546-1 | P12: 0 | Q12: 1 | R12: 12 | S12: 203
A13: 4495679 | B13: kr | C13: 1 | D13: jcwg | E13: t | F13: Bronze | G13: ë…¸ë°” ì‹œê·¸ë§ˆ ì¡° | H13: 44 | I13: 42 | J13: 797 | K13: 11 | L13: 2014-11-10 | M13: 8 hours | N13: 2014-12-21T23:04:24 | O13: 4495679-1 | P13: 0 | Q13: 1 | R13: 13 | S13: 86
A14: 3716471 | B14: kr | C14: 1 | D14: ì²œì‚¬ì˜ë‚ ê°œ | E14: t | F14: Bronze | G14: ì¼ˆëŸ¬ì‹œì•ˆ ë”•ì‹œ ì¡° | H14: 90 | I14: 93 | J14: 794 | K14: 9 | L14: 2014-11-10 | M14: 5 hours | N14: 2014-12-21T23:04:25 | O14: 3716471-1 | P14: 0 | Q14: 1 | R14: 14 | S14: 183
A15: 469215 | B15: kr | C15: 1 | D15: ìŠ¬í”ˆëŠ‘ëŒ€ | E15: t | F15: Bronze | G15: ë¬´ì•„ë‘” ì˜¤ìŠ¤ì¹´ ì¡° | H15: 46 | I15: 47 | J15: 793 | K15: 28 | L15: 2014-11-10 | M15: 1 days | N15: 2014-12-21T23:04:25 | O15: 469215-1 | P15: 0 | Q15: 1 | R15: 15 | S15: 93
A16: 4749851 | B16: kr | C16: 1 | D16: ë¶€ì „ë¹Œë¼ | E16: z | F16: Bronze | G16: ìžì¹˜ë ¹ ê°ë§ˆ ì¡° | H16: 42 | I16: 32 | J16: 792 | K16: 25 | L16: 2014-12-08 | M16: 1 days | N16: 2014-12-21T23:04:26 | O16: 4749851-1 | P16: 0 | Q16: 1 | R16: 16 | S16: 74 | T16: 4749851-1 | U16: Bronze | W16: 542 | X16: 0 | Y16: Bronze | Z16: 0 | AA16: 0 | AB16: 0 | AC16: 0 | AD16: 0 | AE16: 0 | AF16: 0 | AG16: 0 | AH16: 0 | AI16: 0 | AJ16: 0 | AK16: 0 | AL16: 0 | AM16: 0 | AN16: 0 | AO16: 2368 | AP16: 0 | AQ16: 0 | AR16: Silver | AS16: 0 | AT16: 0 | AU16: Silver
A17: 4754430 | B17: kr | C17: 1 | D17: ë…¸ë¸”ë ˆìŠ¤ì˜¤ë¸”ë¦¬ì œ | E17: p | F17: Bronze | G17: íƒ€ì†Œë‹ˆìŠ¤ ë¦¬ë§ˆ ì¡° | H17: 32 | I17: 35 | J17: 791 | K17: 2 | L17: 2014-11-18 | M17: 11 hours | N17: 2014-12-21T23:04:27 | O17: 4754430-1 | P17: 0 | Q17: 1 | R17: 17 | S17: 67 | T17: 4754430-1 | U17: Bronze | W17: 0 | X17: 0 | Y17: 0 | Z17: 0 | AA17: 0 | AB17: 0 | AC17: 0 | AD17: 0 | AE17: 0 | AF17: 0 | AG17: 0 | AH17: 0 | AI17: 0 | AJ17: 0 | AK17: 0 | AL17: 0 | AM17: 0 | AN17: 0 | AO17: 3359 | AP17: 0 | AQ17: 0 | AR17: Silver | AS17: 0 | AT17: 0 | AU17: Silver
A18: 4725900 | B18: kr | C18: 1 | D18: Pterion | E18: t | F18: Bronze | G18: ì‹ ê´€ ë¡œ ì¡° | H18: 142 | I18: 149 | J18: 789 | K18: 1 | L18: 2014-12-15 | M18: 5 hours | N18: 2014-12-21T23:04:27 | O18: 4725900-1 | P18: 0 | Q18: 1 | R18: 18 | S18: 291
A19: 1302054 | B19: kr | C19: 2 | D19: æ™´ç©ºç¹”é›… | E19: p | F19: Bronze | G19: í™”ì—¼ë°©ì‚¬ë³‘ ì¹´íŒŒ ì¡° | H19: 61 | I19: 47 | J19: 785 | K19: 61 | L19: 2014-11-14 | M19: 3 days | N19: 2014-12-21T23:04:28 | O19: 1302054-2 | P19: 0 | Q19: 1 | R19: 19 | S19: 108
A20: 1405892 | B20: kr | C20: 1 | D20: log | E20: p | F20: Bronze | G20: ì•„ìš°ë¦¬ê°€ ì—‰í´ ì¡° | H20: 178 | I20: 202 | J20: 785 | K20: 3 | L20: 2014-11-10 | M20: 4 hours | N20: 2014-12-21T23:04:28 | O20: 1405892-1 | P20: 0 | Q20: 1 | R20: 20 | S20: 380
A21: 689054 | B21: kr | C21: 2 | D21: æ®ºæ‰‹ä¸ç•™æƒ… | E21: t | F21: Bronze | G21: íƒ€ë¦¼ ì•ŒíŒŒ ì¡° | H21: 61 | I21: 61 | J21: 783 | K21: 12 | L21: 2014-11-11 | M21: 10 hours | N21: 2014-12-21T23:04:29 | O21: 689054-2 | P21: 0 | Q21: 1 | R21: 21 | S21: 122
A22: 4207636 | B22: kr | C22: 1 | D22: Seraphos | E22: p | F22: Bronze | G22: ížˆë“œë¼ë¦¬ìŠ¤í¬ ë…¸ë²°ë²„ ì¡° | H22: 101 | I22: 110 | J22: 781 | K22: 1 | L22: 2014-11-11 | M22: 29 minutes | N22: 2014-12-21T23:04:30 | O22: 4207636-1 | P22: 0 | Q22: 1 | R22: 22 | S22: 211
A23: 4055506 | B23: kr | C23: 1 | D23: colacan | E23: t | F23: Bronze | G23: ê³µì„± ì „ì°¨ ìš”íƒ€ ì¡° | H23: 46 | I23: 47 | J23: 780 | K23: 26 | L23: 2014-11-10 | M23: 1 days | N23: 2014-12-21T23:04:30 | O23: 4055506-1 | P23: 0 | Q23: 1 | R23: 23 | S23: 93
A24: 540423 | B24: kr | C24: 1 | D24: IMNesTea | E24: z | F24: Bronze | G24: í† ë¥´ ì œë“œ ì¡° | H24: 31 | I24: 31 | J24: 779 | K24: 17 | L24: 2014-11-22 | M24: 15 hours | N24: 2014-12-21T23:04:31 | O24: 540423-1 | P24: 0 | Q24: 1 | R24: 24 | S24: 62
A25: 4268192 | B25: kr | C25: 1 | D25: ì—´í˜ˆë‚¨ì•„ | E25: z | F25: Bronze | G25: ì½”ëž„ í”¼ ì¡° | H25: 67 | I25: 70 | J25: 779 | K25: 6 | L25: 2014-11-09 | M25: 57 minutes | N25: 2014-12-21T23:04:31 | O25: 4268192-1 | P25: 0 | Q25: 1 | R25: 25 | S25: 137
A26: 745008 | B26: kr | C26: 2 | D26: yiii | E26: t | F26: Bronze | G26: ë§ˆì¸í˜¸í”„ ì—íƒ€ ì¡° | H26: 41 | I26: 45 | J26: 778 | K26: 29 | L26: 2014-11-12 | M26: 1 days | N26: 2014-12-21T23:04:32 | O26: 745008-2 | P26: 0 | Q26: 1 | R26: 26 | S26: 86
A27: 710595 | B27: kr | C27: 2 | D27: è•Žçˆ¸ | E27: p | F27: Bronze | G27: ë“€ëž€ í”„ì‚¬ì´ ì¡° | H27: 78 | I27: 77 | J27: 777 | K27: 8 | L27: 2014-11-09 | M27: 4 hours | N27: 2014-12-21T23:04:33 | O27: 710595-2 | P27: 0 | Q27: 1 | R27: 27 | S27: 155
A28: 2756708 | B28: kr | C28: 1 | D28: ì œë¼íˆ´ | E28: t | F28: Bronze | G28: ì½”ëž„ í”¼ ì¡° | H28: 62 | I28: 62 | J28: 777 | K28: 1 | L28: 2014-11-09 | M28: 2 hours | N28: 2014-12-21T23:04:33 | O28: 2756708-1 | P28: 0 | Q28: 1 | R28: 28 | S28: 124
A29: 834420 | B29: kr | C29: 1 | D29: ë‚ ì¹˜ | E29: z | F29: Bronze | G29: ë°”í€´ ëžŒë‹¤ ì¡° | H29: 30 | I29: 29 | J29: 776 | K29: 5 | L29: 2014-12-02 | M29: 9 minutes | N29: 2014-12-21T23:04:34 | O29: 834420-1 | P29: 0 | Q29: 1 | R29: 29 | S29: 59 | T29: 834420-1 | U29: Bronze | W29: 0 | X29: 3134 | Y29: 0 | Z29: Silver | AA29: 0 | AB29: 0 | AC29: 0 | AD29: 0 | AE29: 0 | AF29: 0 | AG29: 0 | AH29: 0 | AI29: 0 | AJ29: 0 | AK29: 0 | AL29: 0 | AM29: 0 | AN29: 0 | AO29: 0 | AP29: 0 | AQ29: 0 | AR29: 0 | AS29: 0 | AT29: 0 | AU29: Silver
A30: 4312140 | B30: kr | C30: 1 | D30: juniorFlash | E30: t | F30: Bronze | G30: ë ˆë‚˜ì‚¬ ìž…ì‹¤ë¡ ì¡° | H30: 78 | I30: 75 | J30: 776 | K30: 15 | L30: 2014-11-12 | M30: 16 hours | N30: 2014-12-21T23:04:35 | O30: 4312140-1 | P30: 0 | Q30: 1 | R30: 30 | S30: 153
A31: 1051460 | B31: kr | C31: 2 | D31: ç¥–å¸«çˆºä¸Šèº« | E31: p | F31: Bronze | G31: íƒ€ë¦¼ ì•ŒíŒŒ ì¡° | H31: 114 | I31: 118 | J31: 775 | K31: 10 | L31: 2014-11-11 | M31: 6 hours | N31: 2014-12-21T23:04:35 | O31: 1051460-2 | P31: 0 | Q31: 1 | R31: 31 | S31: 232 | T31: 1051460-2 | U31: Bronze | W31: 445 | X31: 0 | Y31: Bronze | Z31: 0 | AA31: 1829 | AB31: 0 | AC31: 0 | AD31: Silver | AE31: 0 | AF31: 0 | AG31: 0 | AH31: 0 | AI31: 0 | AJ31: 0 | AK31: 0 | AL31: 0 | AM31: 0 | AN31: 0 | AO31: 0 | AP31: 962 | AQ31: 0 | AR31: 0 | AS31: Bronze | AT31: 0 | AU31: Silver
A32: 1707642 | B32: kr | C32: 1 | D32: yoon | E32: p | F32: Bronze | G32: ë°”í€´ ëžŒë‹¤ ì¡° | H32: 43 | I32: 35 | J32: 775 | K32: 16 | L32: 2014-12-09 | M32: 17 hours | N32: 2014-12-21T23:04:36 | O32: 1707642-1 | P32: 0 | Q32: 1 | R32: 32 | S32: 78
A33: 3576480 | B33: kr | C33: 1 | D33: ìž˜ë¶€íƒë“œë¦½ë‹ˆë‹¤ | E33: p | F33: Bronze | G33: ìš°ë¥´ì‚¬ ë¸íƒ€ ì¡° | H33: 54 | I33: 50 | J33: 775 | K33: 28 | L33: 2014-11-28 | M33: 2 days | N33: 2014-12-21T23:04:36 | O33: 3576480-1 | P33: 0 | Q33: 1 | R33: 33 | S33: 104
A34: 4363496 | B34: kr | C34: 1 | D34: Pascal | E34: r | F34: Bronze | G34: íƒ€ë½ê·€ í‚¬ë¡œ ì¡° | H34: 28 | I34: 28 | J34: 773 | K34: 27 | L34: 2014-12-12 | M34: 1 days | N34: 2014-12-21T23:04:37 | O34: 4363496-1 | P34: 0 | Q34: 1 | R34: 34 | S34: 56
A35: 827603 | B35: kr | C35: 1 | D35: kanisis | E35: p | F35: Bronze | G35: ì‹œë¯¸í„° í˜¸í¬ ì¡° | H35: 46 | I35: 51 | J35: 771 | K35: 13 | L35: 2014-11-11 | M35: 11 hours | N35: 2014-12-21T23:04:38 | O35: 827603-1 | P35: 0 | Q35: 1 | R35: 35 | S35: 97
A36: 1368021 | B36: kr | C36: 1 | D36: yty | E36: t | F36: Bronze | G36: ë§ˆì¸í˜¸í”„ ì—íƒ€ ì¡° | H36: 34 | I36: 22 | J36: 771 | K36: 29 | L36: 2014-11-15 | M36: 1 days | N36: 2014-12-21T23:04:38 | O36: 1368021-1 | P36: 0 | Q36: 1 | R36: 36 | S36: 56
A37: 4252664 | B37: kr | C37: 1 | D37: ìœ¼í—¤í—¤í—¤ | E37: r | F37: Bronze | G37: ë¼ìž„ì¦ˆ ë¡œë¯¸ì˜¤ ì¡° | H37: 62 | I37: 57 | J37: 771 | K37: 12 | L37: 2014-11-16 | M37: 10 hours | N37: 2014-12-21T23:04:39 | O37: 4252664-1 | P37: 0 | Q37: 1 | R37: 37 | S37: 119
A38: 3808841 | B38: kr | C38: 1 | D38: ë¼ì¸í•˜ë¥´íŠ¸ | E38: p | F38: Bronze | G38: ì¼€ì´ë‹¤ë¦° ë®¤ ì¡° | H38: 120 | I38: 127 | J38: 770 | K38: 8 | L38: 2014-11-29 | M38: 4 hours | N38: 2014-12-21T23:04:39 | O38: 3808841-1 | P38: 0 | Q38: 1 | R38: 38 | S38: 247
A39: 2506658 | B39: kr | C39: 1 | D39: ì´ëŸ¬ì§€ë§ˆ | E39: z | F39: Bronze | G39: ë°”í€´ ëžŒë‹¤ ì¡° | H39: 75 | I39: 62 | J39: 769 | K39: 54 | L39: 2014-12-02 | M39: 2 days | N39: 2014-12-21T23:04:40 | O39: 2506658-1 | P39: 0 | Q39: 1 | R39: 39 | S39: 137
A40: 757496 | B40: kr | C40: 1 | D40: VIVIVIC | E40: z | F40: Bronze | G40: ë³´ë¡œìŠ¤ ë¸Œë¼ë³´ ì¡° | H40: 38 | I40: 35 | J40: 768 | K40: 10 | L40: 2014-11-11 | M40: 8 hours | N40: 2014-12-21T23:04:40 | O40: 757496-1 | P40: 0 | Q40: 1 | R40: 40 | S40: 73
A41: 4768339 | B41: kr | C41: 1 | D41: griefman | E41: p | F41: Bronze | G41: ê³µì„± ì „ì°¨ ìš”íƒ€ ì¡° | H41: 144 | I41: 137 | J41: 768 | K41: 11 | L41: 2014-11-10 | M41: 9 hours | N41: 2014-12-21T23:04:41 | O41: 4768339-1 | P41: 0 | Q41: 1 | R41: 41 | S41: 281 | T41: 4768339-1 | U41: Bronze | W41: 0 | X41: 0 | Y41: 0 | Z41: 0 | AA41: 0 | AB41: 0 | AC41: 0 | AD41: 0 | AE41: 0 | AF41: 0 | AG41: 0 | AH41: 0 | AI41: 0 | AJ41: 0 | AK41: 0 | AL41: 0 | AM41: 0 | AN41: 0 | AO41: 1062 | AP41: 2301 | AQ41: 0 | AR41: Bronze | AS41: Silver | AT41: 0 | AU41: Silver
A42: 3661364 | B42: kr | C42: 1 | D42: minerva | E42: p | F42: Bronze | G42: ì‹œì²´ë§¤ ë§ˆì¦ˆ ì¡° | H42: 71 | I42: 64 | J42: 767 | K42: 13 | L42: 2014-12-13 | M42: 13 hours | N42: 2014-12-21T23:04:42 | O42: 3661364-1 | P42: 0 | Q42: 1 | R42: 42 | S42: 135
A43: 1621510 | B43: kr | C43: 1 | D43: ë„ˆì—ê²Œì£½ìŒì„ | E43: t | F43: Bronze | G43: ë¬´ì•„ë‘” ì˜¤ìŠ¤ì¹´ ì¡° | H43: 148 | I43: 165 | J43: 766 | K43: 57 | L43: 2014-11-10 | M43: 3 days | N43: 2014-12-21T23:04:42 | O43: 1621510-1 | P43: 0 | Q43: 1 | R43: 43 | S43: 313
A44: 936337 | B44: kr | C44: 2 | D44: ç‰›å¯¶å¯¶ | E44: z | F44: Bronze | G44: ë“€ëž€ í”„ì‚¬ì´ ì¡° | H44: 54 | I44: 53 | J44: 765 | K44: 13 | L44: 2014-11-09 | M44: 1 hours | N44: 2014-12-21T23:04:43 | O44: 936337-2 | P44: 0 | Q44: 1 | R44: 44 | S44: 107
A45: 4147999 | B45: kr | C45: 1 | D45: ê³ ë°•ì‚¬ë‹˜ | E45: t | F45: Bronze | G45: ë®¤íƒˆë¦¬ìŠ¤í¬ ì•Œë¼ëª¨ ì¡° | H45: 122 | I45: 132 | J45: 763 | K45: 12 | L45: 2014-11-10 | M45: 11 hours | N45: 2014-12-21T23:04:43 | O45: 4147999-1 | P45: 0 | Q45: 1 | R45: 45 | S45: 254
A46: 4767002 | B46: kr | C46: 1 | D46: Illo | E46: r | F46: Bronze | G46: ì½”ë¡œë‹ˆìŠ¤ ìœ„ìŠ¤í‚¤ ì¡° | H46: 30 | I46: 41 | J46: 763 | K46: 650 | L46: 2014-12-06 | M46: 18 hours | N46: 2014-12-21T23:04:44 | O46: 4767002-1 | P46: 0 | Q46: 7 | R46: 46 | S46: 71
A47: 4380301 | B47: kr | C47: 1 | D47: ì• í‚¤í˜¸ìš© | E47: z | F47: Bronze | G47: ê°€ì‹œì§€ì˜¥ ì°°ë¦¬ ì¡° | H47: 98 | I47: 96 | J47: 762 | K47: 12 | L47: 2014-11-14 | M47: 11 hours | N47: 2014-12-21T23:04:44 | O47: 4380301-1 | P47: 0 | Q47: 1 | R47: 47 | S47: 194
A48: 353800 | B48: kr | C48: 1 | D48: omoora | E48: z | F48: Bronze | G48: ì‹¬íŒê´€ ì¹´ì´ ì¡° | H48: 38 | I48: 37 | J48: 761 | K48: 21 | L48: 2014-11-13 | M48: 8 minutes | N48: 2014-12-21T23:04:45 | O48: 353800-1 | P48: 0 | Q48: 1 | R48: 48 | S48: 75 | T48: 353800-1 | U48: Bronze | W48: 0 | X48: 102 | Y48: 0 | Z48: Bronze | AA48: 0 | AB48: 0 | AC48: 315 | AD48: 0 | AE48: 0 | AF48: Bronze | AG48: 0 | AH48: 0 | AI48: 0 | AJ48: 0 | AK48: 0 | AL48: 0 | AM48: 0 | AN48: 0 | AO48: 0 | AP48: 0 | AQ48: 0 | AR48: 0 | AS48: 0 | AT48: 0 | AU48: Bronze
A49: 570276 | B49: kr | C49: 1 | D49: marin | E49: r | F49: Bronze | G49: ì•„ìš°ë¦¬ê°€ ì—‰í´ ì¡° | H49: 176 | I49: 186 | J49: 760 | K49: 20 | L49: 2014-11-10 | M49: 23 hours | N49: 2014-12-21T23:04:46 | O49: 570276-1 | P49: 0 | Q49: 1 | R49: 49 | S49: 362
A50: 4698344 | B50: kr | C50: 1 | D50: íŒ¬í‹°ë²—ê³ ì˜ë¦¬ì§ˆëŸ¬ | E50: p | F50: Bronze | G50: ë…¸ë°” ì‹œê·¸ë§ˆ ì¡° | H50: 58 | I50: 57 | J50: 760 | K50: 7 | L50: 2014-11-11 | M50: 2 hours | N50: 2014-12-21T23:04:47 | O50: 4698344-1 | P50: 0 | Q50: 1 | R50: 50 | S50: 115
A51: 738130 | B51: kr | C51: 2 | D51: Migo | E51: t | F51: Bronze | G51: ì¼ˆëŸ¬ì‹œì•ˆ ë”•ì‹œ ì¡° | H51: 64 | I51: 62 | J51: 757 | K51: 9 | L51: 2014-11-10 | M51: 5 hours | N51: 2014-12-21T23:04:47 | O51: 738130-2 | P51: 0 | Q51: 1 | R51: 51 | S51: 126
A52: 221487 | B52: kr | C52: 1 | D52: ì²œê·¸ë£¨ | E52: t | F52: Bronze | G52: ê³µì„± ì „ì°¨ ìš”íƒ€ ì¡° | H52: 100 | I52: 113 | J52: 756 | K52: 5 | L52: 2014-11-15 | M52: 35 minutes | N52: 2014-12-21T23:04:48 | O52: 221487-1 | P52: 0 | Q52: 1 | R52: 52 | S52: 213
A53: 905170 | B53: kr | C53: 2 | D53: æµ·é¾çŽ‹ | E53: z | F53: Bronze | G53: íƒ€ë¦¼ ì•ŒíŒŒ ì¡° | H53: 41 | I53: 44 | J53: 756 | K53: 13 | L53: 2014-11-11 | M53: 12 hours | N53: 2014-12-21T23:04:48 | O53: 905170-2 | P53: 0 | Q53: 1 | R53: 53 | S53: 85
A54: 944021 | B54: kr | C54: 2 | D54: è³Šå°æ–‡ | E54: t | F54: Bronze | G54: ë“€ëž€ í”„ì‚¬ì´ ì¡° | H54: 75 | I54: 70 | J54: 754 | K54: 21 | L54: 2014-11-11 | M54: 5 hours | N54: 2014-12-21T23:04:49 | O54: 944021-2 | P54: 0 | Q54: 1 | R54: 54 | S54: 145
A55: 3352798 | B55: kr | C55: 1 | D55: ìº¡í‹´ì¬í¬ | E55: p | F55: Bronze | G55: ê°€ì‹œì§€ì˜¥ ì°°ë¦¬ ì¡° | H55: 36 | I55: 31 | J55: 752 | K55: 1 | L55: 2014-11-21 | M55: 2 days | N55: 2014-12-21T23:04:49 | O55: 3352798-1 | P55: 0 | Q55: 1 | R55: 55 | S55: 67
A56: 4690029 | B56: kr | C56: 1 | D56: CanThrough | E56: p | F56: Bronze | G56: ìƒ¤ì¼ë¡œ í­ìŠ¤íŠ¸ë¡¯ ì¡° | H56: 29 | I56: 16 | J56: 750 | K56: 118 | L56: 2014-12-14 | M56: 9 hours | N56: 2014-12-21T23:04:50 | O56: 4690029-1 | P56: 0 | Q56: 2 | R56: 56 | S56: 45 | T56: 4690029-1 | U56: Bronze | W56: 3226 | X56: 0 | Y56: Silver | Z56: 0 | AA56: 2105 | AB56: 0 | AC56: 0 | AD56: Silver | AE56: 0 | AF56: 0 | AG56: 0 | AH56: 0 | AI56: 0 | AJ56: 0 | AK56: 0 | AL56: 0 | AM56: 0 | AN56: 0 | AO56: 0 | AP56: 0 | AQ56: 0 | AR56: 0 | AS56: 0 | AT56: 0 | AU56: Silver
A57: 559183 | B57: kr | C57: 1 | D57: ë¶ˆíƒ€ëŠ”ê¹¡ë‹¤êµ¬ | E57: t | F57: Bronze | G57: ë®¤íƒˆë¦¬ìŠ¤í¬ ì•Œë¼ëª¨ ì¡° | H57: 33 | I57: 38 | J57: 748 | K57: 24 | L57: 2014-11-10 | M57: 22 hours | N57: 2014-12-21T23:04:51 | O57: 559183-1 | P57: 0 | Q57: 1 | R57: 57 | S57: 71
A58: 1376283 | B58: kr | C58: 2 | D58: solo | E58: p | F58: Bronze | G58: ë…¸ë°” ì‹œê·¸ë§ˆ ì¡° | H58: 112 | I58: 109 | J58: 748 | K58: 14 | L58: 2014-11-10 | M58: 13 hours | N58: 2014-12-21T23:04:51 | O58: 1376283-2 | P58: 0 | Q58: 1 | R58: 58 | S58: 221 | T58: 1376283-2 | U58: Bronze | W58: 1434 | X58: 0 | Y58: Bronze | Z58: 0 | AA58: 0 | AB58: 0 | AC58: 0 | AD58: 0 | AE58: 0 | AF58: 0 | AG58: 0 | AH58: 0 | AI58: 0 | AJ58: 0 | AK58: 0 | AL58: 0 | AM58: 0 | AN58: 0 | AO58: 745 | AP58: 0 | AQ58: 0 | AR58: Bronze | AS58: 0 | AT58: 0 | AU58: Bronze
A59: 2564086 | B59: kr | C59: 1 | D59: gogodk | E59: t | F59: Bronze | G59: ì•„ìš°ë¦¬ê°€ ì—‰í´ ì¡° | H59: 30 | I59: 28 | J59: 748 | K59: 13 | L59: 2014-11-10 | M59: 12 hours | N59: 2014-12-21T23:04:52 | O59: 2564086-1 | P59: 0 | Q59: 1 | R59: 59 | S59: 58
A60: 4408323 | B60: kr | C60: 1 | D60: ì–¼ë¼ì‹œí‚¤ | E60: t | F60: Bronze | G60: ë¬´ì•„ë‘” ì˜¤ìŠ¤ì¹´ ì¡° | H60: 89 | I60: 107 | J60: 746 | K60: 19 | L60: 2014-11-10 | M60: 21 hours | N60: 2014-12-21T23:04:52 | O60: 4408323-1 | P60: 0 | Q60: 1 | R60: 60 | S60: 196
A61: 398604 | B61: kr | C61: 1 | D61: wtlohscvehsc | E61: t | F61: Bronze | G61: ë“€ëž€ í”„ì‚¬ì´ ì¡° | H61: 46 | I61: 51 | J61: 744 | K61: 0 | L61: 2014-12-10 | M61: 2 hours | N61: 2014-12-21T23:04:53 | O61: 398604-1 | P61: 0 | Q61: 1 | R61: 61 | S61: 97
A62: 823600 | B62: kr | C62: 1 | D62: ëŒ€ìž¥ | E62: p | F62: Bronze | G62: í•˜ìš¸ëŸ¬ ë¹…í„° ì¡° | H62: 76 | I62: 88 | J62: 744 | K62: 14 | L62: 2014-11-15 | M62: 9 hours | N62: 2014-12-21T23:04:53 | O62: 823600-1 | P62: 0 | Q62: 1 | R62: 62 | S62: 164
A63: 4083231 | B63: kr | C63: 1 | D63: ìž¥ì¶©ë™ê±°ì‹ | E63: p | F63: Bronze | G63: ì½”ëž„ í”¼ ì¡° | H63: 40 | I63: 30 | J63: 744 | K63: 41 | L63: 2014-11-12 | M63: 1 days | N63: 2014-12-21T23:04:54 | O63: 4083231-1 | P63: 0 | Q63: 1 | R63: 63 | S63: 70
A64: 2140664 | B64: kr | C64: 1 | D64: ë…¸ë™ìˆœ | E64: z | F64: Bronze | G64: ì¼ˆëŸ¬ì‹œì•ˆ ë”•ì‹œ ì¡° | H64: 36 | I64: 35 | J64: 743 | K64: 67 | L64: 2014-11-10 | M64: 3 days | N64: 2014-12-21T23:04:54 | O64: 2140664-1 | P64: 0 | Q64: 1 | R64: 64 | S64: 71
A65: 751381 | B65: kr | C65: 2 | D65: wang | E65: t | F65: Bronze | G65: ë¼ìž„ì¦ˆ ë¡œë¯¸ì˜¤ ì¡° | H65: 59 | I65: 65 | J65: 742 | K65: 12 | L65: 2014-11-15 | M65: 10 hours | N65: 2014-12-21T23:04:55 | O65: 751381-2 | P65: 0 | Q65: 1 | R65: 65 | S65: 124
A66: 398274 | B66: kr | C66: 1 | D66: ë°œë Œì‹œì•„ | E66: t | F66: Bronze | G66: ë¼ìž„ì¦ˆ ë¡œë¯¸ì˜¤ ì¡° | H66: 49 | I66: 43 | J66: 741 | K66: 11 | L66: 2014-11-16 | M66: 9 hours | N66: 2014-12-21T23:04:56 | O66: 398274-1 | P66: 0 | Q66: 1 | R66: 66 | S66: 92
A67: 1223443 | B67: kr | C67: 1 | D67: ì¡°ë™í˜„ | E67: t | F67: Bronze | G67: ìš°ë¥´ì‚¬ ë¸íƒ€ ì¡° | H67: 50 | I67: 53 | J67: 741 | K67: 10 | L67: 2014-11-27 | M67: 7 hours | N67: 2014-12-21T23:04:56 | O67: 1223443-1 | P67: 0 | Q67: 1 | R67: 67 | S67: 103
A68: 879583 | B68: kr | C68: 1 | D68: ìˆ˜ì›í‚¹ì¹´ | E68: t | F68: Bronze | G68: ì‹œë¯¸í„° í˜¸í¬ ì¡° | H68: 32 | I68: 30 | J68: 740 | K68: 40 | L68: 2014-11-11 | M68: 2 days | N68: 2014-12-21T23:04:57 | O68: 879583-1 | P68: 0 | Q68: 1 | R68: 68 | S68: 62 | T68: 879583-1 | U68: Bronze | W68: 0 | X68: 0 | Y68: 0 | Z68: 0 | AA68: 0 | AB68: 0 | AC68: 0 | AD68: 0 | AE68: 0 | AF68: 0 | AG68: 0 | AH68: 0 | AI68: 0 | AJ68: 0 | AK68: 0 | AL68: 0 | AM68: 0 | AN68: 0 | AO68: 0 | AP68: 924 | AQ68: 263 | AR68: 0 | AS68: Bronze | AT68: Bronze | AU68: Bronze
A69: 1046625 | B69: kr | C69: 2 | D69: Louis | E69: t | F69: Bronze | G69: ë…¸ë°” ì‹œê·¸ë§ˆ ì¡° | H69: 114 | I69: 117 | J69: 740 | K69: 13 | L69: 2014-11-10 | M69: 13 hours | N69: 2014-12-21T23:04:57 | O69: 1046625-2 | P69: 0 | Q69: 1 | R69: 69 | S69: 231
A70: 1051281 | B70: kr | C70: 2 | D70: sonata | E70: p | F70: Bronze | G70: ì‹œë¯¸í„° í˜¸í¬ ì¡° | H70: 45 | I70: 44 | J70: 740 | K70: 1 | L70: 2014-11-11 | M70: 8 hours | N70: 2014-12-21T23:04:58 | O70: 1051281-2 | P70: 0 | Q70: 1 | R70: 70 | S70: 89
A71: 1077455 | B71: kr | C71: 1 | D71: ì•ˆì „ | E71: p | F71: Bronze | G71: ë ˆë‚˜ì‚¬ ìž…ì‹¤ë¡ ì¡° | H71: 45 | I71: 34 | J71: 739 | K71: 29 | L71: 2014-11-12 | M71: 1 days | N71: 2014-12-21T23:04:58 | O71: 1077455-1 | P71: 0 | Q71: 1 | R71: 71 | S71: 79
A72: 631806 | B72: kr | C72: 2 | D72: LaLa | E72: r | F72: Bronze | G72: ì¼ˆëŸ¬ì‹œì•ˆ ë”•ì‹œ ì¡° | H72: 52 | I72: 56 | J72: 738 | K72: 7 | L72: 2014-11-10 | M72: 2 hours | N72: 2014-12-21T23:04:59 | O72: 631806-2 | P72: 0 | Q72: 1 | R72: 72 | S72: 108 | T72: 631806-2 | U72: Bronze | W72: 0 | X72: 0 | Y72: 0 | Z72: 0 | AA72: 0 | AB72: 0 | AC72: 0 | AD72: 0 | AE72: 0 | AF72: 0 | AG72: 0 | AH72: 0 | AI72: 0 | AJ72: 0 | AK72: 0 | AL72: 0 | AM72: 0 | AN72: 0 | AO72: 352 | AP72: 42 | AQ72: 69 | AR72: Bronze | AS72: Bronze | AT72: Bronze | AU72: Bronze
A73: 934033 | B73: kr | C73: 1 | D73: ì‚´ì‚´í•´ìš” | E73: t | F73: Bronze | G73: ë“€ëž€ í”„ì‚¬ì´ ì¡° | H73: 65 | I73: 77 | J73: 738 | K73: 9 | L73: 2014-11-09 | M73: 6 hours | N73: 2014-12-21T23:05:00 | O73: 934033-1 | P73: 0 | Q73: 1 | R73: 73 | S73: 142
A74: 1354895 | B74: kr | C74: 2 | D74: é˜¿çˆ¾åˆ©æ–¯ | E74: z | F74: Bronze | G74: ë§ˆì¸í˜¸í”„ ì—íƒ€ ì¡° | H74: 92 | I74: 106 | J74: 738 | K74: 6 | L74: 2014-11-19 | M74: 1 hours | N74: 2014-12-21T23:05:00 | O74: 1354895-2 | P74: 0 | Q74: 1 | R74: 74 | S74: 198
A75: 4768632 | B75: kr | C75: 1 | D75: BlueMOON | E75: t | F75: Bronze | G75: ê°€ì‹œì§€ì˜¥ ì°°ë¦¬ ì¡° | H75: 91 | I75: 91 | J75: 738 | K75: 42 | L75: 2014-11-14 | M75: 2 days | N75: 2014-12-21T23:05:01 | O75: 4768632-1 | P75: 0 | Q75: 1 | R75: 75 | S75: 182
A76: 482408 | B76: kr | C76: 1 | D76: ì˜¤ê°±ë¼ | E76: t | F76: Bronze | G76: ì‹œì²´ë§¤ ë§ˆì¦ˆ ì¡° | H76: 43 | I76: 50 | J76: 737 | K76: 28 | L76: 2014-11-16 | M76: 1 days | N76: 2014-12-21T23:05:02 | O76: 482408-1 | P76: 0 | Q76: 1 | R76: 76 | S76: 93
A77: 1105197 | B77: kr | C77: 2 | D77: CHICHENG | E77: t | F77: Bronze | G77: ì‹œì²´ë§¤ ë§ˆì¦ˆ ì¡° | H77: 30 | I77: 28 | J77: 737 | K77: 10 | L77: 2014-11-16 | M77: 8 hours | N77: 2014-12-21T23:05:02 | O77: 1105197-2 | P77: 0 | Q77: 1 | R77: 77 | S77: 58 | T77: 1105197-2 | U77: Bronze | W77: 0 | X77: 0 | Y77: 0 | Z77: 0 | AA77: 0 | AB77: 0 | AC77: 0 | AD77: 0 | AE77: 0 | AF77: 0 | AG77: 0 | AH77: 0 | AI77: 0 | AJ77: 0 | AK77: 0 | AL77: 0 | AM77: 0 | AN77: 0 | AO77: 0 | AP77: 0 | AQ77: 1420 | AR77: 0 | AS77: 0
A78: 4230512 | B78: kr | C78: 1 | D78: ì‹œê°„ì˜ì§€ë°°ìž | E78: t | F78: Bronze | G78: ì½”ëž„ í”¼ ì¡° | H78: 47 | I78: 36 | J78: 737 | K78: 25 | L78: 2014-12-07 | M78: 1 days | N78: 2014-12-21T23:05:03 | O78: 4230512-1 | P78: 0 | Q78: 1 | R78: 78 | S78: 83
A79: 795400 | B79: kr | C79: 1 | D79: ABMM | E79: p | F79: Bronze | G79: ì•„ìš°ë¦¬ê°€ ì—‰í´ ì¡° | H79: 101 | I79: 112 | J79: 736 | K79: 47 | L79: 2014-11-10 | M79: 13 hours | N79: 2014-12-21T23:05:03 | O79: 795400-1 | P79: 0 | Q79: 1 | R79: 79 | S79: 213
A80: 989572 | B80: kr | C80: 1 | D80: labejo | E80: p | F80: Bronze | G80: ë¬´ì•„ë‘” ì˜¤ìŠ¤ì¹´ ì¡° | H80: 53 | I80: 53 | J80: 736 | K80: 56 | L80: 2014-11-10 | M80: 3 days | N80: 2014-12-21T23:05:04 | O80: 989572-1 | P80: 0 | Q80: 1 | R80: 80 | S80: 106
A81: 3260661 | B81: kr | C81: 1 | D81: êµ°ë‹¨ì˜ì‹¬ìž¥ì´ë‹¤ | E81: t | F81: Bronze | G81: íƒ€ì†Œë‹ˆìŠ¤ ë¦¬ë§ˆ ì¡° | H81: 40 | I81: 35 | J81: 735 | K81: 17 | L81: 2014-11-29 | M81: 18 hours | N81: 2014-12-21T23:05:04 | O81: 3260661-1 | P81: 0 | Q81: 1 | R81: 81 | S81: 75
A82: 721233 | B82: kr | C82: 2 | D82: JACK | E82: t | F82: Bronze | G82: ì¼ˆëŸ¬ì‹œì•ˆ ë”•ì‹œ ì¡° | H82: 53 | I82: 56 | J82: 733 | K82: 42 | L82: 2014-11-10 | M82: 2 days | N82: 2014-12-21T23:05:05 | O82: 721233-2 | P82: 0 | Q82: 1 | R82: 82 | S82: 109
A83: 2942666 | B83: kr | C83: 1 | D83: ë§ˆëŒ€ì˜ | E83: t | F83: Bronze | G83: íƒ€ë¦¼ ì•ŒíŒŒ ì¡° | H83: 24 | I83: 32 | J83: 733 | K83: 10 | L83: 2014-11-11 | M83: 7 hours | N83: 2014-12-21T23:05:06 | O83: 2942666-1 | P83: 0 | Q83: 1 | R83: 83 | S83: 56 | T83: 2942666-1 | U83: Bronze | W83: 0 | X83: 1443 | Y83: 0 | Z83: Bronze | AA83: 0 | AB83: 0 | AC83: 635 | AD83: 0 | AE83: 0 | AF83: Bronze | AG83: 0 | AH83: 0 | AI83: 0 | AJ83: 0 | AK83: 0 | AL83: 0 | AM83: 0 | AN83: 0 | AO83: 0 | AP83: 0 | AQ83: 0 | AR83: 0 | AS83: 0 | AT83: 0 | AU83: Bronze
A84: 664313 | B84: kr | C84: 1 | D84: Jupiter | E84: t | F84: Bronze | G84: ë ˆë‚˜ì‚¬ ìž…ì‹¤ë¡ ì¡° | H84: 37 | I84: 36 | J84: 732 | K84: 13 | L84: 2014-11-12 | M84: 6 hours | N84: 2014-12-21T23:05:06 | O84: 664313-1 | P84: 0 | Q84: 1 | R84: 84 | S84: 73
A85: 1055014 | B85: kr | C85: 2 | D85: Woo | E85: t | F85: Bronze | G85: ë“€ëž€ í”„ì‚¬ì´ ì¡° | H85: 25 | I85: 27 | J85: 732 | K85: 49 | L85: 2014-11-09 | M85: 6 hours | N85: 2014-12-21T23:05:07 | O85: 1055014-2 | P85: 0 | Q85: 1 | R85: 85 | S85: 52
A86: 374666 | B86: kr | C86: 2 | D86: ç¥žé¬¼é©šå˜† | E86: p | F86: Bronze | G86: ë®¤íƒˆë¦¬ìŠ¤í¬ ì•Œë¼ëª¨ ì¡° | H86: 48 | I86: 56 | J86: 731 | K86: 9 | L86: 2014-11-10 | M86: 6 hours | N86: 2014-12-21T23:05:09 | O86: 374666-2 | P86: 0 | Q86: 1 | R86: 86 | S86: 104
A87: 3186211 | B87: kr | C87: 1 | D87: KINGKONG | E87: t | F87: Bronze | G87: ì¼ˆëŸ¬ì‹œì•ˆ ë”•ì‹œ ì¡° | H87: 73 | I87: 72 | J87: 731 | K87: 14 | L87: 2014-11-10 | M87: 13 hours | N87: 2014-12-21T23:05:09 | O87: 3186211-1 | P87: 0 | Q87: 1 | R87: 87 | S87: 145
A88: 78826 | B88: kr | C88: 1 | D88: JUN | E88: p | F88: Bronze | G88: ì½”ëž„ í”¼ ì¡° | H88: 39 | I88: 39 | J88: 730 | K88: 94 | L88: 2014-11-09 | M88: 4 days | N88: 2014-12-21T23:05:10 | O88: 78826-1 | P88: 0 | Q88: 1 | R88: 88 | S88: 78
A89: 4627646 | B89: kr | C89: 1 | D89: ë¥´ë„¤ìƒìŠ¤ë¡œ | E89: t | F89: Bronze | G89: ë§ˆ ì‚¬ë¼ íŽ˜í¼ ì¡° | H89: 40 | I89: 49 | J89: 729 | K89: 16 | L89: 2014-11-26 | M89: 17 hours | N89: 2014-12-21T23:05:12 | O89: 4627646-1 | P89: 0 | Q89: 1 | R89: 89 | S89: 89
A90: 1062703 | B90: kr | C90: 2 | D90: keelaho | E90: z | F90: Bronze | G90: ížˆë“œë¼ë¦¬ìŠ¤í¬ ë…¸ë²°ë²„ ì¡° | H90: 107 | I90: 116 | J90: 728 | K90: 1 | L90: 2014-11-11 | M90: 4 hours | N90: 2014-12-21T23:05:12 | O90: 1062703-2 | P90: 0 | Q90: 1 | R90: 90 | S90: 223
A91: 4586827 | B91: kr | C91: 1 | D91: Eudemonism | E91: p | F91: Bronze | G91: ë“€ëž€ í”„ì‚¬ì´ ì¡° | H91: 94 | I91: 101 | J91: 728 | K91: 22 | L91: 2014-11-09 | M91: 1 days | N91: 2014-12-21T23:05:13 | O91: 4586827-1 | P91: 0 | Q91: 1 | R91: 91 | S91: 195
A92: 1593056 | B92: kr | C92: 1 | D92: ê²Œìœ¼ë¥¸ì²œìž¬ | E92: r | F92: Bronze | G92: ë§ˆì¸í˜¸í”„ ì—íƒ€ ì¡° | H92: 35 | I92: 37 | J92: 727 | K92: 25 | L92: 2014-11-14 | M92: 1 days | N92: 2014-12-21T23:05:13 | O92: 1593056-1 | P92: 0 | Q92: 1 | R92: 92 | S92: 72
A93: 4629635 | B93: kr | C93: 1 | D93: ê¹Œê¿ | E93: p | F93: Bronze | G93: ê°€ì‹œì§€ì˜¥ ì°°ë¦¬ ì¡° | H93: 37 | I93: 39 | J93: 727 | K93: 12 | L93: 2014-11-14 | M93: 11 hours | N93: 2014-12-21T23:05:14 | O93: 4629635-1 | P93: 0 | Q93: 1 | R93: 93 | S93: 76
A94: 4738781 | B94: kr | C94: 1 | D94: PaniCStation | E94: t | F94: Bronze | G94: ë³´ë¡œìŠ¤ ë¸Œë¼ë³´ ì¡° | H94: 48 | I94: 36 | J94: 726 | K94: 1 | L94: 2014-12-13 | M94: 13 hours | N94: 2014-12-21T23:05:15 | O94: 4738781-1 | P94: 0 | Q94: 1 | R94: 94 | S94: 84
A95: 439290 | B95: kr | C95: 1 | D95: superKERORO | E95: p | F95: Bronze | G95: ê°€ì‹œì§€ì˜¥ ì°°ë¦¬ ì¡° | H95: 69 | I95: 64 | J95: 725 | K95: 10 | L95: 2014-11-14 | M95: 8 hours | N95: 2014-12-21T23:05:15 | O95: 439290-1 | P95: 0 | Q95: 1 | R95: 95 | S95: 133
A96: 3530297 | B96: kr | C96: 1 | D96: ìš°ë¦¬ì•„ë¹ ë§ˆë¦° | E96: t | F96: Bronze | G96: ë°”í€´ ëžŒë‹¤ ì¡° | H96: 41 | I96: 40 | J96: 724 | K96: 26 | L96: 2014-12-12 | M96: 1 days | N96: 2014-12-21T23:05:16 | O96: 3530297-1 | P96: 0 | Q96: 1 | R96: 96 | S96: 81
A97: 4132056 | B97: kr | C97: 1 | D97: ìŠ¤ë§›íŠ¸ | E97: t | F97: Bronze | G97: í™”ì—¼ë°©ì‚¬ë³‘ ì¹´íŒŒ ì¡° | H97: 64 | I97: 57 | J97: 724 | K97: 34 | L97: 2014-11-14 | M97: 1 days | N97: 2014-12-21T23:05:16 | O97: 4132056-1 | P97: 0 | Q97: 1 | R97: 97 | S97: 121 | T97: 4132056-1 | U97: Bronze | W97: 0 | X97: 984 | Y97: 0 | Z97: Bronze | AA97: 0 | AB97: 0 | AC97: 0 | AD97: 0 | AE97: 0 | AF97: 0 | AG97: 0 | AH97: 0 | AI97: 0 | AJ97: 0 | AK97: 0 | AL97: 0 | AM97: 0 | AN97: 0 | AO97: 0 | AP97: 0 | AQ97: 0 | AR97: 0 | AS97: 0 | AT97: 0 | AU97: Bronze
A98: 420425 | B98: kr | C98: 2 | D98: SMMH | E98: t | F98: Bronze | G98: ë¬´ì•„ë‘” ì˜¤ìŠ¤ì¹´ ì¡° | H98: 178 | I98: 241 | J98: 722 | K98: 1 | L98: 2014-11-19 | M98: 5 hours | N98: 2014-12-21T23:05:17 | O98: 420425-2 | P98: 0 | Q98: 1 | R98: 98 | S98: 419
A99: 1770799 | B99: kr | C99: 1 | D99: Whale | E99: p | F99: Bronze | G99: ê³µì„± ì „ì°¨ ìš”íƒ€ ì¡° | H99: 47 | I99: 40 | J99: 722 | K99: 57 | L99: 2014-11-10 | M99: 3 days | N99: 2014-12-21T23:05:18 | O99: 1770799-1 | P99: 0 | Q99: 1 | R99: 99 | S99: 87 | T99: 1770799-1 | U99: Bronze | W99: 0 | X99: 1440 | Y99: 0 | Z99: Bronze | AA99: 0 | AB99: 0 | AC99: 1003 | AD99: 0 | AE99: 0 | AF99: Bronze | AG99: 0 | AH99: 0 | AI99: 0 | AJ99: 0 | AK99: 0 | AL99: 0 | AM99: 0 | AN99: 0 | AO99: 0 | AP99: 0 | AQ99: 0 | AR99: 0 | AS99: 0 | AT99: 0 | AU99: Bronze
A100: 4661762 | B100: kr | C100: 1 | D100: Hangmai | E100: t | F100: Bronze | G100: ížˆë“œë¼ë¦¬ìŠ¤í¬ ë…¸ë²°ë²„ ì¡° | H100: 109 | I100: 123 | J100: 722 | K100: 12 | L100: 2014-11-11 | M100: 10 hours | N100: 2014-12-21T23:05:18 | O100: 4661762-1 | P100: 0 | Q100: 1 | R100: 100 | S100: 232
A101: 4666430 | B101: kr | C101: 1 | D101: DKhr | E101: t | F101: Bronze | G101: í† ë¥´ ì œë“œ ì¡° | H101: 52 | I101: 42 | J101: 722 | K101: 40 | L101: 2014-11-29 | M101: 2 days | N101: 2014-12-21T23:05:19 | O101: 4666430-1 | P101: 0 | Q101: 1 | R101: 101 | S101: 94
A102: 3636450 | B102: kr | C102: 1 | D102: ì´ìœì€ì‹¤ì´ | E102: t | F102: Bronze | G102: ë“€ëž€ í”„ì‚¬ì´ ì¡° | H102: 124 | I102: 128 | J102: 721 | K102: 53 | L102: 2014-11-09 | M102: 5 hours | N102: 2014-12-21T23:05:20 | O102: 3636450-1 | P102: 0 | Q102: 1 | R102: 102 | S102: 252
A103: 966261 | B103: kr | C103: 2 | D103: KIT | E103: t | F103: Bronze | G103: ížˆë“œë¼ë¦¬ìŠ¤í¬ ë…¸ë²°ë²„ ì¡° | H103: 50 | I103: 57 | J103: 720 | K103: 27 | L103: 2014-11-11 | M103: 2 hours | N103: 2014-12-21T23:05:20 | O103: 966261-2 | P103: 0 | Q103: 1 | R103: 103 | S103: 107
A104: 1292831 | B104: kr | C104: 1 | D104: ë¸”ë ˆì´ë“œ | E104: t | F104: Bronze | G104: íƒ€ë¦¼ ì•ŒíŒŒ ì¡° | H104: 31 | I104: 34 | J104: 720 | K104: 22 | L104: 2014-11-11 | M104: 1 days | N104: 2014-12-21T23:05:21 | O104: 1292831-1 | P104: 0 | Q104: 1 | R104: 104 | S104: 65
A105: 1422767 | B105: kr | C105: 1 | D105: ì‹¼ìµ¸ | E105: p | F105: Bronze | G105: ì•„ìš°ë¦¬ê°€ ì—‰í´ ì¡° | H105: 78 | I105: 93 | J105: 720 | K105: 8 | L105: 2014-11-10 | M105: 3 hours | N105: 2014-12-21T23:05:21 | O105: 1422767-1 | P105: 0 | Q105: 1 | R105: 105 | S105: 171
A106: 4645493 | B106: kr | C106: 1 | D106: ì§„ì‚ì§„ìŠ¤ | E106: t | F106: Bronze | G106: ë‚˜í•œ ì¤„ë¦¬ì—£ ì¡° | H106: 40 | I106: 46 | J106: 720 | K106: 23 | L106: 2014-12-05 | M106: 16 hours | N106: 2014-12-21T23:05:22 | O106: 4645493-1 | P106: 0 | Q106: 1 | R106: 106 | S106: 86
A107: 4212425 | B107: kr | C107: 1 | D107: llllllllllll | E107: t | F107: Bronze | G107: ì‹¬íŒê´€ ì¹´ì´ ì¡° | H107: 36 | I107: 39 | J107: 719 | K107: 29 | L107: 2014-11-19 | M107: 1 days | N107: 2014-12-21T23:05:23 | O107: 4212425-1 | P107: 0 | Q107: 1 | R107: 107 | S107: 75
A108: 4678151 | B108: kr | C108: 1 | D108: PopCon | E108: t | F108: Bronze | G108: ì•„ìš°ë¦¬ê°€ ì—‰í´ ì¡° | H108: 180 | I108: 225 | J108: 719 | K108: 2 | L108: 2014-11-10 | M108: 9 hours | N108: 2014-12-21T23:05:23 | O108: 4678151-1 | P108: 0 | Q108: 1 | R108: 108 | S108: 405 | T108: 4678151-1 | U108: Bronze | W108: 0 | X108: 0 | Y108: 0 | Z108: 0 | AA108: 0 | AB108: 0 | AC108: 0 | AD108: 0 | AE108: 0 | AF108: 0 | AG108: 0 | AH108: 0 | AI108: 0 | AJ108: 0 | AK108: 0 | AL108: 0 | AM108: 0 | AN108: 0 | AO108: 98 | AP108: 2785 | AQ108: 0 | AR108: Bronze | AS108: Silver | AT108: 0 | AU108: Silver
A109: 336124 | B109: kr | C109: 1 | D109: llllllllllll | E109: r | F109: Bronze | G109: ë ˆë‚˜ì‚¬ ìž…ì‹¤ë¡ ì¡° | H109: 27 | I109: 25 | J109: 718 | K109: 53 | L109: 2014-12-12 | M109: 8 hours | N109: 2014-12-21T23:05:24 | O109: 336124-1 | P109: 0 | Q109: 1 | R109: 109 | S109: 52 | T109: 336124-1 | U109: Bronze | W109: 0 | X109: 0 | Y109: 0 | Z109: 0 | AA109: 0 | AB109: 0 | AC109: 0 | AD109: 0 | AE109: 0 | AF109: 0 | AG109: 0 | AH109: 0 | AI109: 0 | AJ109: 0 | AK109: 0 | AL109: 0 | AM109: 0 | AN109: 0 | AO109: 0 | AP109: 6826 | AQ109: 0 | AR109: 0 | AT109: 0
A110: 3953049 | B110: kr | C110: 1 | D110: ê³¨ë¨¸ë¦¬ì•„íŒŒ | E110: r | F110: Bronze | G110: ì•„ìš°ë¦¬ê°€ ì—‰í´ ì¡° | H110: 37 | I110: 41 | J110: 718 | K110: 42 | L110: 2014-11-10 | M110: 2 days | N110: 2014-12-21T23:05:24 | O110: 3953049-1 | P110: 0 | Q110: 1 | R110: 110 | S110: 78
A111: 4682210 | B111: kr | C111: 1 | D111: ì•„ì•¼ë‹¤ì± í‘¸ | E111: p | F111: Bronze | G111: ì½”ëž„ í”¼ ì¡° | H111: 31 | I111: 27 | J111: 718 | K111: 42 | L111: 2014-11-21 | M111: 2 days | N111: 2014-12-21T23:05:25 | O111: 4682210-1 | P111: 0 | Q111: 1 | R111: 111 | S111: 58
A112: 417681 | B112: kr | C112: 1 | D112: dwlee | E112: t | F112: Bronze | G112: ì•„ìš°ë¦¬ê°€ ì—‰í´ ì¡° | H112: 36 | I112: 38 | J112: 717 | K112: 18 | L112: 2014-11-10 | M112: 2 days | N112: 2014-12-21T23:05:26 | O112: 417681-1 | P112: 0 | Q112: 1 | R112: 112 | S112: 74
A113: 1324306 | B113: kr | C113: 1 | D113: ê±°ì„± | E113: t | F113: Bronze | G113: ë ˆë‚˜ì‚¬ ìž…ì‹¤ë¡ ì¡° | H113: 46 | I113: 45 | J113: 717 | K113: 0 | L113: 2014-11-12 | M113: 1 days | N113: 2014-12-21T23:05:26 | O113: 1324306-1 | P113: 0 | Q113: 1 | R113: 113 | S113: 91 | T113: 1324306-1 | U113: Bronze | W113: 0 | X113: 0 | Y113: 0 | Z113: 0 | AA113: 0 | AB113: 0 | AC113: 0 | AD113: 0 | AE113: 0 | AF113: 0 | AG113: 0 | AH113: 0 | AI113: 0 | AJ113: 0 | AK113: 0 | AL113: 0 | AM113: 0 | AN113: 0 | AO113: 735 | AP113: 0 | AQ113: 0 | AR113: Bronze | AS113: 0 | AT113: 0 | AU113: Bronze
A114: 2815015 | B114: kr | C114: 1 | D114: ë¦¬í™ | E114: p | F114: Bronze | G114: ë¬´ì•„ë‘” ì˜¤ìŠ¤ì¹´ ì¡° | H114: 90 | I114: 80 | J114: 717 | K114: 85 | L114: 2014-11-10 | M114: 5 days | N114: 2014-12-21T23:05:28 | O114: 2815015-1 | P114: 0 | Q114: 1 | R114: 114 | S114: 170
A115: 4362775 | B115: kr | C115: 1 | D115: rozi | E115: p | F115: Bronze | G115: ë…¸ë°” ì‹œê·¸ë§ˆ ì¡° | H115: 64 | I115: 53 | J115: 717 | K115: 28 | L115: 2014-11-10 | M115: 3 days | N115: 2014-12-21T23:05:29 | O115: 4362775-1 | P115: 0 | Q115: 1 | R115: 115 | S115: 117
A116: 341660 | B116: kr | C116: 1 | D116: ë¼íƒ€ìž‘ | E116: z | F116: Bronze | G116: ë ˆì´ë„ˆ ê·¸ë¼ë¹„í‹° ì¡° | H116: 31 | I116: 18 | J116: 716 | K116: 95 | L116: 2014-12-07 | M116: 8 hours | N116: 2014-12-21T23:05:29 | O116: 341660-1 | P116: 0 | Q116: 1 | R116: 116 | S116: 49
A117: 904370 | B117: kr | C117: 2 | D117: çŽ‹å°è™Ž | E117: t | F117: Bronze | G117: í•˜ìš¸ëŸ¬ ë¹…í„° ì¡° | H117: 116 | I117: 129 | J117: 715 | K117: 1 | L117: 2014-11-15 | M117: 1 days | N117: 2014-12-21T23:05:30 | O117: 904370-2 | P117: 0 | Q117: 1 | R117: 117 | S117: 245
A118: 3561150 | B118: kr | C118: 1 | D118: ì´ì§€ì•„ | E118: r | F118: Bronze | G118: ë“€ëž€ í”„ì‚¬ì´ ì¡° | H118: 64 | I118: 67 | J118: 715 | K118: 25 | L118: 2014-11-16 | M118: 1 days | N118: 2014-12-21T23:05:30 | O118: 3561150-1 | P118: 0 | Q118: 1 | R118: 118 | S118: 131
A119: 214434 | B119: kr | C119: 2 | D119: johnwil | E119: r | F119: Bronze | G119: ë“€ëž€ í”„ì‚¬ì´ ì¡° | H119: 33 | I119: 20 | J119: 713 | K119: 123 | L119: 2014-11-09 | M119: 7 days | N119: 2014-12-21T23:05:31 | O119: 214434-2 | P119: 0 | Q119: 2 | R119: 119 | S119: 53 | T119: 214434-2 | U119: Bronze | W119: 0 | X119: 0 | Y119: 0 | Z119: 0 | AA119: 0 | AB119: 0 | AC119: 0 | AD119: 0 | AE119: 0 | AF119: 0 | AG119: 0 | AH119: 0 | AI119: 0 | AJ119: 0 | AK119: 0 | AL119: 0 | AM119: 0 | AN119: 0 | AO119: 0 | AP119: 1682 | AQ119: 0 | AR119: 0 | AS119: Silver | AT119: 0 | AU119: Silver
A120: 391991 | B120: kr | C120: 2 | D120: frank | E120: p | F120: Bronze | G120: ì‹¬íŒê´€ ì¹´ì´ ì¡° | H120: 55 | I120: 69 | J120: 712 | K120: 33 | L120: 2014-11-29 | M120: 1 days | N120: 2014-12-21T23:05:32 | O120: 391991-2 | P120: 0 | Q120: 1 | R120: 120 | S120: 124
A121: 872130 | B121: kr | C121: 2 | D121: Wolf | E121: p | F121: Bronze | G121: ë§ˆì¸í˜¸í”„ ì—íƒ€ ì¡° | H121: 26 | I121: 28 | J121: 712 | K121: 47 | L121: 2014-11-12 | M121: 9 hours | N121: 2014-12-21T23:05:32 | O121: 872130-2 | P121: 0 | Q121: 1 | R121: 121 | S121: 54
A122: 373723 | B122: kr | C122: 1 | D122: íŒŒì¸ë§Œ | E122: t | F122: Bronze | G122: ê³µì„± ì „ì°¨ ìš”íƒ€ ì¡° | H122: 25 | I122: 22 | J122: 711 | K122: 89 | L122: 2014-11-10 | M122: 14 hours | N122: 2014-12-21T23:05:34 | O122: 373723-1 | P122: 0 | Q122: 1 | R122: 122 | S122: 47
A123: 1222895 | B123: kr | C123: 1 | D123: Aiden | E123: t | F123: Bronze | G123: ë§ˆ ì‚¬ë¼ íŽ˜í¼ ì¡° | H123: 42 | I123: 43 | J123: 711 | K123: 70 | L123: 2014-11-28 | M123: 4 days | N123: 2014-12-21T23:05:34 | O123: 1222895-1 | P123: 0 | Q123: 1 | R123: 123 | S123: 85
A124: 4071403 | B124: kr | C124: 1 | D124: í•¨í•´ë³´ìž | E124: t | F124: Bronze | G124: ë¬´ì•„ë‘” ì˜¤ìŠ¤ì¹´ ì¡° | H124: 33 | I124: 31 | J124: 711 | K124: 28 | L124: 2014-11-10 | M124: 1 days | N124: 2014-12-21T23:05:35 | O124: 4071403-1 | P124: 0 | Q124: 1 | R124: 124 | S124: 64
A125: 1104850 | B125: kr | C125: 1 | D125: joshua | E125: t | F125: Bronze | G125: ì½”ëž„ í”¼ ì¡° | H125: 100 | I125: 129 | J125: 710 | K125: 48 | L125: 2014-11-09 | M125: 2 days | N125: 2014-12-21T23:05:35 | O125: 1104850-1 | P125: 0 | Q125: 1 | R125: 125 | S125: 229
A126: 1301953 | B126: kr | C126: 2 | D126: æ¥“é´›æ®¤çŽ¥ | E126: z | F126: Bronze | G126: ì¼€ì´ë‹¤ë¦° ë®¤ ì¡° | H126: 36 | I126: 52 | J126: 708 | K126: 8 | L126: 2014-11-20 | M126: 4 hours | N126: 2014-12-21T23:05:36 | O126: 1301953-2 | P126: 0 | Q126: 1 | R126: 126 | S126: 88 | T126: 1301953-2 | U126: Bronze | W126: 0 | X126: 0 | Y126: 0 | Z126: 0 | AA126: 755 | AB126: 0 | AC126: 0 | AD126: Bronze | AE126: 0 | AF126: 0 | AG126: 0 | AH126: 0 | AI126: 0 | AJ126: 0 | AK126: 0 | AL126: 0 | AM126: 0 | AN126: 0 | AO126: 0 | AP126: 0 | AQ126: 0 | AR126: 0 | AS126: 0 | AT126: 0 | AU126: Bronze
A127: 3431056 | B127: kr | C127: 1 | D127: í˜¸ì•”ížˆì–´ë¡œ | E127: p | F127: Bronze | G127: ë“€ëž€ í”„ì‚¬ì´ ì¡° | H127: 30 | I127: 40 | J127: 708 | K127: 9 | L127: 2014-11-09 | M127: 6 hours | N127: 2014-12-21T23:05:36 | O127: 3431056-1 | P127: 0 | Q127: 1 | R127: 127 | S127: 70 | T127: 3431056-1 | U127: Bronze | W127: 0 | X127: 0 | Y127: 0 | Z127: 0 | AA127: 0 | AB127: 0 | AC127: 0 | AD127: 0 | AE127: 0 | AF127: 0 | AG127: 0 | AH127: 0 | AI127: 0 | AJ127: 0 | AK127: 0 | AL127: 0 | AM127: 0 | AN127: 0 | AO127: 147 | AP127: 0 | AQ127: 0 | AR127: Bronze | AS127: 0 | AT127: 0 | AU127: Bronze
A128: 3773558 | B128: kr | C128: 1 | D128: woon | E128: t | F128: Bronze | G128: ê°€ì‹œì§€ì˜¥ ì°°ë¦¬ ì¡° | H128: 68 | I128: 69 | J128: 708 | K128: 39 | L128: 2014-11-14 | M128: 2 days | N128: 2014-12-21T23:05:37 | O128: 3773558-1 | P128: 0 | Q128: 1 | R128: 128 | S128: 137
A129: 4584184 | B129: kr | C129: 1 | D129: RagTraion | E129: p | F129: Bronze | G129: ì œë ¨ì†Œ í¬ì‹œ ì¡° | H129: 68 | I129: 81 | J129: 708 | K129: 14 | L129: 2014-11-23 | M129: 13 hours | N129: 2014-12-21T23:05:38 | O129: 4584184-1 | P129: 0 | Q129: 1 | R129: 129 | S129: 149 | T129: 4584184-1 | U129: Bronze | W129: 0 | X129: 0 | Y129: 0 | Z129: 0 | AA129: 0 | AB129: 0 | AC129: 0 | AD129: 0 | AE129: 0 | AF129: 0 | AG129: 0 | AH129: 0 | AI129: 0 | AJ129: 0 | AK129: 0 | AL129: 0 | AM129: 0 | AN129: 0 | AO129: 4378 | AP129: 0 | AQ129: 0 | AR129: Gold | AS129: 0 | AT129: 0 | AU129: Gold
A130: 58972 | B130: kr | C130: 2 | D130: å‘†è«¾ | E130: z | F130: Bronze | G130: ë“€ëž€ í”„ì‚¬ì´ ì¡° | H130: 46 | I130: 49 | J130: 707 | K130: 88 | L130: 2014-11-09 | M130: 5 days | N130: 2014-12-21T23:05:38 | O130: 58972-2 | P130: 0 | Q130: 1 | R130: 130 | S130: 95
A131: 211820 | B131: kr | C131: 2 | D131: PennySR | E131: r | F131: Bronze | G131: ë…¸ë°” ì‹œê·¸ë§ˆ ì¡° | H131: 65 | I131: 81 | J131: 707 | K131: 12 | L131: 2014-11-12 | M131: 10 hours | N131: 2014-12-21T23:05:39 | O131: 211820-2 | P131: 0 | Q131: 1 | R131: 131 | S131: 146 | T131: 211820-2 | U131: Bronze | W131: 4144 | X131: 0 | Y131: Silver | Z131: 0 | AA131: 2343 | AB131: 0 | AC131: 0 | AD131: Gold | AE131: 0 | AF131: 0 | AG131: 0 | AH131: 0 | AI131: 0 | AJ131: 0 | AK131: 0 | AL131: 0 | AM131: 0 | AN131: 0 | AO131: 0 | AP131: 0 | AQ131: 0 | AR131: 0 | AS131: 0 | AT131: 0 | AU131: Gold
A132: 1818962 | B132: kr | C132: 1 | D132: Pure | E132: p | F132: Bronze | G132: ë“€ëž€ í”„ì‚¬ì´ ì¡° | H132: 30 | I132: 27 | J132: 707 | K132: 48 | L132: 2014-11-10 | M132: 1 days | N132: 2014-12-21T23:05:39 | O132: 1818962-1 | P132: 0 | Q132: 1 | R132: 132 | S132: 57
A133: 4338420 | B133: kr | C133: 1 | D133: Terrancraft | E133: t | F133: Bronze | G133: ìƒ¤ì¼ë¡œ í­ìŠ¤íŠ¸ë¡¯ ì¡° | H133: 52 | I133: 45 | J133: 707 | K133: 27 | L133: 2014-12-05 | M133: 1 days | N133: 2014-12-21T23:05:40 | O133: 4338420-1 | P133: 0 | Q133: 1 | R133: 133 | S133: 97
A134: 3475026 | B134: kr | C134: 1 | D134: ìš”ì¦˜ì€ë‚´ê°€ëŒ€ì„¸ | E134: t | F134: Bronze | G134: ì¼€ì´ë‹¤ë¦° ë®¤ ì¡° | H134: 38 | I134: 41 | J134: 706 | K134: 17 | L134: 2014-11-24 | M134: 18 hours | N134: 2014-12-21T23:05:41 | O134: 3475026-1 | P134: 0 | Q134: 1 | R134: 134 | S134: 79
A135: 3542977 | B135: kr | C135: 1 | D135: ì¸ê°„ë‹˜ | E135: p | F135: Bronze | G135: í† ë¥´ ì œë“œ ì¡° | H135: 29 | I135: 37 | J135: 706 | K135: 28 | L135: 2014-11-21 | M135: 1 days | N135: 2014-12-21T23:05:41 | O135: 3542977-1 | P135: 0 | Q135: 1 | R135: 135 | S135: 66
A136: 4053387 | B136: kr | C136: 1 | D136: WAY | E136: z | F136: Bronze | G136: ë“€ëž€ í”„ì‚¬ì´ ì¡° | H136: 123 | I136: 124 | J136: 706 | K136: 7 | L136: 2014-11-09 | M136: 3 hours | N136: 2014-12-21T23:05:42 | O136: 4053387-1 | P136: 0 | Q136: 1 | R136: 136 | S136: 247
A137: 708754 | B137: kr | C137: 2 | D137: louis | E137: t | F137: Bronze | G137: ë“€ëž€ í”„ì‚¬ì´ ì¡° | H137: 37 | I137: 38 | J137: 705 | K137: 23 | L137: 2014-11-09 | M137: 4 hours | N137: 2014-12-21T23:05:42 | O137: 708754-2 | P137: 0 | Q137: 1 | R137: 137 | S137: 75
A138: 745372 | B138: kr | C138: 1 | D138: ìž‰ì—¬ | E138: z | F138: Bronze | G138: ë¸Œë½ì‹œìŠ¤ ì‹œì—ë¼ ì¡° | H138: 28 | I138: 37 | J138: 704 | K138: 14 | L138: 2014-12-11 | M138: 14 hours | N138: 2014-12-21T23:05:43 | O138: 745372-1 | P138: 0 | Q138: 1 | R138: 138 | S138: 65
A139: 1003348 | B139: kr | C139: 2 | D139: BlackAngeL | E139: r | F139: Bronze | G139: ì½”ëž„ í”¼ ì¡° | H139: 271 | I139: 338 | J139: 703 | K139: 5 | L139: 2014-11-09 | M139: 21 minutes | N139: 2014-12-21T23:05:43 | O139: 1003348-2 | P139: 0 | Q139: 1 | R139: 139 | S139: 609 | T139: 1003348-2 | U139: Bronze | W139: 0 | X139: 2390 | Y139: 0 | Z139: Bronze | AA139: 0 | AB139: 0 | AC139: 0 | AD139: 0 | AE139: 0 | AF139: 0 | AG139: 0 | AH139: 0 | AI139: 0 | AJ139: 0 | AK139: 0 | AL139: 0 | AM139: 0 | AN139: 0 | AO139: 0 | AP139: 0 | AQ139: 0 | AR139: 0 | AS139: 0 | AT139: 0 | AU139: Bronze
A140: 1541196 | B140: kr | C140: 1 | D140: íˆ¬ì‹ ê°•ë¦¼ | E140: r | F140: Bronze | G140: ížˆë“œë¼ë¦¬ìŠ¤í¬ ë…¸ë²°ë²„ ì¡° | H140: 120 | I140: 136 | J140: 703 | K140: 9 | L140: 2014-11-11 | M140: 5 hours | N140: 2014-12-21T23:05:44 | O140: 1541196-1 | P140: 0 | Q140: 1 | R140: 140 | S140: 256 | T140: 1541196-1 | U140: Bronze | W140: 2143 | X140: 0 | Y140: Bronze | Z140: 0 | AA140: 0 | AB140: 0 | AC140: 0 | AD140: 0 | AE140: 0 | AF140: 0 | AG140: 0 | AH140: 0 | AI140: 0 | AJ140: 0 | AK140: 0 | AL140: 0 | AM140: 0 | AN140: 0 | AO140: 0 | AP140: 0 | AQ140: 0 | AR140: 0 | AS140: 0 | AT140: 0 | AU140: Bronze
A141: 1435260 | B141: kr | C141: 1 | D141: ì¼€ë¡œë¡œ | E141: z | F141: Bronze | G141: ë“€ëž€ í”„ì‚¬ì´ ì¡° | H141: 39 | I141: 42 | J141: 702 | K141: 24 | L141: 2014-11-09 | M141: 1 days | N141: 2014-12-21T23:05:44 | O141: 1435260-1 | P141: 0 | Q141: 1 | R141: 141 | S141: 81
A142: 3861979 | B142: kr | C142: 1 | D142: í™©íƒœìž | E142: r | F142: Bronze | G142: ì•„ìš°ë¦¬ê°€ ì—‰í´ ì¡° | H142: 85 | I142: 110 | J142: 701 | K142: 9 | L142: 2014-11-10 | M142: 5 hours | N142: 2014-12-21T23:05:45 | O142: 3861979-1 | P142: 0 | Q142: 1 | R142: 142 | S142: 195
A143: 4419304 | B143: kr | C143: 1 | D143: CAESAR | E143: p | F143: Bronze | G143: ë¬´ì•„ë‘” ì˜¤ìŠ¤ì¹´ ì¡° | H143: 92 | I143: 86 | J143: 700 | K143: 13 | L143: 2014-11-10 | M143: 12 hours | N143: 2014-12-21T23:05:45 | O143: 4419304-1 | P143: 0 | Q143: 1 | R143: 143 | S143: 178
A144: 848194 | B144: kr | C144: 2 | D144: Fomula | E144: z | F144: Bronze | G144: íƒ€ë¦¼ ì•ŒíŒŒ ì¡° | H144: 132 | I144: 143 | J144: 699 | K144: 13 | L144: 2014-11-11 | M144: 12 hours | N144: 2014-12-21T23:05:46 | O144: 848194-2 | P144: 0 | Q144: 1 | R144: 144 | S144: 275 | T144: 848194-2 | U144: Bronze | W144: 0 | X144: 0 | Y144: 0 | Z144: 0 | AA144: 127 | AB144: 0 | AC144: 0 | AD144: Bronze | AE144: 0 | AF144: 0 | AG144: 0 | AH144: 0 | AI144: 0 | AJ144: 0 | AK144: 0 | AL144: 0 | AM144: 0 | AN144: 0 | AO144: 0 | AP144: 0 | AQ144: 0 | AR144: 0 | AS144: 0 | AT144: 0 | AU144: Bronze
A145: 488327 | B145: kr | C145: 2 | D145: é¹½å·´å“¥ | E145: p | F145: Bronze | G145: ì•„ìš°ë¦¬ê°€ ì—‰í´ ì¡° | H145: 62 | I145: 70 | J145: 698 | K145: 10 | L145: 2014-11-10 | M145: 7 hours | N145: 2014-12-21T23:05:47 | O145: 488327-2 | P145: 0 | Q145: 1 | R145: 145 | S145: 132 | T145: 488327-2 | U145: Bronze | W145: 1488 | X145: 2437 | Y145: Bronze | Z145: Bronze | AA145: 0 | AB145: 0 | AC145: 0 | AD145: 0 | AE145: 0 | AF145: 0 | AG145: 0 | AH145: 0 | AI145: 792 | AJ145: 0 | AK145: 0 | AL145: 0 | AM145: Platinum | AN145: 0 | AO145: 0 | AP145: 0 | AQ145: 218 | AR145: 0 | AS145: 0 | AT145: Bronze | AU145: Platinum
A146: 3137916 | B146: kr | C146: 1 | D146: í†µí°ëŒ€ìž¥ë¶€ | E146: r | F146: Bronze | G146: ì½”ëž„ í”¼ ì¡° | H146: 28 | I146: 32 | J146: 698 | K146: 13 | L146: 2014-11-10 | M146: 13 hours | N146: 2014-12-21T23:05:47 | O146: 3137916-1 | P146: 0 | Q146: 1 | R146: 146 | S146: 60
A147: 221879 | B147: kr | C147: 1 | D147: íŒ€ë¼ì¸ | E147: t | F147: Bronze | G147: ë…¸ë°” ì‹œê·¸ë§ˆ ì¡° | H147: 32 | I147: 42 | J147: 697 | K147: 15 | L147: 2014-11-12 | M147: 15 hours | N147: 2014-12-21T23:05:48 | O147: 221879-1 | P147: 0 | Q147: 1 | R147: 147 | S147: 74
A148: 858118 | B148: kr | C148: 2 | D148: TOPGUN | E148: z | F148: Bronze | G148: íƒ€ì†Œë‹ˆìŠ¤ ë¦¬ë§ˆ ì¡° | H148: 39 | I148: 44 | J148: 697 | K148: 2 | L148: 2014-12-17 | M148: 12 hours | N148: 2014-12-21T23:05:48 | O148: 858118-2 | P148: 0 | Q148: 1 | R148: 148 | S148: 83 | T148: 858118-2 | U148: Bronze | W148: 0 | X148: 0 | Y148: 0 | Z148: 0 | AA148: 0 | AB148: 0 | AC148: 0 | AD148: 0 | AE148: 0 | AF148: 0 | AG148: 0 | AH148: 0 | AI148: 0 | AJ148: 0 | AK148: 0 | AL148: 0 | AM148: 0 | AN148: 0 | AO148: 114 | AP148: 0 | AQ148: 0 | AR148: Bronze | AS148: 0 | AT148: 0 | AU148: Bronze
A149: 206052 | B149: kr | C149: 1 | D149: SSUNG | E149: r | F149: Bronze | G149: ë…¸ë°” ì‹œê·¸ë§ˆ ì¡° | H149: 69 | I149: 76 | J149: 696 | K149: 25 | L149: 2014-11-23 | M149: 1 days | N149: 2014-12-21T23:05:49 | O149: 206052-1 | P149: 0 | Q149: 1 | R149: 149 | S149: 145
A150: 789130 | B150: kr | C150: 1 | D150: ì•ˆì¡¸ë¦¬ë‚˜ì˜¤ë¹ | E150: t | F150: Bronze | G150: ížˆë“œë¼ë¦¬ìŠ¤í¬ ë…¸ë²°ë²„ ì¡° | H150: 80 | I150: 81 | J150: 696 | K150: 19 | L150: 2014-11-12 | M150: 2 days | N150: 2014-12-21T23:05:49 | O150: 789130-1 | P150: 0 | Q150: 1 | R150: 150 | S150: 161
A151: 2221008 | B151: kr | C151: 1 | D151: seven | E151: t | F151: Bronze | G151: ì¼ˆëŸ¬ì‹œì•ˆ ë”•ì‹œ ì¡° | H151: 43 | I151: 51 | J151: 695 | K151: 12 | L151: 2014-11-10 | M151: 11 hours | N151: 2014-12-21T23:05:50 | O151: 2221008-1 | P151: 0 | Q151: 1 | R151: 151 | S151: 94 | T151: 2221008-1 | U151: Bronze | W151: 0 | X151: 0 | Y151: 0 | Z151: 0 | AA151: 0 | AB151: 0 | AC151: 0 | AD151: 0 | AE151: 0 | AF151: 0 | AG151: 0 | AH151: 0 | AI151: 0 | AJ151: 0 | AK151: 0 | AL151: 0 | AM151: 0 | AN151: 0 | AO151: 805 | AP151: 0 | AQ151: 0 | AR151: Bronze | AS151: 0 | AT151: 0 | AU151: Bronze
A152: 4616639 | B152: kr | C152: 1 | D152: ìŠ¤íƒ€ì´ˆë³´ | E152: z | F152: Bronze | G152: ë‚˜í•œ ì¤„ë¦¬ì—£ ì¡° | H152: 61 | I152: 69 | J152: 695 | K152: 45 | L152: 2014-11-19 | M152: 2 days | N152: 2014-12-21T23:05:51 | O152: 4616639-1 | P152: 0 | Q152: 1 | R152: 152 | S152: 130
A153: 1108336 | B153: kr | C153: 2 | D153: ç„¡æ•µå°éµ | E153: t | F153: Bronze | G153: ë“€ëž€ í”„ì‚¬ì´ ì¡° | H153: 33 | I153: 33 | J153: 694 | K153: 92 | L153: 2014-11-09 | M153: 3 days | N153: 2014-12-21T23:05:51 | O153: 1108336-2 | P153: 0 | Q153: 1 | R153: 153 | S153: 66 | T153: 1108336-2 | U153: Bronze | W153: 432 | X153: 0 | Y153: Bronze | Z153: 0 | AA153: 0 | AB153: 1231 | AC153: 0 | AD153: 0 | AE153: Silver | AF153: 0 | AG153: 0 | AH153: 155 | AI153: 0 | AJ153: 0 | AK153: 0 | AL153: Bronze | AM153: 0 | AN153: 0 | AO153: 0 | AP153: 0 | AQ153: 0 | AR153: 0 | AS153: 0 | AT153: 0 | AU153: Silver
A154: 430196 | B154: kr | C154: 1 | D154: ìžì† | E154: t | F154: Bronze | G154: ì½”ëž„ í”¼ ì¡° | H154: 178 | I154: 200 | J154: 691 | K154: 10 | L154: 2014-11-09 | M154: 6 hours | N154: 2014-12-21T23:05:52 | O154: 430196-1 | P154: 0 | Q154: 1 | R154: 154 | S154: 378 | T154: 430196-1 | U154: Bronze | W154: 0 | X154: 0 | Y154: 0 | Z154: 0 | AA154: 0 | AB154: 0 | AC154: 0 | AD154: 0 | AE154: 0 | AF154: 0 | AG154: 0 | AH154: 0 | AI154: 0 | AJ154: 0 | AK154: 0 | AL154: 0 | AM154: 0 | AN154: 0 | AO154: 1427 | AP154: 0 | AQ154: 0 | AR154: Silver | AS154: 0 | AT154: 0 | AU154: Silver
A155: 3766568 | B155: kr | C155: 1 | D155: ëŒ€ë§ˆì™• | E155: p | F155: Bronze | G155: ë®¤íƒˆë¦¬ìŠ¤í¬ ì•Œë¼ëª¨ ì¡° | H155: 57 | I155: 69 | J155: 691 | K155: 8 | L155: 2014-11-11 | M155: 4 hours | N155: 2014-12-21T23:05:52 | O155: 3766568-1 | P155: 0 | Q155: 1 | R155: 155 | S155: 126
A156: 4284269 | B156: kr | C156: 1 | D156: rlaqhtjd | E156: z | F156: Bronze | G156: ë“€ëž€ í”„ì‚¬ì´ ì¡° | H156: 68 | I156: 81 | J156: 691 | K156: 57 | L156: 2014-11-09 | M156: 3 days | N156: 2014-12-21T23:05:53 | O156: 4284269-1 | P156: 0 | Q156: 1 | R156: 156 | S156: 149 | T156: 4284269-1 | U156: Bronze | W156: 2600 | X156: 0 | Y156: Bronze | Z156: 0 | AA156: 0 | AB156: 0 | AC156: 0 | AD156: 0 | AE156: 0 | AF156: 0 | AG156: 0 | AH156: 0 | AI156: 0 | AJ156: 0 | AK156: 0 | AL156: 0 | AM156: 0 | AN156: 0 | AO156: 0 | AP156: 0 | AQ156: 0 | AR156: 0 | AS156: 0 | AT156: 0 | AU156: Bronze
A157: 4310696 | B157: kr | C157: 1 | D157: lhh | E157: p | F157: Bronze | G157: ë§ˆì¸í˜¸í”„ ì—íƒ€ ì¡° | H157: 66 | I157: 69 | J157: 691 | K157: 17 | L157: 2014-11-12 | M157: 19 hours | N157: 2014-12-21T23:05:54 | O157: 4310696-1 | P157: 0 | Q157: 1 | R157: 157 | S157: 135
A158: 2859747 | B158: kr | C158: 1 | D158: ëˆˆë°”ëž˜ê¸° | E158: t | F158: Bronze | G158: ë¬´ì•„ë‘” ì˜¤ìŠ¤ì¹´ ì¡° | H158: 26 | I158: 30 | J158: 690 | K158: 35 | L158: 2014-11-10 | M158: 1 days | N158: 2014-12-21T23:05:55 | O158: 2859747-1 | P158: 0 | Q158: 1 | R158: 158 | S158: 56
A159: 3365918 | B159: kr | C159: 1 | D159: NGch | E159: z | F159: Bronze | G159: íƒ€ë½ê·€ í‚¬ë¡œ ì¡° | H159: 27 | I159: 21 | J159: 690 | K159: 67 | L159: 2014-12-14 | M159: 14 hours | N159: 2014-12-21T23:05:55 | O159: 3365918-1 | P159: 0 | Q159: 1 | R159: 159 | S159: 48
A160: 628840 | B160: kr | C160: 1 | D160: Toawl | E160: p | F160: Bronze | G160: ë ˆì´ë„ˆ ê·¸ë¼ë¹„í‹° ì¡° | H160: 95 | I160: 111 | J160: 688 | K160: 13 | L160: 2014-11-13 | M160: 12 hours | N160: 2014-12-21T23:05:56 | O160: 628840-1 | P160: 0 | Q160: 1 | R160: 160 | S160: 206
A161: 3996666 | B161: kr | C161: 1 | D161: ë‹‰ë…¸ì´ | E161: t | F161: Bronze | G161: ë®¤íƒˆë¦¬ìŠ¤í¬ ì•Œë¼ëª¨ ì¡° | H161: 39 | I161: 41 | J161: 688 | K161: 9 | L161: 2014-11-10 | M161: 6 hours | N161: 2014-12-21T23:05:57 | O161: 3996666-1 | P161: 0 | Q161: 1 | R161: 161 | S161: 80
A162: 4428027 | B162: kr | C162: 1 | D162: ë¶ˆë°°íŠ¸ | E162: p | F162: Bronze | G162: ê³µì„± ì „ì°¨ ìš”íƒ€ ì¡° | H162: 62 | I162: 83 | J162: 687 | K162: 5 | L162: 2014-11-10 | M162: 6 hours | N162: 2014-12-21T23:05:58 | O162: 4428027-1 | P162: 0 | Q162: 1 | R162: 162 | S162: 145
A163: 4661144 | B163: kr | C163: 1 | D163: Lwatson | E163: t | F163: Bronze | G163: í† ë¥´ ì œë“œ ì¡° | H163: 37 | I163: 35 | J163: 687 | K163: 52 | L163: 2014-11-22 | M163: 2 days | N163: 2014-12-21T23:05:59 | O163: 4661144-1 | P163: 0 | Q163: 1 | R163: 163 | S163: 72
A164: 159353 | B164: kr | C164: 2 | D164: kiwi | E164: z | F164: Bronze | G164: í•˜ìš¸ëŸ¬ ë¹…í„° ì¡° | H164: 28 | I164: 22 | J164: 684 | K164: 70 | L164: 2014-11-15 | M164: 11 hours | N164: 2014-12-21T23:05:59 | O164: 159353-2 | P164: 0 | Q164: 1 | R164: 164 | S164: 50 | T164: 159353-2 | U164: Bronze | W164: 0 | X164: 901 | Y164: 0 | Z164: Bronze | AA164: 0 | AB164: 0 | AC164: 0 | AD164: 0 | AE164: 0 | AF164: 0 | AG164: 0 | AH164: 0 | AI164: 0 | AJ164: 0 | AK164: 0 | AL164: 0 | AM164: 0 | AN164: 0 | AO164: 0 | AP164: 0 | AQ164: 0 | AR164: 0 | AS164: 0 | AT164: 0 | AU164: Bronze
A165: 3583891 | B165: kr | C165: 1 | D165: ë‹¬ë‚˜ë¼í† ë¼ | E165: t | F165: Bronze | G165: ë ˆë‚˜ì‚¬ ìž…ì‹¤ë¡ ì¡° | H165: 33 | I165: 34 | J165: 684 | K165: 84 | L165: 2014-11-18 | M165: 5 days | N165: 2014-12-21T23:06:00 | O165: 3583891-1 | P165: 0 | Q165: 1 | R165: 165 | S165: 67
A166: 4631887 | B166: kr | C166: 1 | D166: Methodman | E166: z | F166: Bronze | G166: ë ˆë‚˜ì‚¬ ìž…ì‹¤ë¡ ì¡° | H166: 26 | I166: 23 | J166: 684 | K166: 104 | L166: 2014-11-12 | M166: 1 days | N166: 2014-12-21T23:06:01 | O166: 4631887-1 | P166: 0 | Q166: 1 | R166: 166 | S166: 49
A167: 2976502 | B167: kr | C167: 1 | D167: spay | E167: t | F167: Bronze | G167: ì•„ìš°ë¦¬ê°€ ì—‰í´ ì¡° | H167: 67 | I167: 74 | J167: 683 | K167: 22 | L167: 2014-11-10 | M167: 1 days | N167: 2014-12-21T23:06:01 | O167: 2976502-1 | P167: 0 | Q167: 1 | R167: 167 | S167: 141
A168: 4629589 | B168: kr | C168: 1 | D168: í°ë‘¥ì´ì˜¤ë¹ | E168: z | F168: Bronze | G168: ížˆë“œë¼ë¦¬ìŠ¤í¬ ë…¸ë²°ë²„ ì¡° | H168: 31 | I168: 34 | J168: 683 | K168: 71 | L168: 2014-11-11 | M168: 2 days | N168: 2014-12-21T23:06:02 | O168: 4629589-1 | P168: 0 | Q168: 1 | R168: 168 | S168: 65
A169: 665308 | B169: kr | C169: 1 | D169: GoBaWoo | E169: z | F169: Bronze | G169: ë“€ëž€ í”„ì‚¬ì´ ì¡° | H169: 255 | I169: 291 | J169: 682 | K169: 0 | L169: 2014-11-09 | M169: 9 hours | N169: 2014-12-21T23:06:02 | O169: 665308-1 | P169: 0 | Q169: 1 | R169: 169 | S169: 546
A170: 748481 | B170: kr | C170: 1 | D170: mercury | E170: p | F170: Bronze | G170: íƒ€ì†Œë‹ˆìŠ¤ ë¦¬ë§ˆ ì¡° | H170: 32 | I170: 29 | J170: 682 | K170: 635 | L170: 2014-11-17 | M170: 5 days | N170: 2014-12-21T23:06:03 | O170: 748481-1 | P170: 0 | Q170: 7 | R170: 170 | S170: 61
A171: 3176761 | B171: kr | C171: 1 | D171: ì—„ìˆ­ì´ | E171: p | F171: Bronze | G171: ë§ˆì¸í˜¸í”„ ì—íƒ€ ì¡° | H171: 32 | I171: 36 | J171: 682 | K171: 120 | L171: 2014-11-16 | M171: 7 days | N171: 2014-12-21T23:06:03 | O171: 3176761-1 | P171: 0 | Q171: 2 | R171: 171 | S171: 68 | T171: 3176761-1 | U171: Bronze | W171: 0 | X171: 2479 | Y171: 0 | Z171: Bronze | AA171: 0 | AB171: 657 | AC171: 0 | AD171: 0 | AE171: Bronze | AF171: 0 | AG171: 0 | AH171: 0 | AI171: 0 | AJ171: 0 | AK171: 0 | AL171: 0 | AM171: 0 | AN171: 0 | AO171: 0 | AP171: 0 | AQ171: 0 | AR171: 0 | AS171: 0 | AT171: 0 | AU171: Bronze
A172: 4723259 | B172: kr | C172: 1 | D172: ì•—ì‹¸ê°€ì˜¤ë¦¬ | E172: r | F172: Bronze | G172: ë³´ë¡œìŠ¤ ë¸Œë¼ë³´ ì¡° | H172: 35 | I172: 36 | J172: 682 | K172: 117 | L172: 2014-11-10 | M172: 7 days | N172: 2014-12-21T23:06:04 | O172: 4723259-1 | P172: 0 | Q172: 2 | R172: 172 | S172: 71
A173: 4779013 | B173: kr | C173: 1 | D173: ì–‘ì‹œí˜¸ | E173: t | F173: Bronze | G173: ë°”í€´ ëžŒë‹¤ ì¡° | H173: 24 | I173: 36 | J173: 682 | K173: 33 | L173: 2014-12-03 | M173: 9 hours | N173: 2014-12-21T23:06:05 | O173: 4779013-1 | P173: 0 | Q173: 1 | R173: 173 | S173: 60
A174: 933720 | B174: kr | C174: 1 | D174: Yasupa | E174: t | F174: Bronze | G174: ì œë ¨ì†Œ í¬ì‹œ ì¡° | H174: 26 | I174: 29 | J174: 681 | K174: 82 | L174: 2014-11-23 | M174: 4 days | N174: 2014-12-21T23:06:05 | O174: 933720-1 | P174: 0 | Q174: 1 | R174: 174 | S174: 55
A175: 971953 | B175: kr | C175: 2 | D175: é™æŽ§å™¨ | E175: z | F175: Bronze | G175: ì½”ëž„ í”¼ ì¡° | H175: 35 | I175: 32 | J175: 681 | K175: 98 | L175: 2014-11-09 | M175: 4 days | N175: 2014-12-21T23:06:06 | O175: 971953-2 | P175: 0 | Q175: 1 | R175: 175 | S175: 67
A176: 1251842 | B176: kr | C176: 1 | D176: Climb | E176: t | F176: Bronze | G176: ë³´ë¡œìŠ¤ ë¸Œë¼ë³´ ì¡° | H176: 56 | I176: 66 | J176: 681 | K176: 59 | L176: 2014-11-11 | M176: 3 days | N176: 2014-12-21T23:06:06 | O176: 1251842-1 | P176: 0 | Q176: 1 | R176: 176 | S176: 122
A177: 4405561 | B177: kr | C177: 1 | D177: ë‚˜ì•¼ë‚˜ | E177: p | F177: Bronze | G177: í™”ì—¼ë°©ì‚¬ë³‘ ì¹´íŒŒ ì¡° | H177: 77 | I177: 86 | J177: 681 | K177: 58 | L177: 2014-11-14 | M177: 3 days | N177: 2014-12-21T23:06:07 | O177: 4405561-1 | P177: 0 | Q177: 1 | R177: 177 | S177: 163
A178: 373413 | B178: kr | C178: 1 | D178: ìš°ë¥´ë¦‰ê¹Œê¿ | E178: r | F178: Bronze | G178: ë…¸ë°” ì‹œê·¸ë§ˆ ì¡° | H178: 83 | I178: 100 | J178: 680 | K178: 8 | L178: 2014-11-10 | M178: 4 hours | N178: 2014-12-21T23:06:07 | O178: 373413-1 | P178: 0 | Q178: 1 | R178: 178 | S178: 183
A179: 1396656 | B179: kr | C179: 1 | D179: ë‚˜ì™€ë°”ë¦¬ | E179: p | F179: Bronze | G179: ì¼€ì´ë‹¤ë¦° ë®¤ ì¡° | H179: 26 | I179: 24 | J179: 680 | K179: 77 | L179: 2014-11-20 | M179: 10 hours | N179: 2014-12-21T23:06:08 | O179: 1396656-1 | P179: 0 | Q179: 1 | R179: 179 | S179: 50
A180: 3919347 | B180: kr | C180: 1 | D180: jskim | E180: p | F180: Bronze | G180: ë…¸ë°” ì‹œê·¸ë§ˆ ì¡° | H180: 140 | I180: 148 | J180: 680 | K180: 16 | L180: 2014-11-10 | M180: 17 hours | N180: 2014-12-21T23:06:09 | O180: 3919347-1 | P180: 0 | Q180: 1 | R180: 180 | S180: 288 | T180: 3919347-1 | U180: Bronze | W180: 0 | X180: 0 | Y180: 0 | Z180: 0 | AA180: 0 | AB180: 0 | AC180: 0 | AD180: 0 | AE180: 0 | AF180: 0 | AG180: 0 | AH180: 0 | AI180: 0 | AJ180: 0 | AK180: 0 | AL180: 0 | AM180: 0 | AN180: 0 | AO180: 3687 | AP180: 3210 | AQ180: 1617 | AR180: Gold | AS180: Silver | AU180: Gold
A181: 4664240 | B181: kr | C181: 1 | D181: í˜„ìžíƒ | E181: t | F181: Bronze | G181: ë“€ëž€ í”„ì‚¬ì´ ì¡° | H181: 60 | I181: 70 | J181: 680 | K181: 1 | L181: 2014-11-09 | M181: 2 days | N181: 2014-12-21T23:06:09 | O181: 4664240-1 | P181: 0 | Q181: 1 | R181: 181 | S181: 130 | T181: 4664240-1 | U181: Bronze | W181: 3745 | X181: 0 | Y181: Silver | Z181: 0 | AA181: 301 | AB181: 2108 | AC181: 0 | AD181: Bronze | AE181: Silver | AF181: 0 | AG181: 0 | AH181: 0 | AI181: 0 | AJ181: 0 | AK181: 0 | AL181: 0 | AM181: 0 | AN181: 0 | AO181: 0 | AP181: 0 | AQ181: 0 | AR181: 0 | AS181: 0 | AT181: 0 | AU181: Silver
A182: 406682 | B182: kr | C182: 2 | D182: STARBUCKS | E182: p | F182: Bronze | G182: ê°€ì‹œì§€ì˜¥ ì°°ë¦¬ ì¡° | H182: 107 | I182: 107 | J182: 679 | K182: 23 | L182: 2014-11-15 | M182: 1 days | N182: 2014-12-21T23:06:10 | O182: 406682-2 | P182: 0 | Q182: 1 | R182: 182 | S182: 214
A183: 2499717 | B183: kr | C183: 1 | D183: ë¬¼ì°©ì†Œë…„ | E183: p | F183: Bronze | G183: ì¼ˆëŸ¬ì‹œì•ˆ ë”•ì‹œ ì¡° | H183: 31 | I183: 20 | J183: 679 | K183: 148 | L183: 2014-11-10 | M183: 9 hours | N183: 2014-12-21T23:06:10 | O183: 2499717-1 | P183: 0 | Q183: 2 | R183: 183 | S183: 51
A184: 3028651 | B184: kr | C184: 1 | D184: ë”´ë”°ë¼ | E184: t | F184: Bronze | G184: ì½”ëž„ í”¼ ì¡° | H184: 92 | I184: 96 | J184: 679 | K184: 17 | L184: 2014-11-09 | M184: 19 hours | N184: 2014-12-21T23:06:11 | O184: 3028651-1 | P184: 0 | Q184: 1 | R184: 184 | S184: 188
A185: 811201 | B185: kr | C185: 1 | D185: hellbringer | E185: t | F185: Bronze | G185: ê³µì„± ì „ì°¨ ìš”íƒ€ ì¡° | H185: 92 | I185: 106 | J185: 678 | K185: 10 | L185: 2014-11-10 | M185: 8 hours | N185: 2014-12-21T23:06:11 | O185: 811201-1 | P185: 0 | Q185: 1 | R185: 185 | S185: 198
A186: 4601670 | B186: kr | C186: 1 | D186: sossos | E186: p | F186: Bronze | G186: íƒ€ë½ê·€ í‚¬ë¡œ ì¡° | H186: 51 | I186: 52 | J186: 677 | K186: 34 | L186: 2014-12-09 | M186: 1 days | N186: 2014-12-21T23:06:12 | O186: 4601670-1 | P186: 0 | Q186: 1 | R186: 186 | S186: 103
A187: 166493 | B187: kr | C187: 2 | D187: wwwa | E187: z | F187: Bronze | G187: ì‹œë¯¸í„° í˜¸í¬ ì¡° | H187: 37 | I187: 47 | J187: 676 | K187: 58 | L187: 2014-11-11 | M187: 3 days | N187: 2014-12-21T23:06:12 | O187: 166493-2 | P187: 0 | Q187: 1 | R187: 187 | S187: 84
A188: 220158 | B188: kr | C188: 1 | D188: ì—ë°”ìŠ¤í…œí”ŒëŸ¬ | E188: t | F188: Bronze | G188: ê³µì„± ì „ì°¨ ìš”íƒ€ ì¡° | H188: 148 | I188: 158 | J188: 676 | K188: 1 | L188: 2014-11-10 | M188: 2 hours | N188: 2014-12-21T23:06:13 | O188: 220158-1 | P188: 0 | Q188: 1 | R188: 188 | S188: 306
A189: 2841570 | B189: kr | C189: 1 | D189: qmdnp | E189: t | F189: Bronze | G189: ë¬´ì•„ë‘” ì˜¤ìŠ¤ì¹´ ì¡° | H189: 59 | I189: 62 | J189: 676 | K189: 25 | L189: 2014-11-10 | M189: 12 hours | N189: 2014-12-21T23:06:14 | O189: 2841570-1 | P189: 0 | Q189: 1 | R189: 189 | S189: 121
A190: 376774 | B190: kr | C190: 1 | D190: NeoCyel | E190: t | F190: Bronze | G190: ë¬´ì•„ë‘” ì˜¤ìŠ¤ì¹´ ì¡° | H190: 114 | I190: 155 | J190: 674 | K190: 21 | L190: 2014-11-10 | M190: 1 days | N190: 2014-12-21T23:06:14 | O190: 376774-1 | P190: 0 | Q190: 1 | R190: 190 | S190: 269
A191: 683032 | B191: kr | C191: 1 | D191: ddaya | E191: t | F191: Bronze | G191: íƒ€ë¦¼ ì•ŒíŒŒ ì¡° | H191: 30 | I191: 32 | J191: 673 | K191: 59 | L191: 2014-11-12 | M191: 1 days | N191: 2014-12-21T23:06:15 | O191: 683032-1 | P191: 0 | Q191: 1 | R191: 191 | S191: 62
A192: 1248482 | B192: kr | C192: 2 | D192: kevinroyalty | E192: t | F192: Bronze | G192: ê°€ì‹œì§€ì˜¥ ì°°ë¦¬ ì¡° | H192: 115 | I192: 126 | J192: 672 | K192: 57 | L192: 2014-11-15 | M192: 3 days | N192: 2014-12-21T23:06:15 | O192: 1248482-2 | P192: 0 | Q192: 1 | R192: 192 | S192: 241 | T192: 1248482-2 | U192: Bronze | W192: 274 | X192: 2979 | Y192: Bronze | Z192: Bronze | AA192: 0 | AB192: 0 | AC192: 0 | AD192: 0 | AE192: 0 | AF192: 0 | AG192: 0 | AH192: 0 | AI192: 0 | AJ192: 0 | AK192: 0 | AL192: 0 | AM192: 0 | AN192: 0 | AO192: 0 | AP192: 0 | AQ192: 0 | AR192: 0 | AS192: 0 | AT192: 0 | AU192: Bronze
A193: 608668 | B193: kr | C193: 1 | D193: foxmusic | E193: t | F193: Bronze | G193: ì‹œë¯¸í„° í˜¸í¬ ì¡° | H193: 31 | I193: 32 | J193: 671 | K193: 54 | L193: 2014-11-12 | M193: 3 days | N193: 2014-12-21T23:06:16 | O193: 608668-1 | P193: 0 | Q193: 1 | R193: 193 | S193: 63
A194: 4029635 | B194: kr | C194: 1 | D194: ë¯¸ë‹ˆë§¥ìŠ¤ | E194: p | F194: Bronze | G194: ë“€ëž€ í”„ì‚¬ì´ ì¡° | H194: 48 | I194: 54 | J194: 671 | K194: 40 | L194: 2014-11-09 | M194: 2 days | N194: 2014-12-21T23:06:16 | O194: 4029635-1 | P194: 0 | Q194: 1 | R194: 194 | S194: 102
A195: 133702 | B195: kr | C195: 2 | D195: SGSHunting | E195: t | F195: Bronze | G195: ì¼ˆëŸ¬ì‹œì•ˆ ë”•ì‹œ ì¡° | H195: 35 | I195: 32 | J195: 670 | K195: 65 | L195: 2014-11-11 | M195: 1 days | N195: 2014-12-21T23:06:17 | O195: 133702-2 | P195: 0 | Q195: 1 | R195: 195 | S195: 67
A196: 706219 | B196: kr | C196: 1 | D196: ë°”ëžŒì²­í’ | E196: t | F196: Bronze | G196: ë®¤íƒˆë¦¬ìŠ¤í¬ ì•Œë¼ëª¨ ì¡° | H196: 52 | I196: 71 | J196: 670 | K196: 7 | L196: 2014-11-10 | M196: 3 hours | N196: 2014-12-21T23:06:18 | O196: 706219-1 | P196: 0 | Q196: 1 | R196: 196 | S196: 123 | T196: 706219-1 | U196: Bronze | W196: 0 | X196: 0 | Y196: 0 | Z196: 0 | AA196: 0 | AB196: 0 | AC196: 0 | AD196: 0 | AE196: 0 | AF196: 0 | AG196: 0 | AH196: 0 | AI196: 0 | AJ196: 0 | AK196: 0 | AL196: 0 | AM196: 0 | AN196: 0 | AO196: 2971 | AP196: 0 | AQ196: 0 | AR196: Silver | AS196: 0 | AT196: 0 | AU196: Silver
A197: 2769611 | B197: kr | C197: 1 | D197: happytoday | E197: t | F197: Bronze | G197: ë°”í€´ ëžŒë‹¤ ì¡° | H197: 25 | I197: 34 | J197: 670 | K197: 40 | L197: 2014-12-03 | M197: 17 hours | N197: 2014-12-21T23:06:18 | O197: 2769611-1 | P197: 0 | Q197: 1 | R197: 197 | S197: 59
A198: 4148679 | B198: kr | C198: 1 | D198: ì´ë¼ | E198: r | F198: Bronze | G198: íƒ€ë¦¼ ì•ŒíŒŒ ì¡° | H198: 69 | I198: 64 | J198: 670 | K198: 108 | L198: 2014-11-11 | M198: 7 hours | N198: 2014-12-21T23:06:19 | O198: 4148679-1 | P198: 0 | Q198: 2 | R198: 198 | S198: 133 | T198: 4148679-1 | U198: Bronze | W198: 0 | X198: 0 | Y198: 0 | Z198: 0 | AA198: 0 | AB198: 0 | AC198: 0 | AD198: 0 | AE198: 0 | AF198: 0 | AG198: 0 | AH198: 0 | AI198: 0 | AJ198: 0 | AK198: 0 | AL198: 0 | AM198: 0 | AN198: 0 | AO198: 0 | AP198: 6017 | AQ198: 0 | AR198: 0 | AT198: 0
A199: 4249312 | B199: kr | C199: 1 | D199: TRoll | E199: z | F199: Bronze | G199: íƒ€ë¦¼ ì•ŒíŒŒ ì¡° | H199: 22 | I199: 28 | J199: 670 | K199: 100 | L199: 2014-11-11 | M199: 9 hours | N199: 2014-12-21T23:06:19 | O199: 4249312-1 | P199: 0 | Q199: 1 | R199: 199 | S199: 50
A200: 1933863 | B200: kr | C200: 1 | D200: Engfini | E200: p | F200: Bronze | G200: ë‚˜í•œ ì¤„ë¦¬ì—£ ì¡° | H200: 25 | I200: 28 | J200: 669 | K200: 76 | L200: 2014-11-19 | M200: 2 days | N200: 2014-12-21T23:06:20 | O200: 1933863-1 | P200: 0 | Q200: 1 | R200: 200 | S200: 53
... 2050 more rows

Sheet Analysis - Team
A1: 2v2 - Most Recent Games
B2: Bronze | D2: Silver | F2: Gold | H2: Platinum | J2: Diamond | L2: Master | N2: Totals | P2: Total Team Count
A3: Category | B3: Last Week | C3: Last Month | D3: Last Week | E3: Last Month | F3: Last Week | G3: Last Month | H3: Last Week | I3: Last Month | J3: Last Week | K3: Last Month | L3: Last Week | M3: Last Month | N3: Last Week | O3: Last Month
A4: Totals | B4: 924 | C4: 1605 | D4: 837 | E4: 1209 | F4: 789 | G4: 875 | H4: 298 | I4: 279 | J4: 66 | K4: 57 | L4: 20 | M4: 16 | N4: 2934 | O4: 4041
A5: At least 1 game within the last month | B5: 2529 | D5: 2046 | F5: 1664 | H5: 577 | J5: 123 | L5: 36 | N5: 6975
B6: Avg Wins | C6: Avg Losses | D6: Avg Wins | E6: Avg Losses | F6: Avg Wins | G6: Avg Losses | H6: Avg Wins | I6: Avg Losses | J6: Avg Wins | K6: Avg Losses | L6: Avg Wins | M6: Avg Losses | N6: Avg Wins | O6: Avg Losses
A7: Games Count | B7: 3.531018965 | C7: 4.760205722 | D7: 7.744205298 | E7: 6.795115894 | F7: 13.80062794 | G7: 10.67451596 | H7: 19.92911011 | I7: 14.49924585 | J7: 22.55797101 | K7: 13.42753623 | L7: 45.19047619 | M7: 17.61904762 | N7: 8.971380268 | O7: 7.708127038
A8: Avg Score | B8: 84.16618451 | D8: 151.3923841 | F8: 217.7933019 | H8: 247.9276018 | J8: 287.3188406 | L8: 313.9761905 | N8: 152.2788311
A9: Total Team Count | B9: 3111 | D9: 2416 | F9: 1911 | H9: 663 | J9: 138 | L9: 42 | N9: 8281
A13: 3v3 - Most Recent Games
B14: Bronze | D14: Silver | F14: Gold | H14: Platinum | J14: Diamond | L14: Master | N14: Totals | P14: Total Team Count
A15: Category | B15: Last Week | C15: Last Month | D15: Last Week | E15: Last Month | F15: Last Week | G15: Last Month | H15: Last Week | I15: Last Month | J15: Last Week | K15: Last Month | L15: Last Week | M15: Last Month | N15: Last Week | O15: Last Month
A16: Totals | B16: 273 | C16: 555 | D16: 354 | E16: 641 | F16: 289 | G16: 412 | H16: 88 | I16: 151 | J16: 14 | K16: 25 | L16: 5 | M16: 2 | N16: 1023 | O16: 1786
A17: At least 1 game within the last month | B17: 828 | D17: 995 | F17: 701 | H17: 239 | J17: 39 | L17: 7 | N17: 2809
B18: Avg Wins | C18: Avg Losses | D18: Avg Wins | E18: Avg Losses | F18: Avg Wins | G18: Avg Losses | H18: Avg Wins | I18: Avg Losses | J18: Avg Wins | K18: Avg Losses | L18: Avg Wins | M18: Avg Losses | N18: Avg Wins | O18: Avg Losses
A19: Games Count | B19: 3.127783156 | C19: 4.011616651 | D19: 5.291286307 | E19: 4.5593361 | F19: 9.464200477 | G19: 6.433174224 | H19: 12.0177305 | I19: 6.29787234 | J19: 15.89795918 | K19: 5.714285714 | L19: 25.22222222 | M19: 6.555555556 | N19: 6.976288056 | O19: 5.235362998
A20: Avg Score | B20: 65.91093901 | D20: 94.71452282 | F20: 119.2768496 | H20: 112.0886525 | J20: 144.9795918 | L20: 207.3333333 | N20: 98.34221311
A21: Total Team Count | B21: 1033 | D21: 1205 | F21: 838 | H21: 282 | J21: 49 | L21: 9 | N21: 3416
A25: 4v4 - Most Recent Games
B26: Bronze | D26: Silver | F26: Gold | H26: Platinum | J26: Diamond | L26: Master | N26: Totals | P26: Total Team Count
A27: Category | B27: Last Week | C27: Last Month | D27: Last Week | E27: Last Month | F27: Last Week | G27: Last Month | H27: Last Week | I27: Last Month | J27: Last Week | K27: Last Month | L27: Last Week | M27: Last Month | N27: Last Week | O27: Last Month
A28: Totals | B28: 70 | C28: 170 | D28: 87 | E28: 160 | F28: 33 | G28: 66 | H28: 13 | I28: 48 | K28: 2 | N28: 203 | O28: 446
A29: At least 1 game within the last month | B29: 240 | D29: 247 | F29: 99 | H29: 61 | J29: 2 | N29: 649
B30: Avg Wins | C30: Avg Losses | D30: Avg Wins | E30: Avg Losses | F30: Avg Wins | G30: Avg Losses | H30: Avg Wins | I30: Avg Losses | J30: Avg Wins | K30: Avg Losses | L30: Avg Wins | M30: Avg Losses | N30: Avg Wins | O30: Avg Losses
A31: Games Count | B31: 2.843333333 | C31: 3.713333333 | D31: 4.355345912 | E31: 3.044025157 | F31: 7.015873016 | G31: 4.047619048 | H31: 6.43902439 | I31: 1.134146341 | J31: 7.6 | K31: 0.4 | N31: 4.711191336 | O31: 3.304452467
A32: Avg Score | B32: 52.46333333 | D32: 68.77672956 | F32: 99.52380952 | H32: 26.34146341 | J32: 63.8 | N32: 65.57761733
A33: Total Team Count | B33: 300 | D33: 318 | F33: 126 | H33: 82 | J33: 5 | N33: 831
A37: 2v2r - Most Recent Games
B38: Bronze | D38: Silver | F38: Gold | H38: Platinum | J38: Diamond | L38: Master | N38: Totals
A39: Category | B39: Last Week | C39: Last Month | D39: Last Week | E39: Last Month | F39: Last Week | G39: Last Month | H39: Last Week | I39: Last Month | J39: Last Week | K39: Last Month | L39: Last Week | M39: Last Month | N39: Last Week | O39: Last Month
A40: Totals | B40: 314 | C40: 533 | D40: 961 | E40: 1014 | F40: 633 | G40: 482 | H40: 402 | I40: 198 | J40: 137 | K40: 70 | L40: 43 | M40: 28 | N40: 2490 | O40: 2325
A41: At least 1 game within the last month | B41: 847 | D41: 1975 | F41: 1115 | H41: 600 | J41: 207 | L41: 71 | N41: 4815
B42: Avg Wins | C42: Avg Losses | D42: Avg Wins | E42: Avg Losses | F42: Avg Wins | G42: Avg Losses | H42: Avg Wins | I42: Avg Losses | J42: Avg Wins | K42: Avg Losses | L42: Avg Wins | M42: Avg Losses | N42: Avg Wins | O42: Avg Losses
A43: Games Count | B43: 0 | C43: 5.512652296 | D43: 0 | E43: 8.30538662 | F43: 0 | G43: 16.11848341 | H43: 0 | I43: 27.45814307 | J43: 0 | K43: 32.30837004 | L43: 0 | M43: 31.75641026 | N43: 0 | O43: 13.08879757
A44: Avg Score | B44: 59.6185567 | D44: 156.4708949 | F44: 279.5244866 | H44: 404.674277 | J44: 384.7136564 | L44: 507.4102564 | N44: 209.1238163
A45: Total Player Count | B45: 1067 | D45: 2302 | F45: 1266 | H45: 657 | J45: 227 | L45: 78 | N45: 5597
A49: 3v3r - Most Recent Games
B50: Bronze | D50: Silver | F50: Gold | H50: Platinum | J50: Diamond | L50: Master | N50: Totals
A51: Category | B51: Last Week | C51: Last Month | D51: Last Week | E51: Last Month | F51: Last Week | G51: Last Month | H51: Last Week | I51: Last Month | J51: Last Week | K51: Last Month | L51: Last Week | M51: Last Month | N51: Last Week | O51: Last Month
A52: Totals | B52: 451 | C52: 563 | D52: 1567 | E52: 1429 | F52: 1123 | G52: 577 | H52: 474 | I52: 237 | J52: 70 | K52: 77 | N52: 3685 | O52: 2883
A53: At least 1 game within the last month | B53: 1014 | D53: 2996 | F53: 1700 | H53: 711 | J53: 147 | N53: 6568
B54: Avg Wins | C54: Avg Losses | D54: Avg Wins | E54: Avg Losses | F54: Avg Wins | G54: Avg Losses | H54: Avg Wins | I54: Avg Losses | J54: Avg Wins | K54: Avg Losses | L54: Avg Wins | M54: Avg Losses | N54: Avg Wins | O54: Avg Losses
A55: Games Count | B55: 0 | C55: 8.958135861 | D55: 0 | E55: 11.78935118 | F55: 0 | G55: 25.88154416 | H55: 0 | I55: 32.09578544 | J55: 0 | K55: 20.55428571 | N55: 0 | O55: 17.47987288
A56: Avg Score | B56: 98.46603476 | D56: 195.598778 | F56: 351.6890534 | H56: 396.2899106 | J56: 288.6514286 | N56: 246.6051377
A57: Total Player Count | B57: 1266 | D57: 3437 | F57: 1891 | H57: 783 | J57: 175 | N57: 7552
A61: 4v4r - Most Recent Games
B62: Bronze | D62: Silver | F62: Gold | H62: Platinum | J62: Diamond | L62: Master | N62: Totals
A63: Category | B63: Last Week | C63: Last Month | D63: Last Week | E63: Last Month | F63: Last Week | G63: Last Month | H63: Last Week | I63: Last Month | J63: Last Week | K63: Last Month | L63: Last Week | M63: Last Month | N63: Last Week | O63: Last Month
A64: Totals | B64: 256 | C64: 381 | D64: 570 | E64: 526 | F64: 270 | G64: 181 | H64: 43 | I64: 47 | N64: 1139 | O64: 1135
A65: At least 1 game within the last month | B65: 637 | D65: 1096 | F65: 451 | H65: 90 | N65: 2274
B66: Avg Wins | C66: Avg Losses | D66: Avg Wins | E66: Avg Losses | F66: Avg Wins | G66: Avg Losses | H66: Avg Wins | I66: Avg Losses | J66: Avg Wins | K66: Avg Losses | L66: Avg Wins | M66: Avg Losses | N66: Avg Wins | O66: Avg Losses
A67: Games Count | B67: 0 | C67: 6.744360902 | D67: 0 | E67: 10.83203733 | F67: 0 | G67: 22.81889764 | H67: 0 | I67: 7.547169811 | N67: 0 | O67: 13.0841364
A68: Avg Score | B68: 64.49373434 | D68: 190.8227061 | F68: 342.8917323 | H68: 150.2641509 | N68: 199.2197924
A69: Total Player Count | B69: 798 | D69: 1286 | F69: 508 | H69: 106 | N69: 2698
A73: Most Recent Game Played
A74: Percentages of Total | B74: Last Week | C74: Last Month
A75: 2v2 | B75: =N4/N9 -> 0.3543050356 | C75: =N5/N9 -> 0.8422895786
A76: 3v3 | B76: =N16/N21 -> 0.2994730679 | C76: =N17/N21 -> 0.8223067916
A77: 4v4 | B77: =N28/N33 -> 0.2442839952 | C77: =N29/N33 -> 0.7809867629
A78: 2v2 Random | B78: =N40/N45 -> 0.4448811863 | C78: =N41/N45 -> 0.8602822941
A79: 3v3 Random | B79: =N52/N57 -> 0.4879502119 | C79: =N53/N57 -> 0.8697033898
A80: 4v4 Random | B80: =N64/N69 -> 0.4221645663 | C80: =N65/N69 -> 0.842846553
A84: Unique Player Counts
A85: Team Type | B85: Counts
A86: 2v2 | B86: =N9 -> 8281
A87: 3v3 | B87: =N21 -> 3416
A88: 4v4 | B88: =N33 -> 831
A89: 2v2 Random | B89: =N45 -> 5597
A90: 3v3 Random | B90: =N57 -> 7552
A91: 4v4 Random | B91: =N69 -> 2698
A95: League Distributions - Based on Having Played At Least 1 Game Last Month | I95: League Distributions - All Teams
A96: Team Type | B96: Bronze | C96: Silver | D96: Gold | E96: Platinum | F96: Diamond | G96: Master | I96: Team Type | J96: Bronze | K96: Silver | L96: Gold | M96: Platinum | N96: Diamond | O96: Master
A97: 2v2 | B97: =B5/N5 -> 0.3625806452 | C97: =D5/N5 -> 0.2933333333 | D97: =F5/N5 -> 0.2385663082 | E97: =H5/N5 -> 0.08272401434 | F97: =J5/N5 -> 0.0176344086 | G97: =L5/N5 -> 0.005161290323 | I97: 2v2 | J97: =B9/N9 -> 0.3756792658 | K97: =D9/N9 -> 0.2917522038 | L97: =F9/N9 -> 0.2307692308 | M97: =H9/N9 -> 0.08006279435 | N97: =J9/N9 -> 0.01666465403 | O97: =L9/N9 -> 0.005071851226
A98: 3v3 | B98: =B17/N17 -> 0.2947668209 | C98: =D17/N17 -> 0.3542185831 | D98: =F17/N17 -> 0.2495550018 | E98: =H17/N17 -> 0.08508365967 | F98: =J17/N17 -> 0.01388394446 | G98: =L17/N17 -> 0.002491990032 | I98: 3v3 | J98: =B21/N21 -> 0.3024004684 | K98: =D21/N21 -> 0.3527517564 | L98: =F21/N21 -> 0.2453161593 | M98: =H21/N21 -> 0.08255269321 | N98: =J21/N21 -> 0.0143442623 | O98: =L21/N21 -> 0.002634660422
A99: 4v4 | B99: =B29/N29 -> 0.3697996918 | C99: =D29/N29 -> 0.3805855162 | D99: =F29/N29 -> 0.1525423729 | E99: =H29/N29 -> 0.09399075501 | F99: =J29/N29 -> 0.003081664099 | G99: =L29/N29 -> 0 | I99: 4v4 | J99: =B33/N33 -> 0.3610108303 | K99: =D33/N33 -> 0.3826714801 | L99: =F33/N33 -> 0.1516245487 | M99: =H33/N33 -> 0.09867629362 | N99: =J33/N33 -> 0.006016847172 | O99: =L33/N33 -> 0
A100: 2v2 Random | B100: =B41/N41 -> 0.1759086189 | C100: =D41/N41 -> 0.4101765317 | D100: =F41/N41 -> 0.2315680166 | E100: =H41/N41 -> 0.1246105919 | F100: =J41/N41 -> 0.04299065421 | G100: =L41/N41 -> 0.01474558671 | I100: 2v2 Random | J100: =B45/N45 -> 0.1906378417 | K100: =D45/N45 -> 0.4112917634 | L100: =F45/N45 -> 0.2261926032 | M100: =H45/N45 -> 0.117384313 | N100: =J45/N45 -> 0.04055744149 | O100: =L45/N45 -> 0.01393603716
A101: 3v3 Random | B101: =B53/N53 -> 0.1543848965 | C101: =D53/N53 -> 0.4561510353 | D101: =F53/N53 -> 0.2588306943 | E101: =H53/N53 -> 0.1082521315 | F101: =J53/N53 -> 0.02238124239 | G101: =L53/N53 -> 0 | I101: 3v3 Random | J101: =B57/N57 -> 0.1676377119 | K101: =D57/N57 -> 0.4551112288 | L101: =F57/N57 -> 0.2503972458 | M101: =H57/N57 -> 0.1036811441 | N101: =J57/N57 -> 0.02317266949 | O101: =L57/N57 -> 0
A102: 4v4 Random | B102: =B65/N65 -> 0.280123131 | C102: =D65/N65 -> 0.4819700967 | D102: =F65/N65 -> 0.1983289358 | E102: =H65/N65 -> 0.03957783641 | F102: =J65/N65 -> 0 | G102: =L65/N65 -> 0 | I102: 4v4 Random | J102: =B69/N69 -> 0.2957746479 | K102: =D69/N69 -> 0.4766493699 | L102: =F69/N69 -> 0.1882876205 | M102: =H69/N69 -> 0.03928836175 | N102: =J69/N69 -> 0 | O102: =L69/N69 -> 0
A104: 2v2 matched | B104: =A104&": "&$B$96&": "&ROUNDDOWN(B97,2)*100 & "% | " &$C$96&": "&ROUNDDOWN(C97,2)*100 & "% | " &$D$96&": "&ROUNDDOWN(D97,2)*100 & "% | " &$E$96&": "&ROUNDDOWN(E97,2)*100 & "% | " &$F$96&": "&ROUNDDOWN(F97,2)*100 & "% | " &$G$96&": "&ROUND(G97*100,2) & "% | " -> 2v2 matched: Bronze: 36% | Silver: 29% | Gold: 23% | Platinum: 8% | Diamond: 1% | Master: 0.52% |
A105: 3v3 matched | B105: =A105&": "&$B$96&": "&ROUNDDOWN(B98,2)*100 & "% | " &$C$96&": "&ROUNDDOWN(C98,2)*100 & "% | " &$D$96&": "&ROUNDDOWN(D98,2)*100 & "% | " &$E$96&": "&ROUNDDOWN(E98,2)*100 & "% | " &$F$96&": "&ROUNDDOWN(F98,2)*100 & "% | " &$G$96&": "&ROUND(G98*100,2) & "% | " -> 3v3 matched: Bronze: 29% | Silver: 35% | Gold: 24% | Platinum: 8% | Diamond: 1% | Master: 0.25% |
A106: 4v4 matched | B106: 4v4 matched: Bronze: 36% | Silver: 38% | Gold: 15% | Platinum: 9% | Diamond: 0% | Master: 0% |
A107: 2v2 random | B107: 2v2 random: Bronze: 17% | Silver: 41% | Gold: 23% | Platinum: 12% | Diamond: 4% | Master: 1.47% |
A108: 3v3 random | B108: 3v3 random: Bronze: 15% | Silver: 45% | Gold: 25% | Platinum: 10% | Diamond: 2% | Master: 0% |
A109: 4v4 random | B109: 4v4 random: Bronze: 28% | Silver: 48% | Gold: 19% | Platinum: 3% | Diamond: 0% | Master: 0% |

Sheet IDs
A1: Player IDs | B1: Team Type | D1: Unique IDs | E1: # of team types | F1: Only in team games (if error) | G1: Unique 1v1 | H1: Only in 1v1 (if error) | I1: # of team types | J1: # of team-only players | K1: # of 1v1-only players
A2: 1000219-2 | B2: 2v2Team | D2: 1000219-2 | E2: 1 | G2: 1000075-2 | I2: =IF(ISERROR(H2),0,VLOOKUP(G2,$D$2:$E$24935,2,FALSE)) -> 0 | J2: =COUNTIF(F2:F110919,"#N/A") -> 15057 | K2: =COUNTIF(H2:H110919,"#N/A") -> 28583
A3: 1000341-2 | B3: 2v2Team | D3: 1000341-2 | E3: 9 | F3: 1000341-2 | G3: 1000169-2 | I3: =IF(ISERROR(H3),0,VLOOKUP(G3,$D$2:$E$24935,2,FALSE)) -> 0
A4: 1000341-2 | B4: 3v3Team | D4: 1000387-2 | E4: 2 | F4: 1000387-2 | G4: 1000341-2 | H4: 1000341-2 | I4: 9 | J4: Total 1v1 players | K4: =COUNTA(G2:G100402) -> 38460
A5: 1000341-2 | B5: 3v3Team | D5: 1000435-2 | E5: 1 | G5: 1000380-2 | I5: 0 | J5: 1v1 players that also placed with a team type | K5: =K4-K2 -> 9877 | L5: =K5/K4 -> 0.2568122725
A6: 1000341-2 | B6: 4v4Team | D6: 1000449-2 | E6: 1 | G6: 1000387-2 | H6: 1000387-2 | I6: 2 | J6: # of 1v1 players that have completed placement matches for 3 or more team types | K6: =COUNTIF(I2:I62441,">=3") -> 2003
A7: 1000341-2 | B7: 4v4Team | D7: 1000549-2 | E7: 1 | G7: 1000467-2 | I7: 0 | J7: Team players that only placed with 1 team | K7: =COUNTIFS(E2:E110919,1,F2:F110919,"#N/A") -> 11189
A8: 1000341-2 | B8: 4v4Team | D8: 1000953-1 | E8: 1 | G8: 1000710-2 | I8: 0 | J8: % of team-only with only 1 team | K8: =K7/J2 -> 0.7431095172
A9: 1000341-2 | B9: 4v4Team | D9: 100116-1 | E9: 3 | F9: 100116-1 | G9: 1000732-2 | I9: 0 | J9: Most teams placed with | K9: =MAX(E2:E110919) -> 36
A10: 1000341-2 | B10: 2v2r | D10: 1001274-1 | E10: 3 | G10: 1000754-2 | I10: 0 | J10: Average # of team types | K10: =AVERAGE(E2:E44641) -> 1.64045079
A11: 1000341-2 | B11: 4v4r | D11: 1001286-2 | E11: 1 | F11: 1001286-2 | G11: 1000782-1 | I11: 0
A12: 1000387-2 | B12: 2v2r | D12: 1001315-2 | E12: 1 | F12: 1001315-2 | G12: 1000827-2 | I12: 0
A13: 1000387-2 | B13: 3v3r | D13: 1001441-2 | E13: 2 | F13: 1001441-2 | G13: 1000882-2 | I13: 0
A14: 1000435-2 | B14: 3v3r | D14: 1001453-2 | E14: 1 | G14: 1000937-2 | I14: 0
A15: 1000449-2 | B15: 3v3r | D15: 100162-2 | E15: 1 | F15: 100162-2 | G15: 1000967-1 | I15: 0
A16: 1000549-2 | B16: 2v2Team | D16: 1001632-2 | E16: 2 | G16: 1001028-2 | I16: 0
A17: 1000953-1 | B17: 2v2Team | D17: 100164-2 | E17: 2 | G17: 1001089-2 | I17: 0
A18: 100116-1 | B18: 2v2Team | D18: 100166-1 | E18: 1 | G18: 100116-1 | H18: 100116-1 | I18: 3
A19: 100116-1 | B19: 2v2Team | D19: 1001784-2 | E19: 7 | F19: 1001784-2 | G19: 1001235-1 | I19: 0
A20: 100116-1 | B20: 3v3r | D20: 1001924-2 | E20: 1 | F20: 1001924-2 | G20: 1001272-2 | I20: 0
A21: 1001274-1 | B21: 2v2Team | D21: 100198-2 | E21: 1 | G21: 1001286-2 | H21: 1001286-2 | I21: 1
A22: 1001274-1 | B22: 3v3Team | D22: 1002262-2 | E22: 4 | F22: 1002262-2 | G22: 1001315-2 | H22: 1001315-2 | I22: 1
A23: 1001274-1 | B23: 2v2r | D23: 100256-1 | E23: 2 | G23: 1001364-2 | I23: 0
A24: 1001286-2 | B24: 3v3r | D24: 1002821-1 | E24: 1 | G24: 1001409-1 | I24: 0
A25: 1001315-2 | B25: 3v3Team | D25: 100297-1 | E25: 2 | F25: 100297-1 | G25: 1001441-2 | H25: 1001441-2 | I25: 2
A26: 1001441-2 | B26: 3v3Team | D26: 1003063-2 | E26: 1 | F26: 1003063-2 | G26: 1001529-2 | I26: 0
A27: 1001441-2 | B27: 4v4Team | D27: 1003103-2 | E27: 4 | F27: 1003103-2 | G27: 1001557-2 | I27: 0
A28: 1001453-2 | B28: 2v2r | D28: 1003296-1 | E28: 2 | G28: 100162-2 | H28: 100162-2 | I28: 1
A29: 100162-2 | B29: 2v2Team | D29: 1003348-2 | E29: 1 | F29: 1003348-2 | G29: 1001624-2 | I29: 0
A30: 1001632-2 | B30: 2v2r | D30: 1003431-2 | E30: 1 | G30: 1001628-2 | I30: 0
A31: 1001632-2 | B31: 3v3r | D31: 1003458-2 | E31: 1 | F31: 1003458-2 | G31: 1001691-2 | I31: 0
A32: 100164-2 | B32: 3v3r | D32: 1003530-1 | E32: 1 | F32: 1003530-1 | G32: 1001784-2 | H32: 1001784-2 | I32: 7
A33: 100164-2 | B33: 4v4r | D33: 1003536-2 | E33: 3 | F33: 1003536-2 | G33: 1001924-2 | H33: 1001924-2 | I33: 1
A34: 100166-1 | B34: 2v2r | D34: 1003584-2 | E34: 1 | F34: 1003584-2 | G34: 1001962-2 | I34: 0
A35: 1001784-2 | B35: 2v2Team | D35: 100359-2 | E35: 4 | G35: 100199-2 | I35: 0
A36: 1001784-2 | B36: 2v2Team | D36: 1003624-2 | E36: 1 | F36: 1003624-2 | G36: 1002130-2 | I36: 0
A37: 1001784-2 | B37: 2v2Team | D37: 100363-2 | E37: 5 | F37: 100363-2 | G37: 1002262-2 | H37: 1002262-2 | I37: 4
A38: 1001784-2 | B38: 2v2Team | D38: 1003662-1 | E38: 2 | F38: 1003662-1 | G38: 1002263-2 | I38: 0
A39: 1001784-2 | B39: 2v2Team | D39: 1003731-2 | E39: 2 | G39: 1002421-1 | I39: 0
A40: 1001784-2 | B40: 2v2Team | D40: 1003966-2 | E40: 4 | G40: 1002581-2 | I40: 0
A41: 1001784-2 | B41: 3v3r | D41: 1004052-1 | E41: 1 | F41: 1004052-1 | G41: 1002584-2 | I41: 0
A42: 1001924-2 | B42: 2v2Team | D42: 1004277-1 | E42: 1 | G42: 1002723-2 | I42: 0
A43: 100198-2 | B43: 3v3r | D43: 100449-1 | E43: 3 | G43: 1002778-2 | I43: 0
A44: 1002262-2 | B44: 3v3Team | D44: 1004561-2 | E44: 1 | G44: 1002892-2 | I44: 0
A45: 1002262-2 | B45: 2v2r | D45: 100462-1 | E45: 2 | F45: 100462-1 | G45: 100297-1 | H45: 100297-1 | I45: 2
A46: 1002262-2 | B46: 3v3r | D46: 1004760-2 | E46: 16 | G46: 1002975-2 | I46: 0
A47: 1002262-2 | B47: 4v4r | D47: 100500-1 | E47: 1 | G47: 1003013-2 | I47: 0
A48: 100256-1 | B48: 2v2Team | D48: 100519-1 | E48: 4 | G48: 1003063-2 | H48: 1003063-2 | I48: 1
A49: 100256-1 | B49: 3v3r | D49: 1005210-2 | E49: 1 | F49: 1005210-2 | G49: 1003103-2 | H49: 1003103-2 | I49: 4
A50: 1002821-1 | B50: 3v3r | D50: 100543-1 | E50: 2 | G50: 1003190-2 | I50: 0
A51: 100297-1 | B51: 2v2Team | D51: 1005442-2 | E51: 8 | G51: 1003297-1 | I51: 0
A52: 100297-1 | B52: 2v2r | D52: 1005473-1 | E52: 3 | G52: 1003336-2 | I52: 0
A53: 1003063-2 | B53: 4v4Team | D53: 1005538-2 | E53: 1 | G53: 1003348-2 | H53: 1003348-2 | I53: 1
A54: 1003103-2 | B54: 3v3Team | D54: 1005539-2 | E54: 2 | F54: 1005539-2 | G54: 1003375-2 | I54: 0
A55: 1003103-2 | B55: 4v4Team | D55: 1005599-1 | E55: 1 | G55: 1003384-2 | I55: 0
A56: 1003103-2 | B56: 2v2r | D56: 1005666-2 | E56: 1 | F56: 1005666-2 | G56: 1003458-2 | H56: 1003458-2 | I56: 1
A57: 1003103-2 | B57: 4v4r | D57: 100581-1 | E57: 3 | G57: 1003526-1 | I57: 0
A58: 1003296-1 | B58: 2v2Team | D58: 1005824-1 | E58: 1 | F58: 1005824-1 | G58: 1003530-1 | H58: 1003530-1 | I58: 1
A59: 1003296-1 | B59: 2v2r | D59: 1006094-2 | E59: 1 | G59: 100353-1 | I59: 0
A60: 1003348-2 | B60: 2v2Team | D60: 1006345-1 | E60: 27 | F60: 1006345-1 | G60: 1003536-2 | H60: 1003536-2 | I60: 3
A61: 1003431-2 | B61: 2v2Team | D61: 1006683-1 | E61: 1 | G61: 1003552-2 | I61: 0
A62: 1003458-2 | B62: 3v3r | D62: 1006713-1 | E62: 1 | F62: 1006713-1 | G62: 1003577-2 | I62: 0
A63: 1003530-1 | B63: 3v3r | D63: 1006916-1 | E63: 1 | G63: 1003584-2 | H63: 1003584-2 | I63: 1
A64: 1003536-2 | B64: 3v3Team | D64: 100727-1 | E64: 1 | F64: 100727-1 | G64: 1003624-2 | H64: 1003624-2 | I64: 1
A65: 1003536-2 | B65: 3v3Team | D65: 1007366-1 | E65: 6 | F65: 1007366-1 | G65: 100363-2 | H65: 100363-2 | I65: 5
A66: 1003536-2 | B66: 3v3r | D66: 1007393-1 | E66: 3 | G66: 1003662-1 | H66: 1003662-1 | I66: 2
A67: 1003584-2 | B67: 2v2Team | D67: 1007546-1 | E67: 1 | F67: 1007546-1 | G67: 1003724-2 | I67: =IF(ISERROR(H67),0,VLOOKUP(G67,$D$2:$E$24935,2,FALSE)) -> 0
A68: 100359-2 | B68: 2v2Team | D68: 1007549-2 | E68: 4 | F68: 1007549-2 | G68: 1003837-2 | I68: 0
A69: 100359-2 | B69: 2v2Team | D69: 1007706-2 | E69: 3 | F69: 1007706-2 | G69: 1003923-2 | I69: 0
A70: 100359-2 | B70: 3v3Team | D70: 100779-1 | E70: 1 | F70: 100779-1 | G70: 1003966-1 | I70: 0
A71: 100359-2 | B71: 3v3Team | D71: 1007901-1 | E71: 1 | G71: 1004052-1 | H71: 1004052-1 | I71: 1
A72: 1003624-2 | B72: 2v2r | D72: 1008023-2 | E72: 2 | G72: 1004104-1 | I72: 0
A73: 100363-2 | B73: 2v2Team | D73: 100805-1 | E73: 1 | G73: 1004108-2 | I73: 0
A74: 100363-2 | B74: 2v2Team | D74: 1008182-2 | E74: 6 | G74: 100415-1 | I74: 0
A75: 100363-2 | B75: 2v2Team | D75: 100823-1 | E75: 3 | G75: 1004192-1 | I75: 0
A76: 100363-2 | B76: 2v2r | D76: 1008254-1 | E76: 1 | F76: 1008254-1 | G76: 100440-1 | I76: 0
A77: 100363-2 | B77: 3v3r | D77: 1008267-1 | E77: 1 | F77: 1008267-1 | G77: 1004483-2 | I77: 0
A78: 1003662-1 | B78: 2v2Team | D78: 1008292-2 | E78: 1 | G78: 1004486-1 | I78: 0
A79: 1003662-1 | B79: 2v2Team | D79: 1008391-1 | E79: 1 | G79: 1004535-2 | I79: 0
A80: 1003731-2 | B80: 2v2Team | D80: 1008408-1 | E80: 2 | G80: 1004560-2 | I80: 0
A81: 1003731-2 | B81: 3v3Team | D81: 1008605-1 | E81: 1 | G81: 1004598-2 | I81: 0
A82: 1003966-2 | B82: 2v2Team | D82: 1008786-2 | E82: 2 | F82: 1008786-2 | G82: 100460-1 | I82: 0
A83: 1003966-2 | B83: 3v3Team | D83: 1008919-1 | E83: 1 | G83: 1004616-2 | I83: 0
A84: 1003966-2 | B84: 3v3Team | D84: 1008944-1 | E84: 2 | F84: 1008944-1 | G84: 100462-1 | H84: 100462-1 | I84: 2
A85: 1003966-2 | B85: 3v3r | D85: 1008964-1 | E85: 2 | G85: 1004725-2 | I85: 0
A86: 1004052-1 | B86: 2v2r | D86: 1009017-1 | E86: 3 | G86: 1004902-1 | I86: 0
A87: 1004277-1 | B87: 2v2Team | D87: 1009043-2 | E87: 7 | F87: 1009043-2 | G87: 1005025-2 | I87: 0
A88: 100449-1 | B88: 2v2Team | D88: 1009098-1 | E88: 1 | G88: 100507-1 | I88: 0
A89: 100449-1 | B89: 3v3r | D89: 100914-1 | E89: 2 | F89: 100914-1 | G89: 1005210-2 | H89: 1005210-2 | I89: 1
A90: 100449-1 | B90: 4v4r | D90: 1009177-2 | E90: 1 | G90: 1005228-1 | I90: 0
A91: 1004561-2 | B91: 2v2Team | D91: 1009210-1 | E91: 1 | G91: 1005330-2 | I91: 0
A92: 100462-1 | B92: 2v2Team | D92: 1009341-1 | E92: 2 | G92: 1005345-2 | I92: 0
A93: 100462-1 | B93: 4v4r | D93: 1009395-1 | E93: 1 | G93: 1005393-2 | I93: 0
A94: 1004760-2 | B94: 2v2Team | D94: 1009551-1 | E94: 1 | G94: 1005409-2 | I94: 0
A95: 1004760-2 | B95: 3v3Team | D95: 1009624-1 | E95: 4 | G95: 1005453-2 | I95: 0
A96: 1004760-2 | B96: 3v3Team | D96: 1009714-2 | E96: 1 | G96: 1005480-2 | I96: 0
A97: 1004760-2 | B97: 3v3Team | D97: 1009734-2 | E97: 3 | F97: 1009734-2 | G97: 1005539-2 | H97: 1005539-2 | I97: 2
A98: 1004760-2 | B98: 4v4Team | D98: 1009758-2 | E98: 2 | F98: 1009758-2 | G98: 1005545-2 | I98: 0
A99: 1004760-2 | B99: 4v4Team | D99: 1009874-1 | E99: 2 | G99: 1005627-2 | I99: 0
A100: 1004760-2 | B100: 4v4Team | D100: 1009918-1 | E100: 2 | F100: 1009918-1 | G100: 1005666-2 | H100: 1005666-2 | I100: 1
A101: 1004760-2 | B101: 4v4Team | D101: 1010011-1 | E101: 1 | F101: 1010011-1 | G101: 1005708-1 | I101: 0
A102: 1004760-2 | B102: 4v4Team | D102: 1010480-2 | E102: 1 | G102: 1005765-2 | I102: 0
A103: 1004760-2 | B103: 4v4Team | D103: 1010590-1 | E103: 1 | G103: 1005824-1 | H103: 1005824-1 | I103: 1
A104: 1004760-2 | B104: 4v4Team | D104: 1010611-2 | E104: 2 | F104: 1010611-2 | G104: 1005944-1 | I104: 0
A105: 1004760-2 | B105: 4v4Team | D105: 1010670-2 | E105: 1 | G105: 1005959-2 | I105: 0
A106: 1004760-2 | B106: 4v4Team | D106: 1010738-1 | E106: 2 | F106: 1010738-1 | G106: 1005970-2 | I106: 0
A107: 1004760-2 | B107: 2v2r | D107: 1010889-1 | E107: 1 | G107: 1006047-1 | I107: 0
A108: 1004760-2 | B108: 3v3r | D108: 1010944-1 | E108: 1 | G108: 1006207-1 | I108: 0
A109: 1004760-2 | B109: 4v4r | D109: 1011013-1 | E109: 1 | G109: 1006345-1 | H109: 1006345-1 | I109: 27
A110: 100500-1 | B110: 2v2Team | D110: 101104-1 | E110: 1 | F110: 101104-1 | G110: 100636-1 | I110: 0
A111: 100519-1 | B111: 3v3Team | D111: 1011054-1 | E111: 1 | G111: 1006365-2 | I111: 0
A112: 100519-1 | B112: 2v2r | D112: 1011067-2 | E112: 2 | F112: 1011067-2 | G112: 1006483-2 | I112: 0
A113: 100519-1 | B113: 3v3r | D113: 101111-1 | E113: 2 | G113: 1006578-2 | I113: 0
A114: 100519-1 | B114: 4v4r | D114: 1011188-2 | E114: 1 | G114: 1006621-1 | I114: 0
A115: 1005210-2 | B115: 2v2Team | D115: 1011374-1 | E115: 2 | F115: 1011374-1 | G115: 1006630-2 | I115: 0
A116: 100543-1 | B116: 2v2Team | D116: 1011395-2 | E116: 1 | G116: 1006695-2 | I116: 0
A117: 100543-1 | B117: 3v3r | D117: 1011489-1 | E117: 9 | F117: 1011489-1 | G117: 100671-1 | I117: 0
A118: 1005442-2 | B118: 3v3Team | D118: 1011518-1 | E118: 1 | G118: 1006713-1 | H118: 1006713-1 | I118: 1
A119: 1005442-2 | B119: 4v4Team | D119: 1011647-1 | E119: 2 | F119: 1011647-1 | G119: 1006738-1 | I119: 0
A120: 1005442-2 | B120: 4v4Team | D120: 1011667-2 | E120: 4 | G120: 1006755-2 | I120: 0
A121: 1005442-2 | B121: 4v4Team | D121: 101177-2 | E121: 1 | G121: 1006787-1 | I121: 0
A122: 1005442-2 | B122: 4v4Team | D122: 1012095-1 | E122: 1 | F122: 1012095-1 | G122: 1006884-2 | I122: 0
A123: 1005442-2 | B123: 4v4Team | D123: 1012131-2 | E123: 1 | G123: 1007081-2 | I123: 0
A124: 1005442-2 | B124: 4v4Team | D124: 1012222-1 | E124: 1 | G124: 100727-1 | H124: 100727-1 | I124: 1
A125: 1005442-2 | B125: 4v4Team | D125: 1012445-2 | E125: 1 | G125: 1007366-1 | H125: 1007366-1 | I125: 6
A126: 1005473-1 | B126: 3v3Team | D126: 1012553-1 | E126: 2 | G126: 1007403-2 | I126: 0
A127: 1005473-1 | B127: 3v3Team | D127: 1012612-2 | E127: 1 | G127: 1007426-2 | I127: 0
A128: 1005473-1 | B128: 3v3Team | D128: 1013231-2 | E128: 1 | F128: 1013231-2 | G128: 1007476-2 | I128: 0
A129: 1005538-2 | B129: 3v3r | D129: 1013237-1 | E129: 1 | G129: 1007526-2 | I129: 0
A130: 1005539-2 | B130: 3v3Team | D130: 1013246-1 | E130: 3 | G130: 1007546-1 | H130: 1007546-1 | I130: 1
A131: 1005539-2 | B131: 3v3r | D131: 101341-1 | E131: 1 | G131: 1007549-2 | H131: 1007549-2 | I131: =IF(ISERROR(H131),0,VLOOKUP(G131,$D$2:$E$24935,2,FALSE)) -> 4
A132: 1005599-1 | B132: 2v2r | D132: 1013446-1 | E132: 1 | G132: 1007688-2 | I132: 0
A133: 1005666-2 | B133: 2v2Team | D133: 1013479-1 | E133: 1 | F133: 1013479-1 | G133: 1007706-2 | H133: 1007706-2 | I133: 3
A134: 100581-1 | B134: 2v2Team | D134: 101363-1 | E134: 2 | G134: 1007744-2 | I134: 0
A135: 100581-1 | B135: 2v2Team | D135: 101380-1 | E135: 1 | F135: 101380-1 | G135: 100779-1 | H135: 100779-1 | I135: 1
A136: 100581-1 | B136: 2v2Team | D136: 1013832-1 | E136: 2 | F136: 1013832-1 | G136: 100782-1 | I136: 0
A137: 1005824-1 | B137: 2v2Team | D137: 1013859-1 | E137: 1 | G137: 1007838-2 | I137: 0
A138: 1006094-2 | B138: 3v3Team | D138: 1014031-1 | E138: 3 | F138: 1014031-1 | G138: 1007875-1 | I138: 0
A139: 1006345-1 | B139: 2v2Team | D139: 1014494-1 | E139: 1 | G139: 1007945-2 | I139: 0
A140: 1006345-1 | B140: 2v2Team | D140: 101455-1 | E140: 1 | G140: 1008187-2 | I140: 0
A141: 1006345-1 | B141: 2v2Team | D141: 1014881-1 | E141: 7 | F141: 1014881-1 | G141: 1008254-1 | H141: 1008254-1 | I141: 1
A142: 1006345-1 | B142: 2v2Team | D142: 101489-1 | E142: 1 | G142: 1008267-1 | H142: 1008267-1 | I142: 1
A143: 1006345-1 | B143: 2v2Team | D143: 1015017-1 | E143: 2 | G143: 1008294-2 | I143: 0
A144: 1006345-1 | B144: 2v2Team | D144: 1015055-1 | E144: 2 | G144: 1008330-2 | I144: 0
A145: 1006345-1 | B145: 2v2Team | D145: 1015126-1 | E145: 1 | F145: 1015126-1 | G145: 1008339-1 | I145: 0
A146: 1006345-1 | B146: 2v2Team | D146: 1015230-1 | E146: 2 | G146: 1008464-2 | I146: 0
A147: 1006345-1 | B147: 2v2Team | D147: 1015530-1 | E147: 5 | G147: 1008562-2 | I147: 0
A148: 1006345-1 | B148: 3v3Team | D148: 101564-1 | E148: 1 | G148: 1008786-2 | H148: 1008786-2 | I148: 2
A149: 1006345-1 | B149: 3v3Team | D149: 1015838-1 | E149: 1 | F149: 1015838-1 | G149: 1008829-1 | I149: 0
A150: 1006345-1 | B150: 3v3Team | D150: 1015860-1 | E150: 1 | F150: 1015860-1 | G150: 1008848-2 | I150: 0
A151: 1006345-1 | B151: 3v3Team | D151: 1015946-1 | E151: 4 | G151: 1008944-1 | H151: 1008944-1 | I151: 2
A152: 1006345-1 | B152: 3v3Team | D152: 1016329-1 | E152: 1 | G152: 1008979-2 | I152: 0
A153: 1006345-1 | B153: 3v3Team | D153: 1016356-2 | E153: 1 | G153: 1009043-2 | H153: 1009043-2 | I153: 7
A154: 1006345-1 | B154: 3v3Team | D154: 1016690-1 | E154: 1 | G154: 1009074-2 | I154: 0
A155: 1006345-1 | B155: 3v3Team | D155: 101671-1 | E155: 1 | G155: 100914-1 | H155: 100914-1 | I155: 2
A156: 1006345-1 | B156: 3v3Team | D156: 1016904-2 | E156: 1 | G156: 1009349-2 | I156: 0
A157: 1006345-1 | B157: 3v3Team | D157: 101709-1 | E157: 2 | G157: 100942-2 | I157: 0
A158: 1006345-1 | B158: 3v3Team | D158: 1017260-2 | E158: 2 | F158: 1017260-2 | G158: 1009434-2 | I158: 0
A159: 1006345-1 | B159: 3v3Team | D159: 1017291-1 | E159: 1 | G159: 1009569-2 | I159: 0
A160: 1006345-1 | B160: 4v4Team | D160: 101745-1 | E160: 1 | G160: 1009734-2 | H160: 1009734-2 | I160: 3
A161: 1006345-1 | B161: 4v4Team | D161: 1017535-1 | E161: 3 | F161: 1017535-1 | G161: 1009758-2 | H161: 1009758-2 | I161: 2
A162: 1006345-1 | B162: 4v4Team | D162: 1017560-1 | E162: 1 | G162: 1009808-2 | I162: 0
A163: 1006345-1 | B163: 4v4Team | D163: 1017630-1 | E163: 1 | F163: 1017630-1 | G163: 100990-2 | I163: 0
A164: 1006345-1 | B164: 4v4Team | D164: 101776-1 | E164: 3 | G164: 100991-1 | I164: 0
A165: 1006345-1 | B165: 2v2r | D165: 101782-1 | E165: 5 | F165: 101782-1 | G165: 1009918-1 | H165: 1009918-1 | I165: 2
A166: 1006683-1 | B166: 2v2Team | D166: 1017885-1 | E166: 1 | F166: 1017885-1 | G166: 1009939-2 | I166: 0
A167: 1006713-1 | B167: 2v2Team | D167: 101814-1 | E167: 1 | G167: 1009946-2 | I167: 0
A168: 1006916-1 | B168: 3v3r | D168: 1018147-1 | E168: 2 | G168: 1010004-1 | I168: 0
A169: 100727-1 | B169: 2v2r | D169: 1018192-1 | E169: 1 | G169: 1010011-1 | H169: 1010011-1 | I169: 1
A170: 1007366-1 | B170: 2v2Team | D170: 1018220-1 | E170: 1 | G170: 1010021-1 | I170: 0
A171: 1007366-1 | B171: 2v2Team | D171: 101823-1 | E171: 1 | G171: 1010139-2 | I171: 0
A172: 1007366-1 | B172: 2v2Team | D172: 1018283-1 | E172: 1 | G172: 1010143-2 | I172: 0
A173: 1007366-1 | B173: 3v3Team | D173: 1018345-1 | E173: 1 | G173: 1010227-1 | I173: 0
A174: 1007366-1 | B174: 2v2r | D174: 1018406-2 | E174: 1 | G174: 101036-2 | I174: 0
A175: 1007366-1 | B175: 3v3r | D175: 1018417-2 | E175: 2 | F175: 1018417-2 | G175: 1010398-2 | I175: 0
A176: 1007393-1 | B176: 2v2Team | D176: 1018500-1 | E176: 1 | F176: 1018500-1 | G176: 1010443-2 | I176: 0
A177: 1007393-1 | B177: 2v2Team | D177: 1018624-1 | E177: 1 | G177: 1010547-2 | I177: 0
A178: 1007393-1 | B178: 2v2r | D178: 1018642-1 | E178: 1 | G178: 1010611-2 | H178: 1010611-2 | I178: 2
A179: 1007546-1 | B179: 2v2r | D179: 1018675-2 | E179: 3 | F179: 1018675-2 | G179: 101063-1 | I179: 0
A180: 1007549-2 | B180: 2v2Team | D180: 101879-1 | E180: 1 | G180: 1010660-1 | I180: 0
A181: 1007549-2 | B181: 2v2Team | D181: 1018807-1 | E181: 6 | G181: 1010694-2 | I181: 0
A182: 1007549-2 | B182: 3v3Team | D182: 1018809-2 | E182: 2 | F182: 1018809-2 | G182: 1010738-1 | H182: 1010738-1 | I182: 2
A183: 1007549-2 | B183: 3v3Team | D183: 1018860-1 | E183: 3 | F183: 1018860-1 | G183: 101104-1 | H183: 101104-1 | I183: 1
A184: 1007706-2 | B184: 2v2Team | D184: 1018905-1 | E184: 1 | G184: 1011067-2 | H184: 1011067-2 | I184: 2
A185: 1007706-2 | B185: 2v2Team | D185: 1018914-2 | E185: 1 | G185: 1011374-1 | H185: 1011374-1 | I185: 2
A186: 1007706-2 | B186: 2v2Team | D186: 1018993-1 | E186: 1 | G186: 1011414-2 | I186: 0
A187: 100779-1 | B187: 3v3r | D187: 101924-1 | E187: 1 | G187: 1011477-1 | I187: 0
A188: 1007901-1 | B188: 3v3r | D188: 1019465-2 | E188: 1 | G188: 1011489-1 | H188: 1011489-1 | I188: 9
A189: 1008023-2 | B189: 2v2Team | D189: 1019697-1 | E189: 1 | G189: 1011547-2 | I189: 0
A190: 1008023-2 | B190: 3v3Team | D190: 1019753-2 | E190: 3 | F190: 1019753-2 | G190: 1011613-1 | I190: 0
A191: 100805-1 | B191: 4v4r | D191: 1019968-1 | E191: 1 | G191: 1011647-1 | H191: 1011647-1 | I191: 2
A192: 1008182-2 | B192: 2v2Team | D192: 102001-1 | E192: 1 | G192: 1011754-2 | I192: 0
A193: 1008182-2 | B193: 2v2Team | D193: 1020045-1 | E193: 1 | G193: 1011818-2 | I193: 0
A194: 1008182-2 | B194: 2v2Team | D194: 1020159-1 | E194: 1 | G194: 1011914-2 | I194: 0
A195: 1008182-2 | B195: 3v3Team | D195: 1020472-1 | E195: 1 | G195: 1012013-2 | I195: =IF(ISERROR(H195),0,VLOOKUP(G195,$D$2:$E$24935,2,FALSE)) -> 0
A196: 1008182-2 | B196: 3v3Team | D196: 1020842-1 | E196: 1 | G196: 1012095-1 | H196: 1012095-1 | I196: 1
A197: 1008182-2 | B197: 3v3r | D197: 102098-1 | E197: 2 | F197: 102098-1 | G197: 1012333-1 | I197: 0
A198: 100823-1 | B198: 2v2Team | D198: 102139-1 | E198: 1 | G198: 1012420-1 | I198: 0
A199: 100823-1 | B199: 2v2Team | D199: 102146-1 | E199: 1 | G199: 1012631-1 | I199: 0
A200: 100823-1 | B200: 3v3r | D200: 102177-2 | E200: 1 | G200: 101278-1 | I200: 0
... 4300 more rows

Sheet 2v2Team
A1: Player ID 1 | B1: Player 1 Region | C1: Player 1 Subregion | D1: Player 1 Name | E1: Player 1 Race | F1: Player ID 2 | G1: Player 2 Region | H1: Player 2 Subregion | I1: Player 2 Name | J1: Player 2 Race | K1: League | L1: Win | M1: Loss | N1: Score | O1: Date Joined | P1: Last Game | Q1: Timestamp | R1: TrueID | S1: Duplicate Check | T1: Ordered ID
A2: 321365 | B2: kr | C2: 2 | D2: airmo | E2: z | F2: 32686 | G2: kr | H2: 2 | I2: Rot | J2: p | K2: Bronze | L2: 46 | M2: 55 | N2: 660 | O2: 2014-11-12 | P2: 15 hours | Q2: 2014-12-21T23:47:58 | R2: 321365-2|32686-2 | S2: 0 | T2: 2 | U2: 321365-2 | V2: 32686-2 | W2: Bronze
A3: 3254724 | B3: kr | C3: 1 | D3: Knight | E3: t | F3: 2825574 | G3: kr | H3: 1 | I3: ì¼ì„ | J3: p | K3: Bronze | L3: 23 | M3: 23 | N3: 595 | O3: 2014-11-30 | P3: 9 hours | Q3: 2014-12-21T23:47:58 | R3: 3254724-1|2825574-1 | S3: 0 | T3: 3 | U3: 3254724-1 | V3: 2825574-1 | W3: Bronze
A4: 1885735 | B4: kr | C4: 1 | D4: ë ˆì¢… | E4: t | F4: 1885057 | G4: kr | H4: 1 | I4: í“¨ì–´ì›” | J4: r | K4: Bronze | L4: 45 | M4: 49 | N4: 586 | O4: 2014-11-15 | P4: 18 hours | Q4: 2014-12-21T23:47:58 | R4: 1885735-1|1885057-1 | S4: 0 | T4: 4 | U4: 1885735-1 | V4: 1885057-1 | W4: Bronze
A5: 4619271 | B5: kr | C5: 1 | D5: ë‚˜ëŠ”ë‚˜ë‹¤ | E5: r | F5: 4492038 | G5: kr | H5: 1 | I5: ë‹¤ë‹ˆì•Œë² ìŠ¤ | J5: p | K5: Bronze | L5: 26 | M5: 29 | N5: 582 | O5: 2014-11-17 | P5: 23 hours | Q5: 2014-12-21T23:47:58 | R5: 4619271-1|4492038-1 | S5: 0 | T5: 5 | U5: 4619271-1 | V5: 4492038-1 | W5: Bronze
A6: 4684692 | B6: kr | C6: 1 | D6: ì£¼ê±°ì£¼ê±°ì‹œí‚¤ì•¼ | E6: p | F6: 1649028 | G6: kr | H6: 1 | I6: ë°œë‚˜ìš°ë„ | J6: r | K6: Bronze | L6: 33 | M6: 37 | N6: 576 | O6: 2014-11-13 | P6: 1 days | Q6: 2014-12-21T23:47:58 | R6: 4684692-1|1649028-1 | S6: 0 | T6: 6 | U6: 4684692-1 | V6: 1649028-1 | W6: Bronze
A7: 2906863 | B7: kr | C7: 1 | D7: ì´í˜„ì¢… | E7: r | F7: 2671692 | G7: kr | H7: 1 | I7: ì‹ ì„±í›ˆì˜¤íƒ€ì¿ | J7: t | K7: Bronze | L7: 19 | M7: 15 | N7: 575 | O7: 2014-11-29 | P7: 1 days | Q7: 2014-12-21T23:47:58 | R7: 2906863-1|2671692-1 | S7: 0 | T7: 7 | U7: 2906863-1 | V7: 2671692-1 | W7: Bronze
A8: 4371176 | B8: kr | C8: 1 | D8: ìŠ¹í›ˆ | E8: t | F8: 4071564 | G8: kr | H8: 1 | I8: ì•„ì‹¸ê·¸ëƒ¥ | J8: p | K8: Bronze | L8: 24 | M8: 19 | N8: 572 | O8: 2014-11-27 | P8: 2 days | Q8: 2014-12-21T23:47:58 | R8: 4371176-1|4071564-1 | S8: 0 | T8: 8 | U8: 4371176-1 | V8: 4071564-1 | W8: Bronze
A9: 3956256 | B9: kr | C9: 1 | D9: ì‹¹ë‹¤ | E9: p | F9: 2049762 | G9: kr | H9: 1 | I9: ë¯¼ì´ | J9: p | K9: Bronze | L9: 17 | M9: 20 | N9: 570 | O9: 2014-12-17 | P9: 1 hours | Q9: 2014-12-21T23:47:58 | R9: 3956256-1|2049762-1 | S9: 0 | T9: 9 | U9: 3956256-1 | V9: 2049762-1 | W9: Bronze
A10: 3491132 | B10: kr | C10: 1 | D10: Second | E10: p | F10: 645436 | G10: kr | H10: 1 | I10: ìž¥êµ°ì•„ë¹ | J10: t | K10: Bronze | L10: 37 | M10: 39 | N10: 563 | O10: 2014-11-29 | P10: 5 days | Q10: 2014-12-21T23:47:58 | R10: 3491132-1|645436-1 | S10: 0 | T10: 10 | U10: 3491132-1 | V10: 645436-1 | W10: Bronze
A11: 1778461 | B11: kr | C11: 1 | D11: ì´ëˆ„ë¯¸ë¯¸ë„ê° | E11: p | F11: 1029290 | G11: kr | H11: 1 | I11: ë‘ë”ì§€ìˆ˜ì—¼ | J11: p | K11: Bronze | L11: 31 | M11: 33 | N11: 556 | O11: 2014-11-16 | P11: 1 days | Q11: 2014-12-21T23:47:58 | R11: 1778461-1|1029290-1 | S11: 0 | T11: 11 | U11: 1778461-1 | V11: 1029290-1 | W11: Bronze
A12: 87173 | B12: kr | C12: 2 | D12: å¤©ä¹‹ç„± | E12: z | F12: 76713 | G12: kr | H12: 2 | I12: Arerisu | J12: r | K12: Bronze | L12: 23 | M12: 20 | N12: 551 | O12: 2014-11-22 | P12: 13 hours | Q12: 2014-12-21T23:47:58 | R12: 87173-2|76713-2 | S12: 0 | T12: 12 | U12: 87173-2 | V12: 76713-2 | W12: Bronze
A13: 1776579 | B13: kr | C13: 1 | D13: wind | E13: p | F13: 1773150 | G13: kr | H13: 1 | I13: hjh | J13: t | K13: Bronze | L13: 53 | M13: 55 | N13: 548 | O13: 2014-11-10 | P13: 16 hours | Q13: 2014-12-21T23:47:58 | R13: 1776579-1|1773150-1 | S13: 0 | T13: 13 | U13: 1776579-1 | V13: 1773150-1 | W13: Bronze
A14: 2347807 | B14: kr | C14: 1 | D14: íŠ¸ìœ„í‹°ë§žê³ | E14: p | F14: 524971 | G14: kr | H14: 1 | I14: ë©”ë”• | J14: z | K14: Bronze | L14: 31 | M14: 40 | N14: 544 | O14: 2014-11-12 | P14: 1 days | Q14: 2014-12-21T23:47:58 | R14: 2347807-1|524971-1 | S14: 0 | T14: 14 | U14: 2347807-1 | V14: 524971-1 | W14: Bronze
A15: 3086007 | B15: kr | C15: 1 | D15: oidmobile | E15: p | F15: 1477058 | G15: kr | H15: 1 | I15: Kura | J15: r | K15: Bronze | L15: 43 | M15: 51 | N15: 543 | O15: 2014-11-10 | P15: 1 days | Q15: 2014-12-21T23:47:58 | R15: 3086007-1|1477058-1 | S15: 0 | T15: 15 | U15: 3086007-1 | V15: 1477058-1 | W15: Bronze
A16: 1743190 | B16: kr | C16: 1 | D16: nesto | E16: p | F16: 1727452 | G16: kr | H16: 1 | I16: ë°˜ë„ì²´ì†Œìžê³µí•™ | J16: t | K16: Bronze | L16: 18 | M16: 16 | N16: 532 | O16: 2014-11-18 | P16: 3 days | Q16: 2014-12-21T23:47:58 | R16: 1743190-1|1727452-1 | S16: 0 | T16: 16 | U16: 1743190-1 | V16: 1727452-1 | W16: Bronze
A17: 1952544 | B17: kr | C17: 1 | D17: ì–Œë§ˆ | E17: t | F17: 177400 | G17: kr | H17: 1 | I17: overthedark | J17: p | K17: Bronze | L17: 17 | M17: 20 | N17: 529 | O17: 2014-11-22 | P17: 1 days | Q17: 2014-12-21T23:47:58 | R17: 1952544-1|177400-1 | S17: 0 | T17: 17 | U17: 1952544-1 | V17: 177400-1 | W17: Bronze
A18: 1747929 | B18: kr | C18: 1 | D18: BioKiD | E18: p | F18: 332508 | G18: kr | H18: 1 | I18: BioHazarD | J18: z | K18: Bronze | L18: 47 | M18: 57 | N18: 524 | O18: 2014-11-10 | P18: 11 days | Q18: 2014-12-21T23:47:58 | R18: 1747929-1|332508-1 | S18: 0 | T18: 18 | U18: 1747929-1 | V18: 332508-1 | W18: Bronze
A19: 2752449 | B19: kr | C19: 1 | D19: ì •ìœ¤ì„± | E19: t | F19: 1994402 | G19: kr | H19: 1 | I19: qest | J19: r | K19: Bronze | L19: 16 | M19: 8 | N19: 522 | O19: 2014-12-09 | P19: 3 days | Q19: 2014-12-21T23:47:58 | R19: 2752449-1|1994402-1 | S19: 0 | T19: 19 | U19: 2752449-1 | V19: 1994402-1 | W19: Bronze
A20: 1059306 | B20: kr | C20: 2 | D20: æ­£äººå›å­ | E20: p | F20: 80009 | G20: kr | H20: 2 | I20: Evan | J20: p | K20: Bronze | L20: 34 | M20: 40 | N20: 521 | O20: 2014-11-11 | P20: 17 hours | Q20: 2014-12-21T23:47:58 | R20: 1059306-2|80009-2 | S20: 0 | T20: 20 | U20: 1059306-2 | V20: 80009-2 | W20: Bronze
A21: 1670415 | B21: kr | C21: 1 | D21: HaHaHam | E21: p | F21: 714255 | G21: kr | H21: 1 | I21: happyto | J21: t | K21: Bronze | L21: 22 | M21: 19 | N21: 519 | O21: 2014-11-10 | P21: 4 days | Q21: 2014-12-21T23:47:58 | R21: 1670415-1|714255-1 | S21: 0 | T21: 21 | U21: 1670415-1 | V21: 714255-1 | W21: Bronze
A22: 3060564 | B22: kr | C22: 1 | D22: ëíŒì™• | E22: p | F22: 950464 | G22: kr | H22: 1 | I22: ë£Œë§ˆ | J22: z | K22: Bronze | L22: 16 | M22: 14 | N22: 516 | O22: 2014-12-03 | P22: 4 days | Q22: 2014-12-21T23:47:58 | R22: 3060564-1|950464-1 | S22: 0 | T22: 22 | U22: 3060564-1 | V22: 950464-1 | W22: Bronze
A23: 4782943 | B23: kr | C23: 1 | D23: blackjack | E23: p | F23: 4782739 | G23: kr | H23: 1 | I23: Maximus | J23: z | K23: Bronze | L23: 24 | M23: 28 | N23: 516 | O23: 2014-11-19 | P23: 7 days | Q23: 2014-12-21T23:47:58 | R23: 4782943-1|4782739-1 | S23: 0 | T23: 23 | U23: 4782943-1 | V23: 4782739-1 | W23: Bronze
A24: 3417999 | B24: kr | C24: 1 | D24: StarTechGold | E24: z | F24: 3291564 | G24: kr | H24: 1 | I24: ë² ë¥´ë‚˜ì¸ | J24: t | K24: Bronze | L24: 30 | M24: 50 | N24: 513 | O24: 2014-11-24 | P24: 2 days | Q24: 2014-12-21T23:47:58 | R24: 3417999-1|3291564-1 | S24: 0 | T24: 24 | U24: 3417999-1 | V24: 3291564-1 | W24: Bronze
A25: 2265458 | B25: kr | C25: 1 | D25: ìŠˆí¼ê°€ëŠ”ì½”ë¦¬ì•ˆ | E25: t | F25: 2261825 | G25: kr | H25: 1 | I25: SharkLord | J25: p | K25: Bronze | L25: 17 | M25: 11 | N25: 508 | O25: 2014-11-25 | P25: 17 hours | Q25: 2014-12-21T23:47:58 | R25: 2265458-1|2261825-1 | S25: 0 | T25: 25 | U25: 2265458-1 | V25: 2261825-1 | W25: Bronze
A26: 3056765 | B26: kr | C26: 1 | D26: ì´ìš°íƒ± | E26: t | F26: 3015947 | G26: kr | H26: 1 | I26: ì „ìž¥ì˜ê´‘ì „ì‚¬ | J26: p | K26: Bronze | L26: 20 | M26: 25 | N26: 505 | O26: 2014-12-13 | P26: 23 hours | Q26: 2014-12-21T23:47:58 | R26: 3056765-1|3015947-1 | S26: 0 | T26: 26 | U26: 3056765-1 | V26: 3015947-1 | W26: Bronze
A27: 1003731 | B27: kr | C27: 2 | D27: é¢¨ä¹‹å¹»å­ | E27: z | F27: 781634 | G27: kr | H27: 2 | I27: DySen | J27: z | K27: Bronze | L27: 32 | M27: 39 | N27: 503 | O27: 2014-11-16 | P27: 22 hours | Q27: 2014-12-21T23:47:58 | R27: 1003731-2|781634-2 | S27: 0 | T27: 27 | U27: 1003731-2 | V27: 781634-2 | W27: Bronze
A28: 4687240 | B28: kr | C28: 1 | D28: ë‹¬ë‹˜ | E28: p | F28: 4687074 | G28: kr | H28: 1 | I28: ë³„ë‹˜ | J28: z | K28: Bronze | L28: 35 | M28: 45 | N28: 503 | O28: 2014-11-14 | P28: 13 hours | Q28: 2014-12-21T23:47:58 | R28: 4687240-1|4687074-1 | S28: 0 | T28: 28 | U28: 4687240-1 | V28: 4687074-1 | W28: Bronze
A29: 1077201 | B29: kr | C29: 2 | D29: davidliin | E29: p | F29: 822003 | G29: kr | H29: 2 | I29: Soleil | J29: p | K29: Bronze | L29: 30 | M29: 33 | N29: 497 | O29: 2014-11-15 | P29: 4 days | Q29: 2014-12-21T23:47:58 | R29: 1077201-2|822003-2 | S29: 0 | T29: 29 | U29: 1077201-2 | V29: 822003-2 | W29: Bronze
A30: 3556668 | B30: kr | C30: 1 | D30: ê°€ë‚œì˜ì–¸ë• | E30: p | F30: 1082232 | G30: kr | H30: 1 | I30: ë°”ë² íê³ í†µë§› | J30: p | K30: Bronze | L30: 42 | M30: 61 | N30: 497 | O30: 2014-11-10 | P30: 2 days | Q30: 2014-12-21T23:47:58 | R30: 3556668-1|1082232-1 | S30: 0 | T30: 30 | U30: 3556668-1 | V30: 1082232-1 | W30: Bronze
A31: 1259997 | B31: kr | C31: 2 | D31: KICKYOURASS | E31: p | F31: 1251166 | G31: kr | H31: 2 | I31: è¼•é¬†ç‚¸ | J31: t | K31: Bronze | L31: 26 | M31: 31 | N31: 496 | O31: 2014-11-30 | P31: 22 hours | Q31: 2014-12-21T23:47:58 | R31: 1259997-2|1251166-2 | S31: 0 | T31: 31 | U31: 1259997-2 | V31: 1251166-2 | W31: Bronze
A32: 3087031 | B32: kr | C32: 1 | D32: ì˜¤í•œì†” | E32: z | F32: 2382520 | G32: kr | H32: 1 | I32: whygirl | J32: p | K32: Bronze | L32: 22 | M32: 26 | N32: 495 | O32: 2014-12-05 | P32: 7 hours | Q32: 2014-12-21T23:47:59 | R32: 3087031-1|2382520-1 | S32: 0 | T32: 32 | U32: 3087031-1 | V32: 2382520-1 | W32: Bronze
A33: 4582886 | B33: kr | C33: 1 | D33: AnarchyEzio | E33: p | F33: 4264316 | G33: kr | H33: 1 | I33: ë¯¸ë‚˜ë¯¸ | J33: r | K33: Bronze | L33: 38 | M33: 36 | N33: 489 | O33: 2014-11-10 | P33: 11 days | Q33: 2014-12-21T23:47:59 | R33: 4582886-1|4264316-1 | S33: 0 | T33: 33 | U33: 4582886-1 | V33: 4264316-1 | W33: Bronze
A34: 4278411 | B34: kr | C34: 1 | D34: yjin | E34: p | F34: 2776035 | G34: kr | H34: 1 | I34: ì°¨ì°¨ì°¨ì°¨ì°¨ì°¨ì°¨ì°¨ | J34: p | K34: Bronze | L34: 23 | M34: 26 | N34: 486 | O34: 2014-12-07 | P34: 8 days | Q34: 2014-12-21T23:47:59 | R34: 4278411-1|2776035-1 | S34: 0 | T34: 34 | U34: 4278411-1 | V34: 2776035-1 | W34: Bronze
A35: 2903163 | B35: kr | C35: 1 | D35: ê°œêµ¬ë¦¬ | E35: r | F35: 438209 | G35: kr | H35: 1 | I35: ë‚´ê°€ê°‘ì´ë‹¤ | J35: p | K35: Bronze | L35: 26 | M35: 32 | N35: 484 | O35: 2014-12-05 | P35: 16 hours | Q35: 2014-12-21T23:47:59 | R35: 2903163-1|438209-1 | S35: 0 | T35: 35 | U35: 2903163-1 | V35: 438209-1 | W35: Bronze
A36: 1271226 | B36: kr | C36: 2 | D36: MMILY | E36: z | F36: 788577 | G36: kr | H36: 2 | I36: è¡›æ–¯ç† | J36: z | K36: Bronze | L36: 15 | M36: 15 | N36: 480 | O36: 2014-11-14 | P36: 5 days | Q36: 2014-12-21T23:47:59 | R36: 1271226-2|788577-2 | S36: 0 | T36: 36 | U36: 1271226-2 | V36: 788577-2 | W36: Bronze
A37: 1009098 | B37: kr | C37: 1 | D37: red | E37: z | F37: 819105 | G37: kr | H37: 1 | I37: BaHn | J37: t | K37: Bronze | L37: 24 | M37: 29 | N37: 480 | O37: 2014-11-10 | P37: 3 days | Q37: 2014-12-21T23:47:59 | R37: 1009098-1|819105-1 | S37: 0 | T37: 37 | U37: 1009098-1 | V37: 819105-1 | W37: Bronze
A38: 904483 | B38: kr | C38: 1 | D38: ë‘í”¼ì™•ê¹€ë¹¡êµ¬ | E38: t | F38: 558142 | G38: kr | H38: 1 | I38: ì²œì‚¬ëˆˆë¹› | J38: z | K38: Bronze | L38: 33 | M38: 39 | N38: 479 | O38: 2014-11-11 | P38: 6 days | Q38: 2014-12-21T23:47:59 | R38: 904483-1|558142-1 | S38: 0 | T38: 38 | U38: 904483-1 | V38: 558142-1 | W38: Bronze
A39: 4812278 | B39: kr | C39: 1 | D39: í—ˆê²½í˜¸ | E39: p | F39: 3241296 | G39: kr | H39: 1 | I39: ëª¨ì†”ì•„ë‹¤ | J39: z | K39: Bronze | L39: 21 | M39: 37 | N39: 476 | O39: 2014-12-18 | P39: 21 hours | Q39: 2014-12-21T23:47:59 | R39: 4812278-1|3241296-1 | S39: 0 | T39: 39 | U39: 4812278-1 | V39: 3241296-1 | W39: Bronze
A40: 2014102 | B40: kr | C40: 1 | D40: tnrnvn | E40: p | F40: 740629 | G40: kr | H40: 1 | I40: rin | J40: r | K40: Bronze | L40: 29 | M40: 23 | N40: 471 | O40: 2014-11-17 | P40: 15 days | Q40: 2014-12-21T23:47:59 | R40: 2014102-1|740629-1 | S40: 0 | T40: 40 | U40: 2014102-1 | V40: 740629-1 | W40: Bronze
A41: 1682347 | B41: kr | C41: 1 | D41: somnus | E41: t | F41: 172301 | G41: kr | H41: 1 | I41: NaDa | J41: p | K41: Bronze | L41: 17 | M41: 21 | N41: 470 | O41: 2014-11-09 | P41: 6 days | Q41: 2014-12-21T23:47:59 | R41: 1682347-1|172301-1 | S41: 0 | T41: 41 | U41: 1682347-1 | V41: 172301-1 | W41: Bronze
A42: 2602914 | B42: kr | C42: 1 | D42: DwarX | E42: p | F42: 1328053 | G42: kr | H42: 1 | I42: Chronic | J42: t | K42: Bronze | L42: 17 | M42: 13 | N42: 468 | O42: 2014-11-15 | P42: 1 days | Q42: 2014-12-21T23:47:59 | R42: 2602914-1|1328053-1 | S42: 0 | T42: 42 | U42: 2602914-1 | V42: 1328053-1 | W42: Bronze
A43: 325431 | B43: kr | C43: 2 | D43: yychen | E43: z | F43: 91030 | G43: kr | H43: 2 | I43: ReDrAy | J43: z | K43: Bronze | L43: 17 | M43: 24 | N43: 468 | O43: 2014-11-14 | P43: 1 days | Q43: 2014-12-21T23:47:59 | R43: 325431-2|91030-2 | S43: 0 | T43: 43 | U43: 325431-2 | V43: 91030-2 | W43: Bronze
A44: 310138 | B44: kr | C44: 2 | D44: uts | E44: t | F44: 204080 | G44: kr | H44: 2 | I44: BigHammer | J44: t | K44: Bronze | L44: 50 | M44: 80 | N44: 468 | O44: 2014-11-16 | P44: 1 days | Q44: 2014-12-21T23:47:59 | R44: 310138-2|204080-2 | S44: 0 | T44: 44 | U44: 310138-2 | V44: 204080-2 | W44: Bronze
A45: 4105889 | B45: kr | C45: 1 | D45: ì œì´ì œì´ | E45: r | F45: 2158216 | G45: kr | H45: 1 | I45: ëˆ„ë ì´ | J45: r | K45: Bronze | L45: 25 | M45: 31 | N45: 467 | O45: 2014-11-16 | P45: 4 days | Q45: 2014-12-21T23:47:59 | R45: 4105889-1|2158216-1 | S45: 0 | T45: 45 | U45: 4105889-1 | V45: 2158216-1 | W45: Bronze
A46: 4354762 | B46: kr | C46: 1 | D46: ê°œì•ˆë‚˜ | E46: z | F46: 1768043 | G46: kr | H46: 1 | I46: Aceq | J46: t | K46: Bronze | L46: 14 | M46: 8 | N46: 466 | O46: 2014-11-29 | P46: 2 days | Q46: 2014-12-21T23:47:59 | R46: 4354762-1|1768043-1 | S46: 0 | T46: 46 | U46: 4354762-1 | V46: 1768043-1 | W46: Bronze
A47: 4804326 | B47: kr | C47: 1 | D47: í‚¤ë‚˜ëž‘ë³´ë¦¬ëž‘ | E47: z | F47: 3717659 | G47: kr | H47: 1 | I47: ìž¥ìœ ì§„ | J47: p | K47: Bronze | L47: 17 | M47: 28 | N47: 466 | O47: 2014-12-13 | P47: 10 hours | Q47: 2014-12-21T23:47:59 | R47: 4804326-1|3717659-1 | S47: 0 | T47: 47 | U47: 4804326-1 | V47: 3717659-1 | W47: Bronze
A48: 4769316 | B48: kr | C48: 1 | D48: ê¹€í°íƒ€ | E48: z | F48: 737912 | G48: kr | H48: 1 | I48: NayChies | J48: p | K48: Bronze | L48: 33 | M48: 29 | N48: 465 | O48: 2014-11-10 | P48: 13 days | Q48: 2014-12-21T23:47:59 | R48: 4769316-1|737912-1 | S48: 0 | T48: 48 | U48: 4769316-1 | V48: 737912-1 | W48: Bronze
A49: 3016459 | B49: kr | C49: 1 | D49: ìš°íŒŒí‚¹ | E49: t | F49: 225951 | G49: kr | H49: 1 | I49: ksy | J49: p | K49: Bronze | L49: 24 | M49: 27 | N49: 463 | O49: 2014-11-10 | P49: 5 days | Q49: 2014-12-21T23:47:59 | R49: 3016459-1|225951-1 | S49: 0 | T49: 49 | U49: 3016459-1 | V49: 225951-1 | W49: Bronze
A50: 2407514 | B50: kr | C50: 1 | D50: ì„¯ë‹¤íŒ¨ë‹ˆìŠ¤ | E50: p | F50: 311963 | G50: kr | H50: 1 | I50: zhanna | J50: t | K50: Bronze | L50: 16 | M50: 15 | N50: 456 | O50: 2014-12-06 | P50: 9 days | Q50: 2014-12-21T23:47:59 | R50: 2407514-1|311963-1 | S50: 0 | T50: 50 | U50: 2407514-1 | V50: 311963-1 | W50: Bronze
A51: 1354557 | B51: kr | C51: 2 | D51: LEE | E51: t | F51: 1139871 | G51: kr | H51: 2 | I51: MIKE | J51: r | K51: Bronze | L51: 20 | M51: 43 | N51: 455 | O51: 2014-11-10 | P51: 2 days | Q51: 2014-12-21T23:47:59 | R51: 1354557-2|1139871-2 | S51: 0 | T51: 51 | U51: 1354557-2 | V51: 1139871-2 | W51: Bronze
A52: 4742361 | B52: kr | C52: 1 | D52: í™ìµì¸ì¼ | E52: z | F52: 1387178 | G52: kr | H52: 1 | I52: ë‚ ì•„ë¼ì¹˜í€¸ | J52: p | K52: Bronze | L52: 16 | M52: 18 | N52: 454 | O52: 2014-11-21 | P52: 8 days | Q52: 2014-12-21T23:47:59 | R52: 4742361-1|1387178-1 | S52: 0 | T52: 52 | U52: 4742361-1 | V52: 1387178-1 | W52: Bronze
A53: 4110635 | B53: kr | C53: 1 | D53: ë²”ìˆ˜ë‹¤ | E53: p | F53: 2613715 | G53: kr | H53: 1 | I53: ì˜í˜„ì´ë‹« | J53: t | K53: Bronze | L53: 26 | M53: 33 | N53: 454 | O53: 2014-11-13 | P53: 6 days | Q53: 2014-12-21T23:47:59 | R53: 4110635-1|2613715-1 | S53: 0 | T53: 53 | U53: 4110635-1 | V53: 2613715-1 | W53: Bronze
A54: 1058298 | B54: kr | C54: 2 | D54: æ¢…åŸé›ª | E54: t | F54: 987734 | G54: kr | H54: 2 | I54: å¤©ç—• | J54: r | K54: Bronze | L54: 20 | M54: 28 | N54: 454 | O54: 2014-11-15 | P54: 1 days | Q54: 2014-12-21T23:47:59 | R54: 1058298-2|987734-2 | S54: 0 | T54: 54 | U54: 1058298-2 | V54: 987734-2 | W54: Bronze
A55: 4664240 | B55: kr | C55: 1 | D55: í˜„ìžíƒ | E55: t | F55: 2169162 | G55: kr | H55: 1 | I55: ê°„ì§€ë‚¨ | J55: r | K55: Bronze | L55: 20 | M55: 35 | N55: 454 | O55: 2014-11-10 | P55: 6 days | Q55: 2014-12-21T23:47:59 | R55: 4664240-1|2169162-1 | S55: 0 | T55: 55 | U55: 4664240-1 | V55: 2169162-1 | W55: Bronze
A56: 4289453 | B56: kr | C56: 1 | D56: RIquidHeart | E56: t | F56: 134710 | G56: kr | H56: 1 | I56: JMK | J56: p | K56: Bronze | L56: 21 | M56: 22 | N56: 451 | O56: 2014-11-19 | P56: 7 days | Q56: 2014-12-21T23:47:59 | R56: 4289453-1|134710-1 | S56: 0 | T56: 56 | U56: 4289453-1 | V56: 134710-1 | W56: Bronze
A57: 4101822 | B57: kr | C57: 1 | D57: ë‹¹ë‡¨ë³‘ | E57: t | F57: 172497 | G57: kr | H57: 1 | I57: Redbass | J57: p | K57: Bronze | L57: 16 | M57: 16 | N57: 446 | O57: 2014-12-08 | P57: 14 hours | Q57: 2014-12-21T23:47:59 | R57: 4101822-1|172497-1 | S57: 0 | T57: 57 | U57: 4101822-1 | V57: 172497-1 | W57: Bronze
A58: 4737932 | B58: kr | C58: 1 | D58: ì–‘ë• | E58: p | F58: 285376 | G58: kr | H58: 1 | I58: ë„¤ì¹´ | J58: p | K58: Bronze | L58: 15 | M58: 14 | N58: 445 | O58: 2014-11-09 | P58: 1 days | Q58: 2014-12-21T23:47:59 | R58: 4737932-1|285376-1 | S58: 0 | T58: 58 | U58: 4737932-1 | V58: 285376-1 | W58: Bronze
A59: 1259997 | B59: kr | C59: 2 | D59: KICKYOURASS | E59: p | F59: 288913 | G59: kr | H59: 2 | I59: å¤©è€… | J59: t | K59: Bronze | L59: 27 | M59: 32 | N59: 445 | O59: 2014-11-10 | P59: 9 days | Q59: 2014-12-21T23:47:59 | R59: 1259997-2|288913-2 | S59: 0 | T59: 59 | U59: 1259997-2 | V59: 288913-2 | W59: Bronze
A60: 1372304 | B60: kr | C60: 2 | D60: Incredible | E60: z | F60: 1217096 | G60: kr | H60: 2 | I60: amy | J60: z | K60: Bronze | L60: 15 | M60: 22 | N60: 444 | O60: 2014-11-17 | P60: 4 days | Q60: 2014-12-21T23:47:59 | R60: 1372304-2|1217096-2 | S60: 0 | T60: 60 | U60: 1372304-2 | V60: 1217096-2 | W60: Bronze
A61: 4762023 | B61: kr | C61: 1 | D61: Wackadoodoo | E61: p | F61: 4724217 | G61: kr | H61: 1 | I61: PedroDelAgua | J61: z | K61: Bronze | L61: 58 | M61: 95 | N61: 441 | O61: 2014-11-10 | P61: 1 days | Q61: 2014-12-21T23:47:59 | R61: 4762023-1|4724217-1 | S61: 0 | T61: 61 | U61: 4762023-1 | V61: 4724217-1 | W61: Bronze
A62: 901211 | B62: kr | C62: 2 | D62: GGT | E62: z | F62: 831297 | G62: kr | H62: 2 | I62: å°å¼Ÿ | J62: p | K62: Bronze | L62: 14 | M62: 8 | N62: 438 | O62: 2014-11-16 | P62: 18 hours | Q62: 2014-12-21T23:47:59 | R62: 901211-2|831297-2 | S62: 0 | T62: 62 | U62: 901211-2 | V62: 831297-2 | W62: Bronze
A63: 3165533 | B63: kr | C63: 1 | D63: í—ˆí—ˆí—ˆí—ˆí—ˆížˆí˜¸ | E63: p | F63: 3165286 | G63: kr | H63: 1 | I63: ë°±íŒ”ì‹­ì¼êµ¬ì‹­í‚¤ë¡œ | J63: t | K63: Bronze | L63: 20 | M63: 20 | N63: 436 | O63: 2014-11-28 | P63: 18 days | Q63: 2014-12-21T23:47:59 | R63: 3165533-1|3165286-1 | S63: 0 | T63: 63 | U63: 3165533-1 | V63: 3165286-1 | W63: Bronze
A64: 1063435 | B64: kr | C64: 2 | D64: Coldly | E64: p | F64: 927746 | G64: kr | H64: 2 | I64: å³åœ‹æ˜Ž | J64: p | K64: Bronze | L64: 15 | M64: 21 | N64: 436 | O64: 2014-11-25 | P64: 6 days | Q64: 2014-12-21T23:47:59 | R64: 1063435-2|927746-2 | S64: 0 | T64: 64 | U64: 1063435-2 | V64: 927746-2 | W64: Bronze
A65: 4566110 | B65: kr | C65: 1 | D65: JackRipper | E65: t | F65: 4006650 | G65: kr | H65: 1 | I65: ìƒ˜ìœ¤ | J65: t | K65: Bronze | L65: 14 | M65: 11 | N65: 434 | O65: 2014-12-06 | P65: 1 days | Q65: 2014-12-21T23:47:59 | R65: 4566110-1|4006650-1 | S65: 0 | T65: 65 | U65: 4566110-1 | V65: 4006650-1 | W65: Bronze
A66: 4675993 | B66: kr | C66: 1 | D66: PrimoBacio | E66: t | F66: 3206700 | G66: kr | H66: 1 | I66: RieslinG | J66: p | K66: Bronze | L66: 21 | M66: 30 | N66: 416 | O66: 2014-11-27 | P66: 8 days | Q66: 2014-12-21T23:47:59 | R66: 4675993-1|3206700-1 | S66: 0 | T66: 66 | U66: 4675993-1 | V66: 3206700-1 | W66: Bronze
A67: 4782201 | B67: kr | C67: 1 | D67: givenchy | E67: z | F67: 1270298 | G67: kr | H67: 1 | I67: zzz | J67: p | K67: Bronze | L67: 20 | M67: 43 | N67: 415 | O67: 2014-12-02 | P67: 3 days | Q67: 2014-12-21T23:47:59 | R67: 4782201-1|1270298-1 | S67: 0 | T67: 67 | U67: 4782201-1 | V67: 1270298-1 | W67: Bronze
A68: 3505870 | B68: kr | C68: 1 | D68: dig | E68: p | F68: 2545496 | G68: kr | H68: 1 | I68: IMMvp | J68: z | K68: Bronze | L68: 12 | M68: 16 | N68: 414 | O68: 2014-11-25 | P68: 2 days | Q68: 2014-12-21T23:47:59 | R68: 3505870-1|2545496-1 | S68: 0 | T68: 68 | U68: 3505870-1 | V68: 2545496-1 | W68: Bronze
A69: 225164 | B69: kr | C69: 2 | D69: ç‰™ç±¤ | E69: p | F69: 110265 | G69: kr | H69: 2 | I69: flybird | J69: t | K69: Bronze | L69: 20 | M69: 32 | N69: 413 | O69: 2014-11-11 | P69: 14 hours | Q69: 2014-12-21T23:47:59 | R69: 225164-2|110265-2 | S69: 0 | T69: 69 | U69: 225164-2 | V69: 110265-2 | W69: Bronze
A70: 773439 | B70: kr | C70: 2 | D70: pon | E70: t | F70: 389157 | G70: kr | H70: 2 | I70: ä½•å¿…å• | J70: t | K70: Bronze | L70: 16 | M70: 14 | N70: 412 | O70: 2014-11-15 | P70: 19 hours | Q70: 2014-12-21T23:47:59 | R70: 773439-2|389157-2 | S70: 0 | T70: 70 | U70: 773439-2 | V70: 389157-2 | W70: Bronze
A71: 1198089 | B71: kr | C71: 2 | D71: mumu | E71: t | F71: 1195463 | G71: kr | H71: 2 | I71: OCELOT | J71: p | K71: Bronze | L71: 23 | M71: 24 | N71: 411 | O71: 2014-11-11 | P71: 15 days | Q71: 2014-12-21T23:47:59 | R71: 1198089-2|1195463-2 | S71: 0 | T71: 71 | U71: 1198089-2 | V71: 1195463-2 | W71: Bronze
A72: 279136 | B72: kr | C72: 2 | D72: é‚£å€‹ç¥žæ— | E72: z | F72: 85972 | G72: kr | H72: 2 | I72: Lurker | J72: t | K72: Bronze | L72: 19 | M72: 27 | N72: 411 | O72: 2014-11-10 | P72: 5 days | Q72: 2014-12-21T23:47:59 | R72: 279136-2|85972-2 | S72: 0 | T72: 72 | U72: 279136-2 | V72: 85972-2 | W72: Bronze
A73: 518924 | B73: kr | C73: 1 | D73: ê·€ì—¼ë‘¥ë‘¥ì´ | E73: z | F73: 353974 | G73: kr | H73: 1 | I73: jasonkim | J73: t | K73: Bronze | L73: 19 | M73: 22 | N73: 409 | O73: 2014-11-25 | P73: 7 days | Q73: 2014-12-21T23:47:59 | R73: 518924-1|353974-1 | S73: 0 | T73: 73 | U73: 518924-1 | V73: 353974-1 | W73: Bronze
A74: 1153498 | B74: kr | C74: 1 | D74: ê´‘ëª…ì˜ë°•ê¸°ì • | E74: r | F74: 323126 | G74: kr | H74: 1 | I74: ì‚¼ë‹¤ìˆ˜ | J74: t | K74: Bronze | L74: 16 | M74: 29 | N74: 408 | O74: 2014-11-19 | P74: 16 hours | Q74: 2014-12-21T23:47:59 | R74: 1153498-1|323126-1 | S74: 0 | T74: 74 | U74: 1153498-1 | V74: 323126-1 | W74: Bronze
A75: 4212813 | B75: kr | C75: 1 | D75: OlIlIlIlIlIl | E75: t | F75: 1353274 | G75: kr | H75: 1 | I75: ìš°íƒ„ì´ | J75: p | K75: Bronze | L75: 14 | M75: 26 | N75: 408 | O75: 2014-11-27 | P75: 2 days | Q75: 2014-12-21T23:47:59 | R75: 4212813-1|1353274-1 | S75: 0 | T75: 75 | U75: 4212813-1 | V75: 1353274-1 | W75: Bronze
A76: 2704047 | B76: kr | C76: 1 | D76: ì´ìž¬í™ | E76: t | F76: 1999255 | G76: kr | H76: 1 | I76: RuiNCanon | J76: p | K76: Bronze | L76: 15 | M76: 14 | N76: 404 | O76: 2014-11-16 | P76: 1 days | Q76: 2014-12-21T23:47:59 | R76: 2704047-1|1999255-1 | S76: 0 | T76: 76 | U76: 2704047-1 | V76: 1999255-1 | W76: Bronze
A77: 1203099 | B77: kr | C77: 1 | D77: íŒŒê´´ì˜ì‚¬ë„ | E77: p | F77: 649893 | G77: kr | H77: 1 | I77: ëˆˆì›ƒìŒì™€ë°©ìœ¨ | J77: t | K77: Bronze | L77: 15 | M77: 27 | N77: 399 | O77: 2014-11-16 | P77: 6 days | Q77: 2014-12-21T23:47:59 | R77: 1203099-1|649893-1 | S77: 0 | T77: 77 | U77: 1203099-1 | V77: 649893-1 | W77: Bronze
A78: 3502668 | B78: kr | C78: 1 | D78: LIBERATOR | E78: t | F78: 477589 | G78: kr | H78: 1 | I78: afmfma | J78: p | K78: Bronze | L78: 12 | M78: 8 | N78: 398 | O78: 2014-11-13 | P78: 4 days | Q78: 2014-12-21T23:47:59 | R78: 3502668-1|477589-1 | S78: 0 | T78: 78 | U78: 3502668-1 | V78: 477589-1 | W78: Bronze
A79: 4789770 | B79: kr | C79: 1 | D79: ëˆì£¼ë©´ë‚˜ê°€ìš” | E79: p | F79: 4517419 | G79: kr | H79: 1 | I79: ê½ƒì´í”¼ë„¤ | J79: t | K79: Bronze | L79: 12 | M79: 19 | N79: 398 | O79: 2014-11-29 | P79: 10 hours | Q79: 2014-12-21T23:47:59 | R79: 4789770-1|4517419-1 | S79: 0 | T79: 79 | U79: 4789770-1 | V79: 4517419-1 | W79: Bronze
A80: 1945828 | B80: kr | C80: 1 | D80: ìž­ìŠ¨ì˜ë³µìˆ˜ë‹¨ | E80: t | F80: 1919266 | G80: kr | H80: 1 | I80: ì€ì„ì§± | J80: p | K80: Bronze | L80: 13 | M80: 8 | N80: 396 | O80: 2014-11-28 | P80: 8 days | Q80: 2014-12-21T23:47:59 | R80: 1945828-1|1919266-1 | S80: 0 | T80: 80 | U80: 1945828-1 | V80: 1919266-1 | W80: Bronze
A81: 3071514 | B81: kr | C81: 1 | D81: BELL | E81: z | F81: 1975915 | G81: kr | H81: 1 | I81: NaNa | J81: t | K81: Bronze | L81: 12 | M81: 12 | N81: 396 | O81: 2014-12-04 | P81: 11 hours | Q81: 2014-12-21T23:47:59 | R81: 3071514-1|1975915-1 | S81: 0 | T81: 81 | U81: 3071514-1 | V81: 1975915-1 | W81: Bronze
A82: 2938187 | B82: kr | C82: 1 | D82: ì •ì›…ì´ | E82: p | F82: 114642 | G82: kr | H82: 1 | I82: ë°”ë‹¤ë°”ë¼ë³´ê¸° | J82: t | K82: Bronze | L82: 10 | M82: 3 | N82: 394 | O82: 2014-11-13 | P82: 1 hours | Q82: 2014-12-21T23:47:59 | R82: 2938187-1|114642-1 | S82: 0 | T82: 82 | U82: 2938187-1 | V82: 114642-1 | W82: Bronze
A83: 4625218 | B83: kr | C83: 1 | D83: ì•„ìˆ˜ë¼ë‹¤ | E83: p | F83: 4368658 | G83: kr | H83: 1 | I83: RhMD | J83: r | K83: Bronze | L83: 13 | M83: 8 | N83: 394 | O83: 2014-12-07 | P83: 12 days | Q83: 2014-12-21T23:47:59 | R83: 4625218-1|4368658-1 | S83: 0 | T83: 83 | U83: 4625218-1 | V83: 4368658-1 | W83: Bronze
A84: 737304 | B84: kr | C84: 1 | D84: tjdgur | E84: t | F84: 129665 | G84: kr | H84: 1 | I84: uyrf | J84: p | K84: Bronze | L84: 13 | M84: 16 | N84: 392 | O84: 2014-11-26 | P84: 2 days | Q84: 2014-12-21T23:47:59 | R84: 737304-1|129665-1 | S84: 0 | T84: 84 | U84: 737304-1 | V84: 129665-1 | W84: Bronze
A85: 1977840 | B85: kr | C85: 1 | D85: ANTiChEETo | E85: p | F85: 1831010 | G85: kr | H85: 1 | I85: AirBone | J85: p | K85: Bronze | L85: 15 | M85: 21 | N85: 390 | O85: 2014-11-14 | P85: 1 days | Q85: 2014-12-21T23:47:59 | R85: 1977840-1|1831010-1 | S85: 0 | T85: 85 | U85: 1977840-1 | V85: 1831010-1 | W85: Bronze
A86: 4044320 | B86: kr | C86: 1 | D86: RaMiReS | E86: p | F86: 2021077 | G86: kr | H86: 1 | I86: ì„±ìš´ | J86: t | K86: Bronze | L86: 12 | M86: 9 | N86: 388 | O86: 2014-11-20 | P86: 10 days | Q86: 2014-12-21T23:47:59 | R86: 4044320-1|2021077-1 | S86: 0 | T86: 86 | U86: 4044320-1 | V86: 2021077-1 | W86: Bronze
A87: 2151679 | B87: kr | C87: 1 | D87: samzzi | E87: r | F87: 95333 | G87: kr | H87: 1 | I87: íƒœë§ˆë…¸ | J87: p | K87: Bronze | L87: 12 | M87: 11 | N87: 388 | O87: 2014-12-12 | P87: 3 days | Q87: 2014-12-21T23:47:59 | R87: 2151679-1|95333-1 | S87: 0 | T87: 87 | U87: 2151679-1 | V87: 95333-1 | W87: Bronze
A88: 1389015 | B88: kr | C88: 2 | D88: ç§˜å¯†å®¢ | E88: p | F88: 1031896 | G88: kr | H88: 2 | I88: Elvis | J88: p | K88: Bronze | L88: 31 | M88: 59 | N88: 387 | O88: 2014-11-10 | P88: 3 days | Q88: 2014-12-21T23:47:59 | R88: 1389015-2|1031896-2 | S88: 0 | T88: 88 | U88: 1389015-2 | V88: 1031896-2 | W88: Bronze
A89: 1580970 | B89: kr | C89: 1 | D89: GoldenTiger | E89: z | F89: 525248 | G89: kr | H89: 1 | I89: JOY | J89: p | K89: Bronze | L89: 14 | M89: 23 | N89: 386 | O89: 2014-11-13 | P89: 4 days | Q89: 2014-12-21T23:47:59 | R89: 1580970-1|525248-1 | S89: 0 | T89: 89 | U89: 1580970-1 | V89: 525248-1 | W89: Bronze
A90: 4509431 | B90: kr | C90: 1 | D90: ì„±ëŒ€ | E90: z | F90: 2722778 | G90: kr | H90: 1 | I90: ì•„ë””ì´ | J90: t | K90: Bronze | L90: 9 | M90: 2 | N90: 382 | O90: 2014-12-13 | P90: 8 days | Q90: 2014-12-21T23:47:59 | R90: 4509431-1|2722778-1 | S90: 0 | T90: 90 | U90: 4509431-1 | V90: 2722778-1 | W90: Bronze
A91: 2695027 | B91: kr | C91: 1 | D91: ë‹ˆì½œ | E91: r | F91: 2605505 | G91: kr | H91: 1 | I91: ìœ ë¦¬ | J91: t | K91: Bronze | L91: 13 | M91: 11 | N91: 382 | O91: 2014-11-30 | P91: 6 days | Q91: 2014-12-21T23:47:59 | R91: 2695027-1|2605505-1 | S91: 0 | T91: 91 | U91: 2695027-1 | V91: 2605505-1 | W91: Bronze
A92: 4763004 | B92: kr | C92: 1 | D92: í˜¸êµ¬ì•¼ | E92: t | F92: 2004392 | G92: kr | H92: 1 | I92: ë§‰ë²„ë ¤ | J92: p | K92: Bronze | L92: 12 | M92: 11 | N92: 381 | O92: 2014-11-17 | P92: 20 days | Q92: 2014-12-21T23:47:59 | R92: 4763004-1|2004392-1 | S92: 0 | T92: 92 | U92: 4763004-1 | V92: 2004392-1 | W92: Bronze
A93: 4813529 | B93: kr | C93: 1 | D93: ë£¨ì‹œ | E93: r | F93: 3986437 | G93: kr | H93: 1 | I93: ì í‚¨ìŠ¤ | J93: r | K93: Bronze | L93: 12 | M93: 8 | N93: 380 | O93: 2014-12-20 | P93: 1 days | Q93: 2014-12-21T23:47:59 | R93: 4813529-1|3986437-1 | S93: 0 | T93: 93 | U93: 4813529-1 | V93: 3986437-1 | W93: Bronze
A94: 2590052 | B94: kr | C94: 1 | D94: VanDerVaart | E94: p | F94: 1989226 | G94: kr | H94: 1 | I94: HongJeeHwa | J94: z | K94: Bronze | L94: 12 | M94: 13 | N94: 380 | O94: 2014-12-01 | P94: 4 days | Q94: 2014-12-21T23:47:59 | R94: 2590052-1|1989226-1 | S94: 0 | T94: 94 | U94: 2590052-1 | V94: 1989226-1 | W94: Bronze
A95: 1522087 | B95: kr | C95: 1 | D95: ë¹„ë°€ì´ | E95: p | F95: 127225 | G95: kr | H95: 1 | I95: ì•„ë¥´ì¹´ë””ì•„ | J95: p | K95: Bronze | L95: 23 | M95: 26 | N95: 379 | O95: 2014-11-10 | P95: 9 days | Q95: 2014-12-21T23:47:59 | R95: 1522087-1|127225-1 | S95: 0 | T95: 95 | U95: 1522087-1 | V95: 127225-1 | W95: Bronze
A96: 4542082 | B96: kr | C96: 1 | D96: ì°¡ë¹ˆì´ | E96: p | F96: 3382041 | G96: kr | H96: 1 | I96: kmjwdf | J96: t | K96: Bronze | L96: 13 | M96: 9 | N96: 378 | O96: 2014-12-12 | P96: 2 days | Q96: 2014-12-21T23:47:59 | R96: 4542082-1|3382041-1 | S96: 0 | T96: 96 | U96: 4542082-1 | V96: 3382041-1 | W96: Bronze
A97: 2495091 | B97: kr | C97: 1 | D97: Tuscaloosa | E97: r | F97: 680775 | G97: kr | H97: 1 | I97: newbbama | J97: p | K97: Bronze | L97: 13 | M97: 10 | N97: 378 | O97: 2014-11-16 | P97: 5 days | Q97: 2014-12-21T23:47:59 | R97: 2495091-1|680775-1 | S97: 0 | T97: 97 | U97: 2495091-1 | V97: 680775-1 | W97: Bronze
A98: 2428631 | B98: kr | C98: 1 | D98: EveryDay | E98: r | F98: 133087 | G98: kr | H98: 1 | I98: í‘¸ìš°ë§›ê³°íƒ• | J98: t | K98: Bronze | L98: 13 | M98: 11 | N98: 378 | O98: 2014-12-01 | P98: 7 days | Q98: 2014-12-21T23:47:59 | R98: 2428631-1|133087-1 | S98: 0 | T98: 98 | U98: 2428631-1 | V98: 133087-1 | W98: Bronze
A99: 234882 | B99: kr | C99: 1 | D99: í˜„ì´ | E99: p | F99: 220394 | G99: kr | H99: 1 | I99: SkyNeo | J99: r | K99: Bronze | L99: 12 | M99: 16 | N99: 378 | O99: 2014-11-30 | P99: 18 hours | Q99: 2014-12-21T23:47:59 | R99: 234882-1|220394-1 | S99: 0 | T99: 99 | U99: 234882-1 | V99: 220394-1 | W99: Bronze
A100: 1512932 | B100: kr | C100: 1 | D100: ë¶ˆíƒ€ëŠ”ë˜¥êµ¬ë…˜ | E100: t | F100: 934133 | G100: kr | H100: 1 | I100: ìŠ¤íƒ€ì˜ì „ì„¤ | J100: p | K100: Bronze | L100: 13 | M100: 6 | N100: 370 | O100: 2014-11-26 | P100: 9 days | Q100: 2014-12-21T23:47:59 | R100: 1512932-1|934133-1 | S100: 0 | T100: 100 | U100: 1512932-1 | V100: 934133-1 | W100: Bronze
A101: 1080135 | B101: kr | C101: 2 | D101: Tiger | E101: r | F101: 887380 | G101: kr | H101: 2 | I101: Ruei | J101: t | K101: Bronze | L101: 11 | M101: 8 | N101: 370 | O101: 2014-12-05 | P101: 2 days | Q101: 2014-12-21T23:47:59 | R101: 1080135-2|887380-2 | S101: 0 | T101: 101 | U101: 1080135-2 | V101: 887380-2 | W101: Bronze
A102: 3209465 | B102: kr | C102: 1 | D102: ë¯¸ìŠ¤íƒ€ê¹€íƒ | E102: p | F102: 353800 | G102: kr | H102: 1 | I102: omoora | J102: z | K102: Bronze | L102: 18 | M102: 33 | N102: 370 | O102: 2014-11-16 | P102: 4 days | Q102: 2014-12-21T23:47:59 | R102: 3209465-1|353800-1 | S102: 0 | T102: 102 | U102: 3209465-1 | V102: 353800-1 | W102: Bronze
A103: 4093834 | B103: kr | C103: 1 | D103: wekii | E103: p | F103: 408320 | G103: kr | H103: 1 | I103: Gvirus | J103: t | K103: Bronze | L103: 14 | M103: 24 | N103: 367 | O103: 2014-11-29 | P103: 8 days | Q103: 2014-12-21T23:47:59 | R103: 4093834-1|408320-1 | S103: 0 | T103: 103 | U103: 4093834-1 | V103: 408320-1 | W103: Bronze
A104: 4138979 | B104: kr | C104: 1 | D104: ë‚˜ì€ì•“ì´ë¿Œìž‰ | E104: p | F104: 3361798 | G104: kr | H104: 1 | I104: ë„ë•ì ìœ¼ë¡œë¶ˆê±´ì „ | J104: t | K104: Bronze | L104: 13 | M104: 12 | N104: 364 | O104: 2014-11-28 | P104: 15 days | Q104: 2014-12-21T23:47:59 | R104: 4138979-1|3361798-1 | S104: 0 | T104: 104 | U104: 4138979-1 | V104: 3361798-1 | W104: Bronze
A105: 4008147 | B105: kr | C105: 1 | D105: ruis | E105: r | F105: 662794 | G105: kr | H105: 1 | I105: ì„¸ë¯¸ì½œë¡ | J105: r | K105: Bronze | L105: 13 | M105: 8 | N105: 362 | O105: 2014-11-09 | P105: 6 days | Q105: 2014-12-21T23:47:59 | R105: 4008147-1|662794-1 | S105: 0 | T105: 105 | U105: 4008147-1 | V105: 662794-1 | W105: Bronze
A106: 904239 | B106: kr | C106: 1 | D106: ì™€ì•¼ê·¼ì´ë‹¤ | E106: t | F106: 904157 | G106: kr | H106: 1 | I106: aassdd | J106: p | K106: Bronze | L106: 11 | M106: 8 | N106: 362 | O106: 2014-11-30 | P106: 15 days | Q106: 2014-12-21T23:47:59 | R106: 904239-1|904157-1 | S106: 0 | T106: 106 | U106: 904239-1 | V106: 904157-1 | W106: Bronze
A107: 3184803 | B107: kr | C107: 1 | D107: ì•„ìš¸ë£½ | E107: p | F107: 3043799 | G107: kr | H107: 1 | I107: ìš°ìž¥ì¶˜ë°•ì‚¬ | J107: t | K107: Bronze | L107: 11 | M107: 12 | N107: 362 | O107: 2014-11-29 | P107: 2 days | Q107: 2014-12-21T23:47:59 | R107: 3184803-1|3043799-1 | S107: 0 | T107: 107 | U107: 3184803-1 | V107: 3043799-1 | W107: Bronze
A108: 4310094 | B108: kr | C108: 1 | D108: asdsd | E108: r | F108: 1655826 | G108: kr | H108: 1 | I108: virsin | J108: t | K108: Bronze | L108: 14 | M108: 7 | N108: 361 | O108: 2014-11-16 | P108: 3 days | Q108: 2014-12-21T23:47:59 | R108: 4310094-1|1655826-1 | S108: 0 | T108: 108 | U108: 4310094-1 | V108: 1655826-1 | W108: Bronze
A109: 2744342 | B109: kr | C109: 1 | D109: ë¹¨ëŒ€ì†Œë…„ | E109: t | F109: 2390267 | G109: kr | H109: 1 | I109: imagecho | J109: p | K109: Bronze | L109: 11 | M109: 14 | N109: 360 | O109: 2014-11-22 | P109: 1 days | Q109: 2014-12-21T23:47:59 | R109: 2744342-1|2390267-1 | S109: 0 | T109: 109 | U109: 2744342-1 | V109: 2390267-1 | W109: Bronze
A110: 4589988 | B110: kr | C110: 1 | D110: Pine | E110: t | F110: 4107001 | G110: kr | H110: 1 | I110: ê°œë¯¸ë…ìˆ˜ë¦¬ | J110: t | K110: Bronze | L110: 12 | M110: 4 | N110: 358 | O110: 2014-11-15 | P110: 2 days | Q110: 2014-12-21T23:47:59 | R110: 4589988-1|4107001-1 | S110: 0 | T110: 110 | U110: 4589988-1 | V110: 4107001-1 | W110: Bronze
A111: 1259102 | B111: kr | C111: 2 | D111: jjj | E111: p | F111: 1257197 | G111: kr | H111: 2 | I111: å·®åˆ¥é­é‡ | J111: z | K111: Bronze | L111: 11 | M111: 10 | N111: 356 | O111: 2014-11-22 | P111: 1 days | Q111: 2014-12-21T23:47:59 | R111: 1259102-2|1257197-2 | S111: 0 | T111: 111 | U111: 1259102-2 | V111: 1257197-2 | W111: Bronze
A112: 3431346 | B112: kr | C112: 1 | D112: ë‚˜ëŠ”ì—¬ì¹œì´ì—†ë‹¤ | E112: t | F112: 3026816 | G112: kr | H112: 1 | I112: WolfTalon | J112: t | K112: Bronze | L112: 12 | M112: 18 | N112: 356 | O112: 2014-12-05 | P112: 5 days | Q112: 2014-12-21T23:47:59 | R112: 3431346-1|3026816-1 | S112: 0 | T112: 112 | U112: 3431346-1 | V112: 3026816-1 | W112: Bronze
A113: 1399552 | B113: kr | C113: 2 | D113: å¾¡å°‘ | E113: p | F113: 1390421 | G113: kr | H113: 2 | I113: ä¼Šç”¸ä¹‹çœ¼ | J113: r | K113: Bronze | L113: 14 | M113: 21 | N113: 354 | O113: 2014-11-29 | P113: 1 days | Q113: 2014-12-21T23:47:59 | R113: 1399552-2|1390421-2 | S113: 0 | T113: 113 | U113: 1399552-2 | V113: 1390421-2 | W113: Bronze
A114: 4038957 | B114: kr | C114: 1 | D114: ê¸°ì—¬ë¯¸ | E114: t | F114: 419521 | G114: kr | H114: 1 | I114: MaeStro | J114: z | K114: Bronze | L114: 11 | M114: 7 | N114: 352 | O114: 2014-12-06 | P114: 9 days | Q114: 2014-12-21T23:47:59 | R114: 4038957-1|419521-1 | S114: 0 | T114: 114 | U114: 4038957-1 | V114: 419521-1 | W114: Bronze
A115: 2202229 | B115: kr | C115: 1 | D115: Kangda | E115: p | F115: 1601277 | G115: kr | H115: 1 | I115: ìŠ¤íƒ€ì™•í†µí‚¤ | J115: t | K115: Bronze | L115: 12 | M115: 10 | N115: 352 | O115: 2014-11-15 | P115: 1 days | Q115: 2014-12-21T23:47:59 | R115: 2202229-1|1601277-1 | S115: 0 | T115: 115 | U115: 2202229-1 | V115: 1601277-1 | W115: Bronze
A116: 1330477 | B116: kr | C116: 1 | D116: ì•™ì•™ì´ | E116: p | F116: 604314 | G116: kr | H116: 1 | I116: WangGa | J116: r | K116: Bronze | L116: 11 | M116: 16 | N116: 352 | O116: 2014-11-14 | P116: 3 days | Q116: 2014-12-21T23:47:59 | R116: 1330477-1|604314-1 | S116: 0 | T116: 116 | U116: 1330477-1 | V116: 604314-1 | W116: Bronze
A117: 3803749 | B117: kr | C117: 1 | D117: ížˆë“œë¼ | E117: r | F117: 3800196 | G117: kr | H117: 1 | I117: ê°•ì§± | J117: p | K117: Bronze | L117: 11 | M117: 7 | N117: 350 | O117: 2014-12-12 | P117: 7 days | Q117: 2014-12-21T23:47:59 | R117: 3803749-1|3800196-1 | S117: 0 | T117: 117 | U117: 3803749-1 | V117: 3800196-1 | W117: Bronze
A118: 4522792 | B118: kr | C118: 1 | D118: ì›ìˆ­ì´ | E118: z | F118: 2577506 | G118: kr | H118: 1 | I118: wjsghk | J118: t | K118: Bronze | L118: 13 | M118: 8 | N118: 349 | O118: 2014-11-14 | P118: 18 hours | Q118: 2014-12-21T23:47:59 | R118: 4522792-1|2577506-1 | S118: 0 | T118: 118 | U118: 4522792-1 | V118: 2577506-1 | W118: Bronze
A119: 4781993 | B119: kr | C119: 1 | D119: ë‚˜ëŠ”ì•¼ì˜¤ëŒ• | E119: z | F119: 1883543 | G119: kr | H119: 1 | I119: ë‚˜ëŠ”ì•¼ìœ¤ëŒ• | J119: p | K119: Bronze | L119: 12 | M119: 22 | N119: 348 | O119: 2014-11-14 | P119: 3 days | Q119: 2014-12-21T23:47:59 | R119: 4781993-1|1883543-1 | S119: 0 | T119: 119 | U119: 4781993-1 | V119: 1883543-1 | W119: Bronze
A120: 906511 | B120: kr | C120: 2 | D120: ForeverKing | E120: p | F120: 887318 | G120: kr | H120: 2 | I120: Freestyle | J120: z | K120: Bronze | L120: 13 | M120: 14 | N120: 344 | O120: 2014-12-03 | P120: 2 days | Q120: 2014-12-21T23:47:59 | R120: 906511-2|887318-2 | S120: 0 | T120: 120 | U120: 906511-2 | V120: 887318-2 | W120: Bronze
A121: 2665783 | B121: kr | C121: 1 | D121: ë¥˜í˜„ | E121: t | F121: 2074971 | G121: kr | H121: 1 | I121: êµ¬ë¦„ | J121: p | K121: Bronze | L121: 12 | M121: 13 | N121: 344 | O121: 2014-12-18 | P121: 17 hours | Q121: 2014-12-21T23:47:59 | R121: 2665783-1|2074971-1 | S121: 0 | T121: 121 | U121: 2665783-1 | V121: 2074971-1 | W121: Bronze
A122: 3605678 | B122: kr | C122: 1 | D122: ë„ˆë§Œìž¡ì„ê±´ë° | E122: p | F122: 3466463 | G122: kr | H122: 1 | I122: SWINGS | J122: p | K122: Bronze | L122: 20 | M122: 22 | N122: 344 | O122: 2014-11-10 | P122: 10 days | Q122: 2014-12-21T23:47:59 | R122: 3605678-1|3466463-1 | S122: 0 | T122: 122 | U122: 3605678-1 | V122: 3466463-1 | W122: Bronze
A123: 4665951 | B123: kr | C123: 1 | D123: NIKE | E123: r | F123: 76913 | G123: kr | H123: 1 | I123: ë¶€ë£¨ë§ | J123: r | K123: Bronze | L123: 17 | M123: 27 | N123: 343 | O123: 2014-11-21 | P123: 12 days | Q123: 2014-12-21T23:47:59 | R123: 4665951-1|76913-1 | S123: 0 | T123: 123 | U123: 4665951-1 | V123: 76913-1 | W123: Bronze
A124: 2635958 | B124: kr | C124: 1 | D124: ìŠ¤ë¬´ìŠ¤í•œë¶ˆê³° | E124: r | F124: 590276 | G124: kr | H124: 1 | I124: ê¿€ìƒˆ | J124: p | K124: Bronze | L124: 9 | M124: 8 | N124: 342 | O124: 2014-12-05 | P124: 15 days | Q124: 2014-12-21T23:47:59 | R124: 2635958-1|590276-1 | S124: 0 | T124: 124 | U124: 2635958-1 | V124: 590276-1 | W124: Bronze
A125: 358291 | B125: kr | C125: 2 | D125: scorpioteo | E125: r | F125: 88515 | G125: kr | H125: 2 | I125: mengaaron | J125: z | K125: Bronze | L125: 10 | M125: 13 | N125: 342 | O125: 2014-12-12 | P125: 13 hours | Q125: 2014-12-21T23:47:59 | R125: 358291-2|88515-2 | S125: 0 | T125: 125 | U125: 358291-2 | V125: 88515-2 | W125: Bronze
A126: 321854 | B126: kr | C126: 1 | D126: Novation | E126: t | F126: 123061 | G126: kr | H126: 1 | I126: Urrrrrr | J126: p | K126: Bronze | L126: 11 | M126: 15 | N126: 340 | O126: 2014-12-16 | P126: 23 hours | Q126: 2014-12-21T23:47:59 | R126: 321854-1|123061-1 | S126: 0 | T126: 126 | U126: 321854-1 | V126: 123061-1 | W126: Bronze
A127: 4381386 | B127: kr | C127: 1 | D127: DemOnS | E127: z | F127: 4276822 | G127: kr | H127: 1 | I127: TopClass | J127: p | K127: Bronze | L127: 12 | M127: 19 | N127: 340 | O127: 2014-12-12 | P127: 12 hours | Q127: 2014-12-21T23:47:59 | R127: 4381386-1|4276822-1 | S127: 0 | T127: 127 | U127: 4381386-1 | V127: 4276822-1 | W127: Bronze
A128: 660612 | B128: kr | C128: 1 | D128: MarantBlue | E128: z | F128: 334022 | G128: kr | H128: 1 | I128: í•œë°©ì˜ë¡œë§ | J128: t | K128: Bronze | L128: 12 | M128: 11 | N128: 339 | O128: 2014-11-12 | P128: 2 days | Q128: 2014-12-21T23:47:59 | R128: 660612-1|334022-1 | S128: 0 | T128: 128 | U128: 660612-1 | V128: 334022-1 | W128: Bronze
A129: 2938629 | B129: kr | C129: 1 | D129: ì»¥ì»¤ê±°ì»¬ì»¤ë  | E129: r | F129: 2628401 | G129: kr | H129: 1 | I129: ìš°ëšì„ ìžì¡´ì‹¬ | J129: r | K129: Bronze | L129: 9 | M129: 10 | N129: 338 | O129: 2014-12-02 | P129: 17 days | Q129: 2014-12-21T23:47:59 | R129: 2938629-1|2628401-1 | S129: 0 | T129: 129 | U129: 2938629-1 | V129: 2628401-1 | W129: Bronze
A130: 2350509 | B130: kr | C130: 1 | D130: ë‹¬ë ¤ë¼ë¦¬ì˜¤ | E130: p | F130: 765588 | G130: kr | H130: 1 | I130: Arche | J130: p | K130: Bronze | L130: 44 | M130: 65 | N130: 337 | O130: 2014-11-19 | P130: 12 days | Q130: 2014-12-21T23:47:59 | R130: 2350509-1|765588-1 | S130: 0 | T130: 130 | U130: 2350509-1 | V130: 765588-1 | W130: Bronze
A131: 559848 | B131: kr | C131: 1 | D131: Jam | E131: p | F131: 81373 | G131: kr | H131: 1 | I131: íƒ€ìœ ë¹„ | J131: p | K131: Bronze | L131: 10 | M131: 11 | N131: 336 | O131: 2014-12-20 | P131: 18 hours | Q131: 2014-12-21T23:47:59 | R131: 559848-1|81373-1 | S131: 0 | T131: 131 | U131: 559848-1 | V131: 81373-1 | W131: Bronze
A132: 4493845 | B132: kr | C132: 1 | D132: SCV | E132: t | F132: 79512 | G132: kr | H132: 1 | I132: ArtCtrl | J132: z | K132: Bronze | L132: 11 | M132: 14 | N132: 336 | O132: 2014-11-22 | P132: 1 days | Q132: 2014-12-21T23:48:00 | R132: 4493845-1|79512-1 | S132: 0 | T132: 132 | U132: 4493845-1 | V132: 79512-1 | W132: Bronze
A133: 379594 | B133: kr | C133: 1 | D133: ê°€ë¼ë§ˆìŠ¤í„°ë³¼ | E133: z | F133: 263433 | G133: kr | H133: 1 | I133: Simpson | J133: p | K133: Bronze | L133: 10 | M133: 12 | N133: 334 | O133: 2014-11-28 | P133: 22 days | Q133: 2014-12-21T23:48:00 | R133: 379594-1|263433-1 | S133: 0 | T133: 133 | U133: 379594-1 | V133: 263433-1 | W133: Bronze
A134: 4180967 | B134: kr | C134: 1 | D134: Habdoulmalik | E134: z | F134: 4180345 | G134: kr | H134: 1 | I134: ILoveBeer | J134: r | K134: Bronze | L134: 11 | M134: 15 | N134: 334 | O134: 2014-12-17 | P134: 2 days | Q134: 2014-12-21T23:48:00 | R134: 4180967-1|4180345-1 | S134: 0 | T134: 134 | U134: 4180967-1 | V134: 4180345-1 | W134: Bronze
A135: 1158468 | B135: kr | C135: 2 | D135: ShredderUK | E135: p | F135: 4181448 | G135: kr | H135: 1 | I135: sAfricanus | J135: t | K135: Bronze | L135: 13 | M135: 5 | N135: 333 | O135: 2014-11-11 | P135: 3 days | Q135: 2014-12-21T23:48:00 | R135: 1158468-2|4181448-1 | S135: 0 | T135: 135 | U135: 1158468-2 | V135: 4181448-1 | W135: Bronze
A136: 1470240 | B136: kr | C136: 1 | D136: THAVMA | E136: z | F136: 1284787 | G136: kr | H136: 1 | I136: ë‹¤í”„ë„¨ | J136: p | K136: Bronze | L136: 10 | M136: 6 | N136: 332 | O136: 2014-11-26 | P136: 9 days | Q136: 2014-12-21T23:48:00 | R136: 1470240-1|1284787-1 | S136: 0 | T136: 136 | U136: 1470240-1 | V136: 1284787-1 | W136: Bronze
A137: 3846543 | B137: kr | C137: 1 | D137: ë‹¤ìž¡ëŠ”ë‹¤ìž‰ | E137: p | F137: 981857 | G137: kr | H137: 1 | I137: ê³ ë¼ë‹ˆ | J137: t | K137: Bronze | L137: 10 | M137: 9 | N137: 332 | O137: 2014-11-30 | P137: 2 hours | Q137: 2014-12-21T23:48:00 | R137: 3846543-1|981857-1 | S137: 0 | T137: 137 | U137: 3846543-1 | V137: 981857-1 | W137: Bronze
A138: 894099 | B138: kr | C138: 1 | D138: BrunoMars | E138: t | F138: 356741 | G138: kr | H138: 1 | I138: Marin | J138: p | K138: Bronze | L138: 9 | M138: 12 | N138: 332 | O138: 2014-12-07 | P138: 11 days | Q138: 2014-12-21T23:48:00 | R138: 894099-1|356741-1 | S138: 0 | T138: 138 | U138: 894099-1 | V138: 356741-1 | W138: Bronze
A139: 4475032 | B139: kr | C139: 1 | D139: Tanz | E139: z | F139: 4474191 | G139: kr | H139: 1 | I139: KonradCurzz | J139: p | K139: Bronze | L139: 9 | M139: 6 | N139: 330 | O139: 2014-11-29 | P139: 14 hours | Q139: 2014-12-21T23:48:00 | R139: 4475032-1|4474191-1 | S139: 0 | T139: 139 | U139: 4475032-1 | V139: 4474191-1 | W139: Bronze
A140: 4058427 | B140: kr | C140: 1 | D140: í† ìŠ¤ìž˜í•´ìš” | E140: p | F140: 3550186 | G140: kr | H140: 1 | I140: í”Œí† ìž˜í•´ìš” | J140: p | K140: Bronze | L140: 27 | M140: 55 | N140: 329 | O140: 2014-11-14 | P140: 8 days | Q140: 2014-12-21T23:48:00 | R140: 4058427-1|3550186-1 | S140: 0 | T140: 140 | U140: 4058427-1 | V140: 3550186-1 | W140: Bronze
A141: 3567549 | B141: kr | C141: 1 | D141: counterKing | E141: p | F141: 1928834 | G141: kr | H141: 1 | I141: ë³€íƒœì˜¤íƒ€ì¿ | J141: p | K141: Bronze | L141: 10 | M141: 10 | N141: 328 | O141: 2014-12-02 | P141: 17 days | Q141: 2014-12-21T23:48:00 | R141: 3567549-1|1928834-1 | S141: 0 | T141: 141 | U141: 3567549-1 | V141: 1928834-1 | W141: Bronze
A142: 806704 | B142: kr | C142: 2 | D142: Daybreak | E142: p | F142: 794992 | G142: kr | H142: 2 | I142: cliff | J142: t | K142: Bronze | L142: 17 | M142: 22 | N142: 328 | O142: 2014-11-14 | P142: 9 days | Q142: 2014-12-21T23:48:00 | R142: 806704-2|794992-2 | S142: 0 | T142: 142 | U142: 806704-2 | V142: 794992-2 | W142: Bronze
A143: 4599907 | B143: kr | C143: 1 | D143: íŽ˜ì´ê¸€ | E143: p | F143: 4368789 | G143: kr | H143: 1 | I143: í†°í† ë§¹ | J143: t | K143: Bronze | L143: 22 | M143: 29 | N143: 328 | O143: 2014-11-21 | P143: 22 days | Q143: 2014-12-21T23:48:00 | R143: 4599907-1|4368789-1 | S143: 0 | T143: 143 | U143: 4599907-1 | V143: 4368789-1 | W143: Bronze
A144: 2725121 | B144: kr | C144: 1 | D144: slavernoten | E144: t | F144: 2404138 | G144: kr | H144: 1 | I144: Wook | J144: z | K144: Bronze | L144: 17 | M144: 27 | N144: 328 | O144: 2014-11-18 | P144: 10 days | Q144: 2014-12-21T23:48:00 | R144: 2725121-1|2404138-1 | S144: 0 | T144: 144 | U144: 2725121-1 | V144: 2404138-1 | W144: Bronze
A145: 2607478 | B145: kr | C145: 1 | D145: CraZyYurO | E145: t | F145: 762544 | G145: kr | H145: 1 | I145: ìµœìŠ¹í˜„ | J145: p | K145: Bronze | L145: 10 | M145: 1 | N145: 326 | O145: 2014-11-26 | P145: 2 days | Q145: 2014-12-21T23:48:00 | R145: 2607478-1|762544-1 | S145: 0 | T145: 145 | U145: 2607478-1 | V145: 762544-1 | W145: Bronze
A146: 2286467 | B146: kr | C146: 1 | D146: Kyrios | E146: r | F146: 2285471 | G146: kr | H146: 1 | I146: SAINTSWORD | J146: p | K146: Bronze | L146: 20 | M146: 32 | N146: 325 | O146: 2014-11-14 | P146: 15 days | Q146: 2014-12-21T23:48:00 | R146: 2286467-1|2285471-1 | S146: 0 | T146: 146 | U146: 2286467-1 | V146: 2285471-1 | W146: Bronze
A147: 2170274 | B147: kr | C147: 1 | D147: í•˜ì–€ì•…ë§ˆì™•ë°”ìš° | E147: z | F147: 1455480 | G147: kr | H147: 1 | I147: ë¬´í˜¼ | J147: p | K147: Bronze | L147: 11 | M147: 2 | N147: 324 | O147: 2014-11-28 | P147: 15 hours | Q147: 2014-12-21T23:48:00 | R147: 2170274-1|1455480-1 | S147: 0 | T147: 147 | U147: 2170274-1 | V147: 1455480-1 | W147: Bronze
A148: 78982 | B148: kr | C148: 2 | D148: WEiYILEe | E148: t | F148: 61152 | G148: kr | H148: 2 | I148: Sheep | J148: p | K148: Bronze | L148: 17 | M148: 18 | N148: 324 | O148: 2014-11-12 | P148: 19 days | Q148: 2014-12-21T23:48:00 | R148: 78982-2|61152-2 | S148: 0 | T148: 148 | U148: 78982-2 | V148: 61152-2 | W148: Bronze
A149: 1998873 | B149: kr | C149: 1 | D149: ì• ì™„ê°œë¦¬ì˜¨ë€¨ | E149: r | F149: 1825504 | G149: kr | H149: 1 | I149: ì• ë¼ì´ë†ˆì•„ | J149: r | K149: Bronze | L149: 10 | M149: 13 | N149: 324 | O149: 2014-11-14 | P149: 16 days | Q149: 2014-12-21T23:48:00 | R149: 1998873-1|1825504-1 | S149: 0 | T149: 149 | U149: 1998873-1 | V149: 1825504-1 | W149: Bronze
A150: 3133896 | B150: kr | C150: 1 | D150: Superllillil | E150: p | F150: 2159931 | G150: kr | H150: 1 | I150: JuPiTer | J150: r | K150: Bronze | L150: 11 | M150: 12 | N150: 322 | O150: 2014-11-14 | P150: 15 days | Q150: 2014-12-21T23:48:00 | R150: 3133896-1|2159931-1 | S150: 0 | T150: 150 | U150: 3133896-1 | V150: 2159931-1 | W150: Bronze
A151: 3600179 | B151: kr | C151: 1 | D151: RaSs | E151: z | F151: 3599541 | G151: kr | H151: 1 | I151: mami | J151: p | K151: Bronze | L151: 9 | M151: 11 | N151: 322 | O151: 2014-11-23 | P151: 12 days | Q151: 2014-12-21T23:48:00 | R151: 3600179-1|3599541-1 | S151: 0 | T151: 151 | U151: 3600179-1 | V151: 3599541-1 | W151: Bronze
A152: 1580766 | B152: kr | C152: 1 | D152: ì‚¬ì°¨ê´€ | E152: r | F152: 973276 | G152: kr | H152: 1 | I152: ìœ¡ëª» | J152: r | K152: Bronze | L152: 11 | M152: 15 | N152: 322 | O152: 2014-11-25 | P152: 16 hours | Q152: 2014-12-21T23:48:00 | R152: 1580766-1|973276-1 | S152: 0 | T152: 152 | U152: 1580766-1 | V152: 973276-1 | W152: Bronze
A153: 4527566 | B153: kr | C153: 1 | D153: ê·€ì°®ì•„ì§„ | E153: p | F153: 2663324 | G153: kr | H153: 1 | I153: í„°í”„ê°€ì´ | J153: z | K153: Bronze | L153: 10 | M153: 15 | N153: 322 | O153: 2014-12-13 | P153: 1 days | Q153: 2014-12-21T23:48:00 | R153: 4527566-1|2663324-1 | S153: 0 | T153: 153 | U153: 4527566-1 | V153: 2663324-1 | W153: Bronze
A154: 1395163 | B154: kr | C154: 2 | D154: ç‹‚åˆƒæš´å¾’ | E154: z | F154: 1307055 | G154: kr | H154: 2 | I154: åŠ æŒèƒ–èƒ– | J154: t | K154: Bronze | L154: 11 | M154: 21 | N154: 322 | O154: 2014-12-07 | P154: 23 hours | Q154: 2014-12-21T23:48:00 | R154: 1395163-2|1307055-2 | S154: 0 | T154: 154 | U154: 1395163-2 | V154: 1307055-2 | W154: Bronze
A155: 1468096 | B155: kr | C155: 1 | D155: Kirea | E155: p | F155: 1361701 | G155: kr | H155: 1 | I155: ê°œì‹¸ë¬´ìŒ | J155: t | K155: Bronze | L155: 12 | M155: 21 | N155: 321 | O155: 2014-11-15 | P155: 14 hours | Q155: 2014-12-21T23:48:00 | R155: 1468096-1|1361701-1 | S155: 0 | T155: 155 | U155: 1468096-1 | V155: 1361701-1 | W155: Bronze
A156: 4349728 | B156: kr | C156: 1 | D156: ë§ë³´ë£¨ì½”ì½”íŒœ | E156: z | F156: 4349358 | G156: kr | H156: 1 | I156: ê´‘ì£¼ê½ƒí”¼í”Œ | J156: t | K156: Bronze | L156: 11 | M156: 9 | N156: 320 | O156: 2014-11-18 | P156: 9 days | Q156: 2014-12-21T23:48:00 | R156: 4349728-1|4349358-1 | S156: 0 | T156: 156 | U156: 4349728-1 | V156: 4349358-1 | W156: Bronze
A157: 3400773 | B157: kr | C157: 1 | D157: ì—‰ë©ì´ë§žê³ ì‹¶ë‹¤ | E157: p | F157: 558577 | G157: kr | H157: 1 | I157: ë‚œë„ˆë¬´íê¸´ì´ì•¼ | J157: t | K157: Bronze | L157: 8 | M157: 12 | N157: 320 | O157: 2014-12-13 | P157: 4 days | Q157: 2014-12-21T23:48:00 | R157: 3400773-1|558577-1 | S157: 0 | T157: 157 | U157: 3400773-1 | V157: 558577-1 | W157: Bronze
A158: 2781128 | B158: kr | C158: 1 | D158: DiMaria | E158: p | F158: 99907 | G158: kr | H158: 1 | I158: Carletto | J158: t | K158: Bronze | L158: 10 | M158: 18 | N158: 320 | O158: 2014-11-28 | P158: 11 days | Q158: 2014-12-21T23:48:00 | R158: 2781128-1|99907-1 | S158: 0 | T158: 158 | U158: 2781128-1 | V158: 99907-1 | W158: Bronze
A159: 3514369 | B159: kr | C159: 1 | D159: í•˜í•˜í•˜ | E159: z | F159: 1560049 | G159: kr | H159: 1 | I159: ížˆë”©ë¸Œ | J159: t | K159: Bronze | L159: 10 | M159: 26 | N159: 320 | O159: 2014-11-14 | P159: 1 days | Q159: 2014-12-21T23:48:00 | R159: 3514369-1|1560049-1 | S159: 0 | T159: 159 | U159: 3514369-1 | V159: 1560049-1 | W159: Bronze
A160: 1360956 | B160: kr | C160: 2 | D160: EmPer | E160: p | F160: 751286 | G160: kr | H160: 2 | I160: Micstargi | J160: p | K160: Bronze | L160: 10 | M160: 13 | N160: 318 | O160: 2014-12-18 | P160: 17 hours | Q160: 2014-12-21T23:48:00 | R160: 1360956-2|751286-2 | S160: 0 | T160: 160 | U160: 1360956-2 | V160: 751286-2 | W160: Bronze
A161: 1067190 | B161: kr | C161: 2 | D161: aquarius | E161: p | F161: 274575 | G161: kr | H161: 2 | I161: æ³°ç‘ž | J161: p | K161: Bronze | L161: 19 | M161: 19 | N161: 317 | O161: 2014-11-16 | P161: 19 days | Q161: 2014-12-21T23:48:00 | R161: 1067190-2|274575-2 | S161: 0 | T161: 161 | U161: 1067190-2 | V161: 274575-2 | W161: Bronze
A162: 1881776 | B162: kr | C162: 1 | D162: ë™ë™ë™ | E162: r | F162: 1717475 | G162: kr | H162: 1 | I162: LMH | J162: p | K162: Bronze | L162: 10 | M162: 3 | N162: 314 | O162: 2014-11-24 | P162: 19 days | Q162: 2014-12-21T23:48:00 | R162: 1881776-1|1717475-1 | S162: 0 | T162: 162 | U162: 1881776-1 | V162: 1717475-1 | W162: Bronze
A163: 457727 | B163: kr | C163: 1 | D163: ë„ì‚¬ | E163: p | F163: 377460 | G163: kr | H163: 1 | I163: ì­ˆì•¼ë¥´ | J163: t | K163: Bronze | L163: 39 | M163: 68 | N163: 314 | O163: 2014-11-11 | P163: 3 days | Q163: 2014-12-21T23:48:00 | R163: 457727-1|377460-1 | S163: 0 | T163: 163 | U163: 457727-1 | V163: 377460-1 | W163: Bronze
A164: 940815 | B164: kr | C164: 1 | D164: ì‚¬ì§€ê°€ë¥´ê¸° | E164: t | F164: 665938 | G164: kr | H164: 1 | I164: RealGD | J164: p | K164: Bronze | L164: 11 | M164: 16 | N164: 312 | O164: 2014-11-28 | P164: 1 days | Q164: 2014-12-21T23:48:00 | R164: 940815-1|665938-1 | S164: 0 | T164: 164 | U164: 940815-1 | V164: 665938-1 | W164: Bronze
A165: 4569422 | B165: kr | C165: 1 | D165: ì¼€ë¤¼ | E165: z | F165: 4550966 | G165: kr | H165: 1 | I165: ë¡œì´ë¡œì´ë¡œì´ | J165: p | K165: Bronze | L165: 12 | M165: 10 | N165: 310 | O165: 2014-11-11 | P165: 5 days | Q165: 2014-12-21T23:48:00 | R165: 4569422-1|4550966-1 | S165: 0 | T165: 165 | U165: 4569422-1 | V165: 4550966-1 | W165: Bronze
A166: 757562 | B166: kr | C166: 2 | D166: Sarevok | E166: p | F166: 39634 | G166: kr | H166: 2 | I166: violentRed | J166: p | K166: Bronze | L166: 10 | M166: 19 | N166: 310 | O166: 2014-11-13 | P166: 7 days | Q166: 2014-12-21T23:48:00 | R166: 757562-2|39634-2 | S166: 0 | T166: 166 | U166: 757562-2 | V166: 39634-2 | W166: Bronze
A167: 2540899 | B167: kr | C167: 1 | D167: junghwan | E167: z | F167: 2424924 | G167: kr | H167: 1 | I167: bbfangel | J167: z | K167: Bronze | L167: 7 | M167: 2 | N167: 306 | O167: 2014-12-20 | P167: 19 hours | Q167: 2014-12-21T23:48:00 | R167: 2540899-1|2424924-1 | S167: 0 | T167: 167 | U167: 2540899-1 | V167: 2424924-1 | W167: Bronze
A168: 2691661 | B168: kr | C168: 1 | D168: Ares | E168: r | F168: 1555718 | G168: kr | H168: 1 | I168: Hahahaha | J168: r | K168: Bronze | L168: 12 | M168: 19 | N168: 306 | O168: 2014-11-19 | P168: 18 days | Q168: 2014-12-21T23:48:00 | R168: 2691661-1|1555718-1 | S168: 0 | T168: 168 | U168: 2691661-1 | V168: 1555718-1 | W168: Bronze
A169: 4219914 | B169: kr | C169: 1 | D169: ëª…ë¥œë™ì—˜ë¦¬ìŠ¤ | E169: t | F169: 2770516 | G169: kr | H169: 1 | I169: NewDivide | J169: r | K169: Bronze | L169: 8 | M169: 22 | N169: 306 | O169: 2014-12-19 | P169: 2 days | Q169: 2014-12-21T23:48:00 | R169: 4219914-1|2770516-1 | S169: 0 | T169: 169 | U169: 4219914-1 | V169: 2770516-1 | W169: Bronze
A170: 4443506 | B170: kr | C170: 1 | D170: TotorO | E170: t | F170: 4378581 | G170: kr | H170: 1 | I170: AdmiralBonng | J170: t | K170: Bronze | L170: 10 | M170: 6 | N170: 304 | O170: 2014-11-18 | P170: 7 days | Q170: 2014-12-21T23:48:00 | R170: 4443506-1|4378581-1 | S170: 0 | T170: 170 | U170: 4443506-1 | V170: 4378581-1 | W170: Bronze
A171: 4059683 | B171: kr | C171: 1 | D171: rusiaEU | E171: z | F171: 3912687 | G171: kr | H171: 1 | I171: ë¶ˆê³°ì˜ë‚ ê°œ | J171: t | K171: Bronze | L171: 10 | M171: 9 | N171: 302 | O171: 2014-12-13 | P171: 15 hours | Q171: 2014-12-21T23:48:00 | R171: 4059683-1|3912687-1 | S171: 0 | T171: 171 | U171: 4059683-1 | V171: 3912687-1 | W171: Bronze
A172: 4777335 | B172: kr | C172: 1 | D172: ìŠ¬ë¼ì´ì˜¨ | E172: t | F172: 1385786 | G172: kr | H172: 1 | I172: ë¶‰ì€ë°˜ë”§ë¶ˆì´ | J172: z | K172: Bronze | L172: 15 | M172: 21 | N172: 301 | O172: 2014-11-09 | P172: 21 days | Q172: 2014-12-21T23:48:00 | R172: 4777335-1|1385786-1 | S172: 0 | T172: 172 | U172: 4777335-1 | V172: 1385786-1 | W172: Bronze
A173: 268001 | B173: kr | C173: 1 | D173: ì—¬ëž‘ | E173: r | F173: 176539 | G173: kr | H173: 1 | I173: ì‚¬ì‹ | J173: t | K173: Bronze | L173: 9 | M173: 7 | N173: 300 | O173: 2014-12-12 | P173: 9 days | Q173: 2014-12-21T23:48:00 | R173: 268001-1|176539-1 | S173: 0 | T173: 173 | U173: 268001-1 | V173: 176539-1 | W173: Bronze
A174: 1199718 | B174: kr | C174: 2 | D174: otterJon | E174: t | F174: 114697 | G174: kr | H174: 2 | I174: vicNoBody | J174: r | K174: Bronze | L174: 11 | M174: 15 | N174: 300 | O174: 2014-11-25 | P174: 13 days | Q174: 2014-12-21T23:48:00 | R174: 1199718-2|114697-2 | S174: 0 | T174: 174 | U174: 1199718-2 | V174: 114697-2 | W174: Bronze
A175: 1401290 | B175: kr | C175: 2 | D175: toby | E175: p | F175: 266813 | G175: kr | H175: 2 | I175: é»‘è‰²å¹½é»˜ | J175: z | K175: Bronze | L175: 16 | M175: 46 | N175: 300 | O175: 2014-12-04 | P175: 8 days | Q175: 2014-12-21T23:48:00 | R175: 1401290-2|266813-2 | S175: 0 | T175: 175 | U175: 1401290-2 | V175: 266813-2 | W175: Bronze
A176: 2867726 | B176: kr | C176: 1 | D176: heaven | E176: t | F176: 972152 | G176: kr | H176: 1 | I176: superviojoe | J176: p | K176: Bronze | L176: 9 | M176: 19 | N176: 298 | O176: 2014-12-06 | P176: 1 days | Q176: 2014-12-21T23:48:00 | R176: 2867726-1|972152-1 | S176: 0 | T176: 176 | U176: 2867726-1 | V176: 972152-1 | W176: Bronze
A177: 4667983 | B177: kr | C177: 1 | D177: BorA | E177: z | F177: 4095082 | G177: kr | H177: 1 | I177: ì¸ìƒí•œë°© | J177: p | K177: Bronze | L177: 8 | M177: 5 | N177: 296 | O177: 2014-11-22 | P177: 5 days | Q177: 2014-12-21T23:48:00 | R177: 4667983-1|4095082-1 | S177: 0 | T177: 177 | U177: 4667983-1 | V177: 4095082-1 | W177: Bronze
A178: 1189560 | B178: kr | C178: 2 | D178: å‘†å‘† | E178: p | F178: 801445 | G178: kr | H178: 2 | I178: æ…‹åº¦ç¿©ç¿© | J178: r | K178: Bronze | L178: 7 | M178: 5 | N178: 296 | O178: 2014-11-29 | P178: 12 days | Q178: 2014-12-21T23:48:00 | R178: 1189560-2|801445-2 | S178: 0 | T178: 178 | U178: 1189560-2 | V178: 801445-2 | W178: Bronze
A179: 4648741 | B179: kr | C179: 1 | D179: Vudafast | E179: p | F179: 556755 | G179: kr | H179: 1 | I179: í•´êµ°ì°¸ëª¨ì´ìž¥ | J179: t | K179: Bronze | L179: 8 | M179: 14 | N179: 292 | O179: 2014-11-27 | P179: 12 days | Q179: 2014-12-21T23:48:00 | R179: 4648741-1|556755-1 | S179: 0 | T179: 179 | U179: 4648741-1 | V179: 556755-1 | W179: Bronze
A180: 1501253 | B180: kr | C180: 1 | D180: ë­„ë°”í‚¤ | E180: t | F180: 137456 | G180: kr | H180: 1 | I180: CoffeeU | J180: p | K180: Bronze | L180: 10 | M180: 15 | N180: 290 | O180: 2014-11-11 | P180: 5 days | Q180: 2014-12-21T23:48:00 | R180: 1501253-1|137456-1 | S180: 0 | T180: 180 | U180: 1501253-1 | V180: 137456-1 | W180: Bronze
A181: 4800966 | B181: kr | C181: 1 | D181: ì•„ë¥´ë¯¸ì° | E181: z | F181: 1180116 | G181: kr | H181: 1 | I181: Dragon | J181: p | K181: Bronze | L181: 10 | M181: 21 | N181: 290 | O181: 2014-12-10 | P181: 7 hours | Q181: 2014-12-21T23:48:00 | R181: 4800966-1|1180116-1 | S181: 0 | T181: 181 | U181: 4800966-1 | V181: 1180116-1 | W181: Bronze
A182: 2916570 | B182: kr | C182: 1 | D182: ê¹¡ì“° | E182: p | F182: 2049686 | G182: kr | H182: 1 | I182: CrimSon | J182: r | K182: Bronze | L182: 9 | M182: 4 | N182: 288 | O182: 2014-12-13 | P182: 3 days | Q182: 2014-12-21T23:48:00 | R182: 2916570-1|2049686-1 | S182: 0 | T182: 182 | U182: 2916570-1 | V182: 2049686-1 | W182: Bronze
A183: 4439082 | B183: kr | C183: 1 | D183: BoHK | E183: p | F183: 4333755 | G183: kr | H183: 1 | I183: ì‘êµ¥ì´ | J183: r | K183: Bronze | L183: 8 | M183: 7 | N183: 288 | O183: 2014-12-09 | P183: 11 days | Q183: 2014-12-21T23:48:00 | R183: 4439082-1|4333755-1 | S183: 0 | T183: 183 | U183: 4439082-1 | V183: 4333755-1 | W183: Bronze
A184: 4507613 | B184: kr | C184: 1 | D184: ê°“ì´‰ | E184: r | F184: 3298458 | G184: kr | H184: 1 | I184: ì–´ë‘ ì˜ë°œ | J184: p | K184: Bronze | L184: 9 | M184: 9 | N184: 288 | O184: 2014-12-10 | P184: 14 minutes | Q184: 2014-12-21T23:48:00 | R184: 4507613-1|3298458-1 | S184: 0 | T184: 184 | U184: 4507613-1 | V184: 3298458-1 | W184: Bronze
A185: 4113621 | B185: kr | C185: 1 | D185: ë˜˜ë˜˜ì´ | E185: p | F185: 2877763 | G185: kr | H185: 1 | I185: ê°•ì§€ì› | J185: z | K185: Bronze | L185: 16 | M185: 20 | N185: 288 | O185: 2014-11-25 | P185: 26 days | Q185: 2014-12-21T23:48:00 | R185: 4113621-1|2877763-1 | S185: 0 | T185: 185 | U185: 4113621-1 | V185: 2877763-1 | W185: Bronze
A186: 4662886 | B186: kr | C186: 1 | D186: êµ°ìˆ˜ê³µìž¥ | E186: p | F186: 3169206 | G186: kr | H186: 1 | I186: ê½ƒë²¤ì‹œ | J186: t | K186: Bronze | L186: 9 | M186: 10 | N186: 286 | O186: 2014-11-23 | P186: 1 days | Q186: 2014-12-21T23:48:00 | R186: 4662886-1|3169206-1 | S186: 0 | T186: 186 | U186: 4662886-1 | V186: 3169206-1 | W186: Bronze
A187: 2184860 | B187: kr | C187: 1 | D187: êµ°ì¸ | E187: r | F187: 1481800 | G187: kr | H187: 1 | I187: ì‹ ë³‘ìœ„ë¡œíœ´ê°€ | J187: r | K187: Bronze | L187: 9 | M187: 14 | N187: 286 | O187: 2014-11-19 | P187: 5 days | Q187: 2014-12-21T23:48:00 | R187: 2184860-1|1481800-1 | S187: 0 | T187: 187 | U187: 2184860-1 | V187: 1481800-1 | W187: Bronze
A188: 4328364 | B188: kr | C188: 1 | D188: ì–´ê·¸ë¡œí‚¹ | E188: r | F188: 4285436 | G188: kr | H188: 1 | I188: imthebest | J188: r | K188: Bronze | L188: 10 | M188: 9 | N188: 284 | O188: 2014-11-23 | P188: 1 days | Q188: 2014-12-21T23:48:00 | R188: 4328364-1|4285436-1 | S188: 0 | T188: 188 | U188: 4328364-1 | V188: 4285436-1 | W188: Bronze
A189: 1101659 | B189: kr | C189: 1 | D189: PeterJang | E189: t | F189: 327579 | G189: kr | H189: 1 | I189: Kerygmahong | J189: p | K189: Bronze | L189: 9 | M189: 4 | N189: 282 | O189: 2014-11-13 | P189: 2 days | Q189: 2014-12-21T23:48:00 | R189: 1101659-1|327579-1 | S189: 0 | T189: 189 | U189: 1101659-1 | V189: 327579-1 | W189: Bronze
A190: 1334632 | B190: kr | C190: 1 | D190: ë¶€ì§€ëŸ°í•œë² ì§±ì´ | E190: z | F190: 1333113 | G190: kr | H190: 1 | I190: Goodbye | J190: p | K190: Bronze | L190: 10 | M190: 13 | N190: 282 | O190: 2014-11-16 | P190: 7 days | Q190: 2014-12-21T23:48:00 | R190: 1334632-1|1333113-1 | S190: 0 | T190: 190 | U190: 1334632-1 | V190: 1333113-1 | W190: Bronze
A191: 3638209 | B191: kr | C191: 1 | D191: ë‹¤ì´í•˜ë“œ | E191: p | F191: 1417931 | G191: kr | H191: 1 | I191: ì˜ˆë²½ë³‘ìž¥ | J191: p | K191: Bronze | L191: 9 | M191: 12 | N191: 281 | O191: 2014-11-11 | P191: 7 days | Q191: 2014-12-21T23:48:00 | R191: 3638209-1|1417931-1 | S191: 0 | T191: 191 | U191: 3638209-1 | V191: 1417931-1 | W191: Bronze
A192: 4756138 | B192: kr | C192: 1 | D192: êµ¬ë£¨ë£¨ë£¨êµ¬êµ¬ | E192: r | F192: 4028623 | G192: kr | H192: 1 | I192: ì•ˆë³‘ì„± | J192: r | K192: Bronze | L192: 8 | M192: 8 | N192: 280 | O192: 2014-11-23 | P192: 3 days | Q192: 2014-12-21T23:48:00 | R192: 4756138-1|4028623-1 | S192: 0 | T192: 192 | U192: 4756138-1 | V192: 4028623-1 | W192: Bronze
A193: 4377632 | B193: kr | C193: 1 | D193: Corvenik | E193: r | F193: 4194092 | G193: kr | H193: 1 | I193: LastRaven | J193: t | K193: Bronze | L193: 9 | M193: 8 | N193: 278 | O193: 2014-11-09 | P193: 7 days | Q193: 2014-12-21T23:48:00 | R193: 4377632-1|4194092-1 | S193: 0 | T193: 193 | U193: 4377632-1 | V193: 4194092-1 | W193: Bronze
A194: 4755216 | B194: kr | C194: 1 | D194: Hero | E194: p | F194: 3041911 | G194: kr | H194: 1 | I194: ëŠê¸ˆë§ˆ | J194: t | K194: Bronze | L194: 9 | M194: 15 | N194: 278 | O194: 2014-11-25 | P194: 1 days | Q194: 2014-12-21T23:48:00 | R194: 4755216-1|3041911-1 | S194: 0 | T194: 194 | U194: 4755216-1 | V194: 3041911-1 | W194: Bronze
A195: 2021666 | B195: kr | C195: 1 | D195: í™ì–´ | E195: z | F195: 760497 | G195: kr | H195: 1 | I195: Acuate | J195: z | K195: Bronze | L195: 7 | M195: 2 | N195: 276 | O195: 2014-11-30 | P195: 21 days | Q195: 2014-12-21T23:48:00 | R195: 2021666-1|760497-1 | S195: 0 | T195: 195 | U195: 2021666-1 | V195: 760497-1 | W195: Bronze
A196: 553385 | B196: kr | C196: 2 | D196: Atyh | E196: p | F196: 414521 | G196: kr | H196: 2 | I196: å°éŠ˜ | J196: t | K196: Bronze | L196: 10 | M196: 10 | N196: 276 | O196: 2014-11-30 | P196: 9 days | Q196: 2014-12-21T23:48:00 | R196: 553385-2|414521-2 | S196: 0 | T196: 196 | U196: 553385-2 | V196: 414521-2 | W196: Bronze
A197: 417423 | B197: kr | C197: 2 | D197: æ°¸æ†ä¹‚å­¤å–® | E197: r | F197: 279578 | G197: kr | H197: 2 | I197: å·¥ç¨‹è»Šæº–å‚™å®Œæˆ | J197: z | K197: Bronze | L197: 11 | M197: 13 | N197: 276 | O197: 2014-12-03 | P197: 15 days | Q197: 2014-12-21T23:48:00 | R197: 417423-2|279578-2 | S197: 0 | T197: 197 | U197: 417423-2 | V197: 279578-2 | W197: Bronze
A198: 4443485 | B198: kr | C198: 1 | D198: ì°½ì“°ë°”ë¦¬ë°”ë¦¬ | E198: t | F198: 1195290 | G198: kr | H198: 1 | I198: llllllll | J198: r | K198: Bronze | L198: 9 | M198: 6 | N198: 275 | O198: 2014-11-13 | P198: 16 days | Q198: 2014-12-21T23:48:00 | R198: 4443485-1|1195290-1 | S198: 0 | T198: 198 | U198: 4443485-1 | V198: 1195290-1 | W198: Bronze
A199: 856299 | B199: kr | C199: 1 | D199: FlaSH | E199: r | F199: 205855 | G199: kr | H199: 1 | I199: ë§¤ìš° | J199: r | K199: Bronze | L199: 9 | M199: 5 | N199: 274 | O199: 2014-12-02 | P199: 1 days | Q199: 2014-12-21T23:48:00 | R199: 856299-1|205855-1 | S199: 0 | T199: 199 | U199: 856299-1 | V199: 205855-1 | W199: Bronze
A200: 1763276 | B200: kr | C200: 1 | D200: ì§€ë‹ˆ | E200: p | F200: 773142 | G200: kr | H200: 1 | I200: ì‚¶ì˜ì°½ì¡° | J200: z | K200: Bronze | L200: 8 | M200: 8 | N200: 274 | O200: 2014-12-06 | P200: 15 days | Q200: 2014-12-21T23:48:00 | R200: 1763276-1|773142-1 | S200: 0 | T200: 200 | U200: 1763276-1 | V200: 773142-1 | W200: Bronze
... 2050 more rows

Sheet 3v3Team
A1: Player ID 1 | B1: Player 1 Region | C1: Player 1 Subregion | D1: Player 1 Name | E1: Player 1 Race | F1: Player ID 2 | G1: Player 2 Region | H1: Player 2 Subregion | I1: Player 2 Name | J1: Player 2 Race | K1: Player ID 3 | L1: Player 3 Region | M1: Player 3 Subregion | N1: Player 3 Name | O1: Player 3 Race | P1: League | Q1: Win | R1: Loss | S1: Score | T1: Date Joined | U1: Last Game | V1: Timestamp | W1: TrueID | X1: Duplicate Check | Y1: Ordered ID
A2: 3281886 | B2: kr | C2: 1 | D2: í¬ì•¼ | E2: p | F2: 2665770 | G2: kr | H2: 1 | I2: ìƒí•œë¯¸êµ­ê°€ìž¬ | J2: t | K2: 2661794 | L2: kr | M2: 1 | N2: tmt | O2: t | P2: Bronze | Q2: 29 | R2: 33 | S2: 392 | T2: 2014-11-29 | U2: 19 hours | V2: 2014-12-21T23:48:59 | W2: 3281886-1|2665770-1|2661794-1 | X2: 0 | Y2: 2 | Z2: 3281886-1 | AA2: 2665770-1 | AB2: 2661794-1 | AC2: Bronze
A3: 345733 | B3: kr | C3: 2 | D3: RoLL | E3: r | F3: 243462 | G3: kr | H3: 2 | I3: MaDKYO | J3: r | K3: 155761 | L3: kr | M3: 2 | N3: MaDevil | O3: r | P3: Bronze | Q3: 15 | R3: 5 | S3: 353 | T3: 2014-11-11 | U3: 7 days | V3: 2014-12-21T23:48:59 | W3: 345733-2|243462-2|155761-2 | X3: 0 | Y3: 3 | Z3: 345733-2 | AA3: 243462-2 | AB3: 155761-2 | AC3: Bronze
A4: 776032 | B4: kr | C4: 2 | D4: HILLHSU | E4: z | F4: 773439 | G4: kr | H4: 2 | I4: pon | J4: t | K4: 389157 | L4: kr | M4: 2 | N4: ä½•å¿…å• | O4: t | P4: Bronze | Q4: 26 | R4: 35 | S4: 346 | T4: 2014-11-15 | U4: 1 days | V4: 2014-12-21T23:48:59 | W4: 776032-2|773439-2|389157-2 | X4: 0 | Y4: 4 | Z4: 776032-2 | AA4: 773439-2 | AB4: 389157-2 | AC4: Bronze
A5: 823149 | B5: kr | C5: 2 | D5: æ“‹æ“‹ | E5: z | F5: 579725 | G5: kr | H5: 2 | I5: silent | J5: t | K5: 576492 | L5: kr | M5: 2 | N5: MoMo | O5: z | P5: Bronze | Q5: 15 | R5: 23 | S5: 340 | T5: 2014-11-27 | U5: 3 days | V5: 2014-12-21T23:48:59 | W5: 823149-2|579725-2|576492-2 | X5: 0 | Y5: 5 | Z5: 823149-2 | AA5: 579725-2 | AB5: 576492-2 | AC5: Bronze
A6: 4186295 | B6: kr | C6: 1 | D6: cpeter | E6: p | F6: 2948063 | G6: kr | H6: 1 | I6: kaprea | J6: t | K6: 378590 | L6: kr | M6: 1 | N6: í•œêµ­í˜¸ëž‘ì´ | O6: r | P6: Bronze | Q6: 12 | R6: 12 | S6: 337 | T6: 2014-11-23 | U6: 1 days | V6: 2014-12-21T23:48:59 | W6: 4186295-1|2948063-1|378590-1 | X6: 0 | Y6: 6 | Z6: 4186295-1 | AA6: 2948063-1 | AB6: 378590-1 | AC6: Bronze
A7: 4128707 | B7: kr | C7: 1 | D7: ìž‰ì—¬ | E7: t | F7: 3502362 | G7: kr | H7: 1 | I7: DRAGONLSC | J7: p | K7: 264454 | L7: kr | M7: 1 | N7: JWhaap | O7: p | P7: Bronze | Q7: 14 | R7: 16 | S7: 329 | T7: 2014-12-10 | U7: 21 hours | V7: 2014-12-21T23:48:59 | W7: 4128707-1|3502362-1|264454-1 | X7: 0 | Y7: 7 | Z7: 4128707-1 | AA7: 3502362-1 | AB7: 264454-1 | AC7: Bronze
A8: 321365 | B8: kr | C8: 2 | D8: airmo | E8: z | F8: 156835 | G8: kr | H8: 2 | I8: bob | J8: p | K8: 32686 | L8: kr | M8: 2 | N8: Rot | O8: p | P8: Bronze | Q8: 16 | R8: 15 | S8: 328 | T8: 2014-11-12 | U8: 1 days | V8: 2014-12-21T23:48:59 | W8: 321365-2|156835-2|32686-2 | X8: 0 | Y8: 8 | Z8: 321365-2 | AA8: 156835-2 | AB8: 32686-2 | AC8: Bronze
A9: 1814956 | B9: kr | C9: 1 | D9: ì“°ë‹¤ë¯¸ | E9: r | F9: 593646 | G9: kr | H9: 1 | I9: ì­ê¸°ì­ê¸° | J9: r | K9: 117503 | L9: kr | M9: 1 | N9: Commando | O9: r | P9: Bronze | Q9: 12 | R9: 12 | S9: 318 | T9: 2014-12-02 | U9: 1 days | V9: 2014-12-21T23:48:59 | W9: 1814956-1|593646-1|117503-1 | X9: 0 | Y9: 9 | Z9: 1814956-1 | AA9: 593646-1 | AB9: 117503-1 | AC9: Bronze
A10: 4756138 | B10: kr | C10: 1 | D10: êµ¬ë£¨ë£¨ë£¨êµ¬êµ¬ | E10: r | F10: 4395879 | G10: kr | H10: 1 | I10: ê±¸ì–´ì„œí•˜ëŠ˜ê¹Œì§€ | J10: p | K10: 1579269 | L10: kr | M10: 1 | N10: ë§íƒœí• ì•„ë²„ì§€ | O10: t | P10: Bronze | Q10: 16 | R10: 19 | S10: 312 | T10: 2014-11-24 | U10: 4 days | V10: 2014-12-21T23:48:59 | W10: 4756138-1|4395879-1|1579269-1 | X10: 0 | Y10: 10 | Z10: 4756138-1 | AA10: 4395879-1 | AB10: 1579269-1 | AC10: Bronze
A11: 2602349 | B11: kr | C11: 1 | D11: ìƒë‚¨ìž | E11: p | F11: 2170288 | G11: kr | H11: 1 | I11: ë‚ ìœ¼ëŠ”ìš© | J11: p | K11: 1964115 | L11: kr | M11: 1 | N11: refdgs | O11: z | P11: Bronze | Q11: 12 | R11: 15 | S11: 306 | T11: 2014-12-07 | U11: 2 days | V11: 2014-12-21T23:48:59 | W11: 2602349-1|2170288-1|1964115-1 | X11: 0 | Y11: 11 | Z11: 2602349-1 | AA11: 2170288-1 | AB11: 1964115-1 | AC11: Bronze
A12: 1385085 | B12: kr | C12: 1 | D12: í‹°ëª¨ë¥´ì™•ìž | E12: t | F12: 666741 | G12: kr | H12: 1 | I12: ìˆ˜ë‹ˆ | J12: t | K12: 139333 | L12: kr | M12: 1 | N12: asdfgfdsg | O12: t | P12: Bronze | Q12: 10 | R12: 8 | S12: 304 | T12: 2014-12-14 | U12: 7 days | V12: 2014-12-21T23:48:59 | W12: 1385085-1|666741-1|139333-1 | X12: 0 | Y12: 12 | Z12: 1385085-1 | AA12: 666741-1 | AB12: 139333-1 | AC12: Bronze
A13: 1503689 | B13: kr | C13: 1 | D13: ì•¡ë¬¸ | E13: t | F13: 1008919 | G13: kr | H13: 1 | I13: ê³µì¤‘ì ‘ê°ì—…ìž | J13: z | K13: 507552 | L13: kr | M13: 1 | N13: ë ˆì•ŒìŠˆíŒ…ìŠ¤íƒ€ | O13: p | P13: Bronze | Q13: 9 | R13: 11 | S13: 301 | T13: 2014-11-30 | U13: 1 days | V13: 2014-12-21T23:48:59 | W13: 1503689-1|1008919-1|507552-1 | X13: 0 | Y13: 13 | Z13: 1503689-1 | AA13: 1008919-1 | AB13: 507552-1 | AC13: Bronze
A14: 4596597 | B14: kr | C14: 1 | D14: ë”ìƒì„±í•˜ì‹­ì‹œìš” | E14: z | F14: 3080557 | G14: kr | H14: 1 | I14: í‹°ë¥´ | J14: p | K14: 2736247 | L14: kr | M14: 1 | N14: ë¯¸ë„¤ë¥´ë°• | O14: t | P14: Bronze | Q14: 10 | R14: 0 | S14: 298 | T14: 2014-12-05 | U14: 1 days | V14: 2014-12-21T23:48:59 | W14: 4596597-1|3080557-1|2736247-1 | X14: 0 | Y14: 14 | Z14: 4596597-1 | AA14: 3080557-1 | AB14: 2736247-1 | AC14: Bronze
A15: 3281353 | B15: kr | C15: 1 | D15: FireBear | E15: t | F15: 754780 | G15: kr | H15: 1 | I15: UltraMarine | J15: t | K15: 464622 | L15: kr | M15: 1 | N15: ì¡°ë‹ˆì›Œì»¤ | O15: r | P15: Bronze | Q15: 9 | R15: 2 | S15: 296 | T15: 2014-12-13 | U15: 8 days | V15: 2014-12-21T23:48:59 | W15: 3281353-1|754780-1|464622-1 | X15: 0 | Y15: 15 | Z15: 3281353-1 | AA15: 754780-1 | AB15: 464622-1 | AC15: Bronze
A16: 3489855 | B16: kr | C16: 1 | D16: ê³ ìˆ˜ | E16: t | F16: 2243406 | G16: kr | H16: 1 | I16: MaoMao | J16: p | K16: 652826 | L16: kr | M16: 1 | N16: ìž‰ë¸” | O16: z | P16: Bronze | Q16: 10 | R16: 5 | S16: 296 | T16: 2014-11-14 | U16: 7 days | V16: 2014-12-21T23:48:59 | W16: 3489855-1|2243406-1|652826-1 | X16: 0 | Y16: 16 | Z16: 3489855-1 | AA16: 2243406-1 | AB16: 652826-1 | AC16: Bronze
A17: 4343095 | B17: kr | C17: 1 | D17: ë¬´ì ìš©ì‹± | E17: r | F17: 4186065 | G17: kr | H17: 1 | I17: nOsJuLy | J17: p | K17: 3175692 | L17: kr | M17: 1 | N17: SooYa | O17: r | P17: Bronze | Q17: 8 | R17: 6 | S17: 296 | T17: 2014-12-12 | U17: 3 days | V17: 2014-12-21T23:48:59 | W17: 4343095-1|4186065-1|3175692-1 | X17: 0 | Y17: 17 | Z17: 4343095-1 | AA17: 4186065-1 | AB17: 3175692-1 | AC17: Bronze
A18: 1101491 | B18: kr | C18: 2 | D18: è²“ä¸‰æ½˜ | E18: p | F18: 1101217 | G18: kr | H18: 2 | I18: FancyPantsRT | J18: p | K18: 1052446 | L18: kr | M18: 2 | N18: Zerg | O18: z | P18: Bronze | Q18: 10 | R18: 2 | S18: 295 | T18: 2014-11-14 | U18: 15 days | V18: 2014-12-21T23:48:59 | W18: 1101491-2|1101217-2|1052446-2 | X18: 0 | Y18: 18 | Z18: 1101491-2 | AA18: 1101217-2 | AB18: 1052446-2 | AC18: Bronze
A19: 2351864 | B19: kr | C19: 1 | D19: ê¹€í•œê¸° | E19: r | F19: 908536 | G19: kr | H19: 1 | I19: AraMir | J19: r | K19: 908214 | L19: kr | M19: 1 | N19: ë£¨í”¼ | O19: t | P19: Bronze | Q19: 10 | R19: 9 | S19: 294 | T19: 2014-12-13 | U19: 4 days | V19: 2014-12-21T23:49:04 | W19: 2351864-1|908536-1|908214-1 | X19: 0 | Y19: 19 | Z19: 2351864-1 | AA19: 908536-1 | AB19: 908214-1 | AC19: Bronze
A20: 4540147 | B20: kr | C20: 1 | D20: simplerjen | E20: t | F20: 4532011 | G20: kr | H20: 1 | I20: ì§„ìƒ | J20: p | K20: 3800314 | L20: kr | M20: 1 | N20: AMSimpler | O20: t | P20: Bronze | Q20: 14 | R20: 17 | S20: 291 | T20: 2014-12-19 | U20: 17 hours | V20: 2014-12-21T23:49:04 | W20: 4540147-1|4532011-1|3800314-1 | X20: 0 | Y20: 20 | Z20: 4540147-1 | AA20: 4532011-1 | AB20: 3800314-1 | AC20: Bronze
A21: 4042650 | B21: kr | C21: 1 | D21: ì•„ì˜¤ì´ìœ ìš°ì˜ë‚¨ìž | E21: p | F21: 2401771 | G21: kr | H21: 1 | I21: êµ­ë¯¼ìš”ì •ë°•ì •ì„ | J21: r | K21: 431664 | L21: kr | M21: 1 | N21: ì‹¬ì •í›ˆ | O21: r | P21: Bronze | Q21: 10 | R21: 13 | S21: 285 | T21: 2014-11-20 | U21: 17 hours | V21: 2014-12-21T23:49:04 | W21: 4042650-1|2401771-1|431664-1 | X21: 0 | Y21: 21 | Z21: 4042650-1 | AA21: 2401771-1 | AB21: 431664-1 | AC21: Bronze
A22: 3172608 | B22: kr | C22: 1 | D22: ë°ì´ë¹„ë“œë°±ì • | E22: t | F22: 2200666 | G22: kr | H22: 1 | I22: ë‹ˆë©´ìƒ | J22: r | K22: 620073 | L22: kr | M22: 1 | N22: ìŠ¤íƒ€ | O22: p | P22: Bronze | Q22: 10 | R22: 7 | S22: 280 | T22: 2014-12-09 | U22: 2 days | V22: 2014-12-21T23:49:04 | W22: 3172608-1|2200666-1|620073-1 | X22: 0 | Y22: 22 | Z22: 3172608-1 | AA22: 2200666-1 | AB22: 620073-1 | AC22: Bronze
A23: 4776369 | B23: kr | C23: 1 | D23: í˜¸ì¼ë°” | E23: p | F23: 1758102 | G23: kr | H23: 1 | I23: í…Œëž€ëŒ€ë§ˆì™• | J23: t | K23: 672663 | L23: kr | M23: 1 | N23: ì² ë°”íƒ€ | O23: r | P23: Bronze | Q23: 9 | R23: 8 | S23: 279 | T23: 2014-12-06 | U23: 15 days | V23: 2014-12-21T23:49:04 | W23: 4776369-1|1758102-1|672663-1 | X23: 0 | Y23: 23 | Z23: 4776369-1 | AA23: 1758102-1 | AB23: 672663-1 | AC23: Bronze
A24: 2558965 | B24: kr | C24: 1 | D24: ì›ë”ëŸ¬ìŠ¤íŠ¸ | E24: r | F24: 1441739 | G24: kr | H24: 1 | I24: ë¿Œë ˆì¹­íŒ¡ìž‰ | J24: r | K24: 307185 | L24: kr | M24: 1 | N24: ë¸”ë£¨ë“œëž˜ê³¤ | O24: r | P24: Bronze | Q24: 7 | R24: 2 | S24: 278 | T24: 2014-12-14 | U24: 8 days | V24: 2014-12-21T23:49:04 | W24: 2558965-1|1441739-1|307185-1 | X24: 0 | Y24: 24 | Z24: 2558965-1 | AA24: 1441739-1 | AB24: 307185-1 | AC24: Bronze
A25: 4105766 | B25: kr | C25: 1 | D25: ì´ìž¬í˜¸ | E25: t | F25: 2014102 | G25: kr | H25: 1 | I25: tnrnvn | J25: p | K25: 740629 | L25: kr | M25: 1 | N25: rin | O25: r | P25: Bronze | Q25: 12 | R25: 10 | S25: 278 | T25: 2014-12-03 | U25: 12 days | V25: 2014-12-21T23:49:04 | W25: 4105766-1|2014102-1|740629-1 | X25: 0 | Y25: 25 | Z25: 4105766-1 | AA25: 2014102-1 | AB25: 740629-1 | AC25: Bronze
A26: 3961768 | B26: kr | C26: 1 | D26: mark | E26: p | F26: 236886 | G26: kr | H26: 1 | I26: dgsag | J26: t | K26: 234557 | L26: kr | M26: 1 | N26: mbkjjang | O26: p | P26: Bronze | Q26: 8 | R26: 9 | S26: 274 | T26: 2014-12-10 | U26: 14 hours | V26: 2014-12-21T23:49:04 | W26: 3961768-1|236886-1|234557-1 | X26: 0 | Y26: 26 | Z26: 3961768-1 | AA26: 236886-1 | AB26: 234557-1 | AC26: Bronze
A27: 4742012 | B27: kr | C27: 1 | D27: ì •ë‹¬ê±´ | E27: p | F27: 1928147 | G27: kr | H27: 1 | I27: PRADA | J27: p | K27: 684651 | L27: kr | M27: 1 | N27: ë¶ˆê½ƒë‚¨ìž | O27: r | P27: Bronze | Q27: 9 | R27: 8 | S27: 268 | T27: 2014-12-12 | U27: 1 days | V27: 2014-12-21T23:49:04 | W27: 4742012-1|1928147-1|684651-1 | X27: 0 | Y27: 27 | Z27: 4742012-1 | AA27: 1928147-1 | AB27: 684651-1 | AC27: Bronze
A28: 2183791 | B28: kr | C28: 1 | D28: holybang | E28: z | F28: 2173804 | G28: kr | H28: 1 | I28: dhbbang | J28: t | K28: 1997904 | L28: kr | M28: 1 | N28: seanyyy | O28: p | P28: Bronze | Q28: 8 | R28: 4 | S28: 266 | T28: 2014-12-21 | U28: 15 hours | V28: 2014-12-21T23:49:04 | W28: 2183791-1|2173804-1|1997904-1 | X28: 0 | Y28: 28 | Z28: 2183791-1 | AA28: 2173804-1 | AB28: 1997904-1 | AC28: Bronze
A29: 602676 | B29: kr | C29: 2 | D29: æ˜Ÿæµ·é­‚ | E29: p | F29: 107334 | G29: kr | H29: 2 | I29: Jack | J29: t | K29: 62611 | L29: kr | M29: 2 | N29: Duncan | O29: p | P29: Bronze | Q29: 9 | R29: 1 | S29: 264 | T29: 2014-11-22 | U29: 22 days | V29: 2014-12-21T23:49:04 | W29: 602676-2|107334-2|62611-2 | X29: 0 | Y29: 29 | Z29: 602676-2 | AA29: 107334-2 | AB29: 62611-2 | AC29: Bronze
A30: 3355271 | B30: kr | C30: 1 | D30: king | E30: z | F30: 2488969 | G30: kr | H30: 1 | I30: ì˜í˜¸ì§± | J30: p | K30: 833859 | L30: kr | M30: 1 | N30: ì»µë¼ë©´ | O30: t | P30: Bronze | Q30: 18 | R30: 19 | S30: 262 | T30: 2014-11-11 | U30: 5 days | V30: 2014-12-21T23:49:04 | W30: 3355271-1|2488969-1|833859-1 | X30: 0 | Y30: 30 | Z30: 3355271-1 | AA30: 2488969-1 | AB30: 833859-1 | AC30: Bronze
A31: 764918 | B31: kr | C31: 1 | D31: ê¹€ì§€ë‚˜ | E31: p | F31: 591127 | G31: kr | H31: 1 | I31: ê³¨ë“œí•˜ìš¸ëŸ¬ | J31: z | K31: 511568 | L31: kr | M31: 1 | N31: SCV | O31: t | P31: Bronze | Q31: 8 | R31: 3 | S31: 261 | T31: 2014-12-03 | U31: 18 days | V31: 2014-12-21T23:49:04 | W31: 764918-1|591127-1|511568-1 | X31: 0 | Y31: 31 | Z31: 764918-1 | AA31: 591127-1 | AB31: 511568-1 | AC31: Bronze
A32: 232464 | B32: kr | C32: 2 | D32: BTboss | E32: z | F32: 100359 | G32: kr | H32: 2 | I32: å¤§å–µ | J32: t | K32: 64860 | L32: kr | M32: 2 | N32: Kai | O32: r | P32: Bronze | Q32: 8 | R32: 5 | S32: 260 | T32: 2014-11-24 | U32: 11 days | V32: 2014-12-21T23:49:04 | W32: 232464-2|100359-2|64860-2 | X32: 0 | Y32: 32 | Z32: 232464-2 | AA32: 100359-2 | AB32: 64860-2 | AC32: Bronze
A33: 4687240 | B33: kr | C33: 1 | D33: ë‹¬ë‹˜ | E33: p | F33: 4687074 | G33: kr | H33: 1 | I33: ë³„ë‹˜ | J33: r | K33: 137095 | L33: kr | M33: 1 | N33: ZARD | O33: p | P33: Bronze | Q33: 47 | R33: 62 | S33: 258 | T33: 2014-11-11 | U33: 5 days | V33: 2014-12-21T23:49:04 | W33: 4687240-1|4687074-1|137095-1 | X33: 0 | Y33: 33 | Z33: 4687240-1 | AA33: 4687074-1 | AB33: 137095-1 | AC33: Bronze
A34: 2721934 | B34: kr | C34: 1 | D34: í”„ë¡œí† ìŠ¤í•­êµ | E34: p | F34: 2588748 | G34: kr | H34: 1 | I34: í•­ë§ˆëŠ”ì´ˆì•„ìž…ë‹ˆë‹¤ | J34: p | K34: 2568075 | L34: kr | M34: 1 | N34: í•­ë§ˆëŠ”ì‚¬ëž‘ìž…ë‹ˆë‹¤ | O34: z | P34: Bronze | Q34: 7 | R34: 1 | S34: 254 | T34: 2014-12-06 | U34: 15 days | V34: 2014-12-21T23:49:04 | W34: 2721934-1|2588748-1|2568075-1 | X34: 0 | Y34: 34 | Z34: 2721934-1 | AA34: 2588748-1 | AB34: 2568075-1 | AC34: Bronze
A35: 2722778 | B35: kr | C35: 1 | D35: ì•„ë””ì´ | E35: t | F35: 2566895 | G35: kr | H35: 1 | I35: ì„œìš¸í˜„ë¹ˆ | J35: p | K35: 189469 | L35: kr | M35: 1 | N35: íŽ˜ì´ìŠ¤ë§¨ | O35: p | P35: Bronze | Q35: 10 | R35: 5 | S35: 254 | T35: 2014-11-20 | U35: 1 days | V35: 2014-12-21T23:49:05 | W35: 2722778-1|2566895-1|189469-1 | X35: 0 | Y35: 35 | Z35: 2722778-1 | AA35: 2566895-1 | AB35: 189469-1 | AC35: Bronze
A36: 2298213 | B36: kr | C36: 1 | D36: ì²­ë©´ìˆ˜ | E36: p | F36: 2172314 | G36: kr | H36: 1 | I36: ê³°ì¥ | J36: r | K36: 868034 | L36: kr | M36: 1 | N36: ë‚ ì•„ë¼ìŠˆì¦ˆ | O36: t | P36: Bronze | Q36: 8 | R36: 7 | S36: 252 | T36: 2014-11-30 | U36: 19 hours | V36: 2014-12-21T23:49:05 | W36: 2298213-1|2172314-1|868034-1 | X36: 0 | Y36: 36 | Z36: 2298213-1 | AA36: 2172314-1 | AB36: 868034-1 | AC36: Bronze
A37: 788505 | B37: kr | C37: 2 | D37: Stanley | E37: p | F37: 745420 | G37: kr | H37: 2 | I37: çŽ‹ç‰Œé˜¿è‚¥ | J37: p | K37: 601321 | L37: kr | M37: 2 | N37: yulun | O37: z | P37: Bronze | Q37: 9 | R37: 4 | S37: 248 | T37: 2014-11-29 | U37: 3 days | V37: 2014-12-21T23:49:05 | W37: 788505-2|745420-2|601321-2 | X37: 0 | Y37: 37 | Z37: 788505-2 | AA37: 745420-2 | AB37: 601321-2 | AC37: Bronze
A38: 279136 | B38: kr | C38: 2 | D38: é‚£å€‹ç¥žæ— | E38: z | F38: 241577 | G38: kr | H38: 2 | I38: é‚£å€‹èŸ²æ— | J38: p | K38: 85972 | L38: kr | M38: 2 | N38: Lurker | O38: t | P38: Bronze | Q38: 24 | R38: 32 | S38: 247 | T38: 2014-11-14 | U38: 5 days | V38: 2014-12-21T23:49:05 | W38: 279136-2|241577-2|85972-2 | X38: 0 | Y38: 38 | Z38: 279136-2 | AA38: 241577-2 | AB38: 85972-2 | AC38: Bronze
A39: 4499207 | B39: kr | C39: 1 | D39: WAAAAAAAAAGH | E39: t | F39: 1864751 | G39: kr | H39: 1 | I39: ì„¸ë¦¬ì¹´ | J39: p | K39: 126599 | L39: kr | M39: 1 | N39: xhrlehxhfl | O39: t | P39: Bronze | Q39: 9 | R39: 16 | S39: 241 | T39: 2014-12-12 | U39: 17 hours | V39: 2014-12-21T23:49:05 | W39: 4499207-1|1864751-1|126599-1 | X39: 0 | Y39: 39 | Z39: 4499207-1 | AA39: 1864751-1 | AB39: 126599-1 | AC39: Bronze
A40: 4186924 | B40: kr | C40: 1 | D40: Tukdoll | E40: t | F40: 2699200 | G40: kr | H40: 1 | I40: ë² ë² | J40: p | K40: 2349796 | L40: kr | M40: 1 | N40: ìž„íŽ˜ë¦¬ì–¼ | O40: p | P40: Bronze | Q40: 7 | R40: 2 | S40: 238 | T40: 2014-12-14 | U40: 7 days | V40: 2014-12-21T23:49:05 | W40: 4186924-1|2699200-1|2349796-1 | X40: 0 | Y40: 40 | Z40: 4186924-1 | AA40: 2699200-1 | AB40: 2349796-1 | AC40: Bronze
A41: 4019995 | B41: kr | C41: 1 | D41: ëƒì˜¹ì´ | E41: p | F41: 4016294 | G41: kr | H41: 1 | I41: ìµœí¬ | J41: r | K41: 2687659 | L41: kr | M41: 1 | N41: ë¡œì´ | O41: z | P41: Bronze | Q41: 7 | R41: 5 | S41: 238 | T41: 2014-12-09 | U41: 8 days | V41: 2014-12-21T23:49:05 | W41: 4019995-1|4016294-1|2687659-1 | X41: 0 | Y41: 41 | Z41: 4019995-1 | AA41: 4016294-1 | AB41: 2687659-1 | AC41: Bronze
A42: 3362003 | B42: kr | C42: 1 | D42: ìŠ¤íƒ€ì—ëŒ€í•œì—´ì • | E42: p | F42: 1974414 | G42: kr | H42: 1 | I42: ë°”ì¿ | J42: p | K42: 1972960 | L42: kr | M42: 1 | N42: Fivlsm | O42: z | P42: Bronze | Q42: 7 | R42: 7 | S42: 238 | T42: 2014-12-11 | U42: 3 days | V42: 2014-12-21T23:49:05 | W42: 3362003-1|1974414-1|1972960-1 | X42: 0 | Y42: 42 | Z42: 3362003-1 | AA42: 1974414-1 | AB42: 1972960-1 | AC42: Bronze
A43: 4748499 | B43: kr | C43: 1 | D43: darkdoobang | E43: p | F43: 1275205 | G43: kr | H43: 1 | I43: LoudRusher | J43: z | K43: 226993 | L43: kr | M43: 1 | N43: Josiah | O43: p | P43: Bronze | Q43: 7 | R43: 8 | S43: 230 | T43: 2014-12-05 | U43: 1 days | V43: 2014-12-21T23:49:05 | W43: 4748499-1|1275205-1|226993-1 | X43: 0 | Y43: 43 | Z43: 4748499-1 | AA43: 1275205-1 | AB43: 226993-1 | AC43: Bronze
A44: 1403501 | B44: kr | C44: 2 | D44: BestRiver | E44: p | F44: 1360956 | G44: kr | H44: 2 | I44: EmPer | J44: p | K44: 751286 | L44: kr | M44: 2 | N44: Micstargi | O44: t | P44: Bronze | Q44: 9 | R44: 9 | S44: 228 | T44: 2014-12-14 | U44: 5 days | V44: 2014-12-21T23:49:05 | W44: 1403501-2|1360956-2|751286-2 | X44: 0 | Y44: 44 | Z44: 1403501-2 | AA44: 1360956-2 | AB44: 751286-2 | AC44: Bronze
A45: 770861 | B45: kr | C45: 1 | D45: ì§ë ˆì´ë„ˆ | E45: t | F45: 341633 | G45: kr | H45: 1 | I45: SoulStar | J45: z | K45: 143062 | L45: kr | M45: 1 | N45: highspeed | O45: p | P45: Bronze | Q45: 7 | R45: 9 | S45: 228 | T45: 2014-12-04 | U45: 12 days | V45: 2014-12-21T23:49:05 | W45: 770861-1|341633-1|143062-1 | X45: 0 | Y45: 45 | Z45: 770861-1 | AA45: 341633-1 | AB45: 143062-1 | AC45: Bronze
A46: 3310284 | B46: kr | C46: 1 | D46: MCopen | E46: p | F46: 3126071 | G46: kr | H46: 1 | I46: ì²œë°©ì§€ì¶•ëª¨í—˜ì™• | J46: r | K46: 2591474 | L46: kr | M46: 1 | N46: MINTNE | O46: t | P46: Bronze | Q46: 10 | R46: 11 | S46: 224 | T46: 2014-11-11 | U46: 20 days | V46: 2014-12-21T23:49:05 | W46: 3310284-1|3126071-1|2591474-1 | X46: 0 | Y46: 46 | Z46: 3310284-1 | AA46: 3126071-1 | AB46: 2591474-1 | AC46: Bronze
A47: 2695027 | B47: kr | C47: 1 | D47: ë‹ˆì½œ | E47: r | F47: 2605505 | G47: kr | H47: 1 | I47: ìœ ë¦¬ | J47: t | K47: 1404018 | L47: kr | M47: 1 | N47: ì´ì°Œì™€ë¬¸ë‚˜ë“¤ | O47: t | P47: Bronze | Q47: 12 | R47: 25 | S47: 221 | T47: 2014-11-12 | U47: 8 days | V47: 2014-12-21T23:49:05 | W47: 2695027-1|2605505-1|1404018-1 | X47: 0 | Y47: 47 | Z47: 2695027-1 | AA47: 2605505-1 | AB47: 1404018-1 | AC47: Bronze
A48: 2212566 | B48: kr | C48: 1 | D48: MiaoMiao | E48: r | F48: 1370123 | G48: kr | H48: 1 | I48: ë³‘ë§›ì¡°ì„ | J48: p | K48: 137185 | L48: kr | M48: 1 | N48: Xenocide | O48: r | P48: Bronze | Q48: 5 | R48: 6 | S48: 220 | T48: 2014-12-13 | U48: 8 days | V48: 2014-12-21T23:49:05 | W48: 2212566-1|1370123-1|137185-1 | X48: 0 | Y48: 48 | Z48: 2212566-1 | AA48: 1370123-1 | AB48: 137185-1 | AC48: Bronze
A49: 4088711 | B49: kr | C49: 1 | D49: ê·€ì—¼ë‘¥ì´í”¼íƒ€ | E49: p | F49: 2458100 | G49: kr | H49: 1 | I49: archvile | J49: r | K49: 956255 | L49: kr | M49: 1 | N49: cruiser | O49: p | P49: Bronze | Q49: 8 | R49: 5 | S49: 218 | T49: 2014-12-06 | U49: 15 days | V49: 2014-12-21T23:49:05 | W49: 4088711-1|2458100-1|956255-1 | X49: 0 | Y49: 49 | Z49: 4088711-1 | AA49: 2458100-1 | AB49: 956255-1 | AC49: Bronze
A50: 4426355 | B50: kr | C50: 1 | D50: ì†ìŠ¤í†¤ | E50: p | F50: 901408 | G50: kr | H50: 1 | I50: NIKE | J50: z | K50: 291831 | L50: kr | M50: 1 | N50: ì†ìŠ¤í†¤ | O50: t | P50: Bronze | Q50: 8 | R50: 15 | S50: 218 | T50: 2014-12-09 | U50: 20 hours | V50: 2014-12-21T23:49:05 | W50: 4426355-1|901408-1|291831-1 | X50: 0 | Y50: 50 | Z50: 4426355-1 | AA50: 901408-1 | AB50: 291831-1 | AC50: Bronze
A51: 1372766 | B51: kr | C51: 1 | D51: ì•Œì²œ | E51: r | F51: 645372 | G51: kr | H51: 1 | I51: íƒ€ì´ê±°ì˜¤ë‚˜ë¯¸ | J51: z | K51: 526545 | L51: kr | M51: 1 | N51: í…Œëž€ | O51: p | P51: Bronze | Q51: 7 | R51: 3 | S51: 216 | T51: 2014-12-21 | U51: 15 hours | V51: 2014-12-21T23:49:05 | W51: 1372766-1|645372-1|526545-1 | X51: 0 | Y51: 51 | Z51: 1372766-1 | AA51: 645372-1 | AB51: 526545-1 | AC51: Bronze
A52: 4528887 | B52: kr | C52: 1 | D52: ssdasxx | E52: r | F52: 3908817 | G52: kr | H52: 1 | I52: SlayerSBoxeR | J52: t | K52: 2142716 | L52: kr | M52: 1 | N52: VioLenT | O52: t | P52: Bronze | Q52: 8 | R52: 4 | S52: 215 | T52: 2014-11-23 | U52: 28 days | V52: 2014-12-21T23:49:05 | W52: 4528887-1|3908817-1|2142716-1 | X52: 0 | Y52: 52 | Z52: 4528887-1 | AA52: 3908817-1 | AB52: 2142716-1 | AC52: Bronze
A53: 4306985 | B53: kr | C53: 1 | D53: ì´ì‹œë°œì„¹ê¸°ë“¤ì•„ | E53: p | F53: 2647283 | G53: kr | H53: 1 | I53: ì”¨í•´ë‚ ë‘ | J53: z | K53: 920946 | L53: kr | M53: 1 | N53: Star | O53: r | P53: Bronze | Q53: 5 | R53: 7 | S53: 214 | T53: 2014-12-05 | U53: 16 days | V53: 2014-12-21T23:49:05 | W53: 4306985-1|2647283-1|920946-1 | X53: 0 | Y53: 53 | Z53: 4306985-1 | AA53: 2647283-1 | AB53: 920946-1 | AC53: Bronze
A54: 1384781 | B54: kr | C54: 2 | D54: ç¹”ç”°ä¿¡é•· | E54: p | F54: 1376678 | G54: kr | H54: 2 | I54: è¸è‘—å±é«”å‰é€² | J54: p | K54: 376200 | L54: kr | M54: 2 | N54: FateLong | O54: t | P54: Bronze | Q54: 15 | R54: 16 | S54: 213 | T54: 2014-11-10 | U54: 11 days | V54: 2014-12-21T23:49:05 | W54: 1384781-2|1376678-2|376200-2 | X54: 0 | Y54: 54 | Z54: 1384781-2 | AA54: 1376678-2 | AB54: 376200-2 | AC54: Bronze
A55: 4785245 | B55: kr | C55: 1 | D55: ì˜´ê³¼ëª¨ | E55: z | F55: 4783974 | G55: kr | H55: 1 | I55: Pluto | J55: z | K55: 4481327 | L55: kr | M55: 1 | N55: ì˜µí‹°ë¨¸ìŠ¤ìµ¸ê°€ìŠ¤ | O55: p | P55: Bronze | Q55: 11 | R55: 19 | S55: 211 | T55: 2014-12-02 | U55: 14 days | V55: 2014-12-21T23:49:05 | W55: 4785245-1|4783974-1|4481327-1 | X55: 0 | Y55: 55 | Z55: 4785245-1 | AA55: 4783974-1 | AB55: 4481327-1 | AC55: Bronze
A56: 2135798 | B56: kr | C56: 1 | D56: ë²„í‹¸ìˆ˜ê°€ì—†ë‹¤ | E56: t | F56: 984797 | G56: kr | H56: 1 | I56: ë¯¸ë¯¸ | J56: t | K56: 531246 | L56: kr | M56: 1 | N56: soulowner | O56: r | P56: Bronze | Q56: 7 | R56: 2 | S56: 210 | T56: 2014-12-12 | U56: 9 days | V56: 2014-12-21T23:49:05 | W56: 2135798-1|984797-1|531246-1 | X56: 0 | Y56: 56 | Z56: 2135798-1 | AA56: 984797-1 | AB56: 531246-1 | AC56: Bronze
A57: 4128562 | B57: kr | C57: 1 | D57: í¼ìŠ¤í…í‚¹ì¹´ | E57: p | F57: 3911300 | G57: kr | H57: 1 | I57: ì§€íœ´ | J57: p | K57: 2956299 | L57: kr | M57: 1 | N57: ì™•ì¤‘ì˜ì™• | O57: t | P57: Bronze | Q57: 9 | R57: 10 | S57: 209 | T57: 2014-11-10 | U57: 31 days | V57: 2014-12-21T23:49:05 | W57: 4128562-1|3911300-1|2956299-1 | X57: 0 | Y57: 57 | Z57: 4128562-1 | AA57: 3911300-1 | AB57: 2956299-1 | AC57: Bronze
A58: 1748068 | B58: kr | C58: 1 | D58: í˜¸ì§„ | E58: z | F58: 1675675 | G58: kr | H58: 1 | I58: ë‚˜ëŠ”í˜„ìŠ¹ì² ì´ë‹¤ | J58: t | K58: 991018 | L58: kr | M58: 1 | N58: Luis | O58: p | P58: Bronze | Q58: 9 | R58: 10 | S58: 208 | T58: 2014-11-12 | U58: 17 days | V58: 2014-12-21T23:49:05 | W58: 1748068-1|1675675-1|991018-1 | X58: 0 | Y58: 58 | Z58: 1748068-1 | AA58: 1675675-1 | AB58: 991018-1 | AC58: Bronze
A59: 3001631 | B59: kr | C59: 1 | D59: UNIQUESTAR | E59: t | F59: 2204833 | G59: kr | H59: 1 | I59: Candytwo | J59: z | K59: 1909840 | L59: kr | M59: 1 | N59: KeepMax | O59: r | P59: Bronze | Q59: 11 | R59: 13 | S59: 205 | T59: 2014-11-17 | U59: 16 days | V59: 2014-12-21T23:49:05 | W59: 3001631-1|2204833-1|1909840-1 | X59: 0 | Y59: 59 | Z59: 3001631-1 | AA59: 2204833-1 | AB59: 1909840-1 | AC59: Bronze
A60: 4564541 | B60: kr | C60: 1 | D60: back | E60: p | F60: 2789429 | G60: kr | H60: 1 | I60: ë•ì„±ì—¬ëŒ€ | J60: p | K60: 1515124 | L60: kr | M60: 1 | N60: í˜¸ìžì£½ì´ê¸° | O60: t | P60: Bronze | Q60: 8 | R60: 6 | S60: 204 | T60: 2014-12-11 | U60: 10 days | V60: 2014-12-21T23:49:05 | W60: 4564541-1|2789429-1|1515124-1 | X60: 0 | Y60: 60 | Z60: 4564541-1 | AA60: 2789429-1 | AB60: 1515124-1 | AC60: Bronze
A61: 2619660 | B61: kr | C61: 1 | D61: ë§ˆë£¨ì˜¤ê¹Œ | E61: p | F61: 1346079 | G61: kr | H61: 1 | I61: êµ¬ë§ˆì  | J61: r | K61: 77962 | L61: kr | M61: 1 | N61: ê¹€ë‘í•œ | O61: t | P61: Bronze | Q61: 10 | R61: 11 | S61: 204 | T61: 2014-11-14 | U61: 21 days | V61: 2014-12-21T23:49:05 | W61: 2619660-1|1346079-1|77962-1 | X61: 0 | Y61: 61 | Z61: 2619660-1 | AA61: 1346079-1 | AB61: 77962-1 | AC61: Bronze
A62: 1816797 | B62: kr | C62: 1 | D62: ë§¤ì‚¬ë†€ìž | E62: r | F62: 1500492 | G62: kr | H62: 1 | I62: calvet | J62: t | K62: 82734 | L62: kr | M62: 1 | N62: ë§¹ë•ì¶© | O62: z | P62: Bronze | Q62: 7 | R62: 4 | S62: 202 | T62: 2014-12-07 | U62: 7 days | V62: 2014-12-21T23:49:05 | W62: 1816797-1|1500492-1|82734-1 | X62: 0 | Y62: 62 | Z62: 1816797-1 | AA62: 1500492-1 | AB62: 82734-1 | AC62: Bronze
A63: 4771684 | B63: kr | C63: 1 | D63: Leehana | E63: p | F63: 4746656 | G63: kr | H63: 1 | I63: ì½”ì¹´ì½œë¼ì½”ë¦¬ì•„ | J63: r | K63: 4733886 | L63: kr | M63: 1 | N63: humanpowers | O63: z | P63: Bronze | Q63: 7 | R63: 3 | S63: 201 | T63: 2014-11-21 | U63: 19 days | V63: 2014-12-21T23:49:05 | W63: 4771684-1|4746656-1|4733886-1 | X63: 0 | Y63: 63 | Z63: 4771684-1 | AA63: 4746656-1 | AB63: 4733886-1 | AC63: Bronze
A64: 4213941 | B64: kr | C64: 1 | D64: ë¼ë„í†µìˆ˜ | E64: p | F64: 1951210 | G64: kr | H64: 1 | I64: ê°œê°„ì§€ | J64: p | K64: 326461 | L64: kr | M64: 1 | N64: nova | O64: p | P64: Bronze | Q64: 7 | R64: 5 | S64: 198 | T64: 2014-12-12 | U64: 9 days | V64: 2014-12-21T23:49:05 | W64: 4213941-1|1951210-1|326461-1 | X64: 0 | Y64: 64 | Z64: 4213941-1 | AA64: 1951210-1 | AB64: 326461-1 | AC64: Bronze
A65: 3360330 | B65: kr | C65: 1 | D65: LGtheMoon | E65: z | F65: 3326605 | G65: kr | H65: 1 | I65: ìžë²Œë ˆ | J65: t | K65: 597218 | L65: kr | M65: 1 | N65: imymemine | O65: t | P65: Bronze | Q65: 10 | R65: 9 | S65: 198 | T65: 2014-12-02 | U65: 18 days | V65: 2014-12-21T23:49:05 | W65: 3360330-1|3326605-1|597218-1 | X65: 0 | Y65: 65 | Z65: 3360330-1 | AA65: 3326605-1 | AB65: 597218-1 | AC65: Bronze
A66: 1253275 | B66: kr | C66: 1 | D66: ì¶©ë¬´ë¡œì˜í™”ì¸ | E66: p | F66: 1209823 | G66: kr | H66: 1 | I66: Samgakji | J66: z | K66: 900999 | L66: kr | M66: 1 | N66: lovejbhzzz | O66: p | P66: Bronze | Q66: 12 | R66: 20 | S66: 198 | T66: 2014-11-19 | U66: 23 days | V66: 2014-12-21T23:49:05 | W66: 1253275-1|1209823-1|900999-1 | X66: 0 | Y66: 66 | Z66: 1253275-1 | AA66: 1209823-1 | AB66: 900999-1 | AC66: Bronze
A67: 1333975 | B67: kr | C67: 2 | D67: SLeezer | E67: p | F67: 763502 | G67: kr | H67: 2 | I67: ErHill | J67: z | K67: 582221 | L67: kr | M67: 2 | N67: OceanRush | O67: t | P67: Bronze | Q67: 7 | R67: 5 | S67: 196 | T67: 2014-12-06 | U67: 14 hours | V67: 2014-12-21T23:49:05 | W67: 1333975-2|763502-2|582221-2 | X67: 0 | Y67: 67 | Z67: 1333975-2 | AA67: 763502-2 | AB67: 582221-2 | AC67: Bronze
A68: 1159486 | B68: kr | C68: 2 | D68: é¢¨é¢¨é›¨é›¨ | E68: t | F68: 1063701 | G68: kr | H68: 2 | I68: PeanutOwO | J68: t | K68: 1047894 | L68: kr | M68: 2 | N68: Zhong | O68: t | P68: Bronze | Q68: 7 | R68: 6 | S68: 191 | T68: 2014-11-15 | U68: 22 days | V68: 2014-12-21T23:49:05 | W68: 1159486-2|1063701-2|1047894-2 | X68: 0 | Y68: 68 | Z68: 1159486-2 | AA68: 1063701-2 | AB68: 1047894-2 | AC68: Bronze
A69: 2725121 | B69: kr | C69: 1 | D69: slavernoten | E69: p | F69: 2404138 | G69: kr | H69: 1 | I69: Wook | J69: z | K69: 424816 | L69: kr | M69: 1 | N69: JaeHYUN | O69: r | P69: Bronze | Q69: 11 | R69: 19 | S69: 190 | T69: 2014-11-15 | U69: 16 days | V69: 2014-12-21T23:49:05 | W69: 2725121-1|2404138-1|424816-1 | X69: 0 | Y69: 69 | Z69: 2725121-1 | AA69: 2404138-1 | AB69: 424816-1 | AC69: Bronze
A70: 1101621 | B70: kr | C70: 2 | D70: æ©Ÿæ¢°å“¥ | E70: t | F70: 994099 | G70: kr | H70: 2 | I70: é«˜é«˜ | J70: p | K70: 756123 | L70: kr | M70: 2 | N70: é¦¬çš„è¿½è¿½è¿½ | O70: t | P70: Bronze | Q70: 9 | R70: 8 | S70: 189 | T70: 2014-11-12 | U70: 12 days | V70: 2014-12-21T23:49:05 | W70: 1101621-2|994099-2|756123-2 | X70: 0 | Y70: 70 | Z70: 1101621-2 | AA70: 994099-2 | AB70: 756123-2 | AC70: Bronze
A71: 4791921 | B71: kr | C71: 1 | D71: Shams | E71: p | F71: 4226778 | G71: kr | H71: 1 | I71: Xion | J71: z | K71: 4224363 | L71: kr | M71: 1 | N71: Skywalker | O71: t | P71: Bronze | Q71: 8 | R71: 14 | S71: 189 | T71: 2014-11-29 | U71: 13 days | V71: 2014-12-21T23:49:05 | W71: 4791921-1|4226778-1|4224363-1 | X71: 0 | Y71: 71 | Z71: 4791921-1 | AA71: 4226778-1 | AB71: 4224363-1 | AC71: Bronze
A72: 2665783 | B72: kr | C72: 1 | D72: ë¥˜í˜„ | E72: t | F72: 2664500 | G72: kr | H72: 1 | I72: ë°•ì§€ì„± | J72: t | K72: 2074971 | L72: kr | M72: 1 | N72: êµ¬ë¦„ | O72: p | P72: Bronze | Q72: 6 | R72: 3 | S72: 188 | T72: 2014-12-20 | U72: 1 days | V72: 2014-12-21T23:49:05 | W72: 2665783-1|2664500-1|2074971-1 | X72: 0 | Y72: 72 | Z72: 2665783-1 | AA72: 2664500-1 | AB72: 2074971-1 | AC72: Bronze
A73: 1051942 | B73: kr | C73: 2 | D73: YELLOWMOON | E73: p | F73: 1003966 | G73: kr | H73: 2 | I73: INDangeR | J73: t | K73: 139251 | L73: kr | M73: 2 | N73: qqfrank | O73: t | P73: Bronze | Q73: 8 | R73: 5 | S73: 188 | T73: 2014-11-14 | U73: 21 days | V73: 2014-12-21T23:49:05 | W73: 1051942-2|1003966-2|139251-2 | X73: 0 | Y73: 73 | Z73: 1051942-2 | AA73: 1003966-2 | AB73: 139251-2 | AC73: Bronze
A74: 4795638 | B74: kr | C74: 1 | D74: tomoto | E74: z | F74: 2527749 | G74: kr | H74: 1 | I74: Glam | J74: p | K74: 2207149 | L74: kr | M74: 1 | N74: í”„ë¡œí† ìŠ¤ | O74: r | P74: Bronze | Q74: 6 | R74: 11 | S74: 187 | T74: 2014-12-02 | U74: 18 days | V74: 2014-12-21T23:49:05 | W74: 4795638-1|2527749-1|2207149-1 | X74: 0 | Y74: 74 | Z74: 4795638-1 | AA74: 2527749-1 | AB74: 2207149-1 | AC74: Bronze
A75: 729144 | B75: kr | C75: 2 | D75: JohnWen | E75: t | F75: 691479 | G75: kr | H75: 2 | I75: vsLinda | J75: p | K75: 432463 | L75: kr | M75: 2 | N75: é€™æ˜¯ä¸€å€‹è¬Ž | O75: p | P75: Bronze | Q75: 8 | R75: 5 | S75: 186 | T75: 2014-11-15 | U75: 7 days | V75: 2014-12-21T23:49:05 | W75: 729144-2|691479-2|432463-2 | X75: 0 | Y75: 75 | Z75: 729144-2 | AA75: 691479-2 | AB75: 432463-2 | AC75: Bronze
A76: 3522696 | B76: kr | C76: 1 | D76: ì• ì •ë‚¨ | E76: z | F76: 3522371 | G76: kr | H76: 1 | I76: ì–¼êµ´ì´ì†ìž„ìˆ˜ | J76: p | K76: 3148394 | L76: kr | M76: 1 | N76: ìš¸íŠ¸ë¼ìº¡ì§± | O76: t | P76: Bronze | Q76: 6 | R76: 4 | S76: 186 | T76: 2014-11-14 | U76: 1 days | V76: 2014-12-21T23:49:05 | W76: 3522696-1|3522371-1|3148394-1 | X76: 0 | Y76: 76 | Z76: 3522696-1 | AA76: 3522371-1 | AB76: 3148394-1 | AC76: Bronze
A77: 675856 | B77: kr | C77: 2 | D77: Mark | E77: z | F77: 225164 | G77: kr | H77: 2 | I77: ç‰™ç±¤ | J77: p | K77: 110265 | L77: kr | M77: 2 | N77: flybird | O77: t | P77: Bronze | Q77: 17 | R77: 18 | S77: 185 | T77: 2014-11-13 | U77: 23 days | V77: 2014-12-21T23:49:05 | W77: 675856-2|225164-2|110265-2 | X77: 0 | Y77: 77 | Z77: 675856-2 | AA77: 225164-2 | AB77: 110265-2 | AC77: Bronze
A78: 4292884 | B78: kr | C78: 1 | D78: ì•ˆë‚´ë„ | E78: r | F78: 1302849 | G78: kr | H78: 1 | I78: gisewife | J78: r | K78: 1302361 | L78: kr | M78: 1 | N78: í—ˆë²…ì§€ | O78: r | P78: Bronze | Q78: 7 | R78: 2 | S78: 184 | T78: 2014-11-10 | U78: 11 days | V78: 2014-12-21T23:49:05 | W78: 4292884-1|1302849-1|1302361-1 | X78: 0 | Y78: 78 | Z78: 4292884-1 | AA78: 1302849-1 | AB78: 1302361-1 | AC78: Bronze
A79: 3344462 | B79: kr | C79: 1 | D79: ë©€ë°” | E79: z | F79: 1387860 | G79: kr | H79: 1 | I79: TigerHawk | J79: r | K79: 843423 | L79: kr | M79: 1 | N79: Potato | O79: t | P79: Bronze | Q79: 7 | R79: 2 | S79: 184 | T79: 2014-12-18 | U79: 1 days | V79: 2014-12-21T23:49:05 | W79: 3344462-1|1387860-1|843423-1 | X79: 0 | Y79: 79 | Z79: 3344462-1 | AA79: 1387860-1 | AB79: 843423-1 | AC79: Bronze
A80: 3540651 | B80: kr | C80: 1 | D80: ì—ìŠ¤ì—ë¬´ | E80: p | F80: 1651623 | G80: kr | H80: 1 | I80: ë©”ì´ë°ë¥´ | J80: p | K80: 273719 | L80: kr | M80: 1 | N80: í”Œí† í˜ëª…ê°€ | O80: p | P80: Bronze | Q80: 5 | R80: 2 | S80: 184 | T80: 2014-12-13 | U80: 8 days | V80: 2014-12-21T23:49:05 | W80: 3540651-1|1651623-1|273719-1 | X80: 0 | Y80: 80 | Z80: 3540651-1 | AA80: 1651623-1 | AB80: 273719-1 | AC80: Bronze
A81: 917201 | B81: kr | C81: 1 | D81: í…Œë‹ˆìŠ¤ê°• | E81: r | F81: 446375 | G81: kr | H81: 1 | I81: ë¡œì €ë²„ë°¸í‚¨íŠ¸ | J81: r | K81: 259881 | L81: kr | M81: 1 | N81: ê±´ì›… | O81: z | P81: Bronze | Q81: 6 | R81: 4 | S81: 182 | T81: 2014-12-06 | U81: 15 days | V81: 2014-12-21T23:49:05 | W81: 917201-1|446375-1|259881-1 | X81: 0 | Y81: 81 | Z81: 917201-1 | AA81: 446375-1 | AB81: 259881-1 | AC81: Bronze
A82: 2964343 | B82: kr | C82: 1 | D82: dyna | E82: t | F82: 2099825 | G82: kr | H82: 1 | I82: lieutena | J82: t | K82: 835085 | L82: kr | M82: 1 | N82: ê¸°ê³„ì „ì‚¬ | O82: t | P82: Bronze | Q82: 6 | R82: 8 | S82: 182 | T82: 2014-11-15 | U82: 8 days | V82: 2014-12-21T23:49:05 | W82: 2964343-1|2099825-1|835085-1 | X82: 0 | Y82: 82 | Z82: 2964343-1 | AA82: 2099825-1 | AB82: 835085-1 | AC82: Bronze
A83: 749445 | B83: kr | C83: 2 | D83: DemonCat | E83: p | F83: 473009 | G83: kr | H83: 2 | I83: æ¿•ç˜©ç˜© | J83: t | K83: 131907 | L83: kr | M83: 2 | N83: å…‹é­¯æ ¼ | O83: z | P83: Bronze | Q83: 5 | R83: 3 | S83: 180 | T83: 2014-12-20 | U83: 1 days | V83: 2014-12-21T23:49:05 | W83: 749445-2|473009-2|131907-2 | X83: 0 | Y83: 83 | Z83: 749445-2 | AA83: 473009-2 | AB83: 131907-2 | AC83: Bronze
A84: 2796498 | B84: kr | C84: 1 | D84: AverNus | E84: t | F84: 2691661 | G84: kr | H84: 1 | I84: Ares | J84: r | K84: 1555718 | L84: kr | M84: 1 | N84: Hahahaha | O84: r | P84: Bronze | Q84: 24 | R84: 43 | S84: 177 | T84: 2014-11-17 | U84: 19 days | V84: 2014-12-21T23:49:05 | W84: 2796498-1|2691661-1|1555718-1 | X84: 0 | Y84: 84 | Z84: 2796498-1 | AA84: 2691661-1 | AB84: 1555718-1 | AC84: Bronze
A85: 4426355 | B85: kr | C85: 1 | D85: ì†ìŠ¤í†¤ | E85: t | F85: 3448184 | G85: kr | H85: 1 | I85: ì €ìŠ¤íŠ¸ë¹„ë²„ | J85: p | K85: 291831 | L85: kr | M85: 1 | N85: ì†ìŠ¤í†¤ | O85: t | P85: Bronze | Q85: 6 | R85: 8 | S85: 176 | T85: 2014-12-02 | U85: 2 days | V85: 2014-12-21T23:49:05 | W85: 4426355-1|3448184-1|291831-1 | X85: 0 | Y85: 85 | Z85: 4426355-1 | AA85: 3448184-1 | AB85: 291831-1 | AC85: Bronze
A86: 4312941 | B86: kr | C86: 1 | D86: ìƒˆí•˜ì–€ë‚™íƒ€ | E86: p | F86: 3846543 | G86: kr | H86: 1 | I86: ë‹¤ìž¡ëŠ”ë‹¤ìž‰ | J86: z | K86: 981857 | L86: kr | M86: 1 | N86: ê³ ë¼ë‹ˆ | O86: t | P86: Bronze | Q86: 5 | R86: 7 | S86: 176 | T86: 2014-12-11 | U86: 2 days | V86: 2014-12-21T23:49:05 | W86: 4312941-1|3846543-1|981857-1 | X86: 0 | Y86: 86 | Z86: 4312941-1 | AA86: 3846543-1 | AB86: 981857-1 | AC86: Bronze
A87: 4503883 | B87: kr | C87: 1 | D87: í† í† í›„ì•¼ | E87: p | F87: 4333016 | G87: kr | H87: 1 | I87: POHANGROKMC | J87: p | K87: 2610612 | L87: kr | M87: 1 | N87: íƒœê²¸ì´ | O87: t | P87: Bronze | Q87: 5 | R87: 2 | S87: 175 | T87: 2014-11-25 | U87: 26 days | V87: 2014-12-21T23:49:05 | W87: 4503883-1|4333016-1|2610612-1 | X87: 0 | Y87: 87 | Z87: 4503883-1 | AA87: 4333016-1 | AB87: 2610612-1 | AC87: Bronze
A88: 4582886 | B88: kr | C88: 1 | D88: AnarchyEzio | E88: p | F88: 4264316 | G88: kr | H88: 1 | I88: ë¯¸ë‚˜ë¯¸ | J88: r | K88: 529487 | L88: kr | M88: 1 | N88: CHOA | O88: r | P88: Bronze | Q88: 5 | R88: 3 | S88: 174 | T88: 2014-12-06 | U88: 15 days | V88: 2014-12-21T23:49:05 | W88: 4582886-1|4264316-1|529487-1 | X88: 0 | Y88: 88 | Z88: 4582886-1 | AA88: 4264316-1 | AB88: 529487-1 | AC88: Bronze
A89: 4049015 | B89: kr | C89: 1 | D89: ê¼¬ë§ˆë¼ë©´ë§ˆì‹œì©¡ | E89: r | F89: 3621043 | G89: kr | H89: 1 | I89: Dimitri | J89: t | K89: 3410652 | L89: kr | M89: 1 | N89: RealRebel | O89: r | P89: Bronze | Q89: 5 | R89: 8 | S89: 174 | T89: 2014-12-19 | U89: 1 days | V89: 2014-12-21T23:49:05 | W89: 4049015-1|3621043-1|3410652-1 | X89: 0 | Y89: 89 | Z89: 4049015-1 | AA89: 3621043-1 | AB89: 3410652-1 | AC89: Bronze
A90: 4796144 | B90: kr | C90: 1 | D90: bisu | E90: t | F90: 3537626 | G90: kr | H90: 1 | I90: KanyeWest | J90: p | K90: 2591649 | L90: kr | M90: 1 | N90: ì¹´ì¹œìŠ¤í‚¤ | O90: r | P90: Bronze | Q90: 7 | R90: 12 | S90: 174 | T90: 2014-12-08 | U90: 13 days | V90: 2014-12-21T23:49:05 | W90: 4796144-1|3537626-1|2591649-1 | X90: 0 | Y90: 90 | Z90: 4796144-1 | AA90: 3537626-1 | AB90: 2591649-1 | AC90: Bronze
A91: 2783381 | B91: kr | C91: 1 | D91: FishNeo | E91: p | F91: 1144097 | G91: kr | H91: 1 | I91: ìŠˆí¼ë§ˆë¦¬ì˜¤ | J91: t | K91: 999817 | L91: kr | M91: 1 | N91: kira | O91: p | P91: Bronze | Q91: 6 | R91: 2 | S91: 173 | T91: 2014-11-16 | U91: 1 days | V91: 2014-12-21T23:49:05 | W91: 2783381-1|1144097-1|999817-1 | X91: 0 | Y91: 91 | Z91: 2783381-1 | AA91: 1144097-1 | AB91: 999817-1 | AC91: Bronze
A92: 3712449 | B92: kr | C92: 1 | D92: íŒŒë¥´ëšœë‚˜ | E92: z | F92: 3362657 | G92: kr | H92: 1 | I92: ìŠ¤ì»¬ | J92: p | K92: 3182164 | L92: kr | M92: 1 | N92: ë§¹ë…ì¶© | O92: z | P92: Bronze | Q92: 8 | R92: 0 | S92: 172 | T92: 2014-12-05 | U92: 9 days | V92: 2014-12-21T23:49:05 | W92: 3712449-1|3362657-1|3182164-1 | X92: 0 | Y92: 92 | Z92: 3712449-1 | AA92: 3362657-1 | AB92: 3182164-1 | AC92: Bronze
A93: 4775498 | B93: kr | C93: 1 | D93: ë‚˜ë¥´ì„¸ë¥´ìŠ¤ | E93: p | F93: 2976016 | G93: kr | H93: 1 | I93: platinadisco | J93: z | K93: 156239 | L93: kr | M93: 1 | N93: ì£½ìŒì˜ë‚ ê°œ | O93: p | P93: Bronze | Q93: 7 | R93: 7 | S93: 172 | T93: 2014-12-14 | U93: 20 hours | V93: 2014-12-21T23:49:05 | W93: 4775498-1|2976016-1|156239-1 | X93: 0 | Y93: 93 | Z93: 4775498-1 | AA93: 2976016-1 | AB93: 156239-1 | AC93: Bronze
A94: 4649428 | B94: kr | C94: 1 | D94: ì¼ˆëŸ¬ê·¸ì½˜í”„ë¡œí† ìŠ¤ | E94: r | F94: 4634664 | G94: kr | H94: 1 | I94: í† í† ì•ˆí•´ | J94: z | K94: 4609100 | L94: kr | M94: 1 | N94: ê°œê¿€ | O94: p | P94: Bronze | Q94: 5 | R94: 5 | S94: 172 | T94: 2014-12-21 | U94: 15 hours | V94: 2014-12-21T23:49:05 | W94: 4649428-1|4634664-1|4609100-1 | X94: 0 | Y94: 94 | Z94: 4649428-1 | AA94: 4634664-1 | AB94: 4609100-1 | AC94: Bronze
A95: 3414103 | B95: kr | C95: 1 | D95: Reckless | E95: p | F95: 3395370 | G95: kr | H95: 1 | I95: ë‚˜ë¡œí˜¸ë°œì‚¬ì‹¤íŒ¨ | J95: p | K95: 1923501 | L95: kr | M95: 1 | N95: TitaNium | O95: z | P95: Bronze | Q95: 7 | R95: 7 | S95: 171 | T95: 2014-11-12 | U95: 15 days | V95: 2014-12-21T23:49:05 | W95: 3414103-1|3395370-1|1923501-1 | X95: 0 | Y95: 95 | Z95: 3414103-1 | AA95: 3395370-1 | AB95: 1923501-1 | AC95: Bronze
A96: 4060359 | B96: kr | C96: 1 | D96: IIIIIIIIIIII | E96: r | F96: 2956681 | G96: kr | H96: 1 | I96: Ataraxia | J96: r | K96: 255695 | L96: kr | M96: 1 | N96: DisordeR | O96: z | P96: Bronze | Q96: 5 | R96: 0 | S96: 170 | T96: 2014-11-27 | U96: 24 days | V96: 2014-12-21T23:49:05 | W96: 4060359-1|2956681-1|255695-1 | X96: 0 | Y96: 96 | Z96: 4060359-1 | AA96: 2956681-1 | AB96: 255695-1 | AC96: Bronze
A97: 3764319 | B97: kr | C97: 1 | D97: ë‰´í´ë¦¬ì–¸ | E97: t | F97: 2987009 | G97: kr | H97: 1 | I97: Battlefield | J97: t | K97: 583616 | L97: kr | M97: 1 | N97: chlclgns | O97: p | P97: Bronze | Q97: 5 | R97: 1 | S97: 170 | T97: 2014-12-07 | U97: 1 days | V97: 2014-12-21T23:49:05 | W97: 3764319-1|2987009-1|583616-1 | X97: 0 | Y97: 97 | Z97: 3764319-1 | AA97: 2987009-1 | AB97: 583616-1 | AC97: Bronze
A98: 1959260 | B98: kr | C98: 1 | D98: ìŠ¤í”¼ì¹´ | E98: z | F98: 1876793 | G98: kr | H98: 1 | I98: ì°Œë™ | J98: p | K98: 1056354 | L98: kr | M98: 1 | N98: ìœ¡ê°ì„ ìˆ˜ | O98: r | P98: Bronze | Q98: 7 | R98: 2 | S98: 170 | T98: 2014-11-29 | U98: 10 days | V98: 2014-12-21T23:49:05 | W98: 1959260-1|1876793-1|1056354-1 | X98: 0 | Y98: 98 | Z98: 1959260-1 | AA98: 1876793-1 | AB98: 1056354-1 | AC98: Bronze
A99: 1009624 | B99: kr | C99: 1 | D99: ì¼ë²Œì—‰ì•„ | E99: p | F99: 319170 | G99: kr | H99: 1 | I99: í™©ê°„ì§€ | J99: z | K99: 114063 | L99: kr | M99: 1 | N99: ë ˆì´ë„ˆ | O99: p | P99: Bronze | Q99: 5 | R99: 3 | S99: 170 | T99: 2014-11-20 | U99: 12 days | V99: 2014-12-21T23:49:05 | W99: 1009624-1|319170-1|114063-1 | X99: 0 | Y99: 99 | Z99: 1009624-1 | AA99: 319170-1 | AB99: 114063-1 | AC99: Bronze
A100: 4509431 | B100: kr | C100: 1 | D100: ì„±ëŒ€ | E100: z | F100: 2566895 | G100: kr | H100: 1 | I100: ì„œìš¸í˜„ë¹ˆ | J100: p | K100: 189469 | L100: kr | M100: 1 | N100: íŽ˜ì´ìŠ¤ë§¨ | O100: p | P100: Bronze | Q100: 4 | R100: 3 | S100: 170 | T100: 2014-12-08 | U100: 13 days | V100: 2014-12-21T23:49:05 | W100: 4509431-1|2566895-1|189469-1 | X100: 0 | Y100: 100 | Z100: 4509431-1 | AA100: 2566895-1 | AB100: 189469-1 | AC100: Bronze
A101: 653702 | B101: kr | C101: 2 | D101: gerryluke | E101: p | F101: 413021 | G101: kr | H101: 2 | I101: å¿«ä¹çŽ‹å­ | J101: z | K101: 122890 | L101: kr | M101: 2 | N101: ä¸“æ‰“éŸ©å›½çŒª | O101: t | P101: Bronze | Q101: 4 | R101: 3 | S101: 170 | T101: 2014-12-18 | U101: 3 days | V101: 2014-12-21T23:49:05 | W101: 653702-2|413021-2|122890-2 | X101: 0 | Y101: 101 | Z101: 653702-2 | AA101: 413021-2 | AB101: 122890-2 | AC101: Bronze
A102: 1210709 | B102: kr | C102: 2 | D102: Jet | E102: p | F102: 931009 | G102: kr | H102: 2 | I102: sai | J102: p | K102: 758561 | L102: kr | M102: 2 | N102: ducklamb | O102: z | P102: Bronze | Q102: 5 | R102: 6 | S102: 170 | T102: 2014-11-10 | U102: 2 days | V102: 2014-12-21T23:49:05 | W102: 1210709-2|931009-2|758561-2 | X102: 0 | Y102: 102 | Z102: 1210709-2 | AA102: 931009-2 | AB102: 758561-2 | AC102: Bronze
A103: 4230840 | B103: kr | C103: 1 | D103: ê¹€ìŠ¹ê·œ | E103: z | F103: 3867072 | G103: kr | H103: 1 | I103: viva | J103: t | K103: 1412210 | L103: kr | M103: 1 | N103: ìœ í•„ì´ | O103: p | P103: Bronze | Q103: 5 | R103: 6 | S103: 170 | T103: 2014-11-30 | U103: 14 days | V103: 2014-12-21T23:49:05 | W103: 4230840-1|3867072-1|1412210-1 | X103: 0 | Y103: 103 | Z103: 4230840-1 | AA103: 3867072-1 | AB103: 1412210-1 | AC103: Bronze
A104: 4135763 | B104: kr | C104: 1 | D104: ê´€ì„¸ìŒë³´ì‚´ | E104: r | F104: 3197755 | G104: kr | H104: 1 | I104: Avi | J104: p | K104: 322850 | L104: kr | M104: 1 | N104: Jimreina | O104: t | P104: Bronze | Q104: 5 | R104: 1 | S104: 168 | T104: 2014-12-19 | U104: 2 days | V104: 2014-12-21T23:49:05 | W104: 4135763-1|3197755-1|322850-1 | X104: 0 | Y104: 104 | Z104: 4135763-1 | AA104: 3197755-1 | AB104: 322850-1 | AC104: Bronze
A105: 3905670 | B105: kr | C105: 1 | D105: DOHC | E105: r | F105: 1600704 | G105: kr | H105: 1 | I105: jasegajoa | J105: r | K105: 1399623 | L105: kr | M105: 1 | N105: jun | O105: r | P105: Bronze | Q105: 5 | R105: 4 | S105: 168 | T105: 2014-12-20 | U105: 1 days | V105: 2014-12-21T23:49:05 | W105: 3905670-1|1600704-1|1399623-1 | X105: 0 | Y105: 105 | Z105: 3905670-1 | AA105: 1600704-1 | AB105: 1399623-1 | AC105: Bronze
A106: 4401800 | B106: kr | C106: 1 | D106: ColdLogic | E106: r | F106: 4400012 | G106: kr | H106: 1 | I106: Hsuperdroid | J106: p | K106: 4394227 | L106: kr | M106: 1 | N106: Jacx | O106: z | P106: Bronze | Q106: 5 | R106: 6 | S106: 168 | T106: 2014-11-29 | U106: 9 days | V106: 2014-12-21T23:49:05 | W106: 4401800-1|4400012-1|4394227-1 | X106: 0 | Y106: 106 | Z106: 4401800-1 | AA106: 4400012-1 | AB106: 4394227-1 | AC106: Bronze
A107: 3252692 | B107: kr | C107: 1 | D107: ë¹›ê³¼ì†Œê¸ˆ | E107: t | F107: 3229859 | G107: kr | H107: 1 | I107: Bvurdle | J107: z | K107: 1104880 | L107: kr | M107: 1 | N107: ì‚¬ë¬´ì—˜ | O107: r | P107: Bronze | Q107: 5 | R107: 9 | S107: 168 | T107: 2014-11-16 | U107: 19 days | V107: 2014-12-21T23:49:05 | W107: 3252692-1|3229859-1|1104880-1 | X107: 0 | Y107: 107 | Z107: 3252692-1 | AA107: 3229859-1 | AB107: 1104880-1 | AC107: Bronze
A108: 4282358 | B108: kr | C108: 1 | D108: groovebangoo | E108: p | F108: 2108703 | G108: kr | H108: 1 | I108: Neovintage | J108: p | K108: 663174 | L108: kr | M108: 1 | N108: hAru | O108: r | P108: Bronze | Q108: 8 | R108: 2 | S108: 167 | T108: 2014-11-09 | U108: 34 days | V108: 2014-12-21T23:49:05 | W108: 4282358-1|2108703-1|663174-1 | X108: 0 | Y108: 108 | Z108: 4282358-1 | AA108: 2108703-1 | AB108: 663174-1 | AC108: Bronze
A109: 3892398 | B109: kr | C109: 1 | D109: Four | E109: z | F109: 2102499 | G109: kr | H109: 1 | I109: GALAXY | J109: t | K109: 601659 | L109: kr | M109: 1 | N109: Zeratul | O109: p | P109: Bronze | Q109: 7 | R109: 7 | S109: 167 | T109: 2014-11-23 | U109: 28 days | V109: 2014-12-21T23:49:05 | W109: 3892398-1|2102499-1|601659-1 | X109: 0 | Y109: 109 | Z109: 3892398-1 | AA109: 2102499-1 | AB109: 601659-1 | AC109: Bronze
A110: 2224396 | B110: kr | C110: 1 | D110: ì¹´íŽœì‹œìŠ¤ | E110: r | F110: 871611 | G110: kr | H110: 1 | I110: taro | J110: t | K110: 461649 | L110: kr | M110: 1 | N110: FlameRed | O110: r | P110: Bronze | Q110: 11 | R110: 15 | S110: 167 | T110: 2014-11-22 | U110: 23 days | V110: 2014-12-21T23:49:05 | W110: 2224396-1|871611-1|461649-1 | X110: 0 | Y110: 110 | Z110: 2224396-1 | AA110: 871611-1 | AB110: 461649-1 | AC110: Bronze
A111: 4257603 | B111: kr | C111: 1 | D111: ì¹¸íƒ€íƒ€ì™€ | E111: z | F111: 3934765 | G111: kr | H111: 1 | I111: CallSi | J111: t | K111: 3231537 | L111: kr | M111: 1 | N111: lips | O111: z | P111: Bronze | Q111: 4 | R111: 2 | S111: 166 | T111: 2014-12-04 | U111: 17 days | V111: 2014-12-21T23:49:05 | W111: 4257603-1|3934765-1|3231537-1 | X111: 0 | Y111: 111 | Z111: 4257603-1 | AA111: 3934765-1 | AB111: 3231537-1 | AC111: Bronze
A112: 4242164 | B112: kr | C112: 1 | D112: ì°Œë§ì°Œë¡± | E112: r | F112: 1224013 | G112: kr | H112: 1 | I112: BlackStone | J112: z | K112: 1074445 | L112: kr | M112: 1 | N112: BLUEMARBLE | O112: t | P112: Bronze | Q112: 6 | R112: 5 | S112: 166 | T112: 2014-12-08 | U112: 13 days | V112: 2014-12-21T23:49:06 | W112: 4242164-1|1224013-1|1074445-1 | X112: 0 | Y112: 112 | Z112: 4242164-1 | AA112: 1224013-1 | AB112: 1074445-1 | AC112: Bronze
A113: 4778929 | B113: kr | C113: 1 | D113: ê°€ì˜¤ë™ë¯¸ì‹ê°€ | E113: p | F113: 3101015 | G113: kr | H113: 1 | I113: NaTioNaL | J113: r | K113: 289343 | L113: kr | M113: 1 | N113: ìžìœ ì˜ë‚ ê°œ | O113: p | P113: Bronze | Q113: 4 | R113: 6 | S113: 166 | T113: 2014-11-16 | U113: 3 days | V113: 2014-12-21T23:49:06 | W113: 4778929-1|3101015-1|289343-1 | X113: 0 | Y113: 113 | Z113: 4778929-1 | AA113: 3101015-1 | AB113: 289343-1 | AC113: Bronze
A114: 843502 | B114: kr | C114: 2 | D114: Sky | E114: t | F114: 730530 | G114: kr | H114: 2 | I114: Richman | J114: p | K114: 91480 | L114: kr | M114: 2 | N114: Vincent | O114: z | P114: Bronze | Q114: 6 | R114: 1 | S114: 164 | T114: 2014-11-15 | U114: 12 days | V114: 2014-12-21T23:49:06 | W114: 843502-2|730530-2|91480-2 | X114: 0 | Y114: 114 | Z114: 843502-2 | AA114: 730530-2 | AB114: 91480-2 | AC114: Bronze
A115: 2390878 | B115: kr | C115: 1 | D115: BaguetteMvP | E115: r | F115: 1069622 | G115: kr | H115: 1 | I115: ê°ˆë¦¬ | J115: t | K115: 748821 | L115: kr | M115: 1 | N115: í•œí™”ì •ê·œë¦¬ê·¸ìš°ìŠ¹ | O115: p | P115: Bronze | Q115: 5 | R115: 1 | S115: 164 | T115: 2014-11-30 | U115: 22 days | V115: 2014-12-21T23:49:06 | W115: 2390878-1|1069622-1|748821-1 | X115: 0 | Y115: 115 | Z115: 2390878-1 | AA115: 1069622-1 | AB115: 748821-1 | AC115: Bronze
A116: 1213820 | B116: kr | C116: 1 | D116: ë‚œì¤«ë“±ì‹„ì‡„ë¦¬ë‹¤ | E116: z | F116: 1072003 | G116: kr | H116: 1 | I116: ì‚´ë£¨íŠ¸ | J116: z | K116: 1070422 | L116: kr | M116: 1 | N116: ì¸ì¹¸í† | O116: p | P116: Bronze | Q116: 4 | R116: 15 | S116: 164 | T116: 2014-12-10 | U116: 10 days | V116: 2014-12-21T23:49:06 | W116: 1213820-1|1072003-1|1070422-1 | X116: 0 | Y116: 116 | Z116: 1213820-1 | AA116: 1072003-1 | AB116: 1070422-1 | AC116: Bronze
A117: 1745191 | B117: kr | C117: 1 | D117: ì—ë“€ì³ë°œë§ˆë¦° | E117: t | F117: 1272812 | G117: kr | H117: 1 | I117: ì—ë“€ì³ë°œì‚¬ì‹ | J117: t | K117: 832664 | L117: kr | M117: 1 | N117: ì»´í“¨í„° | O117: z | P117: Bronze | Q117: 8 | R117: 4 | S117: 163 | T117: 2014-11-16 | U117: 25 days | V117: 2014-12-21T23:49:06 | W117: 1745191-1|1272812-1|832664-1 | X117: 0 | Y117: 117 | Z117: 1745191-1 | AA117: 1272812-1 | AB117: 832664-1 | AC117: Bronze
A118: 4753542 | B118: kr | C118: 1 | D118: ìŠ¹ì™„ | E118: z | F118: 4352671 | G118: kr | H118: 1 | I118: NaDa | J118: p | K118: 3095729 | L118: kr | M118: 1 | N118: ë‚¨ìž | O118: t | P118: Bronze | Q118: 7 | R118: 5 | S118: 163 | T118: 2014-11-14 | U118: 25 days | V118: 2014-12-21T23:49:06 | W118: 4753542-1|4352671-1|3095729-1 | X118: 0 | Y118: 118 | Z118: 4753542-1 | AA118: 4352671-1 | AB118: 3095729-1 | AC118: Bronze
A119: 2824050 | B119: kr | C119: 1 | D119: missingYH | E119: t | F119: 1061080 | G119: kr | H119: 1 | I119: Genetics | J119: p | K119: 493623 | L119: kr | M119: 1 | N119: Biohazard | O119: r | P119: Bronze | Q119: 5 | R119: 1 | S119: 162 | T119: 2014-12-06 | U119: 15 days | V119: 2014-12-21T23:49:07 | W119: 2824050-1|1061080-1|493623-1 | X119: 0 | Y119: 119 | Z119: 2824050-1 | AA119: 1061080-1 | AB119: 493623-1 | AC119: Bronze
A120: 3209465 | B120: kr | C120: 1 | D120: ë¯¸ìŠ¤íƒ€ê¹€íƒ | E120: p | F120: 2438529 | G120: kr | H120: 1 | I120: ì••ë ¥ë³´ì˜¨ë°¥ì†¥ | J120: p | K120: 353800 | L120: kr | M120: 1 | N120: omoora | O120: z | P120: Bronze | Q120: 6 | R120: 4 | S120: 162 | T120: 2014-11-23 | U120: 7 days | V120: 2014-12-21T23:49:07 | W120: 3209465-1|2438529-1|353800-1 | X120: 0 | Y120: 120 | Z120: 3209465-1 | AA120: 2438529-1 | AB120: 353800-1 | AC120: Bronze
A121: 619496 | B121: kr | C121: 2 | D121: TCH | E121: t | F121: 277684 | G121: kr | H121: 2 | I121: gbeansoup | J121: z | K121: 32862 | L121: kr | M121: 2 | N121: PZST | O121: r | P121: Bronze | Q121: 6 | R121: 12 | S121: 162 | T121: 2014-11-16 | U121: 1 days | V121: 2014-12-21T23:49:07 | W121: 619496-2|277684-2|32862-2 | X121: 0 | Y121: 121 | Z121: 619496-2 | AA121: 277684-2 | AB121: 32862-2 | AC121: Bronze
A122: 1246069 | B122: kr | C122: 2 | D122: bing | E122: t | F122: 457878 | G122: kr | H122: 2 | I122: Qin | J122: t | K122: 440733 | L122: kr | M122: 2 | N122: BBB | O122: r | P122: Bronze | Q122: 6 | R122: 4 | S122: 161 | T122: 2014-11-16 | U122: 13 days | V122: 2014-12-21T23:49:07 | W122: 1246069-2|457878-2|440733-2 | X122: 0 | Y122: 122 | Z122: 1246069-2 | AA122: 457878-2 | AB122: 440733-2 | AC122: Bronze
A123: 4763004 | B123: kr | C123: 1 | D123: í˜¸êµ¬ì•¼ | E123: t | F123: 3607677 | G123: kr | H123: 1 | I123: í‹°íŒŒë‹ˆ | J123: t | K123: 2004392 | L123: kr | M123: 1 | N123: ë§‰ë²„ë ¤ | O123: p | P123: Bronze | Q123: 7 | R123: 8 | S123: 160 | T123: 2014-11-24 | U123: 18 days | V123: 2014-12-21T23:49:07 | W123: 4763004-1|3607677-1|2004392-1 | X123: 0 | Y123: 123 | Z123: 4763004-1 | AA123: 3607677-1 | AB123: 2004392-1 | AC123: Bronze
A124: 2573245 | B124: kr | C124: 1 | D124: FateSaver | E124: p | F124: 2272181 | G124: kr | H124: 1 | I124: ë ˆë“œë§¤ì‹¤ | J124: t | K124: 1556409 | L124: kr | M124: 1 | N124: ì…€ë”œ | O124: z | P124: Bronze | Q124: 5 | R124: 4 | S124: 158 | T124: 2014-11-29 | U124: 22 days | V124: 2014-12-21T23:49:07 | W124: 2573245-1|2272181-1|1556409-1 | X124: 0 | Y124: 124 | Z124: 2573245-1 | AA124: 2272181-1 | AB124: 1556409-1 | AC124: Bronze
A125: 757393 | B125: kr | C125: 2 | D125: èƒ–è¼” | E125: z | F125: 381693 | G125: kr | H125: 2 | I125: Necky | J125: p | K125: 302661 | L125: kr | M125: 2 | N125: Keven | O125: t | P125: Bronze | Q125: 4 | R125: 4 | S125: 158 | T125: 2014-11-30 | U125: 8 days | V125: 2014-12-21T23:49:07 | W125: 757393-2|381693-2|302661-2 | X125: 0 | Y125: 125 | Z125: 757393-2 | AA125: 381693-2 | AB125: 302661-2 | AC125: Bronze
A126: 410140 | B126: kr | C126: 2 | D126: Visnjic | E126: r | F126: 345733 | G126: kr | H126: 2 | I126: RoLL | J126: r | K126: 155761 | L126: kr | M126: 2 | N126: MaDevil | O126: r | P126: Bronze | Q126: 5 | R126: 7 | S126: 156 | T126: 2014-12-16 | U126: 3 days | V126: 2014-12-21T23:49:07 | W126: 410140-2|345733-2|155761-2 | X126: 0 | Y126: 126 | Z126: 410140-2 | AA126: 345733-2 | AB126: 155761-2 | AC126: Bronze
A127: 848194 | B127: kr | C127: 2 | D127: Fomula | E127: z | F127: 681228 | G127: kr | H127: 2 | I127: Dante | J127: t | K127: 77135 | L127: kr | M127: 2 | N127: Reinhard | O127: z | P127: Bronze | Q127: 10 | R127: 6 | S127: 155 | T127: 2014-11-14 | U127: 33 days | V127: 2014-12-21T23:49:07 | W127: 848194-2|681228-2|77135-2 | X127: 0 | Y127: 127 | Z127: 848194-2 | AA127: 681228-2 | AB127: 77135-2 | AC127: Bronze
A128: 988854 | B128: kr | C128: 2 | D128: Hades | E128: p | F128: 707208 | G128: kr | H128: 2 | I128: é˜¿é¾ | J128: p | K128: 215443 | L128: kr | M128: 2 | N128: ç«¹ç§‘å¤§æ”ç‹¼ | O128: t | P128: Bronze | Q128: 5 | R128: 7 | S128: 155 | T128: 2014-11-14 | U128: 23 days | V128: 2014-12-21T23:49:07 | W128: 988854-2|707208-2|215443-2 | X128: 0 | Y128: 128 | Z128: 988854-2 | AA128: 707208-2 | AB128: 215443-2 | AC128: Bronze
A129: 3119238 | B129: kr | C129: 1 | D129: Gnazzang | E129: t | F129: 2553346 | G129: kr | H129: 1 | I129: ë§ˆì¸ë“œì»¨íŠ¸ëŸ´ | J129: t | K129: 2125383 | L129: kr | M129: 1 | N129: ì¹´ì´ì‚¬ë¥´ | O129: t | P129: Bronze | Q129: 5 | R129: 3 | S129: 154 | T129: 2014-12-19 | U129: 2 days | V129: 2014-12-21T23:49:07 | W129: 3119238-1|2553346-1|2125383-1 | X129: 0 | Y129: 129 | Z129: 3119238-1 | AA129: 2553346-1 | AB129: 2125383-1 | AC129: Bronze
A130: 4033764 | B130: kr | C130: 1 | D130: í•´í”¼í¬ë§¨ | E130: t | F130: 1474919 | G130: kr | H130: 1 | I130: ìŠ¤ë‚˜ì´í¼ | J130: p | K130: 1328722 | L130: kr | M130: 1 | N130: íŠ¹ì „ì‚¬ | O130: r | P130: Bronze | Q130: 6 | R130: 6 | S130: 154 | T130: 2014-11-20 | U130: 4 days | V130: 2014-12-21T23:49:07 | W130: 4033764-1|1474919-1|1328722-1 | X130: 0 | Y130: 130 | Z130: 4033764-1 | AA130: 1474919-1 | AB130: 1328722-1 | AC130: Bronze
A131: 953844 | B131: kr | C131: 1 | D131: kenshin | E131: t | F131: 806103 | G131: kr | H131: 1 | I131: Booster | J131: t | K131: 453613 | L131: kr | M131: 1 | N131: WhiteHacker | O131: p | P131: Bronze | Q131: 5 | R131: 4 | S131: 152 | T131: 2014-11-16 | U131: 28 days | V131: 2014-12-21T23:49:07 | W131: 953844-1|806103-1|453613-1 | X131: 0 | Y131: 131 | Z131: 953844-1 | AA131: 806103-1 | AB131: 453613-1 | AC131: Bronze
A132: 4147247 | B132: kr | C132: 1 | D132: ê¹€ì‚¬ëž‘ | E132: z | F132: 4119089 | G132: kr | H132: 1 | I132: ê°„ì„ë™ìŒˆë”” | J132: p | K132: 2244514 | L132: kr | M132: 1 | N132: wangbae | O132: t | P132: Bronze | Q132: 6 | R132: 7 | S132: 152 | T132: 2014-11-16 | U132: 4 days | V132: 2014-12-21T23:49:07 | W132: 4147247-1|4119089-1|2244514-1 | X132: 0 | Y132: 132 | Z132: 4147247-1 | AA132: 4119089-1 | AB132: 2244514-1 | AC132: Bronze
A133: 1199718 | B133: kr | C133: 2 | D133: otterJon | E133: t | F133: 1090564 | G133: kr | H133: 2 | I133: äºŒé›¶ä¸€ä¸ƒå¹´ç•¢æ¥­ | J133: z | K133: 114697 | L133: kr | M133: 2 | N133: vicNoBody | O133: r | P133: Bronze | Q133: 5 | R133: 10 | S133: 152 | T133: 2014-12-09 | U133: 7 days | V133: 2014-12-21T23:49:07 | W133: 1199718-2|1090564-2|114697-2 | X133: 0 | Y133: 133 | Z133: 1199718-2 | AA133: 1090564-2 | AB133: 114697-2 | AC133: Bronze
A134: 775000 | B134: kr | C134: 2 | D134: AllenChen | E134: t | F134: 769884 | G134: kr | H134: 2 | I134: breaksoul | J134: t | K134: 691255 | L134: kr | M134: 2 | N134: White | O134: z | P134: Bronze | Q134: 8 | R134: 6 | S134: 151 | T134: 2014-11-12 | U134: 30 days | V134: 2014-12-21T23:49:07 | W134: 775000-2|769884-2|691255-2 | X134: 0 | Y134: 134 | Z134: 775000-2 | AA134: 769884-2 | AB134: 691255-2 | AC134: Bronze
A135: 1361554 | B135: kr | C135: 2 | D135: RAY | E135: t | F135: 421132 | G135: kr | H135: 2 | I135: THEONE | J135: t | K135: 168190 | L135: kr | M135: 2 | N135: KAOYAO | O135: p | P135: Bronze | Q135: 5 | R135: 7 | S135: 151 | T135: 2014-11-16 | U135: 7 days | V135: 2014-12-21T23:49:07 | W135: 1361554-2|421132-2|168190-2 | X135: 0 | Y135: 135 | Z135: 1361554-2 | AA135: 421132-2 | AB135: 168190-2 | AC135: Bronze
A136: 4097677 | B136: kr | C136: 1 | D136: ë‚˜ëŠ”ìƒí•œê°€ | E136: r | F136: 4024243 | G136: kr | H136: 1 | I136: ì˜¤í‚í‚ | J136: r | K136: 2895424 | L136: kr | M136: 1 | N136: armys | O136: r | P136: Bronze | Q136: 4 | R136: 1 | S136: 150 | T136: 2014-11-28 | U136: 18 days | V136: 2014-12-21T23:49:07 | W136: 4097677-1|4024243-1|2895424-1 | X136: 0 | Y136: 136 | Z136: 4097677-1 | AA136: 4024243-1 | AB136: 2895424-1 | AC136: Bronze
A137: 2351864 | B137: kr | C137: 1 | D137: ê¹€í•œê¸° | E137: r | F137: 2096419 | G137: kr | H137: 1 | I137: ë‘ì‚°ë² ì–´ìŠ¤ | J137: r | K137: 1320365 | L137: kr | M137: 1 | N137: shadow | O137: z | P137: Bronze | Q137: 6 | R137: 8 | S137: 150 | T137: 2014-11-30 | U137: 21 days | V137: 2014-12-21T23:49:07 | W137: 2351864-1|2096419-1|1320365-1 | X137: 0 | Y137: 137 | Z137: 2351864-1 | AA137: 2096419-1 | AB137: 1320365-1 | AC137: Bronze
A138: 2028262 | B138: kr | C138: 1 | D138: ì¿ ì—ì›¨ì—ì—‘ | E138: r | F138: 1705342 | G138: kr | H138: 1 | I138: Ghosteun | J138: t | K138: 1704100 | L138: kr | M138: 1 | N138: ì°¬ë´‰ì´ë°œì†Œ | O138: p | P138: Bronze | Q138: 4 | R138: 1 | S138: 148 | T138: 2014-12-18 | U138: 3 days | V138: 2014-12-21T23:49:07 | W138: 2028262-1|1705342-1|1704100-1 | X138: 0 | Y138: 138 | Z138: 2028262-1 | AA138: 1705342-1 | AB138: 1704100-1 | AC138: Bronze
A139: 2347923 | B139: kr | C139: 1 | D139: ì¼ìˆ˜ì¼ë©¸ | E139: z | F139: 2313428 | G139: kr | H139: 1 | I139: jsh | J139: p | K139: 2101125 | L139: kr | M139: 1 | N139: asdwd | O139: p | P139: Bronze | Q139: 5 | R139: 8 | S139: 148 | T139: 2014-11-29 | U139: 1 days | V139: 2014-12-21T23:49:07 | W139: 2347923-1|2313428-1|2101125-1 | X139: 0 | Y139: 139 | Z139: 2347923-1 | AA139: 2313428-1 | AB139: 2101125-1 | AC139: Bronze
A140: 1618401 | B140: kr | C140: 1 | D140: Cesc | E140: p | F140: 1565094 | G140: kr | H140: 1 | I140: í•´ë³‘ì™• | J140: t | K140: 897049 | L140: kr | M140: 1 | N140: solid | O140: z | P140: Bronze | Q140: 5 | R140: 10 | S140: 148 | T140: 2014-12-06 | U140: 15 days | V140: 2014-12-21T23:49:07 | W140: 1618401-1|1565094-1|897049-1 | X140: 0 | Y140: 140 | Z140: 1618401-1 | AA140: 1565094-1 | AB140: 897049-1 | AC140: Bronze
A141: 4031105 | B141: kr | C141: 1 | D141: íƒ€ì§œê³ ë‹ˆ | E141: z | F141: 3729667 | G141: kr | H141: 1 | I141: ì°Œì–´ë‹ | J141: t | K141: 3645086 | L141: kr | M141: 1 | N141: HeavyRain | O141: p | P141: Bronze | Q141: 5 | R141: 1 | S141: 146 | T141: 2014-12-14 | U141: 8 days | V141: 2014-12-21T23:49:07 | W141: 4031105-1|3729667-1|3645086-1 | X141: 0 | Y141: 141 | Z141: 4031105-1 | AA141: 3729667-1 | AB141: 3645086-1 | AC141: Bronze
A142: 1037201 | B142: kr | C142: 2 | D142: ALEX | E142: z | F142: 972180 | G142: kr | H142: 2 | I142: RAIN | J142: t | K142: 852519 | L142: kr | M142: 2 | N142: ä»–åŒ–é—¡æ | O142: z | P142: Bronze | Q142: 4 | R142: 2 | S142: 146 | T142: 2014-12-20 | U142: 1 days | V142: 2014-12-21T23:49:07 | W142: 1037201-2|972180-2|852519-2 | X142: 0 | Y142: 142 | Z142: 1037201-2 | AA142: 972180-2 | AB142: 852519-2 | AC142: Bronze
A143: 2852039 | B143: kr | C143: 1 | D143: hotdog | E143: r | F143: 2825687 | G143: kr | H143: 1 | I143: EdinDzeko | J143: r | K143: 1528640 | L143: kr | M143: 1 | N143: ë¦¬ìŠ¤ë‹˜ì´ë‹¤ | O143: z | P143: Bronze | Q143: 4 | R143: 6 | S143: 146 | T143: 2014-12-10 | U143: 3 days | V143: 2014-12-21T23:49:07 | W143: 2852039-1|2825687-1|1528640-1 | X143: 0 | Y143: 143 | Z143: 2852039-1 | AA143: 2825687-1 | AB143: 1528640-1 | AC143: Bronze
A144: 3780954 | B144: kr | C144: 1 | D144: ë–¡ëŒ€ | E144: p | F144: 1137306 | G144: kr | H144: 1 | I144: í‘¸ìš° | J144: r | K144: 1133749 | L144: kr | M144: 1 | N144: í‚¹ì™•ì§± | O144: z | P144: Bronze | Q144: 5 | R144: 3 | S144: 144 | T144: 2014-11-24 | U144: 26 days | V144: 2014-12-21T23:49:07 | W144: 3780954-1|1137306-1|1133749-1 | X144: 0 | Y144: 144 | Z144: 3780954-1 | AA144: 1137306-1 | AB144: 1133749-1 | AC144: Bronze
A145: 1398397 | B145: kr | C145: 2 | D145: KentKing | E145: r | F145: 200248 | G145: kr | H145: 2 | I145: Rasiris | J145: t | K145: 56749 | L145: kr | M145: 2 | N145: ICarYou | O145: z | P145: Bronze | Q145: 4 | R145: 4 | S145: 144 | T145: 2014-11-30 | U145: 21 days | V145: 2014-12-21T23:49:07 | W145: 1398397-2|200248-2|56749-2 | X145: 0 | Y145: 145 | Z145: 1398397-2 | AA145: 200248-2 | AB145: 56749-2 | AC145: Bronze
A146: 4419417 | B146: kr | C146: 1 | D146: í•œíƒì‹ë¬¼ì› | E146: p | F146: 1322002 | G146: kr | H146: 1 | I146: í˜€ë‹ˆ | J146: z | K146: 349914 | L146: kr | M146: 1 | N146: GentleYoo | O146: p | P146: Bronze | Q146: 9 | R146: 15 | S146: 144 | T146: 2014-11-29 | U146: 22 days | V146: 2014-12-21T23:49:07 | W146: 4419417-1|1322002-1|349914-1 | X146: 0 | Y146: 146 | Z146: 4419417-1 | AA146: 1322002-1 | AB146: 349914-1 | AC146: Bronze
A147: 4766127 | B147: kr | C147: 1 | D147: Dafakim | E147: t | F147: 4511139 | G147: kr | H147: 1 | I147: BSu | J147: z | K147: 4131642 | L147: kr | M147: 1 | N147: SFLRandom | O147: t | P147: Bronze | Q147: 7 | R147: 1 | S147: 142 | T147: 2014-12-02 | U147: 5 days | V147: 2014-12-21T23:49:07 | W147: 4766127-1|4511139-1|4131642-1 | X147: 0 | Y147: 147 | Z147: 4766127-1 | AA147: 4511139-1 | AB147: 4131642-1 | AC147: Bronze
A148: 1580766 | B148: kr | C148: 1 | D148: ì‚¬ì°¨ê´€ | E148: r | F148: 973276 | G148: kr | H148: 1 | I148: ìœ¡ëª» | J148: r | K148: 219535 | L148: kr | M148: 1 | N148: ì „ì§„ë°°ëŸ­ | O148: r | P148: Bronze | Q148: 4 | R148: 2 | S148: 142 | T148: 2014-11-21 | U148: 27 days | V148: 2014-12-21T23:49:07 | W148: 1580766-1|973276-1|219535-1 | X148: 0 | Y148: 148 | Z148: 1580766-1 | AA148: 973276-1 | AB148: 219535-1 | AC148: Bronze
A149: 3781600 | B149: kr | C149: 1 | D149: ìœ í‚¤ì•„ë„¤ìŠ¤ | E149: p | F149: 3343074 | G149: kr | H149: 1 | I149: leeky | J149: t | K149: 1365820 | L149: kr | M149: 1 | N149: ì—˜ë¡œ | O149: r | P149: Bronze | Q149: 5 | R149: 7 | S149: 142 | T149: 2014-11-30 | U149: 21 days | V149: 2014-12-21T23:49:07 | W149: 3781600-1|3343074-1|1365820-1 | X149: 0 | Y149: 149 | Z149: 3781600-1 | AA149: 3343074-1 | AB149: 1365820-1 | AC149: Bronze
A150: 791308 | B150: kr | C150: 1 | D150: ì°ì°ì° | E150: r | F150: 164879 | G150: kr | H150: 1 | I150: Neo | J150: r | K150: 76646 | L150: kr | M150: 1 | N150: í—‰í—‰í—‰ | O150: r | P150: Bronze | Q150: 8 | R150: 16 | S150: 142 | T150: 2014-11-10 | U150: 8 days | V150: 2014-12-21T23:49:07 | W150: 791308-1|164879-1|76646-1 | X150: 0 | Y150: 150 | Z150: 791308-1 | AA150: 164879-1 | AB150: 76646-1 | AC150: Bronze
A151: 2385500 | B151: kr | C151: 1 | D151: riain | E151: t | F151: 1821217 | G151: kr | H151: 1 | I151: Minotaur | J151: p | K151: 387604 | L151: kr | M151: 1 | N151: í™©ê°€ | O151: t | P151: Bronze | Q151: 6 | R151: 19 | S151: 142 | T151: 2014-11-29 | U151: 21 hours | V151: 2014-12-21T23:49:07 | W151: 2385500-1|1821217-1|387604-1 | X151: 0 | Y151: 151 | Z151: 2385500-1 | AA151: 1821217-1 | AB151: 387604-1 | AC151: Bronze
A152: 2554351 | B152: kr | C152: 1 | D152: ë‘ë§ˆë¦¬ | E152: t | F152: 1996694 | G152: kr | H152: 1 | I152: ë°”ë‚˜ë‚˜ | J152: z | K152: 1917155 | L152: kr | M152: 1 | N152: ë³‘ì‹ ê³¼ë¨¸ì €ë¦¬ | O152: p | P152: Bronze | Q152: 6 | R152: 5 | S152: 141 | T152: 2014-11-10 | U152: 13 days | V152: 2014-12-21T23:49:07 | W152: 2554351-1|1996694-1|1917155-1 | X152: 0 | Y152: 152 | Z152: 2554351-1 | AA152: 1996694-1 | AB152: 1917155-1 | AC152: Bronze
A153: 2978623 | B153: kr | C153: 1 | D153: ê°€ì´ë“œ | E153: t | F153: 2954669 | G153: kr | H153: 1 | I153: ì‚¬ìš°ë¡ | J153: p | K153: 2334136 | L153: kr | M153: 1 | N153: LEIlIlIlIAM | O153: p | P153: Bronze | Q153: 3 | R153: 1 | S153: 140 | T153: 2014-12-20 | U153: 1 days | V153: 2014-12-21T23:49:07 | W153: 2978623-1|2954669-1|2334136-1 | X153: 0 | Y153: 153 | Z153: 2978623-1 | AA153: 2954669-1 | AB153: 2334136-1 | AC153: Bronze
A154: 2271869 | B154: kr | C154: 1 | D154: ë§í• ìŠ¤íƒ€í•˜ê¸°ë“œëŸ½ | E154: r | F154: 568502 | G154: kr | H154: 1 | I154: zswea | J154: r | K154: 126152 | L154: kr | M154: 1 | N154: ë‹¬íŒ½ì´íŠ€ê¹€ | O154: r | P154: Bronze | Q154: 5 | R154: 5 | S154: 140 | T154: 2014-12-11 | U154: 10 days | V154: 2014-12-21T23:49:07 | W154: 2271869-1|568502-1|126152-1 | X154: 0 | Y154: 154 | Z154: 2271869-1 | AA154: 568502-1 | AB154: 126152-1 | AC154: Bronze
A155: 4702142 | B155: kr | C155: 1 | D155: ì˜¤ì§•ì–´í¼ë¨¹ì–´ | E155: t | F155: 1945828 | G155: kr | H155: 1 | I155: ìž­ìŠ¨ì˜ë³µìˆ˜ë‹¨ | J155: z | K155: 1919266 | L155: kr | M155: 1 | N155: ì€ì„ì§± | O155: p | P155: Bronze | Q155: 5 | R155: 5 | S155: 140 | T155: 2014-12-13 | U155: 8 days | V155: 2014-12-21T23:49:07 | W155: 4702142-1|1945828-1|1919266-1 | X155: 0 | Y155: 155 | Z155: 4702142-1 | AA155: 1945828-1 | AB155: 1919266-1 | AC155: Bronze
A156: 1747929 | B156: kr | C156: 1 | D156: BioKiD | E156: p | F156: 1746645 | G156: kr | H156: 1 | I156: bluemarine | J156: r | K156: 332508 | L156: kr | M156: 1 | N156: BioHazarD | O156: z | P156: Bronze | Q156: 5 | R156: 6 | S156: 140 | T156: 2014-12-07 | U156: 14 days | V156: 2014-12-21T23:49:07 | W156: 1747929-1|1746645-1|332508-1 | X156: 0 | Y156: 156 | Z156: 1747929-1 | AA156: 1746645-1 | AB156: 332508-1 | AC156: Bronze
A157: 4763191 | B157: kr | C157: 1 | D157: AwH | E157: t | F157: 4477199 | G157: kr | H157: 1 | I157: chillykong | J157: t | K157: 4043045 | L157: kr | M157: 1 | N157: Lumatic | O157: p | P157: Bronze | Q157: 5 | R157: 1 | S157: 139 | T157: 2014-11-22 | U157: 30 days | V157: 2014-12-21T23:49:07 | W157: 4763191-1|4477199-1|4043045-1 | X157: 0 | Y157: 157 | Z157: 4763191-1 | AA157: 4477199-1 | AB157: 4043045-1 | AC157: Bronze
A158: 4778467 | B158: kr | C158: 1 | D158: Ryu | E158: t | F158: 4707012 | G158: kr | H158: 1 | I158: UnKnOwN | J158: t | K158: 2701294 | L158: kr | M158: 1 | N158: JACOOK | O158: p | P158: Bronze | Q158: 8 | R158: 10 | S158: 139 | T158: 2014-11-11 | U158: 27 days | V158: 2014-12-21T23:49:07 | W158: 4778467-1|4707012-1|2701294-1 | X158: 0 | Y158: 158 | Z158: 4778467-1 | AA158: 4707012-1 | AB158: 2701294-1 | AC158: Bronze
A159: 107234 | B159: kr | C159: 2 | D159: GTQ | E159: p | F159: 80382 | G159: kr | H159: 2 | I159: Nitric | J159: t | K159: 38371 | L159: kr | M159: 2 | N159: AriesHuangTW | O159: z | P159: Bronze | Q159: 5 | R159: 0 | S159: 138 | T159: 2014-11-15 | U159: 33 days | V159: 2014-12-21T23:49:07 | W159: 107234-2|80382-2|38371-2 | X159: 0 | Y159: 159 | Z159: 107234-2 | AA159: 80382-2 | AB159: 38371-2 | AC159: Bronze
A160: 4251814 | B160: kr | C160: 1 | D160: Dorothy | E160: t | F160: 4011150 | G160: kr | H160: 1 | I160: gxshvv | J160: p | K160: 2080309 | L160: kr | M160: 1 | N160: ì–¼ì§±ê¹€ë¯¼ì—½ | O160: p | P160: Bronze | Q160: 5 | R160: 1 | S160: 138 | T160: 2014-11-15 | U160: 28 days | V160: 2014-12-21T23:49:07 | W160: 4251814-1|4011150-1|2080309-1 | X160: 0 | Y160: 160 | Z160: 4251814-1 | AA160: 4011150-1 | AB160: 2080309-1 | AC160: Bronze
A161: 2141452 | B161: kr | C161: 1 | D161: ì›”ë¥˜í•˜ | E161: z | F161: 1841162 | G161: kr | H161: 1 | I161: ê¹€êµ¬ë¦¬ê°œêµ´ | J161: z | K161: 455829 | L161: kr | M161: 1 | N161: Woo | O161: t | P161: Bronze | Q161: 4 | R161: 1 | S161: 138 | T161: 2014-11-24 | U161: 27 days | V161: 2014-12-21T23:49:07 | W161: 2141452-1|1841162-1|455829-1 | X161: 0 | Y161: 161 | Z161: 2141452-1 | AA161: 1841162-1 | AB161: 455829-1 | AC161: Bronze
A162: 4341070 | B162: kr | C162: 1 | D162: ì•…ë§ˆ | E162: z | F162: 4155709 | G162: kr | H162: 1 | I162: ì´ìœ¤ì—´ | J162: t | K162: 2495906 | L162: kr | M162: 1 | N162: ì•„ì´ë¦¬ìŠ¤ | O162: p | P162: Bronze | Q162: 5 | R162: 4 | S162: 138 | T162: 2014-11-28 | U162: 23 days | V162: 2014-12-21T23:49:07 | W162: 4341070-1|4155709-1|2495906-1 | X162: 0 | Y162: 162 | Z162: 4341070-1 | AA162: 4155709-1 | AB162: 2495906-1 | AC162: Bronze
A163: 3473773 | B163: kr | C163: 1 | D163: jaehoonpa | E163: t | F163: 3421358 | G163: kr | H163: 1 | I163: ë‹¬ì¸ìˆ˜ì œìž | J163: z | K163: 1764468 | L163: kr | M163: 1 | N163: ë¼ì§€ìƒˆë¼ | O163: t | P163: Bronze | Q163: 3 | R163: 3 | S163: 138 | T163: 2014-12-07 | U163: 14 days | V163: 2014-12-21T23:49:07 | W163: 3473773-1|3421358-1|1764468-1 | X163: 0 | Y163: 163 | Z163: 3473773-1 | AA163: 3421358-1 | AB163: 1764468-1 | AC163: Bronze
A164: 3219602 | B164: kr | C164: 1 | D164: ì•”íƒ‰ | E164: z | F164: 1548166 | G164: kr | H164: 1 | I164: ìˆ˜íƒ‰ | J164: p | K164: 152307 | L164: kr | M164: 1 | N164: ì•„ìžëµ¹ì˜¹ | O164: t | P164: Bronze | Q164: 5 | R164: 9 | S164: 138 | T164: 2014-11-14 | U164: 19 days | V164: 2014-12-21T23:49:07 | W164: 3219602-1|1548166-1|152307-1 | X164: 0 | Y164: 164 | Z164: 3219602-1 | AA164: 1548166-1 | AB164: 152307-1 | AC164: Bronze
A165: 3143068 | B165: kr | C165: 1 | D165: CLYDA | E165: z | F165: 621638 | G165: kr | H165: 1 | I165: Zamorak | J165: z | K165: 484605 | L165: kr | M165: 1 | N165: TheStyle | O165: p | P165: Bronze | Q165: 5 | R165: 1 | S165: 136 | T165: 2014-12-20 | U165: 1 days | V165: 2014-12-21T23:49:07 | W165: 3143068-1|621638-1|484605-1 | X165: 0 | Y165: 165 | Z165: 3143068-1 | AA165: 621638-1 | AB165: 484605-1 | AC165: Bronze
A166: 2022315 | B166: kr | C166: 1 | D166: Future | E166: t | F166: 2010875 | G166: kr | H166: 1 | I166: í›Œë¼í›Œë¼ | J166: r | K166: 1894924 | L166: kr | M166: 1 | N166: ê´‘ì£¼í›ˆë‚¨ | O166: r | P166: Bronze | Q166: 5 | R166: 2 | S166: 136 | T166: 2014-12-05 | U166: 16 days | V166: 2014-12-21T23:49:07 | W166: 2022315-1|2010875-1|1894924-1 | X166: 0 | Y166: 166 | Z166: 2022315-1 | AA166: 2010875-1 | AB166: 1894924-1 | AC166: Bronze
A167: 4095941 | B167: kr | C167: 1 | D167: JCK | E167: r | F167: 1275779 | G167: kr | H167: 1 | I167: ì´ë³‘ | J167: p | K167: 1152051 | L167: kr | M167: 1 | N167: ì–´ë‘ ì˜ê¸°ì‚¬ | O167: r | P167: Bronze | Q167: 5 | R167: 7 | S167: 136 | T167: 2014-11-29 | U167: 21 days | V167: 2014-12-21T23:49:07 | W167: 4095941-1|1275779-1|1152051-1 | X167: 0 | Y167: 167 | Z167: 4095941-1 | AA167: 1275779-1 | AB167: 1152051-1 | AC167: Bronze
A168: 1127429 | B168: kr | C168: 2 | D168: BlackLotus | E168: z | F168: 33010 | G168: kr | H168: 2 | I168: KiKiDro | J168: p | K168: 4318056 | L168: kr | M168: 1 | N168: HumanGhost | O168: r | P168: Bronze | Q168: 4 | R168: 1 | S168: 134 | T168: 2014-12-12 | U168: 9 days | V168: 2014-12-21T23:49:07 | W168: 1127429-2|33010-2|4318056-1 | X168: 0 | Y168: 168 | Z168: 1127429-2 | AA168: 33010-2 | AB168: 4318056-1 | AC168: Bronze
A169: 1105624 | B169: kr | C169: 2 | D169: AprilStorM | E169: t | F169: 1076273 | G169: kr | H169: 2 | I169: å¸¥æ°£çš„é˜¿ç¾…èªª | J169: t | K169: 839273 | L169: kr | M169: 2 | N169: KRsuck | O169: r | P169: Bronze | Q169: 5 | R169: 4 | S169: 134 | T169: 2014-11-30 | U169: 21 days | V169: 2014-12-21T23:49:07 | W169: 1105624-2|1076273-2|839273-2 | X169: 0 | Y169: 169 | Z169: 1105624-2 | AA169: 1076273-2 | AB169: 839273-2 | AC169: Bronze
A170: 4776369 | B170: kr | C170: 1 | D170: í˜¸ì¼ë°” | E170: t | F170: 3676107 | G170: kr | H170: 1 | I170: ë¶ˆê³° | J170: p | K170: 1870321 | L170: kr | M170: 1 | N170: ë¹ ì¶©ë² | O170: p | P170: Bronze | Q170: 3 | R170: 8 | S170: 134 | T170: 2014-12-07 | U170: 14 days | V170: 2014-12-21T23:49:07 | W170: 4776369-1|3676107-1|1870321-1 | X170: 0 | Y170: 170 | Z170: 4776369-1 | AA170: 3676107-1 | AB170: 1870321-1 | AC170: Bronze
A171: 4604927 | B171: kr | C171: 1 | D171: ë†ì•½ë§›ìº”ë”” | E171: p | F171: 3350283 | G171: kr | H171: 1 | I171: ë‚˜ê°€ê¸° | J171: z | K171: 533826 | L171: kr | M171: 1 | N171: ë¶€ì‚°ì»´ë‹¥í„° | O171: p | P171: Bronze | Q171: 7 | R171: 6 | S171: 133 | T171: 2014-11-16 | U171: 35 days | V171: 2014-12-21T23:49:07 | W171: 4604927-1|3350283-1|533826-1 | X171: 0 | Y171: 171 | Z171: 4604927-1 | AA171: 3350283-1 | AB171: 533826-1 | AC171: Bronze
A172: 999267 | B172: kr | C172: 2 | D172: MrWait | E172: p | F172: 998031 | G172: kr | H172: 2 | I172: Hork | J172: t | K172: 930697 | L172: kr | M172: 2 | N172: ä¸Šé‚ª | O172: z | P172: Bronze | Q172: 16 | R172: 21 | S172: 133 | T172: 2014-11-10 | U172: 32 days | V172: 2014-12-21T23:49:07 | W172: 999267-2|998031-2|930697-2 | X172: 0 | Y172: 172 | Z172: 999267-2 | AA172: 998031-2 | AB172: 930697-2 | AC172: Bronze
A173: 1400588 | B173: kr | C173: 2 | D173: é˜¿éœ– | E173: t | F173: 1400289 | G173: kr | H173: 2 | I173: AzE | J173: z | K173: 1398297 | L173: kr | M173: 2 | N173: wuxia | O173: t | P173: Bronze | Q173: 5 | R173: 22 | S173: 133 | T173: 2014-12-14 | U173: 1 days | V173: 2014-12-21T23:49:07 | W173: 1400588-2|1400289-2|1398297-2 | X173: 0 | Y173: 173 | Z173: 1400588-2 | AA173: 1400289-2 | AB173: 1398297-2 | AC173: Bronze
A174: 4612753 | B174: kr | C174: 1 | D174: ë°•ë³´ì˜ | E174: p | F174: 3106628 | G174: kr | H174: 1 | I174: ì¦ë¶ê³µ | J174: p | K174: 2087278 | L174: kr | M174: 1 | N174: í™”ëˆí•œì‚¬ë‚˜ì´ | O174: t | P174: Bronze | Q174: 5 | R174: 4 | S174: 132 | T174: 2014-12-13 | U174: 8 days | V174: 2014-12-21T23:49:07 | W174: 4612753-1|3106628-1|2087278-1 | X174: 0 | Y174: 174 | Z174: 4612753-1 | AA174: 3106628-1 | AB174: 2087278-1 | AC174: Bronze
A175: 4767129 | B175: kr | C175: 1 | D175: ê¹€ì„ ìš´ | E175: r | F175: 3991256 | G175: kr | H175: 1 | I175: ìŠ¤íƒˆë¦¬ì‰¬ | J175: r | K175: 754076 | L175: kr | M175: 1 | N175: ëŒ€ëŒ€ëŒ€ëŒ€ | O175: r | P175: Bronze | Q175: 5 | R175: 5 | S175: 132 | T175: 2014-12-02 | U175: 22 hours | V175: 2014-12-21T23:49:07 | W175: 4767129-1|3991256-1|754076-1 | X175: 0 | Y175: 175 | Z175: 4767129-1 | AA175: 3991256-1 | AB175: 754076-1 | AC175: Bronze
A176: 838629 | B176: kr | C176: 2 | D176: å…«å¦å±±ä¸‹å¡çš„å‚³èªª | E176: r | F176: 760001 | G176: kr | H176: 2 | I176: KCHsuVash | J176: t | K176: 363225 | L176: kr | M176: 2 | N176: JackYu | O176: t | P176: Bronze | Q176: 5 | R176: 1 | S176: 130 | T176: 2014-12-06 | U176: 15 days | V176: 2014-12-21T23:49:07 | W176: 838629-2|760001-2|363225-2 | X176: 0 | Y176: 176 | Z176: 838629-2 | AA176: 760001-2 | AB176: 363225-2 | AC176: Bronze
A177: 2753506 | B177: kr | C177: 1 | D177: acmyun | E177: p | F177: 2445314 | G177: kr | H177: 1 | I177: soullove | J177: p | K177: 1383216 | L177: kr | M177: 1 | N177: Psspikee | O177: z | P177: Bronze | Q177: 4 | R177: 1 | S177: 130 | T177: 2014-11-19 | U177: 32 days | V177: 2014-12-21T23:49:07 | W177: 2753506-1|2445314-1|1383216-1 | X177: 0 | Y177: 177 | Z177: 2753506-1 | AA177: 2445314-1 | AB177: 1383216-1 | AC177: Bronze
A178: 1033004 | B178: kr | C178: 2 | D178: TatsacheDust | E178: p | F178: 720514 | G178: kr | H178: 2 | I178: eversefmn | J178: z | K178: 298077 | L178: kr | M178: 2 | N178: PhantasmDust | O178: z | P178: Bronze | Q178: 5 | R178: 5 | S178: 130 | T178: 2014-11-15 | U178: 8 days | V178: 2014-12-21T23:49:07 | W178: 1033004-2|720514-2|298077-2 | X178: 0 | Y178: 178 | Z178: 1033004-2 | AA178: 720514-2 | AB178: 298077-2 | AC178: Bronze
A179: 1378205 | B179: kr | C179: 1 | D179: TheUK | E179: p | F179: 1155798 | G179: kr | H179: 1 | I179: íš¨ì‚ | J179: p | K179: 198031 | L179: kr | M179: 1 | N179: Sun | O179: t | P179: Bronze | Q179: 3 | R179: 3 | S179: 130 | T179: 2014-11-24 | U179: 27 days | V179: 2014-12-21T23:49:07 | W179: 1378205-1|1155798-1|198031-1 | X179: 0 | Y179: 179 | Z179: 1378205-1 | AA179: 1155798-1 | AB179: 198031-1 | AC179: Bronze
A180: 4513469 | B180: kr | C180: 1 | D180: actorTM | E180: z | F180: 4512825 | G180: kr | H180: 1 | I180: FreeEverS | J180: p | K180: 3031317 | L180: kr | M180: 1 | N180: Zest | O180: z | P180: Bronze | Q180: 6 | R180: 6 | S180: 130 | T180: 2014-11-29 | U180: 22 days | V180: 2014-12-21T23:49:07 | W180: 4513469-1|4512825-1|3031317-1 | X180: 0 | Y180: 180 | Z180: 4513469-1 | AA180: 4512825-1 | AB180: 3031317-1 | AC180: Bronze
A181: 1127429 | B181: kr | C181: 2 | D181: BlackLotus | E181: z | F181: 471193 | G181: kr | H181: 2 | I181: ScottW | J181: p | K181: 33010 | L181: kr | M181: 2 | N181: KiKiDro | O181: p | P181: Bronze | Q181: 4 | R181: 1 | S181: 128 | T181: 2014-11-26 | U181: 5 days | V181: 2014-12-21T23:49:07 | W181: 1127429-2|471193-2|33010-2 | X181: 0 | Y181: 181 | Z181: 1127429-2 | AA181: 471193-2 | AB181: 33010-2 | AC181: Bronze
